Workbook

Sheet Tableau de bord

Sheet Feuil1 (hidden)
A1: MSN | B1: 271
A3: Nombre de Root cause comments | B3: Étiquettes de colonnes
A4: Étiquettes de lignes | B4: A350 | C4: Total général
A5: (vide)
A6: boitier | B6: 1 | C6: 1
A7: Total général | B7: 1 | C7: 1

Sheet Feuil2 (hidden)
A3: Nombre de Root cause comments | B3: Étiquettes de colonnes
A4: Étiquettes de lignes | B4: (vide) | C4: câble | D4: boitier | E4: Total général
A5: (vide)
A6: protection | D6: 1 | E6: 1
A7: connection | C7: 1 | E7: 1
A8: Total général | C8: 1 | D8: 1 | E8: 2

Sheet Feuil4 (hidden)
A3: Nombre de Root cause comments | B3: Étiquettes de colonnes
A4: Étiquettes de lignes | B4: (vide) | C4: Total général
A5: (vide)
A6: Total général

Sheet LISTES
A2: Perimeter | B2: Program | C2: NC liability | D2: Reactivity main causes | E2: FTR | F2: ECME | G2: Date dernier contrôle ECME | H2: Date prochain contrôle ECME | J2: Mois | K2: Année | M2: Localisation
A3: GESTION | B3: A350 | C3: AIRBUS | D3: Atnte appro STELIA | E3: Yes | F3: Clé à torquer - AAA-TO-042747 | G3: 2017-11-01 | H3: 2018-05-01 | J3: JANVIER | K3: 2018 | M3: C:\Users\ng319c6\Desktop\Performance Industrielle\Projet par Prestation\SRCI SRST SCAT\[SCAT 2018 ATR .xlsx]
A4: CI | B4: A330 | C4: STELIA | D4: **Atnte appro STELIA / Pas accès avion | E4: No - x1 | J4: FEVRIER | K4: 2019 | M4: C:\Users\ng319c6\AppData\Local\Microsoft\Windows\Temporary Internet Files\Content.Outlook\M9P0W8AW\[SCAT 2018 ATR .xlsx]
A5: ST | B5: A320 | C5: IFE Pana | D5: Atnte info PANA | E5: No - x2 | J5: MARS | K5: 2020
A6: AC | B6: A380 | C6: IFE Thales | D6: Atnte retour BE/Q | E6: No - x3 | J6: AVRIL | K6: 2021
A7: Other | B7: ATR | C7: IFE Zodiac | D7: Pas accès avion | E7: No - More | J7: MAI | K7: 2022
B8: Other | C8: OSS | D8: Avion indispo | J8: JUIN | K8: 2023
B9: A319 | C9: Other | D9: Attnte appro THALES | J9: JUILLET | K9: 2024
C10: Customer Request | D10: Atnte appro PANA | J10: AOUT | K10: 2025
C11: STECO | D11: Attente pt | J11: SEPTEMBRE | K11: 2026
D12: Attente appro AIRBUS | J12: OCTOBRE | K12: 2027
D13: Appli GAMME | J13: NOVENBRE | K13: 2028
D14: Fermé sous 48h /WE | J14: DECEMBRE | K14: 2029
D15: Atnte appro STELIA /F/C 15/12 Atnte DEP AIB
D16: Atnte AIRBUS
D17: Atnte BE/MAP AIRBUS
D18: Atnte deballage sièges
D19: Atnte remontage/Intégt AIRBUS
D20: IFE /Zodiac
D21: AIT Peintre
D22: Admin
D23: AAA Indispo
D24: Pas de jus sur Avion
D25: Priorité aux pts les plus faciles
D26: REOPEN
D27: As Per inspection
D28: Priorité aux avions suivant leur position
D29: Avion peinture
D30: Atnte acces siege sur poste
D31: Atnte VOL
D32: Atnte appro ZODIAC

Sheet NON ACCES AVIONS
A2: DATE | B2: MSN | C2: NON ACCES | D2: NOUVEL ACCES | E2: POINTS | F2: TEMPS PASSE | G2: Nbr Intev
A3: 2018-01-10 | B3: 112 | C3: N/A 10/01 | D3: 2018-01-11 | E3: QLB 0067 REOPEN
A4: 2018-01-10 | B4: 1846 | C4: N/A 10/01 | D4: 2018-01-12 | E4: LR.1846-0014
A5: 2018-01-18 | B5: 98 | C5: N/A 18/01/18 | D5: 2018-06-01 | E5: 8 POINTS
A6: 2018-01-15 | B6: 189 | C6: Peinture du 04/11 au 18 au soir | D6: 19/01/2018 vendee 100 | E6: 1 Point
A7: 2018-01-22 | B7: 177 | C7: Pas acces vol ce jour a 10H00 | D7: A 14h00 | E7: 3 QLB
A8: 2018-01-22 | B8: 8096 | C8: Plus acces depuis le 19/01 au soir jusqu'au 12/02/ | D8: 12/02/2018 ENGINE | E8: 1 QLB
A9: 2018-01-26 | B9: 189 | C9: Pas acces vol ce jour FOT | E9: 1 point le câble a changer
A10: 2018-01-29 | B10: 1858 | D10: 29/01 AVION A JLL
A11: 2018-01-29 | B11: 189 | D11: Accès jusquà 15h00 | E11: 1 point le câble a changer
A12: 2018-01-31 | B12: 198 | C12: FINAL CABINE CE JOUR
A14: 2018-01-02 | B14: 1846 | C14: Pas de passerelle pour accès avion
A15: 2018-01-02 | B15: 189 | C15: NO ACCES PFFM/RTO | E15: TLB R2 34 /S1 36
A16: 2018-02-07 | B16: 1854 | C16: PAINT DU 08/02 AU 22/02 | D16: 2018-02-22
A17: 2018-02-07 | B17: 1852 | C17: PAINT DU 07/02 AU 22/02 | D17: 2018-02-22
A18: 2018-02-07 | B18: 1858 | C18: PAINT DU 17/02 AU 27/02 | D18: 2018-02-27 | E18: 2 POINTS ATTENTE CDE ODD 13/03/18 Cover et Etq
A19: 2018-02-14 | B19: 185 | C19: GROUND CHECK 14/02 | D19: 2018-02-16 | E19: QLB
A20: 2018-02-15 | B20: 185 | C20: VOL LE 15/02 | D20: 16/02/
A21: 2018-02-14 | B21: 201 | C21: JALON 4 le 14/02 F/C le 1502
A22: 2018-02-20 | B22: 8098 | C22: ACCES APRES VALIDATION | D22: 2018-02-20 | E22: 9079585
A23: 2018-02-20 | B23: 198 | C23: FULL ACCES | D23: 2018-02-20 | E23: 5 QLB
A24: 2018-02-20 | B24: 187 | C24: NO ACCES vol | D24: 2018-02-21
A25: 2018-02-22 | B25: 1852 | C25: sort de la peinture le 26/02 a 14H00 et visite Client N/A | D25: 27/02/2018 de 11h00 a 16 h00 | E25: QLB 006 Entablement a changer
A26: 2018-02-26 | B26: 198 | C26: EN PEINTURE DU 27/02 AU 21/03 | D26: 21/03 ??? À confimer
A27: 2018-02-27 | B27: 201 | C27: ACCES LIMITE POINT BLOQUANTS | D27: ???
A28: 2018-03-01 | B28: 201 | C28: N/A FOT | D28: 02/03 A PARTIR DE 14h00 | E28: 3 points
A29: 2018-03-05 | B29: 201 | C29: N/A RTO RTO REPOUSSE A 17H le FF N/A SI RTO FAITE SINON TOUT SERA DECALE D'UNE JOURNEE | D29: A partir de 14h30 finalement plus d'accés | E29: Les compagnons sont allés et en fait plus d'accès
A30: 2018-03-06 | B30: 201 | C30: N/A TOUTE LA JOURNEE CAUSE FF A 13 H00 COMPROMIS DE 2 ROUES ENDOMMAGEES SUITE AU RTO | D30: 06/03 A partir de 19h00 | E30: 3 points
A31: 2018-03-06 | B31: 1858 | C31: ACCES MAIS ATTENTE COMMANDES | E31: 2 POINTS ATTENTE CDE ODD 13/03/18 Cover et Etq
A32: 2018-03-06 | B32: 1852 | C32: N/A LE 06/03/18 matinée | D32: Fin de journée | E32: PEINTRE AIT
A33: 2018-03-07 | B33: 201 | C33: Acces tte la fournée pour faire PRVT padding
A34: 2018-03-07 | B34: 8096 | C34: H/O 07/03 N/A
A35: 2018-03-07 | B35: 1858 | C35: N/A CAR DOIT ALLER AU P18 | D35: P 18 14H30
A36: 2018-03-13 | B36: 1858 | C36: N/A FOT le 13/03 | D36: 2018-03-14
A37: 2018-03-14 | B37: 1858 | C37: N/A RUN 14/03 | D37: Accès après vol le 19/03
A38: 2018-03-19 | B38: 1858 | C38: N/A vol annulé car fuite carburant | D38: Attente retour info POCK pour nouvel accès
A39: 2018-03-20 | B39: 1858 | C39: N/A vol annulé car fuite carburant | D39: Attente retour info POCK pour nouvel accès le 22/03 après le vol
A40: 2018-03-21 | B40: 198 | C40: Avion sort de peinture le 21/03 | D40: Accès le 21/03 après 20h00 | E40: MID 180 Console basse
A41: 2018-03-27 | B41: 1858 | C41: N/A le 27/03 | D41: A 13H00 le 27/03
A42: 2018-03-27 | B42: 198 | C42: N/A le 27/03 car vol a 15h00 | D42: 28/03 full accès
A43: 2018-03-28 | B43: 219 | C43: N/A JALON 4 | D43: 2018-03-29 | E43: GAMME DOSSIER
A44: 2018-04-11 | B44: 201 | C44: H/O LE 12/04/18 va être stocké puis ira au délivery le 25/04 jusqu'au 3/05 (TAC)
A45: 2018-04-12 | B45: 218 | C45: JALON 1 N/A LA JOURNEE | D45: 2018-04-13
A46: 2018-04-16 | B46: 219 | C46: JALON 4 le 16/04/18 | D46: Nous n'avons pas été averti de ce jalon 4 | E46: 9 POINTS ECRITS
A47: 2018-04-17 | B47: 219 | C47: Acces juste pour retouches peinture car en préparation du F/C des 18 et 19 avril | E47: fermé 3 NC sur retouches peintures il reste 4 nc non statués
A48: 2018-04-18 | B48: 219 | C48: AR 205509983 pour assister au F/C du 18/04 | D48: 2018-04-18
A49: 2018-04-19 | B49: 219 | C49: F/C du 19/04 | D49: dans l'après midi
A50: 2018-04-23 | B50: 219 | C50: Jalon 4 le 23/04/18
A51: 2018-04-25 | B51: 201 | C51: Ground checks N/A | D51: ????? VOL PREVU LE 26/04 ATTENTE INFO DU POCL
A52: 2018-04-26 | B52: 201 | C52: Vol ce matin 26/04 | D52: Nouvel accés 14h00
A53: 2018-04-26 | B53: 218 | C53: F/C présence demandé par AIB
A54: 2018-04-26 | B54: 219 | C54: Part en peinture juqu'au 7/05
A55: 2018-05-24 | B55: 219 | C55: N/A Test static tte la journée | D55: A 18h00 le 24/05
A56: 2018-06-08 | B56: 218 | C56: N/A Problème de fuite
A57: 2018-06-10 | B57: 218 | C57: N/A vol prévu
A58: 2018-06-11 | B58: 218 | C58: N/A vol prévu | D58: Accès le 12/06
A59: 2018-06-15 | B59: 219 | C59: N/A le 15/06 POWER OFF | D59: Accès a 17h00 | E59: Inter prévu le 18/06
B60: MSN 98 ET 112 NON ACCES CAR AUCUNE EQUIPE AIRBUS PREVUE NORMALMENT LES ACCES SERONT LE 11/07/2018
A62: 2018-07-12 | B62: 8323 | C62: Intégration sieges le 12/07 au soir
A65: 2018-07-16 | B65: NOUVEL ACCES AU 98 ET 112 RECULE AU 16/07 finalement acces le 17/07 A JLL L70 AVION TOUJOURS PAS EN PLACE ATTENTE NOUVEL ACCES le 18/07
A66: 2018-07-18 | B66: 1884 | C66: Final Cabine pas accès en WP a partir du 24/07
A67: 2018-07-19 | B67: 98 | C67: Power OFF de 11 a 14h00
A68: 23/07/201 | B68: 98 | C68: Power OFF de 11 a 14h01
A69: 2018-07-23 | B69: 112 | C69: Power ON
A70: 2018-08-01 | B70: 8323 | C70: acces avion juqu' a 10h00 vol prévu nouvel accès a 14h00
A71: 2018-08-06 | B71: 8323 | C71: Pas accès jusqu'au 08/08 pour préparation de vol
A72: 2018-08-10 | B72: 1890 | C72: 1F/C DE 8/H A 16 H
A73: 2018-08-14 | B73: 8323 | C73: N/A le matin pour vol | D73: accès a 13h30
A74: 20 et 21/09/18 | B74: 254 | C74: FINAL CABINE PAS ACCES POUR LES REWORKS | D74: 2018-09-24
A75: 2018-09-25 | B75: 112 | C75: PEINTURE | D75: 2018-09-29
A76: 2018-10-10 | B76: 254 | C76: PEINTURE | D76: 24/10 au 27/10 P20X
A77: 2018-10-10 | B77: 276 | C77: PEINTURE | D77: 30/10 P20I
A78: 2018-10-17 | B78: 1844 | C78: Sièges livrés au poste M90 | D78: 2018-10-17
A79: 2018-11-21 | B79: 294 | C79: pas d'information sur la livraison des sièges pur le 294 donc beaucoup d'attente au bureau lors de cette journée | F79: 32h
A80: 2018-11-21 | B80: 234 | C80: non acces seat | E80: 205951211
A81: 2018-11-21 | B81: 234 | C81: non acces seat | E81: 205949798
A82: 2018-11-26 | B82: 271 | C82: non acces avion | E82: XW.0271-0026
A84: 2018-12-05 | B84: 276 | C84: non acces du 29/11 au 05/12
A85: 2018-12-12 | B85: 276 | C85: non acces mouvement avion de vendée V60 au A45 | F85: 7h30 à 11h30 | G85: 2
A86: 2018-12-18 | B86: 276 | C86: non acces CAUSE E/R
A87: 2018-12-19 | B87: 276 | C87: Pas d'accés jusqu’à 14h
A89: ANNEE 2019
A90: 2019-01-07 | B90: 271 | C90: Pas de passerelle | F90: 3h | G90: 3
A91: 2019-01-09 | B91: 276 | C91: NON ACCES
A92: 2019-01-09 | B92: 278 | C92: NON ACCES | E92: Perte temps M80 et recherche avion fichier airbus non a jour | F92: 4 | G92: 2
A93: 2019-01-07 | B93: 305 | C93: ACCES A PARTIR DU 15
A94: 2019-01-22 | B94: 305 | C94: NON ACCES | E94: Kitting | F94: 2.5 | G94: 1
A95: 2019-01-22 | B95: 305 | C95: Coupure de l'éclairage | E95: V25290981000 | F95: 1 | G95: 1
A96: 2019-01-23 | B96: 305 | C96: NON ACCES | E96: film cabine client | F96: A PARTIR DE 15H30
B97: 1844
A98: 2019-01-25 | B98: 1861 | C98: En peinture
A99: 2019-01-28 | B99: 1844 | C99: NON ACCES | E99: 4553 | F99: La matiné | G99: 2
A100: 2019-01-30 | B100: 1844 | C100: Coupure de l'éclairage | F100: A partir de 22h | G100: 2
A101: 2019-02-01 | B101: 234 | C101: NON ACCES Refuser car essai train | E101: 206095471 | F101: 1h | G101: 1
A102: 2019-02-01 | B102: 278 | C102: Déplacement de l'avion + Peser | F102: 1H | G102: 1
A103: 2019-02-04 | B103: 316 | C103: Recherche siège pas arriver | F103: 3H | G103: 3
A104: 2019-02-18 | B104: 234 | C104: POWER OFF | E104: MID 51 - MID 106
A105: 2019-02-19 | B105: 1861 | C105: PEINTURE
A106: 2019-02-21 | B106: 1844 | C106: NON ACCES
A107: 2019-02-21 | B107: 312 | C107: ATTENTE DEMOULAGE PAS ACCES | F107: 1 | G107: 1
A108: 2019-02-27 | B108: 224 | C108: pas de jus | D108: apres midi
A109: 2019-03-07 | B109: 305 | D109: Matinée jusqu’à 14h
A110: 2019-03-19 | B110: 1884 | C110: NON ACCES
A111: 2019-03-25 | B111: 294 | C111: NON ACCES | F111: 1 | G111: 2
A112: 2019-03-26 | B112: 328 | C112: NON ACCES | F112: 1 | G112: 2
A113: 2019-03-27 | B113: 316 | C113: AVION JACKER | F113: 3 | G113: 3
A114: 2019-04-15 | B114: 305 | C114: NON ACCES
A115: 2019-04-17 | B115: 309 | C115: NON ACCES | F115: 1.5 | G115: 2
A116: 2019-04-18 | B116: 322 | C116: NON ACCES | F116: 1.5 | G116: 2
A117: 2019-04-25 | B117: 335 | C117: jalon | F117: 1.5 | G117: 1
A118: 2019-04-25 | B118: 9030 | C118: Recherche siège pas arriver | F118: 2 | G118: 1
A119: 2019-04-29 | B119: 9030 | C119: NON ACCES | F119: 1 | G119: 2
A120: 2019-04-29 | B120: 1937 | C120: NON ACCES | F120: 1 | G120: 2
A121: 2019-05-15 | B121: 1937 | C121: NON ACCES | D121: La journee
A122: 2019-05-15 | B122: 316 | C122: NON ACCES | D122: Jusqu' au 21/05
A123: 2019-05-21 | B123: 316 | C123: NON ACCES | D123: Jusqu' au ?? | F123: 4 | G123: 4
A124: 2019-05-20 | B124: 1937 | C124: NON ACCES | D124: Jusqu' au ??
A125: 2019-06-07 | B125: 322 | C125: NON ACCES | D125: Jusqu'au 11/06
A126: 2019-06-12 | B126: 322 | C126: NON ACCES | D126: Jusqu’à 19H
A127: 2019-06-18 | B127: 1947 | C127: NON ACCES
A128: 2019-06-18 | B128: 322 | C128: NON ACCES | F128: 1 | G128: 1
A129: 2019-06-19 | B129: 328 | C129: AVION JACKER | F129: 4 | G129: 4
A130: 2019-06-24 | B130: 328 | C130: NON ACCES | D130: 2019-07-02
A131: 2019-06-24 | B131: 327 | C131: NON ACCES
A132: 2019-06-26 | B132: 1947 | C132: acces mais pas de jus
A133: 2019-07-02 | B133: 327 | C133: NON ACCES

Sheet Feuil3
A1: MSN | B1: Type | C1: Ref AM/NC/TLB/eQLB/WO | D1: Non-Conformity description | E1: Description of the work done | F1: ECME/Material PN/SN | G1: Worker | H1: Date | I1: Temps passé
A2: CI | B2: A350 | C2: 328 | D2: EQLB | E2: XW.0328-0015 | F2: Cabin, BC, seat 16D, Singapore tree cover: Gap | G2: AIRBUS | H2: 18/06 Mesure gap inferieur à 2mm 21/06 aprèès rejet fermer CGL | J2: JBDT | K2: F | L2: 2019-06-18 | M2: 2019-07-01 | N2: 3
A3: CI | B3: A350 | C3: 328 | D3: EQLB | E3: XW.0328-0039 | F3: Cabin, BC, in front of seat 19K, meal table: Uneven gap | G3: STELIA | H3: 19/06 Cache sous ecran ajusté 21/06 Fermer CGL après rejet Risque de revenir fermer avec la mauvaise page 25/06 CGL Refusé Ajustement a reprendre "Step 1mm maximum" | J3: ATE | K3: F | L3: 2019-06-18 | M3: 2019-07-01 | N3: 3
A4: CI | B4: A350 | C4: 328 | D4: EQLB | E4: XW.0328-0016 | F4: Cabin, BC, seat 16FK, 18A, PCU: don t switch off with the monitor | G4: IFE THALES | H4: 19/06 After reboot ok 21/06 Rejeté 16F Toujour en panne | J4: RTK | K4: F | L4: 2019-06-18 | M4: 2019-07-01 | N4: 1
A5: CI | B5: A350 | C5: 328 | D5: EQLB | E5: XW.0328-0087 | F5: CAB, BC, SEATS 11DF / 14DF, LAMINATE, BOTTOM AFT PART: LOWER CENTRAL PANEL IS NOT FIXED. | K5: F | L5: 2019-06-24 | M5: 2019-07-01
A6: CI | B6: A350 | C6: 328 | D6: EQLB | E6: XW.0328-0086 | F6: CAB, BC, SEAT 21D/F, GAP FILLER: GAP FILLER IS NOT FIXED. | K6: F | L6: 2019-06-24 | M6: 2019-07-01
A7: CI | B7: A350 | C7: 328 | D7: EQLB | E7: XW.0328-0084 | F7: CAB, BC, SEAT 14D, SINGAPORE TREE COVER, INBD SIDE: GAP IS VISIBLE BTWN TREE COVER AND REAR TOP PANEL. | K7: F | L7: 2019-06-24 | M7: 2019-07-01
A8: CI | B8: A350 | C8: 328 | D8: EQLB | E8: XW.0328-0085 | F8: CAB, BC, SEAT 18F, INBD ARMREST: BUTTON IS TOO STIFF. | K8: F | L8: 2019-06-24 | M8: 2019-07-01
A9: CI | B9: A350 | C9: 328 | D9: Nc | E9: 206594129 | F9: We notice a defect on monument 16F, Armrest, Armrest: the inner movable armrest leather is baggy and wrinkled | H9: 17/06 Cuir marroufler | I9: En commande FJSA1-1G1410-01 | J9: TDT | K9: F | L9: 2019-06-14 | M9: 2019-07-01
A10: CI | B10: A350 | C10: 328 | D10: Nc | E10: 206594063 | F10: We notice a defect on monument 18K, Armrest,the inner movable armrest leather is baggy and wrinkled | I10: En commande FJSA1-2F2200-01 | K10: F | L10: 2019-06-14 | M10: 2019-07-01
A11: CI | B11: A350 | C11: 328 | D11: Nc | E11: 206596432 | F11: Nous avons remarqué un defaut sur le monument 12D, Armrest, Armres t Comment: Le cuir de laccoudoir droit est frippé. | I11: Manchette / FJSA1-1G1410-01 | K11: F | L11: 2019-06-17 | M11: 2019-07-01
A12: CI | B12: A350 | C12: 328 | D12: Nc | E12: 206596487 | F12: Nous avons remarqué un defaut sur le monument 12K, , .QP-BCS-NO_PP S-16697 Comment: Plusieurs rayures sur la partie en plastique, à linterieur de laccoudoir droit. | I12: EN COMMANDE FJSA1-2F1003-01 | K12: F | L12: 2019-06-17 | M12: 2019-07-01
A13: CI | B13: A350 | C13: 327 | D13: Nc | E13: 206622429 | F13: MID/51 During inspection we found screw missing inside ottoman litterature pocket. See standard doc | H13: 01/07 Vis installé | K13: F | L13: 2019-06-25 | M13: 2019-07-01
A14: CI | B14: A330 | C14: 1947 | D14: Nc | E14: 206631974 | F14: En cabine zone 1 coté droit sur siège 8K Nous constatons que le cover entre l'assise et la console est déformé Voir flamme et standard doc | G14: AIRBUS | H14: 01/07 Ajusté | K14: F | L14: 2019-06-27 | M14: 2019-07-01
A15: CI | B15: A330 | C15: 1947 | D15: Nc | E15: 206632066 | F15: En cabine zone 1 coté gauche sur siège rang 6a Nous constatons qu'il manque la vis ce fixation du fond du cover de repose pieds | H15: 01/07 Vis installé | K15: F | L15: 2019-06-27 | M15: 2019-07-01 | N15: =IF(OR(L15="",M15=""),"",IF(NETWORKDAYS(L15,M15)-1>=0,NETWORKDAYS(L15,M15)-1,0)) -> 2
A16: CI | B16: A330 | C16: 1947 | D16: Nc | E16: 206631825 | F16: En début de zone 1, côté gauche, devant le siège 6A: en bas de l'ottoman, la déco se décolle dans l'angle. Voir standard doc. | G16: AIRBUS | H16: 01/07 Poncer | K16: F | L16: 2019-06-27 | M16: 2019-07-01

Sheet Matrice
T4: 58.5
S5: PROD CI/ST/AC | T5: =SUM(T14:T537) -> 8 | U5: =SUM(U14:U737) -> 0 | V5: =SUM(V13:V737) -> 0 | W5: 0 | X5: 0 | Y5: 0 | Z5: 0 | AA5: 0 | AB5: 0 | AC5: 0 | AD5: 0 | AE5: 0 | AF5: 0 | AG5: 0 | AH5: 0 | AI5: 0 | AJ5: 0 | AK5: 0 | AL5: 0 | AM5: 0 | AN5: 0 | AO5: 0 | AP5: 0 | AQ5: 0 | AR5: 0 | AS5: 0 | AT5: 0 | AU5: 0 | AV5: 0 | AW5: 0 | AX5: 0 | AY5: =SUM(AY14:AY537) -> 8
E6: 2019-07-01 | F6: 01/07/2019 | G6: 2019-07-01 | S6: PROD ATR | T6: ='[2]JUIN 19'!M3 -> 0 | U6: ='[2]JUIN 19'!N3 -> 0 | V6: ='[2]JUIN 19'!O3 -> 0 | W6: ='[2]JUIN 19'!P3 -> 0 | X6: ='[2]JUIN 19'!Q3 -> 0 | Y6: ='[2]JUIN 19'!R3 -> 0 | Z6: ='[2]JUIN 19'!S3 -> 3 | AA6: ='[2]JUIN 19'!T3 -> 0 | AB6: ='[2]JUIN 19'!U3 -> 0 | AC6: ='[2]JUIN 19'!V3 -> 0 | AD6: ='[2]JUIN 19'!W3 -> 0.5 | AE6: ='[2]JUIN 19'!X3 -> 0 | AF6: ='[2]JUIN 19'!Y3 -> 0 | AG6: ='[2]JUIN 19'!Z3 -> 0 | AH6: ='[2]JUIN 19'!AA3 -> 0 | AI6: ='[2]JUIN 19'!AB3 -> 0 | AJ6: ='[2]JUIN 19'!AC3 -> 0 | AK6: ='[2]JUIN 19'!AD3 -> 0 | AL6: ='[2]JUIN 19'!AE3 -> 0 | AM6: ='[2]JUIN 19'!AF3 -> 0 | AN6: ='[2]JUIN 19'!AG3 -> 0 | AO6: ='[2]JUIN 19'!AH3 -> 0 | AP6: ='[2]JUIN 19'!AI3 -> 0 | AQ6: ='[2]JUIN 19'!AJ3 -> 4 | AR6: ='[2]JUIN 19'!AK3 -> 0 | AS6: ='[2]JUIN 19'!AL3 -> 0 | AT6: ='[2]JUIN 19'!AM3 -> 0 | AU6: ='[2]JUIN 19'!AN3 -> 0 | AV6: ='[2]JUIN 19'!AO3 -> 0 | AW6: ='[2]JUIN 19'!AP3 -> 0 | AX6: ='[2]JUIN 19'!AQ3 -> 0 | AY6: ='[2]JUIN 19'!AR3 -> 2.5 | AZ6: ='[2]JANVIER 19'!AS3 -> 0 | BA6: ='[2]JANVIER 19'!AT3 -> 0 | BB6: ='[2]JANVIER 19'!AU3 -> 0 | BC6: ='[2]JANVIER 19'!AV3 -> 0 | BD6: ='[2]JANVIER 19'!AW3 -> 0
H7: New month | S7: TOTAL CI/ST/ATR | T7: =SUM(T5:T6) -> 8 | U7: 0 | V7: =SUM(V5:V6) -> 0 | W7: =SUM(W5:W6) -> 0 | X7: 0 | Y7: 0 | Z7: 3 | AA7: 0 | AB7: 0 | AC7: 0 | AD7: 0.5 | AE7: 0 | AF7: 0 | AG7: 0 | AH7: 0 | AI7: 0 | AJ7: 0 | AK7: 0 | AL7: 0 | AM7: 0 | AN7: 0 | AO7: 0 | AP7: 0 | AQ7: 4 | AR7: 0 | AS7: 0 | AT7: 0 | AU7: 0 | AV7: 0 | AW7: 0 | AX7: 0 | AY7: =SUM(T7:AX7) -> 15.5
S8: TOTAL JR | T8: =T7+T13 -> 17 | U8: 0 | V8: =V7+V12 -> 0 | W8: =W7+W12 -> 0 | X8: =X7+X12 -> 0 | Y8: =Y7+Y12 -> 0 | Z8: =Z7+Z12 -> 3 | AA8: =AA7+AA12 -> 0 | AB8: 0 | AC8: 0 | AD8: 0.5 | AE8: 0 | AF8: 0 | AG8: 0 | AH8: 0 | AI8: 0 | AJ8: 0 | AK8: 0 | AL8: 0 | AM8: 0 | AN8: 0 | AO8: 0 | AP8: 0 | AQ8: 4 | AR8: 0 | AS8: 0 | AT8: 0 | AU8: 0 | AV8: 0 | AW8: 0 | AX8: 0 | AY8: 24.5
A9: NC DESCRIPTION | H9: NC FOLLOW-UP | L9: KPI and CONTINUOUS IMPROVEMENT | T9: =G6 -> 2019-07-01 | U9: =T9+1 -> 2019-07-02 | V9: 2019-07-03 | W9: 2019-07-04 | X9: 2019-07-05 | Y9: 2019-07-06 | Z9: 2019-07-07 | AA9: 2019-07-08 | AB9: 2019-07-09 | AC9: 2019-07-10 | AD9: 2019-07-11 | AE9: 2019-07-12 | AF9: 2019-07-13 | AG9: 2019-07-14 | AH9: 2019-07-15 | AI9: 2019-07-16 | AJ9: 2019-07-17 | AK9: 2019-07-18 | AL9: 2019-07-19 | AM9: 2019-07-20 | AN9: 2019-07-21 | AO9: 2019-07-22 | AP9: 2019-07-23 | AQ9: 2019-07-24 | AR9: 2019-07-25 | AS9: 2019-07-26 | AT9: =AS9+1 -> 2019-07-27 | AU9: =IF(OR(DAY(AT9+1)=1,DAY(AT9+1)=2,DAY(AT9+1)=3,DAY(AT9+1)=4),"",AT9+1) -> 2019-07-28 | AV9: =IF(OR(DAY(AU9+1)=1,DAY(AU9+1)=2,DAY(AU9+1)=3,DAY(AU9+1)=4),"",AU9+1) -> 2019-07-29 | AW9: =IF(ISERR(IF(OR(DAY(AV9+1)=1,DAY(AV9+1)=2,DAY(AV9+1)=3,DAY(AV9+1)=4),"",AV9+1)),"",IF(OR(DAY(AV9+1)=1,DAY(AV9+1)=2,DAY(AV9+1)=3,DAY(AV9+1)=4),"",AV9+1)) -> 2019-07-30 | AX9: =IF(ISERR(IF(OR(DAY(AW9+1)=1,DAY(AW9+1)=2,DAY(AW9+1)=3,DAY(AW9+1)=4),"",AW9+1)),"",IF(OR(DAY(AW9+1)=1,DAY(AW9+1)=2,DAY(AW9+1)=3,DAY(AW9+1)=4),"",AW9+1)) -> 2019-07-31 | AY9: =AY8-AY7 -> 9
AC10: F
A11: PERIMETER | B11: A/C program | C11: MSN | D11: Type | E11: Ref AM/NC/TLB/eQLB/WO | F11: Non-Conformity description | G11: NC Liability | H11: Description of the work done | I11: ECME/Material PN/SN | J11: Worker | K11: NC State | L11: Reception date | M11: Closure date | N11: Reactivity | O11: Reactivity NC Main cause | P11: FTR | Q11: Defect category | R11: Root cause comments | S11: Root cause fundamantal | T11: =IF(WEEKDAY(T9)=2,"L",IF(WEEKDAY(T9)=3,"M",IF(WEEKDAY(T9)=4,"M",IF(WEEKDAY(T9)=5,"J",IF(WEEKDAY(T9)=6,"V",IF(WEEKDAY(T9)=7,"S",IF(WEEKDAY(T9)=1,"D"))))))) -> L | U11: M | V11: M | W11: J | X11: V | Y11: S | Z11: D | AA11: L | AB11: M | AD11: J | AE11: V | AF11: S | AG11: D | AH11: L | AI11: M | AJ11: M | AK11: J | AL11: V | AM11: S | AN11: D | AO11: L | AP11: M | AQ11: M | AR11: J | AS11: V | AT11: S | AU11: D | AV11: L | AW11: M | AX11: v | AY11: PROD | AZ11: Commentaires STELIA S1 | BA11: Commentaires STELIA S2 | BB11: Commentaires STELIA S3 | BC11: Commentaires STELIA S4 | BD11: Comment AAA | XFD11: =SUBTOTAL(9,A11:XFC11) -> 0
A12: GESTION | E12: XAVIER | F12: Heures Xavier OUDIN | AY12: =SUM(T12:AX12) -> 0
A13: GESTION | E13: LAURENCE | F13: Heures Laurence guettar | T13: 9 | AY13: =SUM(T13:AX13) -> 9
A14: GESTION | E14: KEVIN | F14: Heures Kevin CHACON | T14: 8 | AY14: =SUM(T14:AX14) -> 8
A15: GESTION | E15: FARIZA | F15: Heure Fariza MENASPA | AY15: =SUM(T15:AX15) -> 0
A16: GESTION | E16: ATTENTE | F16: attente bureau/ trajet / attente ic / reception colis sur site/ non acces | AY16: =SUM(V16:AW16) -> 0
A17: GESTION | E17: TRAJET | F17: PERTE TEMPS TRAJETS ( MANQUE VOITURE )
A18: CI | B18: A350 | C18: 327 | D18: Nc | E18: 206496712 | F18: Information complémentaire : During ground test we noticed the seat 3A and 1E cheer up automatically in end of bed position. Demandons intervention pour remise en conformité. | G18: STELIA | H18: 19/06 Ajustemment du siège | I18: PARAPLUIE EN COMMANDE POUR LE SIEGE 1E Parapluie / PN/ FJEQ1-1E1505-03 Barre souplke /PN/ FJEQ1-1E1332-31 ODD FIN JUILLET | J18: RTK/ESI | K18: o | L18: 2019-05-13 | M18: 2019-05-16 | N18: 3
A19: CI | B19: A330 | C19: 1938 | D19: NC | E19: 206473293 | F19: Siège item 411, rang 6D SIEGE B/C 6D: Lors du déballage, constatons un défaut sur le panneau habillage situé à larrière au dessous du repose pieds. Vopir standard doc | H19: WAITING CL ? | K19: O | L19: 2019-05-02
A20: CI | B20: A330 | C20: 1937 | D20: NC | E20: 206443347 | F20: Joint arriere dernier rang mal positionn En zone 1 sur les deux derniers sieges B/C axe avion Nous constatons que le joint arriere entre les sieges et la F cloison nest pas bien possitionné Voir flamme et standard doc Demandons intervention | G20: AIRBUS | H20: 16/05 La piece a été ajusté 06/06 Angle repris + joint couper , ne rien faire au niveau du siège 17/06 Rejeté " Le travail n'est pas satifaisant pouvez vous le reprendre" | I20: ATTENTE ROCHFORT | K20: O | L20: 2019-04-19 | M20: 2019-06-07 | N20: 20
A21: CI | B21: A330 | C21: 1937 | D21: NC | E21: 206443121 | F21: Rang 2H: Rayure partie basse, couloir Constatons une rayure au niveau du cover en partie basse, côté couloir (sous le bumper). Voir pièce-jointe. Demandons intervention. | H21: RETOUCHE PEINTURE | I21: commande de piece | K21: O | L21: 2019-04-19
A22: CI | B22: A330 | C22: 1937 | D22: NC | E22: 206443082 | F22: 5H: Impact proche prise PC Constatons 1 impact sur le cover plastique proche de la prise PC (en partie basse). Voir stanadrd doc. Demandons intervention. | H22: Retouche peinture à faire | K22: O | L22: 2019-04-18
A23: CI | B23: A330 | C23: 1937 | D23: NC | E23: 206443046 | F23: B/C: Seat 3A: Plastic inclusion / deform Constatons une déformation positive du Backshell, proche de lidentification rang de siège "3A". Voir standard doc. | H23: WAITING CL | K23: O | L23: 2019-04-18
A24: CI | B24: A330 | C24: 1937 | D24: NC | E24: 206440094 | F24: rayure coté couloir En cabine zone 1 coté droit sur siege B/C 1H Nous constatons une rayure coté couloir Voir flamme et standard doc demandons intervention | H24: WAITING CL | K24: O | L24: 2019-04-18
A25: CI | B25: A330 | C25: 1937 | D25: NC | E25: 206441541 | F25: Rayures sur cuir stowage siege B/C En cabine zone 1 axe avion sur siege B/C 6D Nous constatons que le cuir de la porte du stowage sur la console est rayé | H25: 16/05 Nettoyage porte + nourrit au lait/ non-concluant à commander | J25: JMS | K25: O | L25: 2019-04-18
A26: CI | B26: A330 | C26: 1937 | D26: EQLB | E26: LR.1937-0280 | F26: Cab B/C seat 7E cover panel disformed | H26: WAITING CL | K26: O | L26: 2019-04-19
A27: CI | B27: A330 | C27: 1937 | D27: EQLB | E27: LR.1937-0229 | F27: Cab B/C seat 5 A panel impacted | H27: WAITING CL | K27: O | L27: 2019-04-19
A28: CI | B28: A330 | C28: 1861 | D28: EQLB | E28: LR.1861-0038 | F28: CABIN BC Between S5C/F on backrest top of divider guide LH side damaged | G28: AIRBUS | K28: O | L28: 2019-02-18
A29: CI | B29: A330 | C29: 1937 | D29: NC | E29: 206519267 | F29: Siege 1H BC housse tachée ion / cleanliness Lors de linspection en cabine visite client En zone 1 côté droit sur le siège 1H B/C Le défaut: la housse du dossier et taché Voir standard doc de la zone Demandons intervention. | G29: AIRBUS | I29: 10/06 Commande Housse de siège : FJNS3-1SB601-01 | K29: O | L29: 2019-05-20
A30: CI | B30: A330 | C30: 1938 | D30: NC | E30: 206517580 | F30: Gresillements lors du lancement IFE Lors des essais IFE, nous constatons que le son gresille lors de la VA ainsi que la Video Entertainement. | H30: 21/05 essaie de l'IFE | K30: O | L30: 2019-05-20
A31: CI | B31: A330 | C31: 1938 | D31: NC | E31: 206523028 | F31: PLACARDS INSTALLATION ON B/C SEATS ACI02 NC issued further to SM940095A Work to be performed by STELIA Field Support. Area 1: B/C seats area: - Point 1: On all B/C seats, please replace the "No stowage" pictogram P/N FJNS3-1M0301-01 sticked on rear padding by a "No stowage" placard P/N FJNS3-3M0306-01.See sheet 4_001 -Point 2: On all B/C seats, please relocate the placard P/N FJNS3- 1M0302-01 to be aligned to lower edge of SVDU.See shett 4_002 Required parts: Placards P/N FJNS3-3M0306-01 (qty 26) Placards P/N FJNS3-1M0302-01 (qty 26) | H31: 11/06 Changement des étiquettes Manque 3 Ettiquetttes | I31: En commande | J31: RTK/ATE | K31: o | L31: 2019-05-21 | M31: 2019-06-12
A32: CI | B32: A330 | C32: 1938 | D32: EQLB | E32: LR.1938-0153 | F32: Cabin BC seat 1D rear table Deco film unstuck on table top | H32: 11/06 Déco impacter vois ci changement tablette | I32: Meal table / BA710294-006 | J32: JBDT | K32: o | L32: 2019-05-20
A33: CI | B33: A330 | C33: 1938 | D33: EQLB | E33: LR.1938-0176 | F33: Cabin BC seat 5A rear otoman Inside ottoman cover lh side Inclusion in paint | H33: 11/06 Défaut sur panneau NPRF | J33: JBDT | K33: o | L33: 2019-05-20
A34: CI | B34: A330 | C34: 1938 | D34: EQLB | E34: LR.1938-0166 | F34: Cabin BC seat 5D RH cover Cover not fasten | G34: STELIA | H34: A REPRENDRE | K34: o | L34: 2019-05-20 | M34: 2019-06-11
A35: CI | B35: A330 | C35: 1938 | D35: EQLB | E35: LR.1938-0173 | F35: Cabin BC seat 6A aisle profile Profile scratched | H35: 11/06 Pas la bonne couleur retocuhe non correct | J35: JBDT | K35: o | L35: 2019-05-20
A36: CI | B36: A330 | C36: 1938 | D36: EQLB | E36: LR.1938-0142 | F36: Cabin BC seat 6D aisle placard Placard 6D damaged | H36: ATTENTE PIECE | I36: FJNS3-1M1011-01 Recu le 27/06 | K36: o | L36: 2019-05-20
A37: CI | B37: A330 | C37: 1938 | D37: EQLB | E37: LR.1938-0172 | F37: Cabin BC seat 7H aisle profile Scratch on profile corner | H37: RETOUCHE PEINTURE | K37: o | L37: 2019-05-20
A38: CI | B38: A350 | C38: 335 | D38: EQLB | E38: XW,0335-0167 | F38: CAB , BC , SEATS 5A/4G , BACKSHELL , RHS , NUMBER SEAT STICKER : STICKER IS MISSING | G38: AIRBUS | I38: CQAZ1-1M0001-01 FJSL4-1M1065-31 RECU LE 18/06 | K38: O | L38: 2019-05-23
A39: CI | B39: A330 | C39: 1937 | D39: EQLB | E39: LR,1937-0251 | F39: Cab B/C seat 6E cover panel below foot rest not installed correctly | K39: O | L39: 2019-04-19
A40: CI | B40: A330 | C40: 1937 | D40: EQLB | E40: LR.1937-0253 | F40: Cab B/C seat 5E lower cover panel damaged below foot rest | H40: 28/05 Reopen CL refusé | K40: O | L40: 2019-04-19 | M40: 2019-04-24 | N40: 3
A41: CI | B41: A330 | C41: 1947 | D41: I-Nc | E41: 206548277 | F41: P/N : FJNS3-1GA104-01 S/N : 121 Kind of defect : Bad surface aspect * Scratche on the meal table * * According to M2831D chapiter 3p39 * | I41: Commander le 17/06 BA710310-003 NDD | K41: O | L41: 2019-05-28
A42: CI | B42: A330 | C42: 1923 | D42: I-Nc | E42: 206547963 | F42: P/N : SJNS3-1V7101-01 S/N : 4 Row : 1 Kind of defect : Finishing and cosmetic aspect ************************************************************ "Panel behind video monitor have bad finishings at * junction between cover and trim M2831.D Chapter 2.5 * P18" * ************************************************************ | K42: O | L42: 2019-05-28
A43: CI | B43: A330 | C43: 1923 | D43: I-Nc | E43: 206547826 | F43: Location : Incoming Item : B/c seat P/N : FJNS3-1V7102-01 S/N : 37 Row : 5A Kind of defect : Damage ************************************************************ Mark on top edge of video shroud * M2831.D Chapter 3 Page 47 * | K43: O | L43: 2019-05-28
A44: CI | B44: A330 | C44: 1923 | D44: I-Nc | E44: 206547824 | F44: P/N : FJNS3-17401-01 S/N : 61 Kind of defect : Damage ************************************************************ "Under trim backshell, panel scratched above the * reading light. * M2831.D Chapter 3p39" * | K44: O | L44: 2019-05-28
A45: CI | B45: A330 | C45: 1923 | D45: I-Nc | E45: 206547820 | F45: P/N : FJNS3-1V7202-01 S/N : 47 P/N : FJNS3-1V7102-01 S/N : 35 P/N : FJNS3-1V7301-01 S/N : 53 P/N : FJNS3-1V7402-01 S/N : 62 P/N : SJNS3-1V7301-01 S/N : 06 Kind of defect : Damage ************************************************************ "Trim of monitor scratched. * M2831.D Chapter 3 p39" * ************************************************************ | K45: O | L45: 2019-05-28
A46: CI | B46: A330 | C46: 1923 | D46: I-Nc | E46: 206547707 | F46: P/N : FJNS3-1V7402-01 S/N : 58 P/N : FJNS3-1V7102-01 S/N : 39 P/N : FJNS3-1V7102-01 S/N : 35 P/N : FJNS3-1V7301-01 S/N : 51 P/N : FJNS3-1V7201-01 S/N : 42 Row : 2H P/N : FJNS3-1V7302-01 S/N : 50 Row : 2D Kind of defect : Damage ************************************************************ "Scratch on Meal table trim * (5mn) * M2831.D Chapter 3 Page 39" * | K46: O | L46: 2019-05-28
A47: CI | B47: A330 | C47: 1923 | D47: I-Nc | E47: 206547702 | F47: P/N : FJNS3-1V7202-03 S/N : 41 P/N : FJNS3-1V7402-01 S/N : 58 P/N : FJNS3-1V7201-01 S/N : 46 P/N : FJNS3-1V7401-01 S/N : 69 P/N : FJNS3-1V7102-01 S/N : 35 Kind of defect : Damage ************************************************************ "Panel under console button scratched. * M2831.D Chapter 3p39" * ************************************************************ | H47: 19/06 Retouche peinture | J47: TBE | K47: O | L47: 2019-05-28
A48: CI | B48: A330 | C48: 1923 | D48: I-Nc | E48: 206547625 | F48: P/N : FJNS3-1V7101-01 S/N : 36 P/N : FJNS3-1V7401-03 S/N : 57 P/N : FJNS3-1V7401-01 S/N : 59 P/N : FJNS3-1V7301-01 S/N : 53 P/N : FJNS3-1V7201-01 S/N : 44 P/N : FJNS3-1V7202-01 S/N : 43 P/N : FJNS3-1V7301-01 S/N : 51 P/N : FJNS3-1V7102-03 S/N : 33 P/N : FJNS3-1V7306-01 S/N : 56 Row : 8D P/N : FJNS3-1V7302-01 S/N : 52 Row : 11D P/N : FJSN3-1V7302-01 S/N : 50 Row : 2D Kind of defect : Finishing and cosmetic aspect ************************************************************ "Backrest leather have wrinckles M2831.D Chapter 3.34 * Page 60" * ********************************************************** | K48: O | L48: 2019-05-28
A49: CI | B49: A330 | C49: 1947 | D49: Gamme | E49: AG00-004592 | F49: OSW Descr: MISSING DIVIDER TO BE INSTALL Part Descr: PASSENGER SEAT SGL EA PNR: FJNS3-1GA403-03 EA SerNr.: 137 | I49: PAS ENCORE RECU | K49: O | L49: 2019-05-23
A50: CI | B50: A350 | C50: 316 | D50: EQLB | E50: XW.0316-0265 | F50: CAB , BC , SEAT 20F , BACKSHELL COVER , AISLE SIDE : SCRATCH IS VISIBLE | G50: OTHER | H50: 06/06 Fermer CL Rejeté "La possibilité de glisser / tomber des effets personnels dans cet espace est assez élevée. Pensez à installer un type de mousse plus robuste en caoutchouc." | K50: o | L50: 2019-06-03 | M50: 2019-06-06
A51: CI | B51: A350 | C51: 354 | D51: Gamme | E51: 6017258202-AG00-004594 | F51: Installation of 1 missing door OSW Descr: Installation of 1 missing door Part Descr: SEAT_B/C_CTR_SGL_L/R EA PNR: FJST1-103307-01 - EA SerNr.: 430 EA PNR: FJST1-103407-01 -EA SerNr.: 437 EA PNR: SJST1-103301-01 - EA SerNr.: 55 EA PNR: SJST1-103401-01 - EA SerNr.: 56 | K51: o | L51: 2019-06-03
A52: CI | B52: A350 | C52: 354 | D52: Gamme | E52: 6017258203-AG00-004593 | F52: Installation of 1 missing ski OSW Descr: Installation of 1 missing ski Part Descr: SEAT_B/C_CTR_SGL_F/R EA PNR: FJST1-103401-01 - EA SerNr.: 431 – 432 -433 Installation of 1 missing ski OSW Descr: Installation of 1 missing ski Part Descr: SEAT_B/C_CTR_SGL_F/R EA PNR: FJST1-103401-01 - EA SerNr.: 431 – 432 -433 | K52: o | L52: 2019-06-03
A53: CI | B53: A350 | C53: 328 | D53: NC | E53: 206572575 | F53: After the hand-over between STELIA and AIRBUS QUALITY for the Trace Line "Modification of Armrest", we notice this following defect: - Row : 12K, Scratch on the armrest (aisle side, outboardside, interior side) According with CQB47 1262017 COSMETIC GUIDELINE SIA A350 SYMPHONY rev E Apendix A Table 3, the defect is not acceptable Please rework this defect to return at the conformity. P/N: FJSA2-1SQ202-01 S/N: 372 | G53: AIRBUS | I53: En commande sous point trace | K53: o | L53: 2019-06-06
A54: CI | B54: A330 | C54: 1844 | D54: EQLB | E54: LR.1844-0397 | F54: CAB BC Seat 3H, Scratch on backshell leather. | K54: O | L54: 2019-06-12
A55: CI | B55: A330 | C55: 1844 | D55: EQLB | E55: LR.1844-0342 | F55: Cabin BC. Seat 5H Reading light needs to be adjusted | K55: O | L55: 2019-06-12
A56: CI | B56: A330 | C56: 1844 | D56: EQLB | E56: LR.1844-0338 | F56: Cabin BC Following seats monitor frames have scratches. Seats 1H 2F 2H 3F 3H 4F 5F 5H. | G56: AIRBUS | H56: 18/06 Dépose diver élèment pour accéder à la façade écran | K56: O | L56: 2019-06-12 | O56: REOPEN
A57: CI | B57: A330 | C57: 1844 | D57: EQLB | E57: LR.1844-0341 | F57: Cabin BC Seat 5H monitor frame is loose. | G57: AIRBUS | K57: O | L57: 2019-06-12 | O57: REOPEN
A58: CI | B58: A330 | C58: 1844 | D58: EQLB | E58: LR.1844-0339 | F58: Cabin BC. Seat 3F monitor has discoloration issue. | G58: AIRBUS | K58: O | L58: 2019-06-12
A59: CI | B59: A330 | C59: 1938 | D59: EQLB | E59: LR.1938-0250 | F59: Cabin BC seat 1H Step between top shell profiles | K59: O | L59: 2019-06-12
A60: CI | B60: A330 | C60: 1844 | D60: EQLB | E60: LR.1844-0173 | F60: CAB BC Seat 6F, Lateral cover with scratches. | G60: AIRBUS | H60: 13/06 Retouche peinture 18/06 Dépose divers élèment pour enlever la cocktail table | J60: TDT/JBDT/JMS | K60: O | L60: 2019-06-11 | O60: REOPEN
A61: CI | B61: A330 | C61: 1844 | D61: EQLB | E61: LR.1844-0177 | F61: CAB BC Seat 2C, RJU cover with scratches. | G61: AIRBUS | H61: 13/06 retouche peinture 17/06 Dépose divers élèment pour support audio | J61: TDT/JBDT | K61: O | L61: 2019-06-11 | O61: REOPEN
A62: CI | B62: A330 | C62: 1844 | D62: EQLB | E62: LR.1844-0172 | F62: CAB BC Seat 4C, RJU cover with scratches. | G62: AIRBUS | H62: 13/06 RJU Graisser et nettoyer | J62: RTK | K62: O | L62: 2019-06-11
A63: CI | B63: A330 | C63: 1844 | D63: EQLB | E63: LR.1844-0171 | F63: CAB BC Seat 4A, RJU cover with scratches. | G63: AIRBUS | H63: 13/06 RJU Graisser et nettoyer | J63: RTK | K63: O | L63: 2019-06-11
A64: CI | B64: A330 | C64: 1844 | D64: EQLB | E64: LR.1844-0168 | F64: CAB BC Seat 7F, Cocktail table with white traces. | G64: AIRBUS | H64: 13/06 Nettoyé et graissé | K64: O | L64: 2019-06-11
A65: CI | B65: A330 | C65: 1844 | D65: EQLB | E65: LR.1844-0167 | F65: CAB BC Seat 5A, RJU cover with scratch. | G65: AIRBUS | H65: 13/06 RJU Graisser et nettoyer | J65: RTK | K65: O | L65: 2019-06-11
A66: CI | B66: A330 | C66: 1844 | D66: EQLB | E66: LR.1844-0189 | F66: CAB BC Seat 5A, Screen cover with scratches. | G66: AIRBUS | H66: 13/06 Retouche peinture 14/06 Dépose diver élèment pour accéder à la façade écran 17/06 Changement facade ecran | J66: TDT/JBDT/ATE | K66: O | L66: 2019-06-11 | O66: REOPEN
A67: CI | B67: A330 | C67: 1844 | D67: EQLB | E67: LR.1844-0191 | F67: CAB BC Seat 3A, RJU cover with scratches. | G67: AIRBUS | H67: 13/06 Retouche peinture 17/06 Dépose divers élèment pour accès support audio | J67: TDT/JBDT | K67: O | L67: 2019-06-11
A68: CI | B68: A330 | C68: 1844 | D68: EQLB | E68: LR.1844-0178 | F68: CAB BC Seat 6C, Meal table foil with gap. | H68: 17/06 Dépose padding + vis de fixation | I68: Commander le 20/06 FJSL1-2T2010-02 MEAL TABLE | J68: JMS | K68: O | L68: 2019-06-11
A69: CI | B69: A330 | C69: 1844 | D69: EQLB | E69: LR.1844-0180 | F69: CAB BC Seat 6C, RJU cover with scratches. | G69: AIRBUS | H69: 13/06 RJU Graisser et nettoyer | J69: RTK | K69: O | L69: 2019-06-11
A70: CI | B70: A330 | C70: 1844 | D70: EQLB | E70: LR.1844-0194 | F70: CAB BC Seat 7A Backshell with dent | G70: AIRBUS | H70: 13/06 Après vérification aucun defaut trouvé | K70: O | L70: 2019-06-11
A71: CI | B71: A330 | C71: 1844 | D71: EQLB | E71: LR.1844-0186 | F71: CAB BC Seat 8H, Ottoman cover scratched | G71: AIRBUS | K71: O | L71: 2019-06-11
A72: CI | B72: A330 | C72: 1844 | D72: EQLB | E72: LR.1844-0190 | F72: CAB BC Seat 7C, RJU cover with marks. | G72: AIRBUS | H72: 13/06 RJU Graisser et nettoyer | J72: RTK | K72: O | L72: 2019-06-11
A73: CI | B73: A330 | C73: 1844 | D73: EQLB | E73: LR.1844-0185 | F73: CAB BC Seat 2C, Aisle cover scratched. | G73: AIRBUS | H73: 13/06 Retouche peinture | J73: TDT/JBDT | K73: O | L73: 2019-06-11
A74: CI | B74: A330 | C74: 1844 | D74: EQLB | E74: LR.1844-0181 | F74: CAB BC Seat 5H, Video screen with scratch. | G74: AIRBUS | H74: 13/06 Retouche peinture | J74: TDT/JBDT | K74: O | L74: 2019-06-11 | O74: REOPEN
A75: CI | B75: A330 | C75: 1844 | D75: EQLB | E75: LR.1844-0179 | F75: CAB BC area Seat 1A, Marks visible on screen edge. | G75: AIRBUS | H75: 13/06 Screen graissé | J75: RTK | K75: O | L75: 2019-06-11 | O75: REOPEN
A76: CI | B76: A330 | C76: 1844 | D76: EQLB | E76: LR.1844-0148 | F76: CAB BC Seat 6A, Meal table edge scratched. | G76: AIRBUS | H76: 14/06 Nettoyé | K76: O | L76: 2019-06-11
A77: CI | B77: A330 | C77: 1844 | D77: EQLB | E77: LR.1844-0153 | F77: CAB BC Seat 4C, Scratches visible on screen edge | G77: AIRBUS | H77: 13/06 Nettoye 17/06 Changement facade ecran 14/06 Dépose diver élèment pour accéder à la façade écran / Retouche peinture | J77: TBE | K77: O | L77: 2019-06-11 | O77: REOPEN
A78: CI | B78: A330 | C78: 1844 | D78: EQLB | E78: LR.1844-0149 | F78: CAB BC Seat 7C, Screen cover with scratched. | G78: AIRBUS | H78: 13/06 Retouche peinture 17/06 Cadre écran 7C Changer 18/06 Dépose diver élèment pour accéder à la façade écran | J78: TDT/TBE/JBDT | K78: O | L78: 2019-06-11 | O78: REOPEN
A79: CI | B79: A330 | C79: 1844 | D79: EQLB | E79: LR.1844-0146 | F79: CAB BC Seat 3A, Meal table with excessive play in rotation. | H79: 13/06 Defaut non trouvé | J79: RTK | K79: O | L79: 2019-06-11
A80: CI | B80: A330 | C80: 1844 | D80: EQLB | E80: LR.1844-0164 | F80: CAB BC Seat 6C Headset compartment with scratches | G80: AIRBUS | H80: 13/06 Retouche peinture | J80: TDT/JBDT | K80: O | L80: 2019-06-11
A81: CI | B81: A330 | C81: 1844 | D81: EQLB | E81: LR.1844-0152 | F81: CAB BC Seat 8H, Screen edge with impact | G81: AIRBUS | H81: 13/06 Retouche peinture 14/06 Dépose diver élèment pour accéder à la façade écran 17/06 Changement facade ecran | J81: TDT/JBTE | K81: O | L81: 2019-06-11 | O81: REOPEN
A82: CI | B82: A330 | C82: 1844 | D82: EQLB | E82: LR.1844-0142 | F82: CAB BC Seat 3C, Stain visible on umbrella. | G82: AIRBUS | H82: 13/06 Accoudoir ajusté 17/06 Nettoyage parapluie | J82: ATE | K82: O | L82: 2019-06-11
A83: CI | B83: A350 | C83: 328 | D83: Gamme | E83: 6017158996-AG00-0004587 | F83: Modification of armrest EA Description: SEAT OSW Descr: Modification of armrest Part Descr: SEAT_B/C_R/H_SGL_STD EA PNR: FJSA2-1SQ202-01 EA SerNr.: 372 EQPT FIN: V5211ME012 MG Estimated Work: 120000 min TRACE State: IP TRACE Type: E Concession Ref: | K83: o | L83: 2019-05-10
A84: CI | B84: A330 | C84: 1844 | D84: EQLB | E84: LR.1844-0140 | F84: CAB BC Seat 2A, Scratches visible on screen cover. | G84: AIRBUS | H84: 13/06 Retouche peinture 17/06 Ecran changé | J84: TDT/JBDT/TBE | K84: O | L84: 2019-06-11 | O84: REOPEN
A85: CI | B85: A330 | C85: 1844 | D85: EQLB | E85: LR.1844-0166 | F85: CAB BC Seat 5A, Inside backshell with scratches | G85: AIRBUS | H85: 13/06 Backshell nettoyé | J85: RTK | K85: O | L85: 2019-06-11 | O85: REOPEN
A86: CI | B86: A330 | C86: 1844 | D86: EQLB | E86: LR.1844-0163 | F86: CAB BC Seat 3C, RJU cover with scratch. | G86: AIRBUS | H86: 13/06 RJU Graisser et nettoyer | J86: RTK | K86: O | L86: 2019-06-11
A87: CI | B87: A330 | C87: 1844 | D87: EQLB | E87: LR.1844-0156 | F87: CAB BC Seat 8H, Ottoman carpet to be adjusted. | G87: AIRBUS | H87: 13/06 Retouche peinture | J87: TDT/JBDT | K87: O | L87: 2019-06-11
A88: CI | B88: A330 | C88: 1844 | D88: EQLB | E88: LR.1844-0155 | F88: CAB BC Seat 2C, Screen has scratches at several location. | G88: AIRBUS | H88: 13/06 retouche peinture 18/06 Retouche peinture | J88: TDT/JBDT/TBE | K88: O | L88: 2019-06-11 | O88: REOPEN
A89: CI | B89: A330 | C89: 1844 | D89: EQLB | E89: LR.1844-0154 | F89: CAB BC All BC ottoman, Leather with wrinkles | H89: 13/06 Le coussin à été réajusté | J89: ATE | K89: O | L89: 2019-06-11
A90: CI | B90: A330 | C90: 1844 | D90: EQLB | E90: LR.1844-0147 | F90: CAB BC Seat 7A RJU cover with scratches | G90: AIRBUS | H90: 13/06 Graissé et nettoyé | J90: RTK | K90: O | L90: 2019-06-11
A91: CI | B91: A330 | C91: 1844 | D91: EQLB | E91: LR.1844-0144 | F91: CAB BC Seat 1A, Mark visible on armrest | G91: AIRBUS | H91: 13/06 Retouche peinture | J91: TDT/JBDT | K91: O | L91: 2019-06-11
A92: CI | B92: A330 | C92: 1844 | D92: EQLB | E92: LR.1844-0143 | F92: CAB BC Seat 3A, Screen cover with marks. | G92: AIRBUS | H92: 13/06 Retouche peinture 14/06 Dépose diver élèment pour accéder à la façade écran 17/06 Changement de la facade ecran | J92: TDT/JBDT/ATE | K92: O | L92: 2019-06-11 | O92: REOPEN
A93: CI | B93: A330 | C93: 1844 | D93: EQLB | E93: LR.1844-0138 | F93: CAB BC Seat 4H, Ottoman carpet to be adjusted. | G93: AIRBUS | H93: 13/06 Tapis re-ajusté | J93: RTK | K93: O | L93: 2019-06-11
A94: CI | B94: A330 | C94: 1844 | D94: EQLB | E94: LR.1844-0126 | F94: Cab BC seat 2 F AREA RJU cover and stowage panel have got 2 slight scratches,visible with grazing light | G94: AIRBUS | H94: 04/06 Dépose et repose de la bulle 16/03 Padding refixer | J94: RTK | K94: O | L94: 2019-06-11 | O94: REOPEN
A95: CI | B95: A330 | C95: 1844 | D95: EQLB | E95: LR.1844-0131 | F95: Cab BC seat 3H and 4F AREA Paint scratch fwd lower corner at seat 3H and lower corner of footrest at seat 4F. | G95: AIRBUS | H95: 13/06 Netoyé | K95: O | L95: 2019-06-11
A96: CI | B96: A330 | C96: 1844 | D96: EQLB | E96: LR.1844-0130 | F96: Cab BC seat 3H AREA Visible wrinkle in leather backshell. | H96: 13/06 Padding ajusté 17/06 Reprise du padding | J96: RTK/ATE | K96: O | L96: 2019-06-11
A97: CI | B97: A330 | C97: 1844 | D97: EQLB | E97: LR.1844-0129 | F97: Cab BC seat 1F 2H AREA Backshell cover is not installed properly at seats 1F 2H. | H97: 13/06 Padding ajusté | J97: RTK | K97: O | L97: 2019-06-11
A98: CI | B98: A330 | C98: 1844 | D98: EQLB | E98: LR.1844-0125 | F98: Cab BC seat 2 H AREA RJU panel has a paint mishmach, | H98: 13/06 Après vérification aucun defaut trouvé 17/06 Dépose divers élèment pour support audio | J98: TDT | K98: O | L98: 2019-06-11
A99: CI | B99: A330 | C99: 1844 | D99: EQLB | E99: LR.1844-0134 | F99: Cab BC seats 5H , 5F and 6F Meal table Arms have paint damage . | G99: AIRBUS | K99: O | L99: 2019-06-11
A100: CI | B100: A330 | C100: 1844 | D100: EQLB | E100: LR.1844-0133 | F100: Cab BC seat 5H AREA Visible mark on meal table . | G100: AIRBUS | H100: 17/06 Tablette 5H changé ( Dépose padding + vis de fixation) | I100: Commander le 20/06 Meal table FJSL1-2T2010-02 | J100: TBE | K100: O | L100: 2019-06-11
A101: CI | B101: A330 | C101: 1844 | D101: EQLB | E101: LR.1844-0128 | F101: Cab BC seat 2C 2F AREA Backshell between seats 2C and 2F is unstuck in 2 areas. | H101: 13/06 Retouche peinture 18/06 Depose padding + vis de fixation | J101: TDT/JMS | K101: O | L101: 2019-06-11 | O101: REOPEN
A102: CI | B102: A330 | C102: 1844 | D102: EQLB | E102: LR.1844-0132 | F102: Cab BC seat 4H AREA Head set compartment is loose . | G102: AIRBUS | H102: 13/06 Compartiment is losse, ajusté au mieux / Le mouvement est aspe design | K102: O | L102: 2019-06-11
A103: CI | B103: A330 | C103: 1844 | D103: EQLB | E103: LR.1844-0127 | F103: Cab BC seat 1F AREA Emergency équipement door at Seat 1F is stepping and rattling . | G103: AIRBUS | H103: 13/06 Porte régler | J103: RTK/JBDT | K103: O | L103: 2019-06-11
A104: CI | B104: A330 | C104: 1861 | D104: AM | E104: 9632614 | F104: Suite au retour de réparation AM 9562643, nous constatons une déchirure du cuir sur le repose pied du siège 5C zone1. voir standard doc demandons intervention | G104: AIRBUS | H104: 07/02 Cuir du repose pied déchiré suite au retour de l'AM 9562643 du siège 5C Demande de commande le 11/02 | I104: ess.FJSL1-2H2022-01 piece/ 24DCMX50200 | J104: TBE | K104: O | L104: 2019-02-06
A105: CI | B105: A350 | C105: 354 | D105: NC | E105: 206585855 | F105: V-Inc-AR.ZZ-NCAssem-QP-BCS-NO_PPS-16485 The trim of top cap is not correctly installed PN : FJST1-103102-01 SN : 413 PN : FJST1-103402-01 SN : 435 PN : FJST1-103107-01 SN : 416 -------------------------------------- | H105: 20/06 Une trim a été recollé mais la seconde c'est cassé lors du décollage. | I105: Profile de casquette FJST1-2R0451-01 | J105: TBE | K105: O | L105: 2019-06-12
A106: CI | B106: A350 | C106: 354 | D106: NC | E106: 206585854 | F106: V-Inc-AR.ZZ-PbFace-QP-BCS-4409-1372 Bubble on the top cap trim PN : FJST1-103203-01 SN : 422 -------------------------------------- | H106: 20/06 Après vérification la pièces est à commandé | J106: TBE | K106: O | L106: 2019-06-12
A107: CI | B107: A350 | C107: 328 | D107: NC | E107: 206568823 | F107: : Le LOS 1 101WJ sur la parois de lottoman area 1 rangée centrale celui de gauche. Il ne dimme pas et reste à léclairage maximum.. Demandons intervention pour remise en conformité. | I107: COMMANDER LE 20/06 85-03029-001-01- 89-03031-001-00- | K107: O | L107: 2019-06-05
A108: CI | B108: A330 | C108: 1844 | D108: EQLB | E108: LR.1844-0443 | F108: Cab BC Seat 3H visible discoloration on monitor frame. Présent condition are not acceptable for Rwandair and needs to be corrected prior commencements of delivery phase | H108: 18/06 Dépose diver élèment pour accéder à la façade écran / Retouche peinture | J108: TBE | K108: o | L108: 2019-06-14
A109: CI | B109: A350 | C109: 328 | D109: Nc | E109: 206594187 | F109: Nous avons remarqué un defaut sur le monument 16K, Armrest, the inner movable armrest leather is baggy and wrinkel. | H109: 17/06 Cuir marroufler | J109: TDT | K109: o | L109: 2019-06-14
A110: CI | B110: A350 | C110: 328 | D110: Nc | E110: 206594129 | F110: We notice a defect on monument 16F, Armrest, Armrest: the inner movable armrest leather is baggy and wrinkled | H110: 17/06 Cuir marroufler | I110: En commande FJSA1-1G1410-01 | J110: TDT | K110: O | L110: 2019-06-14
A111: CI | B111: A350 | C111: 328 | D111: Nc | E111: 206594063 | F111: We notice a defect on monument 18K, Armrest,the inner movable armrest leather is baggy and wrinkled | I111: En commande FJSA1-2F2200-01 | K111: O | L111: 2019-06-14
A112: CI | B112: A350 | C112: 328 | D112: Nc | E112: 206593411 | F112: Nous avons remarqué un defaut sur le monument 11A, ,Rayure sur la coque arrière. | I112: En commande FJST1-2R0451-01 | K112: O | L112: 2019-06-14
A113: CI | B113: A350 | C113: 328 | D113: Nc | E113: 206593339 | F113: Nous avons remarqué un defaut sur le monument 15F, Armrest, Armrest.QP seats: the inner movable armrest leather is baggy and wrinkled | H113: WAITING CL | I113: En commande FJSA1-1G1410-01 | K113: O | L113: 2019-06-14
A114: CI | B114: A350 | C114: 328 | D114: Nc | E114: 206595628 | F114: Nous avons remarqué un defaut sur le monument 11D, Privacy sliding door, Privacy sliding door.QP-BCS-NO_PPS-8030 Comment: Gap irrégulier et trop important entre le joint en mousse et la coque latéral. | G114: AIRBUS | H114: 20/06 Mousse central ajusté 21/06 FERMER CGL 01/07 Max 2mm | J114: ESI | K114: O | L114: 2019-06-17 | M114: 2019-06-20
A115: CI | B115: A350 | C115: 328 | D115: Nc | E115: 206595921 | F115: Nous avons remarqué un defaut sur le monument 11F, Privacy sliding door, Privacy sliding door.QP-BCS-NO_PPS-8030 Comment: Gap irrégulier et trop important entre le joint en mousse et la coque latéral. | G115: AIRBUS | H115: 20/06 Mousse central ajusté 21/06 FERMER CGL 01/07 Max 2mm | J115: ESI | K115: O | L115: 2019-06-17 | M115: 2019-06-20
A116: CI | B116: A350 | C116: 328 | D116: Nc | E116: 206596432 | F116: Nous avons remarqué un defaut sur le monument 12D, Armrest, Armres t Comment: Le cuir de laccoudoir droit est frippé. | I116: Manchette / FJSA1-1G1410-01 | K116: O | L116: 2019-06-17
A117: CI | B117: A350 | C117: 328 | D117: Nc | E117: 206595773 | F117: Nous avons remarqué un defaut sur le monument 15D, Armrest, Coveri ng surface. Comment : rayure sur le panneau gauche de laccoudoir | G117: AIRBUS | H117: Retouche peinture à prevoir | K117: O | L117: 2019-06-17
A118: CI | B118: A350 | C118: 328 | D118: Nc | E118: 206596487 | F118: Nous avons remarqué un defaut sur le monument 12K, , .QP-BCS-NO_PP S-16697 Comment: Plusieurs rayures sur la partie en plastique, à linterieur de laccoudoir droit. | I118: EN COMMANDE FJSA1-2F1003-01 | K118: O | L118: 2019-06-17
A119: CI | B119: A350 | C119: 328 | D119: Nc | E119: 206596729 | F119: Nous avons remarqué un defaut sur le monument 18A, Armrest, Armrest.QP -BCS-NO_PPS-8038 Comment: the inner movable armrest leather is baggy and wrinkled | I119: Manchette / FJSA1-1G1410-01 | K119: O | L119: 2019-06-17
A120: CI | B120: A350 | C120: 328 | D120: Nc | E120: 206597038 | F120: Nous avons remarqué un defaut sur le monument 17A, Armrest, Armres t.QP-BCS-NO_PPS-8038 Comment: Le cuir de laccoudoir est ridé, autour du bouton fonctionnel. | I120: En commande FJSA1-1G1410-01 | K120: O | L120: 2019-06-17
A121: CI | B121: A350 | C121: 328 | D121: Nc | E121: 206597073 | F121: Nous avons remarqué un defaut sur le monument 18D, Armrest, Armres t.QP-BCS-NO_PPS-8038 Comment: Le cuir de larmrest gauche est plissé. | H121: WAITING CL | I121: En commande FJSA1-1G1410-01 | K121: O | L121: 2019-06-17
A122: CI | B122: A350 | C122: 328 | D122: Nc | E122: 206597075 | F122: Au cours de l’inspection P20 J1 du WP B/C SEAT. Nous avons remarqué un defaut sur le monument 18D, Top cap, Trim. Comment : Le Top cap est endommagé, partie droite. | G122: AIRBUS | I122: Joint jonction PN/ FJSA1-1N3100-02 | K122: O | L122: 2019-06-17
A123: CI | B123: A330 | C123: 1923 | F123: RETOUCHE PEINTURE | H123: 12/06 Préparation du poste + masquage des zones à peindre / Nettoyage car pas la bonne peinture
A124: CI | B124: A350 | C124: 328 | D124: Direct | E124: rework - direct | F124: rework - direct | H124: rework - direct | J124: TBE/ESI
A125: CI | B125: A350 | C125: 328 | D125: EQLB | E125: XW.0328-0015 | F125: Cabin, BC, seat 16D, Singapore tree cover: Gap | G125: AIRBUS | H125: 18/06 Mesure gap inferieur à 2mm 21/06 aprèès rejet fermer CGL | J125: JBDT | K125: o | L125: 2019-06-18 | M125: 2019-06-21 | N125: 3
A126: CI | B126: A330 | C126: 1844 | D126: Prelevement | E126: Prelevement | F126: Prelevement | H126: 17/06 PREVEMENT + PERTE DE TEMPS ATTENTE DECISION 20/06 Démontage cadre écran sur le 1861 et remontage sur 1844 | J126: TDT/ESI
A127: CI | B127: A320 | E127: AIRLOG | F127: POINT A320 AIRLOG | H127: 19/06 Retouche peinture et déblocage fixation ok + attente accès | J127: TBE
A128: CI | B128: A350 | C128: 328 | D128: Gamme | E128: 6017159000-AG00-0004591 | F128: Modification of armrest EA Description: SEAT OSW Descr: Modification of armrest Part Descr: SEAT_B/C_R/H_SGL_STD EA PNR: FJSA2-1SQ202-01 EA SerNr.: 376 EQPT FIN: V5211ME012 MG Estimated Work: 120000 min TRACE State: IP TRACE Type: E Concession Ref: | K128: O | L128: 2019-05-10
A129: CI | B129: A330 | C129: 1844 | D129: EQLB | E129: LR.1844-0158 | F129: CAB BC Seat 6H, Video cover with scratch. | G129: AIRBUS | H129: 13/06 Retouche peinture 17/06 Cadre écran 6H Changer 14/06 Dépose diver élèment pour accéder à la façade écran | J129: TDT/JBDT/TBE | K129: O | L129: 2019-06-11 | O129: REOPEN
A130: CI | B130: A330 | C130: 1923 | D130: Nc | E130: 206613510 | F130: Sur le siege B/C 1A a gauche C/22, Constatons que l'élastique de la jupe de protection a l'arriere du dossier. Voir standard-doc | I130: EN COMMMANDE PN A RENSEGNE SUR POC | K130: O | L130: 2019-06-20
A131: CI | B131: A330 | C131: 1937 | D131: NC | E131: 206443097 | F131: Backshell dformés sieges B/c En cabine zone 1 sur tous les sieges B/C, nous constatons que les backshells presentent des bosses, des pliures, des jeux | G131: AIRBUS | H131: 02/05 Rejeté as per design | K131: O | L131: 2019-04-19 | M131: 2019-05-02 | N131: 9
A132: CI | B132: A350 | C132: 354 | D132: Gamme | E132: V25290988000 | F132: FINISHING PART | G132: STELIA | H132: 20/06 Ouverture ic + retour bureau pour ouverture ic pour le 21/06 + pas la visserie sur les dividers donc retour au bureau pour recupéré les vis + tyrap et bouchon et sortie de tout les centraux. 21/06 Montage des finishings part et connection des S/S 24/06 Connection assise + changement arrière changé | I132: Siege 5EF la tole pour les branchement inter-face ne plaque pas. | J132: JBDT/ATE/TDT/TBE/RTK
A133: CI | B133: A330 | C133: 1947 | D133: NC | E133: 206616701 | F133: Sous l'assise du siège 6A, un contact est cassé sur la prise J1, réf. 178078-102. Problème interne au siège; Demandons intervention | H133: RECHERCHE PANNE | I133: Cable/ réf. 178078-102. | K133: O | L133: 2019-06-24
A134: CI | B134: A350 | C134: 322 | D134: Direct | E134: rework - direct | F134: Rework-direct Delivry | H134: 24/06 Repositionement du cover sur le 14D et de plusieur coussin pour facilité les accoudoir, Ajustement de deux écrans (12K 15K ), 14F GAP amenity , Rework des Gaps, accoudoir, ecran, padding et attente inspection client. 26/06 Reglage porte S1AL + reglage ecran 19A + reprise deco tablette 11d,12D,14D,15D VOL | J134: ESI/RTK/TDT
A135: CI | B135: A350 | C135: 322 | D135: EQLB | E135: XW,0322-0184 | F135: CAB, BC, SEAT 18A, BOTTOM CUSHION, DRESS COVER, FRONT: PEN MARK VISIBLE | H135: 24/06 Coussin assise à commander après essai nettoyage non concluant | J135: TBE | K135: o | L135: 2019-06-24
A136: CI | B136: A350 | C136: 354 | D136: Nc | E136: 206621855 | F136: FRM latéral droit constatons un impact + détérioration de létiquette FJST1-1M0023-31. | H136: 25/06 Retouhe peinture avec plusieur couche + ponçage | J136: JBDT | K136: O | L136: 2019-06-25
A137: CI | B137: A350 | C137: 328 | D137: Nc | E137: 206619911 | F137: Au cours de l’inspection P20 J1 du WP B/C SEAT. Nous avons remarqué un defaut sur le monument 16F, Armrest, . Comment : Lors de la dépose, nous avons endommagé le cover de laccoudoir du siège 16F. Le cover se trouve dans le module reliquat. Demandons réapprovisionnement du cover. | K137: O | L137: 2019-06-24
A138: CI | B138: A350 | C138: 328 | D138: Nc | E138: 206619801 | F138: Au cours de l’inspection P20 J1 du WP B/C SEAT. Nous avons remarqué un defaut sur le monument 12D, Armrest, . Comment : Lors du démontage, nous avons endommagé le cover de laccoudoir. Demandons réapprovisionnement du cover | K138: O | L138: 2019-06-24
A139: CI | B139: A350 | C139: 328 | D139: EQLB | E139: XW.0328-0084 | F139: CAB, BC, SEAT 14D, SINGAPORE TREE COVER, INBD SIDE: GAP IS VISIBLE BTWN TREE COVER AND REAR TOP PANEL. | I139: 663661516 | K139: o | L139: 2019-06-24
A140: CI | B140: A330 | C140: 1947 | D140: Nc | E140: 206620436 | F140: cabine, Y/C, nous constatons que sur le siège 8 K, le voyant DONT DISTURB ne sallume pas. Le voyant de la commande fonctionne. | H140: RECHERCHE PANNE | K140: O | L140: 2019-06-24
A141: CI | B141: A330 | C141: 1923 | D141: Nc | E141: 206618364 | F141: Constatons que toutes les commandes du siège 7A sont inopérantes. | H141: 25/06 Recherche panne siège 7A + test + swap avec le siege 5A | J141: RTK/TDT | K141: O | L141: 2019-06-24
A142: CI | B142: A330 | C142: 1947 | D142: Nc | E142: 206620514 | F142: En cabine, B/C, Sous lassise du siège 7A, un contact est cassé sur la prise J1, réf. 187-078-102. Problème interne au siège; | H142: RECHERCHE PANNE | K142: O | L142: 2019-06-24
A143: CI | B143: A330 | C143: 1923 | D143: Nc | E143: 206626794 | F143: Lors de la réalisation du DIP sortie P20, une rayure sur la peinture de la cornière de finition de la console centrale du siège 8D est identifié. | K143: O | L143: 2019-06-26
A144: CI | B144: A330 | C144: 1923 | D144: Nc | E144: 206624923 | F144: Le siege B/C 6G a le Support étiquete manquant siege B/C 6G. Voir photo jointe. | K144: O | L144: 2019-06-26
A145: CI | B145: A330 | C145: 1923 | D145: Nc | E145: 206624727 | F145: Le siege B/C 7E a langle du cover arriere inférieur cassé. Voir photo jointe. | K145: O | L145: 2019-06-26
A146: CI | B146: A330 | C146: 1923 | D146: Nc | E146: 206626793 | F146: Lors de la réalisation du DIP sortie P20, langle de la cornière sous léacran du siège 5E est mal ajusté. | K146: O | L146: 2019-06-26
A147: CI | B147: A330 | C147: 1923 | D147: Nc | E147: 206626790 | F147: Lors de la réalisation du DIP sortie P20, sur larrière de la cornière du siège 1A, un léger impact est identifié. | K147: O | L147: 2019-06-26
A148: CI | B148: A330 | C148: 1923 | D148: Nc | E148: 206626755 | F148: Lors de la réalisation du DIP sortie P20, des légers défauts de finitions du cuir sont identifiés sur les sièges : - 2I : pliures cuir assise - 2H : cuir plissé - 5E : cuir dossier non tendu | K148: O | L148: 2019-06-26
A149: CI | B149: A330 | C149: 1923 | D149: Nc | E149: 206626738 | F149: Lors de la réalisation du DIP sortie P20, un ecaillage de peinture est identifié. | K149: O | L149: 2019-06-26
A150: CI | B150: A350 | C150: 327 | D150: Nc | E150: 206622429 | F150: During inspection we found screw missing inside ottoman litterature pocket. See standard doc | I150: ATTENTE APPRO VIS | K150: O | L150: 2019-06-25
A151: CI | B151: A330 | C151: 1938 | D151: EQLB | E151: LR.1938-0162 | F151: Cabin BC seat 3D headrest cover Cover dirty | G151: AIRBUS | H151: 21/05 Nettoyé 12/06 Rejeté cuir endommagé | K151: O | L151: 2019-05-20 | M151: 2019-05-21 | N151: 1
A152: CI | B152: A330 | C152: 1937 | D152: EQLB | E152: LR,1937-0265 | F152: Cab B/C seat seal on fwd stowage Lhs and Rhs have bad aspect gap visible and wavy | H152: 26/06 Démontage trim + corrage et serrage | J152: JBDt | K152: O | L152: 2019-06-25
A153: CI | B153: A330 | C153: 1947 | D153: Nc | E153: 206629195 | F153: En zone 1, côté gauche, sur le siège 6A: la trappe de rangement latérale est rayée. Voir standard doc. | G153: AIRBUS | H153: nattoyage ou retouche | K153: O | L153: 2019-06-26
A154: CI | B154: A330 | C154: 1947 | D154: Nc | E154: 206628740 | F154: En cabine zone 1 coté droit sur sieges B/C Nous constatons sur les siéges 6K et 7K que les piéces alu sous assises à lavant des sièges sont déformées Voir flammes et standard doc Demandons intervention | G154: AIRBUS | H154: RECOLLER ? | I154: en commande FJNS1-1N1035-01 | K154: O | L154: 2019-06-26
A155: CI | B155: A330 | C155: 1947 | D155: Nc | E155: 206629621 | F155: En zone 1, sur le siège 11A: la déco est bullée sous la lampe orientable. Voir standard doc. | H155: BULLE A REWORKE | K155: O | L155: 2019-06-26
A156: CI | B156: A330 | C156: 1947 | D156: Nc | E156: 206629483 | F156: En zone 1, sur le siège 9A: sur la console, la trappe latérale est difficile à ouvrir (nécessité dappuyer fortement pour déclencher louverture). Voir standard doc. | H156: DURETER A REGLER | K156: O | L156: 2019-06-26
A157: CI | B157: A330 | C157: 1947 | D157: Nc | E157: 206629458 | F157: En zone 1, sur le siège 7A: côté couloir, nous constatons un jeu trop important entre 2 covers sur le côté de la coque. Voir standard doc. | H157: 28/06 Ajustement compliquer | K157: O | L157: 2019-06-26
A158: CI | B158: A330 | C158: 1947 | D158: Nc | E158: 206629373 | F158: En zone 1, sur les sièges B/C 7A-8A-9D-7G-8G: derrière les écrans vidéo, nous constatons un gap entre les 2 panneaux de la coque. Voir flammes et standard doc. | H158: 28/06 Ajusté et coller au double face | K158: O | L158: 2019-06-26
A159: CI | B159: A330 | C159: 1947 | D159: Nc | E159: 206629266 | F159: En zone 1, sur les sièges 7K-8K-10G: nous constatons des jeux trop grands ou inesthétiques sur les covers supérieurs en haut des coques de sièges. Voir flammes et standard doc. | G159: AIRBUS | H159: JOINT SILICONE DE COULEUR (BEIGE) A REPRENDRE | K159: O | L159: 2019-06-26
A160: CI | B160: A330 | C160: 1947 | D160: Nc | E160: 206629213 | F160: En zone 1, sur les sièges B/C: la déco en feutrine bleue est mal collée (ou se décolle) entre le dossier et le haut de la console. Vois standard doc. | H160: ALL SEAT A CHECKER | K160: O | L160: 2019-06-26
A161: CI | B161: A330 | C161: 1947 | D161: Nc | E161: 206628567 | F161: En début de zone 1, côté gauche: devant le siège 6A, sur le front row monument LH, la porte tape dans le dado en plein ouverture. | H161: A AJUSTER | K161: O | L161: 2019-06-26
A162: CI | B162: A330 | C162: 1947 | D162: Nc | E162: 206628746 | F162: En cabine zone 1 coté droit sur siége B/C 9K Nous constatons une rayure à l'arriere de la telecommande | I162: ATTENTE APPRO Thales | K162: O | L162: 2019-06-26
A163: CI | B163: A330 | C163: 1947 | D163: Nc | E163: 206628831 | F163: En zone 1, côté gauche, siège 6A: à l'avant de la console latérale, près de la tablette fixe, la coque est rayée. Voir standard doc. | H163: VOIR LES POSSIBILITES D ATENUIER L IMPACT | K163: O | L163: 2019-06-26
A164: CI | B164: A330 | C164: 1947 | D164: Nc | E164: 206629305 | F164: En zone 1, sur le siège 6A: côté couloir, le carter sous l'accoudoir est cassé. Vois standard doc. | G164: AIRBUS | H164: A CHANGER | I164: En commande FJNS3-2N0401-01 | K164: O | L164: 2019-06-27
A165: CI | B165: A330 | C165: 1947 | D165: Nc | E165: 206629284 | F165: En cabine, SR B/C, sur siège 6G, nous constatons qu'il y a un éclairage constant dans le compartiment au niveau de l'accoudoir. Or, lorsqu'on ferme la porte du compartiment au niveau de l'accoudoir , la lumière devrait se couper. | H165: RECHERCHE PANNE | K165: O | L165: 2019-06-27
A166: CI | B166: A330 | C166: 1947 | D166: Nc | E166: 206629220 | F166: Nous constatons la presence de rayures sur les cornieres autour des consoles des sièges: * - 6K * - 8K Et une dècoloration sur le siège - 11G | H166: VOIR SI NETTOYAGE POSSIBLE | K166: O | L166: 2019-06-27
A167: CI | B167: A330 | C167: 1947 | D167: Nc | E167: 206629450 | F167: En zone 1, sur le siège 7A: sur la console, la tablette fixe est rayée. Voir flamme et standard doc. | H167: VOIR SI NETTOYAGE POSSIBLE | I167: A commander | K167: O | L167: 2019-06-27
A168: CI | B168: A330 | C168: 1947 | D168: Nc | E168: 206629413 | F168: En cabine zone 1 coté droit sur siège B/C rang 9K Nous constatons une rayure sur la corniére du repose pieds Voir flamme et standard doc Demandons intervention | H168: VOIR SI NETTOYAGE POSSIBLE | K168: O | L168: 2019-06-27
A169: CI | B169: A330 | C169: 1947 | D169: Nc | E169: 206629487 | F169: En zone 1, à l'arrière du siège 10A: nous constatons une rayure sur la coque. Voir standard doc. | H169: VOIR SI POSSIBILTE D ATTENUIER L IMPACT | K169: O | L169: 2019-06-27
A170: CI | B170: A330 | C170: 1947 | D170: Nc | E170: 206629419 | F170: En cabine zone 1 coté droit sur siège B/C rang 7K Nous constatons que le cover du marche pieds n'est pas bien positionné, il passe par dessus la corniére. | H170: A AJUSTER | K170: O | L170: 2019-06-27
A171: CI | B171: A330 | C171: 1947 | D171: Nc | E171: 206630000 | F171: En cabine zone 1 coté droit sur siège B/C rang 8K Nous constatons que le joint silicone autour de la tablette est abimé | H171: JOINT SILICONE DE COULEUR (TRANSPARENT) A REPRENDRE | K171: O | L171: 2019-06-27
A172: CI | B172: A330 | C172: 1947 | D172: Nc | E172: 206630003 | F172: Nous constatons que la vis de fixation du cover sous assise ne se serre pas correctement | H172: FIXATION A REPRENDRE | K172: O | L172: 2019-06-27
A173: CI | B173: A330 | C173: 1947 | D173: Nc | E173: 206630204 | F173: En cabine zone 1 sur siège B/c rang 8G Nous constatons que le cover marche pieds est déformé | H173: VOIR LES POSSIBILITES D ATENUIER LA VAGUE | K173: O | L173: 2019-06-27
A174: CI | B174: A330 | C174: 1947 | D174: Nc | E174: 206632066 | F174: En cabine zone 1 coté gauche sur siège rang 6a Nous constatons qu'il manque la vis ce fixation du fond du cover de repose pieds | H174: VIX A INSTALER | K174: O | L174: 2019-06-27
A175: CI | B175: A330 | C175: 1947 | D175: Nc | E175: 206629681 | F175: En zone 1, sur le siège 11A: côté couloir, le bumper est endommagé. Voir standard doc. * | H175: A CHANGER | I175: EN COMMANDE | K175: O | L175: 2019-06-27
A176: CI | B176: A330 | C176: 1947 | D176: Nc | E176: 206631842 | F176: En cabine zone 1 sur siège B/C rang 7G Nous constatons lea presence de plusieurs rayures au niveau du compartiment repose pieds Voir flammes et standad doc Demandons intervention | H176: A NETTOYER ET RETOUCHE PEINTURE | K176: O | L176: 2019-06-27
A177: CI | B177: A330 | C177: 1947 | D177: Nc | E177: 206631880 | F177: En cabine zone 1 sur siège rang 7G Nous constatons la presence d'une rayure en bas du siège coté couloir Voir flamme et standard doc | H177: A NETTOYER OU RETOUCHE | K177: O | L177: 2019-06-27
A178: CI | B178: A330 | C178: 1947 | D178: Nc | E178: 206631923 | F178: En cabine zone 1 sur siège 8G Nous constatons la presence d'une rayure coté couloir Voir flamme et standard doc | H178: A NETTOYER OU RETOUCHE | I178: FJNS3-2N0402A05 | K178: O | L178: 2019-06-27
A179: CI | B179: A330 | C179: 1947 | D179: Nc | E179: 206631983 | F179: En zone 1, à l'arrière du siège 7A: la coque comporte des projections de peinture noire, à gauche de l'écran vidéo. Voir standard doc. | H179: 28/06 Après nettoyahge les trace de peinture toujour présente | K179: O | L179: 2019-06-27
A180: CI | B180: A330 | C180: 1947 | D180: Nc | E180: 206631981 | F180: En début de zone 1, côté RH: le joint entre le front Row Stowage et le Window panel n'est plus fixé sur le meuble. De plus il est mal adapté et ne plaque pas complètement sur le Window panel (voir NC 206631828 pour le même joint côté RH). Voir standard doc. | G180: AIRBUS | H180: 28/06 Joint remis manque peinture pour les rivet | K180: O | L180: 2019-06-27
A181: CI | B181: A330 | C181: 1947 | D181: Nc | E181: 206631828 | F181: En début de zone 1, côté LH: le joint entre le front Row Stowage et le Window panel est mal adapté et ne plaque pas complètement. Voir standard doc. | K181: O | L181: 2019-06-27
A182: ST | B182: A350 | C182: 348 | D182: Nc | E182: 206632761 | F182: Item : Cas seat P/N : TAAI8-04CE06-01 S/N : A350-11398 Sub-Item : Label Kind of defect : Identification / non conforming label ************************************************************ * Wrong SN on the seat: * * * * Identification on receipt documents: SN A350-11398 (DN * * 170964897 EASA 170964897/10) * * Identification on the seat: SN A350-11397 (SN already * * used on an old booking). * * * * OSS intervention request for label change in rework * * zone on Airlog2 * ************************************************************ | G182: STELIA | I182: EN COMMANDE | K182: O | L182: 2019-06-28
A183: CI | B183: A350 | C183: 354 | D183: Nc | E183: 206632667 | F183: Au cours de l’inspection P38 J1 du WP B/C SEAT. Nous avons remarqué un defaut sur le monument 1A, Ottoman, Label. | G183: AIRBUS | I183: EN COMMANDE | K183: O | L183: 2019-06-28
A184: CI | B184: A350 | C184: 354 | D184: Nc | E184: 206633038 | F184: Au cours de l’inspection P38 J1 du WP B/C SEAT. Nous avons remarqué un defaut sur le monument 5A, Seat pan, Covering surface. | G184: AIRBUS | I184: EN COMMANDE | K184: O | L184: 2019-06-28
N511: =IF(OR(L511="",M511=""),"",IF(NETWORKDAYS(L511,M511)-1>=0,NETWORKDAYS(L511,M511)-1,0)) -> 
N525: =IF(OR(L525="",M525=""),"",IF(NETWORKDAYS(L525,M525)-1>=0,NETWORKDAYS(L525,M525)-1,0)) -> 
N542: =IF(OR(L542="",M542=""),"",IF(NETWORKDAYS(L542,M542)-1>=0,NETWORKDAYS(L542,M542)-1,0)) -> 
N546: =IF(OR(L546="",M546=""),"",IF(NETWORKDAYS(L546,M546)-1>=0,NETWORKDAYS(L546,M546)-1,0)) -> 
N594: =IF(OR(L594="",M594=""),"",IF(NETWORKDAYS(L594,M594)-1>=0,NETWORKDAYS(L594,M594)-1,0)) -> 
N658: =IF(OR(L658="",M658=""),"",IF(NETWORKDAYS(L658,M658)-1>=0,NETWORKDAYS(L658,M658)-1,0)) -> 

Sheet Juin 2019
V4: 67 | W4: 81 | X4: 85.5 | Y4: 81 | Z4: 50 | AD4: 89.5 | AE4: 83 | AF4: 89 | AG4: 55 | AH4: 3 | AJ4: 93.5 | AK4: 82 | AL4: 90 | AM4: 76.5 | AN4: 52 | AQ4: 71 | AR4: 66 | AS4: 75 | AT4: 78 | AU4: 52
S5: PROD CI/ST/AC | T5: =SUM(T14:T537) -> 0 | U5: =SUM(U14:U737) -> 0 | V5: =SUM(V13:V737) -> 58.5 | W5: 72 | X5: 75.5 | Y5: 68.75 | Z5: 41 | AA5: 0 | AB5: 0 | AC5: 0 | AD5: 80 | AE5: 73.5 | AF5: 79 | AG5: 46 | AH5: 0 | AI5: 0 | AJ5: 72.5 | AK5: 73 | AL5: 80.5 | AM5: 63.4 | AN5: 43.5 | AO5: 0 | AP5: 0 | AQ5: 59.5 | AR5: 57 | AS5: 60.5 | AT5: 16.5 | AU5: 11 | AV5: 0 | AW5: 0 | AX5: 0 | AY5: =SUM(AY14:AY537) -> 351
E6: JUIN 2019 | F6: 01/06/2019 | G6: 2019-06-01 | S6: PROD ATR | T6: ='[2]JUIN 19'!M3 -> 0 | U6: ='[2]JUIN 19'!N3 -> 0 | V6: ='[2]JUIN 19'!O3 -> 0 | W6: ='[2]JUIN 19'!P3 -> 0 | X6: ='[2]JUIN 19'!Q3 -> 0 | Y6: ='[2]JUIN 19'!R3 -> 0 | Z6: ='[2]JUIN 19'!S3 -> 3 | AA6: ='[2]JUIN 19'!T3 -> 0 | AB6: ='[2]JUIN 19'!U3 -> 0 | AC6: ='[2]JUIN 19'!V3 -> 0 | AD6: ='[2]JUIN 19'!W3 -> 0.5 | AE6: ='[2]JUIN 19'!X3 -> 0 | AF6: ='[2]JUIN 19'!Y3 -> 0 | AG6: ='[2]JUIN 19'!Z3 -> 0 | AH6: ='[2]JUIN 19'!AA3 -> 0 | AI6: ='[2]JUIN 19'!AB3 -> 0 | AJ6: ='[2]JUIN 19'!AC3 -> 0 | AK6: ='[2]JUIN 19'!AD3 -> 0 | AL6: ='[2]JUIN 19'!AE3 -> 0 | AM6: ='[2]JUIN 19'!AF3 -> 0 | AN6: ='[2]JUIN 19'!AG3 -> 0 | AO6: ='[2]JUIN 19'!AH3 -> 0 | AP6: ='[2]JUIN 19'!AI3 -> 0 | AQ6: ='[2]JUIN 19'!AJ3 -> 3 | AR6: ='[2]JUIN 19'!AK3 -> 0 | AS6: ='[2]JUIN 19'!AL3 -> 1 | AT6: ='[2]JUIN 19'!AM3 -> 0 | AU6: ='[2]JUIN 19'!AN3 -> 0 | AV6: ='[2]JUIN 19'!AO3 -> 0 | AW6: ='[2]JUIN 19'!AP3 -> 0 | AX6: ='[2]JUIN 19'!AQ3 -> 0 | AY6: ='[2]JUIN 19'!AR3 -> 2.5 | AZ6: ='[2]JANVIER 19'!AS3 -> 0 | BA6: ='[2]JANVIER 19'!AT3 -> 0 | BB6: ='[2]JANVIER 19'!AU3 -> 0 | BC6: ='[2]JANVIER 19'!AV3 -> 0 | BD6: ='[2]JANVIER 19'!AW3 -> 0
H7: New month | S7: TOTAL CI/ST/ATR | T7: =SUM(T5:T6) -> 0 | U7: 0 | V7: =SUM(V5:V6) -> 58.5 | W7: =SUM(W5:W6) -> 72 | X7: 75.5 | Y7: 68.75 | Z7: 44 | AA7: 0 | AB7: 0 | AC7: 0 | AD7: 80.5 | AE7: 73.5 | AF7: 79 | AG7: 46 | AH7: 0 | AI7: 0 | AJ7: 72.5 | AK7: 73 | AL7: 80.5 | AM7: 63.4 | AN7: 43.5 | AO7: 0 | AP7: 0 | AQ7: 62.5 | AR7: 57 | AS7: 61.5 | AT7: 16.5 | AU7: 11 | AV7: 0 | AW7: 0 | AX7: 0 | AY7: =SUM(T7:AX7) -> 1139.15
S8: TOTAL JR | T8: =T7+T13 -> 0 | U8: 0 | V8: =V7+V12 -> 68 | W8: =W7+W12 -> 81 | X8: =X7+X12 -> 85.5 | Y8: =Y7+Y12 -> 77.75 | Z8: =Z7+Z12 -> 50 | AA8: =AA7+AA12 -> 0 | AB8: 0 | AC8: 0 | AD8: 89.5 | AE8: 83 | AF8: 89 | AG8: 55 | AH8: 3 | AI8: 0 | AJ8: 83 | AK8: 82 | AL8: 90 | AM8: 71.4 | AN8: 52 | AO8: 0 | AP8: 0 | AQ8: 71 | AR8: 66 | AS8: 71.5 | AT8: 25.5 | AU8: 17 | AV8: 0 | AW8: 0 | AX8: 0 | AY8: 1276.65
A9: NC DESCRIPTION | H9: NC FOLLOW-UP | L9: KPI and CONTINUOUS IMPROVEMENT | T9: =G6 -> 2019-06-01 | U9: =T9+1 -> 2019-06-02 | V9: 2019-06-03 | W9: 2019-06-04 | X9: 2019-06-05 | Y9: 2019-06-06 | Z9: 2019-06-07 | AA9: 2019-06-08 | AB9: 2019-06-09 | AC9: 2019-06-10 | AD9: 2019-06-11 | AE9: 2019-06-12 | AF9: 2019-06-13 | AG9: 2019-06-14 | AH9: 2019-06-15 | AI9: 2019-06-16 | AJ9: 2019-06-17 | AK9: 2019-06-18 | AL9: 2019-06-19 | AM9: 2019-06-20 | AN9: 2019-06-21 | AO9: 2019-06-22 | AP9: 2019-06-23 | AQ9: 2019-06-24 | AR9: 2019-06-25 | AS9: 2019-06-26 | AT9: =AS9+1 -> 2019-06-27 | AU9: =IF(OR(DAY(AT9+1)=1,DAY(AT9+1)=2,DAY(AT9+1)=3,DAY(AT9+1)=4),"",AT9+1) -> 2019-06-28 | AV9: =IF(OR(DAY(AU9+1)=1,DAY(AU9+1)=2,DAY(AU9+1)=3,DAY(AU9+1)=4),"",AU9+1) -> 2019-06-29 | AW9: =IF(ISERR(IF(OR(DAY(AV9+1)=1,DAY(AV9+1)=2,DAY(AV9+1)=3,DAY(AV9+1)=4),"",AV9+1)),"",IF(OR(DAY(AV9+1)=1,DAY(AV9+1)=2,DAY(AV9+1)=3,DAY(AV9+1)=4),"",AV9+1)) -> 2019-06-30 | AX9: =IF(ISERR(IF(OR(DAY(AW9+1)=1,DAY(AW9+1)=2,DAY(AW9+1)=3,DAY(AW9+1)=4),"",AW9+1)),"",IF(OR(DAY(AW9+1)=1,DAY(AW9+1)=2,DAY(AW9+1)=3,DAY(AW9+1)=4),"",AW9+1)) ->  | AY9: =AY8-AY7 -> 137.5
AC10: F
A11: PERIMETER | B11: A/C program | C11: MSN | D11: Type | E11: Ref AM/NC/TLB/eQLB/WO | F11: Non-Conformity description | G11: NC Liability | H11: Description of the work done | I11: ECME/Material PN/SN | J11: Worker | K11: NC State | L11: Reception date | M11: Closure date | N11: Reactivity | O11: Reactivity NC Main cause | P11: FTR | Q11: Defect category | R11: Root cause comments | S11: Root cause fundamantal | T11: =IF(WEEKDAY(T9)=2,"L",IF(WEEKDAY(T9)=3,"M",IF(WEEKDAY(T9)=4,"M",IF(WEEKDAY(T9)=5,"J",IF(WEEKDAY(T9)=6,"V",IF(WEEKDAY(T9)=7,"S",IF(WEEKDAY(T9)=1,"D"))))))) -> S | U11: D | V11: L | W11: M | X11: M | Y11: J | Z11: V | AA11: S | AB11: D | AD11: M | AE11: M | AF11: J | AG11: V | AH11: S | AI11: D | AJ11: L | AK11: M | AL11: M | AM11: J | AN11: V | AO11: S | AP11: D | AQ11: L | AR11: M | AS11: M | AT11: J | AU11: V | AV11: S | AW11: D | AX11: v | AY11: PROD | AZ11: Commentaires STELIA S1 | BA11: Commentaires STELIA S2 | BB11: Commentaires STELIA S3 | BC11: Commentaires STELIA S4 | BD11: Comment AAA | XFD11: =SUBTOTAL(9,A11:XFC11) -> 0
A12: GESTION | E12: XAVIER | F12: Heures Xavier OUDIN | V12: 9.5 | W12: 9 | X12: 10 | Y12: 9 | Z12: 6 | AD12: 9 | AE12: 9.5 | AF12: 10 | AG12: 9 | AH12: 3 | AJ12: 10.5 | AK12: 9 | AL12: 9.5 | AM12: 8 | AN12: 8.5 | AQ12: 8.5 | AR12: 9 | AS12: 10 | AT12: 9 | AU12: 6 | AY12: =SUM(T12:AX12) -> 172
A13: GESTION | E13: LAURENCE | F13: Heures Laurence guettar | X13: 9.5 | Y13: 8 | Z13: 8 | AD13: 8.5 | AE13: 8 | AF13: 8 | AG13: 5 | AJ13: 8 | AK13: 9 | AL13: 9 | AM13: 9 | AN13: 8.5 | AQ13: 8 | AR13: 9 | AS13: 8 | AT13: 8 | AU13: 6 | AY13: =SUM(T13:AX13) -> 137.5
A14: GESTION | E14: KEVIN | F14: Heures Kevin CHACON | W14: 8 | X14: 8 | Y14: 8 | Z14: 6 | AD14: 8 | AE14: 8 | AF14: 9 | AG14: 5 | AJ14: 8 | AK14: 8 | AL14: 8 | AM14: 8.5 | AN14: 5 | AQ14: 8 | AR14: 8 | AS14: 9 | AT14: 8 | AU14: 5 | AY14: =SUM(T14:AX14) -> 135.5
A15: GESTION | E15: KARINE | F15: Heure Karine DELFAUT | V15: 8 | W15: 8 | AD15: 8 | AE15: 8 | AF15: 8 | AG15: 5 | AJ15: 8 | AK15: 8 | AL15: 8 | AM15: 9 | AN15: 5 | AY15: =SUM(T15:AX15) -> 83
A16: GESTION | E16: ATTENTE | F16: attente bureau/ trajet / attente ic / reception colis sur site/ non acces | H16: 04/06 Perte de temps attente que Airbus monte les finishing part(2h) 05/06 Route + pas accès car FOT + colis recupéré 12/06 Route pour récupération des porte 14/06 MSN328 Cloison et porte récupéré à ATOS puis livré sur avion 20/06 Perte de temps voiture pour récupéré la peinture et le papier à poncer 21/06 Attente Airbus pour montage des finishing part sur le 354 26/06 | V16: 2 | W16: 4.5 | X16: 4 | Y16: 8.5 | Z16: 4 | AD16: 6 | AE16: 6 | AF16: 4.5 | AG16: 8 | AJ16: 6.75 | AK16: 9.75 | AL16: 6 | AM16: 6.75 | AN16: 8 | AQ16: 11.75 | AR16: 12 | AS16: 24 | AY16: =SUM(V16:AW16) -> 132.5
A17: GESTION | E17: TRAJET | F17: PERTE TEMPS TRAJETS ( MANQUE VOITURE ) | V17: 1.5 | W17: 4.5 | X17: 4.5 | Y17: 7.5 | Z17: 4 | AD17: 4 | AE17: 5.5 | AF17: 1.5 | AG17: 5.5
A18: CI | E18: TAXI JV + IC JV | F18: TAXI JV + IC JV
A19: CI | B19: A350 | C19: 322 | D19: EQLB | E19: XW.0322-0130 | F19: CAB, BC ,SEAT 18K, 17K, 15K, 17F, 16F, 15F, 12F, 11F, BOTH SIDE, ARMREST : SNUBBER WHEN THEY DEPLOYIN | G19: STELIA | H19: 19/04 17K Ok accoudoir démonté/contrôlé/remonté 03/05 FERMER Accoudoir réglé REOPEN 03/06 Acoudoir ajusté | J19: ATE/TDT | K19: F | L19: 2019-04-17 | M19: 2019-06-03 | V19: 0.5
A20: CI | B20: A350 | C20: 322 | D20: EQLB | E20: XW.0322-0113 | F20: CAB, BC, SEATS 12DF 15DF, GAP FILLER FOAM WRINKLED | G20: OTHER | H20: 18/04 Repris au mieux possible 24/04 Rejeté toujour frippé VOIR CL 27/05 Mousse installé correctement. 31/05 REPOEN 20/06 Fermer CGL | J20: DLY | K20: F | L20: 2019-04-17 | M20: 2019-06-20 | N20: =IF(OR(L20="",M20=""),"",IF(NETWORKDAYS(L20,M20)-1>=0,NETWORKDAYS(L20,M20)-1,0)) -> 46 | O20: REOPEN
A21: CI | B21: A350 | C21: 322 | D21: EQLB | E21: XW.0322-0131 | F21: CAB , BC, SEAT 20A, 21K, 11K, 12D, LHS ARMREST, PUSH BUTTON : DIFFICULT TO USE | G21: STELIA | H21: 04/06 ajusté au mieux 18/06 Après test NFF | J21: RTK/TBE | K21: F | L21: 2019-06-14 | M21: 2019-06-19 | O21: REOPEN | W21: 0.5 | AK21: 0.5
A22: CI | B22: A350 | C22: 322 | D22: EQLB | E22: XW.0322-0109 | F22: CAB, BC, SEAT 14F, ALCANTARA PADDING, LHS TOP : STEP - Reason: Rework performed but incomplete / unacceptable Step still present and seems above 2mm | G22: STELIA | H22: 04/06 Padding re-ajusté | J22: RTK | K22: F | L22: 2019-04-14 | M22: 2019-06-05 | O22: REOPEN | W22: 0.5
A23: CI | B23: A350 | C23: 327 | D23: Gamme | E23: 6016992301-AG00-004574 | F23: remplacement habillage et collage etiquette EA Description: SEAT OSW Descr: remplacement fairing Part Descr: BC SEAT- DBL LH FR (S31K) EA PNR: FJEQ5-101101-01 EA SerNr.: 31 EQPT FIN: V5212ME001 MA Estimated Work: 75000 min TRACE State: RE TRACE Type: E Concession Ref: | G23: STELIA | H23: 15/05 Backchel demonté + recherche comment démonter + plusieur pièce démonté 18/06 Dépose + repose backshell | I23: FJEQ1-1-2N1610-04 | J23: TBE | K23: f | L23: 2019-04-03 | M23: 2019-06-18 | AK23: 3
A24: CI | B24: A350 | C24: 327 | D24: Nc | E24: 206496712 | F24: Information complémentaire : During ground test we noticed the seat 3A and 1E cheer up automatically in end of bed position. Demandons intervention pour remise en conformité. | G24: STELIA | H24: 19/06 Ajustemment du siège | I24: PARAPLUIE EN COMMANDE POUR LE SIEGE 1E Parapluie / PN/ FJEQ1-1E1505-03 Barre souplke /PN/ FJEQ1-1E1332-31 ODD FIN JUILLET | J24: RTK/ESI | K24: o | L24: 2019-05-13 | M24: 2019-05-16 | N24: 3 | AL24: 2
A25: CI | B25: A350 | C25: 328 | D25: Gamme | E25: 6016856857-GI-332-102 | F25: Install 4 missing doors and placards EA Description: SEAT OSW Descr: Install 4 missing doors and placards Part Descr: FNT_B/C_CTR_FNT_F/R EA PNR: SJSA2-1SQ301-01 EA SerNr.: 57 | G25: STELIA | H25: 13/06 Reglage des portes | J25: TBE | K25: F | L25: 2019-03-01 | M25: 2019-06-18 | AF25: 1.5
A26: CI | B26: A350 | C26: 328 | D26: Gamme | E26: 6016856837-GI-332-102 | F26: Replace 1 damaged decor panel EA Description: SEAT OSW Descr: Replace 1 damaged decor panel Part Descr: FNT_B/C_CTR_FNT_F/R EA PNR: SJSA2-1SQ302-01 EA SerNr.: 60 EQPT FIN: V5219ME019 MX | G26: STELIA | J26: STECO | K26: F | L26: 2019-03-01 | M26: 2019-06-18
A27: CI | B27: A350 | C27: 328 | D27: Gamme | E27: 6016856836-GI-332-102 | F27: Install 1 missing door and placards EA Description: SEAT OSW Descr: Install 1 missing door and placards Part Descr: FNT_B/C_R/H_FNT_F/R EA PNR: SJSA2-1SQ202-01 EA SerNr.: 59 | G27: STELIA | H27: 17/06 Etiquette mise en place | J27: TBE | K27: F | L27: 2019-03-01 | M27: 2019-06-18 | AJ27: 0.5
A28: CI | B28: A350 | C28: 328 | D28: Gamme | E28: 6016856835-GI-332-102 | F28: Install 1 missing door and placards EA Description: SEAT OSW Descr: Install 1 missing door and placards Part Descr: FNT_B/C_L/H_FNT_F/R EA PNR: SJSA2-1SQ102-01 EA SerNr.: 58 | G28: STELIA | H28: 18/06 Mise en place de l'étiquette | J28: ESI | K28: F | L28: 2019-03-01 | M28: 2019-06-18 | AK28: 0.5
A29: CI | B29: A350 | C29: 328 | D29: Gamme | E29: 6016856834-GI-332-102 | F29: Install 1 missing door and placards EA Description: SEAT OSW Descr: Install 1 missing door and placards Part Descr: FNT_B/C_R/H_FNT_F/R EA PNR: SJSA2-1SQ201-01 EA SerNr.: 56 | G29: STELIA | H29: 14/05 Remontage de porte stowage | J29: ESI/TBE | K29: F | L29: 2019-03-01 | M29: 2019-06-18 | AG29: 2
A30: CI | B30: A350 | C30: 328 | D30: Gamme | E30: 6016856833-GI-332-102 | F30: Install 1 missing door and placards EA Description: SEAT OSW Descr: Install 1 missing door and placards Part Descr: FNT_B/C_L/H_FNT_F/R EA PNR: SJSA2-1SQ101-01 EA SerNr.: 55 | G30: STELIA | H30: 14/05 Remontage de porte stowage | J30: ESI/TBE | K30: F | L30: 2019-03-01 | M30: 2019-06-18 | AG30: 2
A31: CI | B31: A350 | C31: 328 | D31: Gamme | E31: 6016856834-305_MID_195 | F31: Cannibalization panel SJSA2-1Q4117-01 EA Description: SEAT OSW Descr: Cannibalization panel SJSA2-1Q4117-01 Part Descr: FNT_B/C_R/H_FNT_F/R EA PNR: SJSA2-1SQ201-01 EA SerNr.: 56 | G31: STELIA | H31: 03/06 Démontage 04/06 Montage cloison RH | J31: ATE/JMS/ESI/TDT | K31: F | L31: 2019-03-21 | V31: 4 | W31: 8
A32: CI | B32: A350 | C32: 328 | D32: Gamme | E32: 6016856833-305_MID_173 | F32: Cannibalization panel SJSA2-1Q4103-01 EA Description: SEAT OSW Descr: Cannibalization panel SJSA2-1Q4103-01 Part Descr: FNT_B/C_L/H_FNT_F/R EA PNR: SJSA2-1SQ101-01 EA SerNr.: 55 | G32: STELIA | H32: 04/06 Montage cloison LH | J32: JMS/ESI/TDT | K32: F | L32: 2019-03-21 | W32: 5
A33: CI | B33: A350 | C33: 322 | D33: Gamme | E33: 1009992352-AG00004588 | F33: OSW Descr: re install armrest cover Part Descr: SEAT_B/C_L/H_SGL_F/R EA PNR: FJSA2-1SQ101-01 - EA SerNr.: 361 EA PNR: SJSA2-1SQ301-01 - EA SerNr.: 57 | G33: STELIA | H33: 12/06 Instalation des cover accoudoir | K33: F | L33: 2019-05-15 | M33: 2019-06-13 | AE33: 1
A34: CI | B34: A330 | C34: 1938 | D34: NC | E34: 206505019 | F34: fond stowage siège 6H abimé Suite intervention fournisseur sur NC206495992, il a détérioré le fond du petit stowage sur la console du siège. Voir flamme et standard doc Demandons intervention | G34: AIRBUS | H34: 28/06 plaque remis en place | I34: DECO RECU | J34: JBDT | K34: F | L34: 2019-05-15 | M34: 2019-06-28
A35: CI | B35: A330 | C35: 1938 | D35: NC | E35: 206495992 | F35: Defaut light 6H Lors du test des fonctions du siège 6H nous constatons que léclairage du rangement au dessus de la console(à droite de lassise) ne séteint pas lorsque lon ferme la porte. | G35: STELIA | H35: 16/05Après plusieur essaie non-concluant pb lumière switch à changer 6H 07/06 Après démontage de la zone Le switch a été reconnecté correctement. | I35: V7-1B10E9-207 | J35: TDT/JMS | K35: F | L35: 2019-05-03 | M35: 2019-06-11 | Z35: 1
A36: CI | B36: A330 | C36: 1938 | D36: NC | E36: 206490889 | F36: Fixation siege B/C 3D trop longue En cabine, zone 1 sur siége B/C rang 3D CMS: 6388716100ACI P/N: FJNS3-1SB301-01 S/N: 105 Lors du montage dans lavion, nous constatons que la fixation arriére gauche est décallée par rapport au rail. Aprés comparaison sur un siége de même reference, la ferrure de la fixation est plus longue de 1,5cm. Voir flamme et standard doc Demandons intervention. | G36: STELIA | H36: 21/05 Depose/Repose de la ferrure Beaucoup d'attente d'attente pour que Airbus depose le siege (ma,que de main-d'oeuvre) 12/06 Dépose divers élément siège + dépose ferrure + repose ferrure+ | I36: FJNS3-1B0866-31 | J36: RTK/ATE/ESI | K36: F | L36: 2019-05-09 | M36: 2019-06-12 | AE36: 6
A37: CI | B37: A330 | C37: 1938 | D37: NC | E37: 206473293 | F37: Siège item 411, rang 6D SIEGE B/C 6D: Lors du déballage, constatons un défaut sur le panneau habillage situé à larrière au dessous du repose pieds. Vopir standard doc | H37: WAITING CL ? | K37: O | L37: 2019-05-02
A38: CI | B38: A330 | C38: 1938 | D38: Gamme | E38: AG00-004587 | F38: OSW Descr: Divider to be install Part Descr: PASSENGER SEAT SGL EA PNR: FJNS3-1SB401-01 EA PNR: FJNS3-1SB405-01 EA PNR: FJNS3-1SB401-03 EA SerNr.: 114 -112 EA SerNr.: 116 EA SerNr.: 110 OSW Descr: write weight on ID label Part Descr: PASSENGER SEAT SGL EA PNR: FJNS3-1SB401-01 EA PNR: FJNS3-1SB405-01 EA PNR: FJNS3-1SB401-03 EA SerNr.: 114 -112 EA SerNr.: 116 EA SerNr.: 110 OSW Descr: RFID TAG to be install Part Descr: PASSENGER SEAT SGL EA PNR: FJNS3-1SB401-01 EA PNR: FJNS3-1SB405-01 EA PNR: FJNS3-1SB401-03 EA SerNr.: 114-112 EA SerNr.: 116 E A SerNr.: 110 | H38: 26/06 depose capot + verrin + pose divider + repose verrin et capot | I38: FJNS3-1SB401-01 RFID TAG FJNS3-1SB401-03 | K38: F | L38: 2019-04-24 | M38: 2019-06-28 | AS38: 3
A39: CI | B39: A330 | C39: 1937 | D39: NC | E39: 206443347 | F39: Joint arriere dernier rang mal positionn En zone 1 sur les deux derniers sieges B/C axe avion Nous constatons que le joint arriere entre les sieges et la F cloison nest pas bien possitionné Voir flamme et standard doc Demandons intervention | G39: AIRBUS | H39: 16/05 La piece a été ajusté 06/06 Angle repris + joint couper , ne rien faire au niveau du siège 17/06 Rejeté " Le travail n'est pas satifaisant pouvez vous le reprendre" | I39: ATTENTE ROCHFORT | K39: O | L39: 2019-04-19 | M39: 2019-06-07 | N39: 20 | Y39: 0.5
A40: CI | B40: A330 | C40: 1937 | D40: NC | E40: 206443198 | F40: jeu sur cover sieges dernier rang En cabine zone 1 sur les 4 sieges B/C du dernier rang Nous constatons que les covers sur les cotés des sieges ne plaquent pas correctement sur la structure | G40: STELIA | H40: 24/04 Support recoller velcro changer aucun changement VOIC SI CL 16/05 Scotch retiré + PN recupéré pour la commande 06/06 Ajout de velcro + montage | I40: PLAQUE A COMMANDER FJNS3-2N0753A02 IND A 100102838498 | J40: JMS | K40: F | L40: 2019-04-19 | M40: 2019-06-06 | Y40: 0.5
A41: CI | B41: A330 | C41: 1937 | D41: NC | E41: 206443121 | F41: Rang 2H: Rayure partie basse, couloir Constatons une rayure au niveau du cover en partie basse, côté couloir (sous le bumper). Voir pièce-jointe. Demandons intervention. | H41: RETOUCHE PEINTURE | I41: commande de piece | K41: O | L41: 2019-04-19
A42: CI | B42: A330 | C42: 1937 | D42: NC | E42: 206443082 | F42: 5H: Impact proche prise PC Constatons 1 impact sur le cover plastique proche de la prise PC (en partie basse). Voir stanadrd doc. Demandons intervention. | H42: Retouche peinture à faire | K42: O | L42: 2019-04-18
A43: CI | B43: A330 | C43: 1937 | D43: NC | E43: 206443046 | F43: B/C: Seat 3A: Plastic inclusion / deform Constatons une déformation positive du Backshell, proche de lidentification rang de siège "3A". Voir standard doc. | H43: WAITING CL | K43: O | L43: 2019-04-18
A44: CI | B44: A330 | C44: 1937 | D44: NC | E44: 206440094 | F44: rayure coté couloir En cabine zone 1 coté droit sur siege B/C 1H Nous constatons une rayure coté couloir Voir flamme et standard doc demandons intervention | H44: WAITING CL | K44: O | L44: 2019-04-18
A45: CI | B45: A330 | C45: 1937 | D45: NC | E45: 206441541 | F45: Rayures sur cuir stowage siege B/C En cabine zone 1 axe avion sur siege B/C 6D Nous constatons que le cuir de la porte du stowage sur la console est rayé | H45: 16/05 Nettoyage porte + nourrit au lait/ non-concluant à commander | J45: JMS | K45: O | L45: 2019-04-18
A46: CI | B46: A330 | C46: 1937 | D46: NC | E46: 206414465 | F46: Eclairage stowage siège 5A INOP Lors de lessai sièges couchettes, nous constatons que sur le siège 5A leclairage du compartiment stowage est Inop. | G46: STELIA | H46: 15/0 NFF 16/04 Rejeté la lumière reste allumer que la porte sois ouverte ou fermé 06/06 Recherche panne + Recollage de la plaque + ajustement + découpe déco mal fait+ | I46: EN COMMANDE FJNS3-2R0364A01 | J46: JBDT/ATE/TBE | K46: F | L46: 2019-04-10 | M46: 2019-06-06 | Y46: 3
A47: CI | B47: A330 | C47: 1937 | D47: EQLB | E47: LR.1937-0280 | F47: Cab B/C seat 7E cover panel disformed | H47: WAITING CL | K47: O | L47: 2019-04-19
A48: CI | B48: A330 | C48: 1937 | D48: EQLB | E48: LR.1937-0229 | F48: Cab B/C seat 5 A panel impacted | H48: WAITING CL | K48: O | L48: 2019-04-19
A49: CI | B49: A330 | C49: 1861 | D49: EQLB | E49: LR.1861-0042 | F49: CABIN BC in front of S1A metalic plate ratling (FAI item) | G49: AIRBUS | K49: F | L49: 2019-02-18 | M49: 2019-06-19
A50: CI | B50: A330 | C50: 1861 | D50: EQLB | E50: LR.1861-0038 | F50: CABIN BC Between S5C/F on backrest top of divider guide LH side damaged | G50: AIRBUS | K50: O | L50: 2019-02-18
A51: CI | B51: A330 | C51: 1861 | D51: EQLB | E51: LR.1861-0037 | F51: CABIN BC S8H inside the 2 aisle compt spring is bent | G51: STELIA | K51: f | L51: 2019-02-18 | M51: 2019-06-19
A52: CI | B52: A330 | C52: 1861 | D52: AM | E52: 9640949 | F52: ZONE1,MAIN DECK,SEAT,RIGHT ZONE1,De Cadre 28 à 29 En cabine, zone B/C, nous constatons que la prise du port USB (nferieur) du siège 7H est manquante. Demandons intervention. | G52: IFE ZODIAC | I52: RDFA6014-01 | K52: f | L52: 2019-02-13 | M52: 2019-06-19
A53: CI | B53: A330 | C53: 1937 | D53: NC | E53: 206519267 | F53: Siege 1H BC housse tachée ion / cleanliness Lors de linspection en cabine visite client En zone 1 côté droit sur le siège 1H B/C Le défaut: la housse du dossier et taché Voir standard doc de la zone Demandons intervention. | G53: AIRBUS | I53: 10/06 Commande Housse de siège : FJNS3-1SB601-01 | K53: O | L53: 2019-05-20
A54: CI | B54: A330 | C54: 1937 | D54: NC | E54: 206522957 | F54: PLACARDS INSTALLATION ON B/C SEATS ACI02 NC issued further to SM940095A Work to be performed by STELIA Field Support. - Point 1: On all B/C seats, please replace the "No stowage" pictogram P/N FJNS3-1M0301-01 sticked on rear padding by a "No stowage" placard P/N FJNS3-3M0306-01.See sheet 4_001 -Point 2: On all B/C seats, please relocate the placard P/N FJNS3- 1M0302-01 to be aligned to lower edge of SVDU.See shett 4_002 Required parts: Placards P/N FJNS3-3M0306-01 (qty 26) Placards P/N FJNS3-1M0302-01 (qty 26) | G54: STELIA | H54: 06/06 Collage des etiquettes | J54: RTK/JBDT | K54: F | L54: 2019-05-21 | M54: 2019-06-06 | Y54: 5.5
A55: CI | B55: A330 | C55: 1938 | D55: NC | E55: 206517580 | F55: Gresillements lors du lancement IFE Lors des essais IFE, nous constatons que le son gresille lors de la VA ainsi que la Video Entertainement. | H55: 21/05 essaie de l'IFE | K55: O | L55: 2019-05-20
A56: CI | B56: A330 | C56: 1938 | D56: NC | E56: 206522840 | F56: Puces manquantes pour sièges En Zone 1, centrale droite, nous constatons quil manque les puces didentification des sièges suivant : 1 central droit 3 central droit 5 central droit 6 central droit 8 central droit Demandons intervention - | G56: AIRBUS | K56: f | L56: 2019-05-21
A57: CI | B57: A330 | C57: 1938 | D57: NC | E57: 206523028 | F57: PLACARDS INSTALLATION ON B/C SEATS ACI02 NC issued further to SM940095A Work to be performed by STELIA Field Support. Area 1: B/C seats area: - Point 1: On all B/C seats, please replace the "No stowage" pictogram P/N FJNS3-1M0301-01 sticked on rear padding by a "No stowage" placard P/N FJNS3-3M0306-01.See sheet 4_001 -Point 2: On all B/C seats, please relocate the placard P/N FJNS3- 1M0302-01 to be aligned to lower edge of SVDU.See shett 4_002 Required parts: Placards P/N FJNS3-3M0306-01 (qty 26) Placards P/N FJNS3-1M0302-01 (qty 26) | H57: 11/06 Changement des étiquettes Manque 3 Ettiquetttes | I57: En commande | J57: RTK/ATE | K57: o | L57: 2019-05-21 | M57: 2019-06-12 | AD57: 16
A58: CI | B58: A330 | C58: 1938 | D58: EQLB | E58: LR.1938-0168 | F58: Cabin BC all seats Sealant on shell cracked | G58: STELIA | H58: 11/06 Reprise joint silicone | J58: TDT | K58: F | L58: 2019-05-20 | M58: 2019-06-11 | AD58: 4.5
A59: CI | B59: A330 | C59: 1938 | D59: EQLB | E59: LR.1938-0154 | F59: Cabin BC seat 1D fwd bumpers Bumpers loose and not flush | G59: AIRBUS | H59: 11/06 Le bumper à été fixer | K59: F | L59: 2019-05-20 | M59: 2019-06-11 | AD59: 0.5
A60: CI | B60: A330 | C60: 1938 | D60: EQLB | E60: LR.1938-0152 | F60: Cabin BC seat 1D rear otoman Step on cover | G60: OTHER | H60: A VOIR OU CL | K60: F | L60: 2019-05-20 | M60: 2019-06-11 | Z60: 1
A61: CI | B61: A330 | C61: 1938 | D61: EQLB | E61: LR.1938-0153 | F61: Cabin BC seat 1D rear table Deco film unstuck on table top | H61: 11/06 Déco impacter vois ci changement tablette | I61: Meal table / BA710294-006 | J61: JBDT | K61: o | L61: 2019-05-20 | AD61: 0.5
A62: CI | B62: A330 | C62: 1938 | D62: EQLB | E62: LR.1938-0157 | F62: Cabin BC seat 1E aisle grey frame Scratch on frame | G62: AIRBUS | H62: 11/06 Ponçage / protection + retouche peinture | J62: JBDT | K62: F | L62: 2019-05-20 | M62: 2019-06-11 | AD62: 1
A63: CI | B63: A330 | C63: 1938 | D63: EQLB | E63: LR.1938-0160 | F63: Cabin BC seat 2A aisle cover | H63: 26/06 Velcro remis | J63: ATE | K63: F | L63: 2019-05-20 | M63: 2019-06-26 | Z63: 1 | AS63: 1.5
A64: CI | B64: A330 | C64: 1938 | D64: EQLB | E64: LR.1938-0171 | F64: Cabin BC seat 2D/5E/6A /6H rear shell cover close to screen Cover not fasten | G64: STELIA | H64: 11/06 Le profil a été recollé 12/06 Rejeté " Coque arrière 2D / 5E / 6A / 6H PLUS PLUS 3E et 5A près du pare-soleil Couver pas attacher" 26/06 Repris au double face | J64: TDT | K64: F | L64: 2019-05-20 | M64: 2019-06-26 | AD64: 1
A65: CI | B65: A330 | C65: 1938 | D65: EQLB | E65: LR.1938-0161 | F65: Cabin BC seat 2H shell pading Padding unstuck on outboard side | G65: STELIA | H65: 11/06 Paddingrepositionner au mieux possible | K65: F | L65: 2019-05-20 | M65: 2019-06-11 | AD65: 0.5
A66: CI | B66: A330 | C66: 1938 | D66: EQLB | E66: LR.1938-0176 | F66: Cabin BC seat 5A rear otoman Inside ottoman cover lh side Inclusion in paint | H66: 11/06 Défaut sur panneau NPRF | J66: JBDT | K66: o | L66: 2019-05-20 | AD66: 0.5
A67: CI | B67: A330 | C67: 1938 | D67: EQLB | E67: LR.1938-0145 | F67: Cabin BC seat 5A rear screen Scratch on lower edge cover | G67: AIRBUS | H67: 11/06 Ponçage / protection + retouche peinture | J67: JBDT | K67: F | L67: 2019-05-20 | M67: 2019-06-11 | AD67: 1
A68: CI | B68: A330 | C68: 1938 | D68: EQLB | E68: LR.1938-0165 | F68: Cabin BC seat 5D Seat pan cover deffect on fabric | G68: OTHER | H68: 11/06 Nettoyageassise | J68: JBDT | K68: F | L68: 2019-05-20 | M68: 2019-06-11 | AD68: 0.5
A69: CI | B69: A330 | C69: 1938 | D69: EQLB | E69: LR.1938-0166 | F69: Cabin BC seat 5D RH cover Cover not fasten | G69: STELIA | H69: A REPRENDRE | K69: o | L69: 2019-05-20 | M69: 2019-06-11 | Z69: 1
A70: CI | B70: A330 | C70: 1938 | D70: EQLB | E70: LR.1938-0167 | F70: Cabin BC seat 5H LH armrest Deffect on paint | G70: AIRBUS | H70: 11/06 Protection + retrouche peinture | J70: JBDT | K70: F | L70: 2019-05-20 | M70: 2019-06-11 | AD70: 0.5
A71: CI | B71: A330 | C71: 1938 | D71: EQLB | E71: LR.1938-0169 | F71: Cabin BC seat 6A Rear side of seat outboard profile below screen Gap too big | H71: 26/06 Repris au double face | K71: F | L71: 2019-05-20 | M71: 2019-06-26
A72: CI | B72: A330 | C72: 1938 | D72: EQLB | E72: LR.1938-0173 | F72: Cabin BC seat 6A aisle profile Profile scratched | H72: 11/06 Pas la bonne couleur retocuhe non correct | J72: JBDT | K72: o | L72: 2019-05-20 | AD72: 0.5
A73: CI | B73: A330 | C73: 1938 | D73: EQLB | E73: LR.1938-0170 | F73: Cabin BC seat 6A rear otoman Ottoman not correctly installed | G73: AIRBUS | H73: 11/06 Cuir repositionné | J73: JBDT | K73: F | L73: 2019-05-20 | M73: 2019-06-11 | Z73: 1 | AE73: 0.5
A74: CI | B74: A330 | C74: 1938 | D74: EQLB | E74: LR.1938-0142 | F74: Cabin BC seat 6D aisle placard Placard 6D damaged | H74: ATTENTE PIECE | I74: FJNS3-1M1011-01 Recu le 27/06 | K74: o | L74: 2019-05-20
A75: CI | B75: A330 | C75: 1938 | D75: EQLB | E75: LR.1938-0175 | F75: Cabin BC seat 6D aisle upper cover Cover not correctly adjusted | G75: OTHER | H75: VOIR SI CL | K75: F | L75: 2019-05-20 | M75: 2019-06-11 | Z75: 1
A76: CI | B76: A330 | C76: 1938 | D76: EQLB | E76: LR.1938-0172 | F76: Cabin BC seat 7H aisle profile Scratch on profile corner | H76: RETOUCHE PEINTURE | K76: o | L76: 2019-05-20
A77: CI | B77: A330 | C77: 1938 | D77: EQLB | E77: LR.1938-0147 | F77: Cabin BC seat 8E shell padding Leather padding marked | G77: AIRBUS | H77: 11/06 Le padding a été marouflé | J77: JBDT | K77: F | L77: 2019-05-20 | M77: 2019-06-11 | AD77: 0.5
A78: CI | B78: A330 | C78: 1938 | D78: EQLB | E78: LR.1938-0189 | F78: cabin BC seat 8D top profile mark on profile | G78: AIRBUS | H78: 11/06 Nettoyage de la trim | J78: JBDT | K78: F | L78: 2019-05-20 | M78: 2019-06-11 | AD78: 0.5
A79: CI | B79: A350 | C79: 327 | D79: EQLB | E79: XW,0327-0108 | F79: CAB, BC, S1A, 1E, 1F, 2A, 2C, 2J, 3J, 3E, ARMREST LOOSE. | H79: 19/06 Ajustement avec cale en teflon | J79: ESI | K79: F | L79: 2019-05-22 | M79: 2019-06-19 | AL79: 3
A80: CI | B80: A350 | C80: 327 | D80: EQLB | E80: XW,0327-0106 | F80: CAB, BC, S1A, 2J, SHAFFING NOISE DURING MOTION. | H80: 19/06 Ajustement du capot lateral | I80: EN COMMANDE le 19/06 FJEQ3-1N3100-02 | J80: ESI | K80: F | L80: 2019-05-22 | M80: 2019-06-19 | AL80: 1
A81: CI | B81: A350 | C81: 327 | D81: EQLB | E81: XW,0327-0077 | F81: CAB, BC, CENTRAL OTTOMAN, SEAL BAD INSTALLATION. | H81: 23/05 Le joint a été correctement installé 28/05 Rework refusé 19/06 Joint ajusté | J81: ESI | K81: F | L81: 2019-05-22 | M81: 2019-06-19 | N81: 1 | AL81: 1
A82: CI | B82: A350 | C82: 335 | D82: EQLB | E82: XW,0335-0167 | F82: CAB , BC , SEATS 5A/4G , BACKSHELL , RHS , NUMBER SEAT STICKER : STICKER IS MISSING | G82: AIRBUS | I82: CQAZ1-1M0001-01 FJSL4-1M1065-31 RECU LE 18/06 | K82: O | L82: 2019-05-23
A83: CI | B83: A330 | C83: 1937 | D83: EQLB | E83: LR,1937-0251 | F83: Cab B/C seat 6E cover panel below foot rest not installed correctly | K83: O | L83: 2019-04-19
A84: CI | B84: A330 | C84: 1937 | D84: EQLB | E84: LR.1937-0253 | F84: Cab B/C seat 5E lower cover panel damaged below foot rest | H84: 28/05 Reopen CL refusé | K84: O | L84: 2019-04-19 | M84: 2019-04-24 | N84: 3
A85: CI | B85: A350 | C85: 328 | D85: Nc | E85: 206553647 | F85: Au cours de l’inspection P20 J1 du WP B/C SEAT. Nous avons remarqué un defaut sur le monument , Backshell , Coveri ng surface.Comment :During B/C seat inspection we note a scratch on backshell under armrest in lower part seat 20D. Please to put in conformity See attached file | H85: 03/06 La pièce a été nettoyer | K85: F | L85: 2019-05-31 | M85: 2019-06-03 | V85: 0.5
A86: CI | B86: A350 | C86: 328 | D86: Nc | E86: 206553576 | F86: Au cours de l’inspection P20 J1 du WP B/C SEAT. Nous avons remarqué un defaut sur le monument 11A, Backshell , Cov ering surface.Comment :During B/C seat inspection, we note an impact on seat 11A. Please to rework. See attached file | G86: AIRBUS | H86: 12/06 Dépose diver ottoman + siège + repose panel | I86: FJSA2-1N2092-02 | J86: TDT/RTK | K86: F | L86: 2019-05-31 | M86: 2019-06-12 | AE86: 10
A87: CI | B87: A350 | C87: 322 | D87: Nc | E87: 206548344 | F87: FOAM ON CEILING FRM1A RH CABIN FR 20-21 AXIS RH STOWAGE FRM1A THE FOAM ON LATERAL CEILING SJSA2-1N2100-02 IS BROKEN. Ask intervention for return to the conformity. | H87: 14/05 Pelemet récupéré + joint changer + pelmet fournie au poste | I87: SB01-016-005-04 | J87: JBDT | K87: F | L87: 2019-05-28 | M87: 2019-06-14 | AG87: 1.5
A88: CI | B88: A350 | C88: 322 | D88: EQLB | E88: XW.0322-0094 | F88: CAB, BC, SEATS 14K, 17K, 19K, 21A, 21K , 16A, 15A 12D, 15D, 16D, 17D, 19D, 20D, 21D, 21F, 20F, 18F, 17F, 15F, 14F, 11F: NOISY (CREAKING SOUNDS) WHEN GOING TO AND FROM BED POSITION | G88: STELIA | H88: 18/06 Parapluie repositionner correctement + Bas de coque ponçer (ajuster au mieux) 19/06 Bruit parapleui ajuster au mieux mais reste légèrement present 19/06 Ajusté | J88: JBDT | K88: F | L88: 2019-06-17 | M88: 2019-06-20 | N88: =IF(OR(L88="",M88=""),"",IF(NETWORKDAYS(L88,M88)-1>=0,NETWORKDAYS(L88,M88)-1,0)) -> 3 | O88: REOPEN | AK88: 1 | AL88: 0.5
A89: CI | B89: A330 | C89: 1937 | D89: EQLB | E89: LR.1937-0223 | F89: Cab B/C stowage door doesn t work correctly on several seat 3A, 1E, 7D | G89: AIRBUS | H89: 02/05 Porte ajusté 15/05 Rejeté " la porte de rangement du siège 3A ne fonctionne toujours pas correctement à l'ouverture" 06/06 Essaie lubrification + recherche panne 07/06 Porte ajusté | K89: f | L89: 2019-04-19 | M89: 2019-06-06 | Y89: 1
A90: CI | B90: A330 | C90: 1937 | D90: EQLB | E90: LR.1937-0281 | F90: Cab all B/C seat customer request to removed placard FJNS3-1M0301-01 because to much visible | G90: Other | H90: 24/04 Fermer CL 20/05 "Rejeté "Please applied SM D940095.A" 06/06 Etiquette installé | I90: Attente appro | K90: F | L90: 2019-04-19 | M90: 2019-06-07 | Y90: 0.5
A91: CI | B91: A330 | C91: 1937 | D91: EQLB | E91: LR.1937-0252 | F91: Cab B/C seat 5E cover panel disbonded | G91: STELIA | H91: 10/05démontage / Double face mis en place/remontage 15/05 Rejeté "panneau de couverture reste décollé" 06/06 cover fixé | J91: ESI/JMS/ | K91: F | L91: 2019-04-19 | M91: 2019-06-06 | Y91: 1
A92: CI | B92: A330 | C92: 1937 | D92: EQLB | E92: LR.1937-0268 | F92: Cab B/C seat 3 D and 3 E cover panel are disbonded close screen | G92: AIRBUS | H92: 28/05 CL Rejeté 06/06 Panneau ajusté | K92: F | L92: 2019-04-19 | M92: 2019-06-06 | Y92: 1
A93: CI | B93: A330 | C93: 1937 | D93: EQLB | E93: LR.1937-0220 | F93: Cab B/C seat gap visible on padding on several seat 1D, 2D, 3D, 5D, 6D, 7D, 8D | G93: STELIA | H93: 10/05 Ajustement padding 17/05 Rejeté "Gap toujours visible 20/05 Ajustement des gaps 05/06 Ajustement des paddings 24/06 Checkk gap + recollage padding | J93: TBE/RTK | K93: F | L93: 2019-04-19 | M93: 2019-06-05 | X93: 2 | AQ93: 4
A94: CI | B94: A330 | C94: 1937 | D94: EQLB | E94: LR.1937-0222 | F94: Cab B/C gap visible on padding on several seat 2H, 5H,7H | G94: STELIA | H94: 02/05 Padding ajusté 15/05 Rejeté "gap toujours visible et inclure le 3H" 05/06 Gap repris | K94: f | L94: 2019-04-19 | M94: 2019-06-05
A95: CI | B95: A330 | C95: 1937 | D95: EQLB | E95: LR.1937-0221 | F95: Cab B/C gap visible on padding on several seat 1A, 2A, 3A, 5A, 6A, 7A, | G95: STELIA | H95: 10/05 Ajustement padding 17/05 Rejeté "Gap toujours visible 05/06 Ajustement Padding | J95: RTK/JMS/ESI | K95: F | L95: 2019-04-19 | M95: 2019-06-05 | X95: 2
A96: CI | B96: A330 | C96: 1937 | D96: EQLB | E96: LR.1937-0278 | F96: Cab B/C aliminium profil disbonded on several seat 6E, 7E, 3D, 6D, 7A, 2A | G96: STELIA | H96: 17/05 Joint blanc effectué + nettoyage 27/05 Rejeté 6E et 7A profilé decolllé 05/06 6E et 7a repris 26/06 Recolé | J96: JBDT/RTK | K96: F | L96: 2019-04-19 | M96: 2019-06-26 | X96: 2
A97: CI | B97: A330 | C97: 1938 | D97: EQLB | E97: LR.1938-0144 | F97: Cabin BC seat 1A/3A/6A/1D/3D/6D/8D/2E/5E/7E/2H/5H/8H Jack plug installed upside down | H97: 03/06 Fermer avec le plan | K97: F | L97: 2019-05-20 | M97: 2019-06-03
A98: CI | B98: A350 | C98: 322 | D98: Nc | E98: 206424323 | F98: During inspection P20 J2 of WP B/C SEAT, we notice a defect on mon ument , Ottoman, Seal. Au cours de l’inspection P20 J2 du WP B/C SEAT. Nous avons remarqué un defaut sur le monument , Ottoman, Seal. | G98: AIRBUS | H98: 04/06 Joint inter stowage changé ( perte de temp attente derichbourg depose ottoman) | I98: EN COMMANDE SJSA-150715-01 | J98: JBDT/RTK | K98: F | L98: 2019-04-12 | M98: 2019-06-06 | W98: 5
A99: CI | B99: A350 | C99: 328 | D99: I-Nc | E99: 206214268 | F99: V-Inc-AR-PbAspect-B/CS-noQP The leather of the inner movable armrest is wrinkled following GCA point 2 page 38 SN 362 - 378 - 382 - 375 - 364 - 386 - 390 - 367 | G99: STELIA | H99: 04/06 Le cuir a été instalé correctement | K99: F | L99: 2019-03-06 | M99: 2019-06-04 | W99: 0.5
A100: CI | B100: A350 | C100: 328 | D100: I-Nc | E100: 206214260 | F100: V-Inc-AR-Damage-B/CS-QP-BCS-4409-3565 Impact on the meal table corner QP-BCS-4409-3565 GCA point 2 page 37 SN 365 - 363 - 385 | G100: STELIA | H100: 03/06 Le bumper a été changer | I100: RECU ST43-3450 | J100: TBE | K100: F | L100: 2019-03-06 | M100: 2019-06-03 | V100: 0.5
A101: CI | B101: A350 | C101: 328 | D101: Nc | E101: 206349894 | F101: DAM - FRM - Z2 Type of nonconformity: Impact At reception, we notice that the FRM item 1, zone 2, frames 19/20 left side is damaged on the trim. We ask given in conformity. See standrd doc | G101: STELIA | H101: 03/06 Retouche peinture 04/06 Rejeté 06/06 retouche peniture reprise. | J101: TBE | K101: f | L101: 2019-03-20 | M101: 2019-06-06 | V101: 0.5 | Y101: 0.75
A102: CI | B102: A350 | C102: 328 | D102: Nc | E102: 206371507 | F102: At the time of the reception of the finishing parts B/C seats, zone 2, we notice that the console cover (PN: FJSA1-1N2180-02), frame 27/28, a/c axis (right side), is broken on the seat F, row 15. | G102: OTHER | H102: 03/06 La consolle basse a été changer | I102: RECU SJSA1-1N2180-02 | J102: TBE | K102: F | L102: 2019-03-28 | M102: 2019-06-03 | V102: 0.5
A103: CI | B103: A350 | C103: 328 | D103: Nc | E103: 206375708 | F103: During connexion of seat to seat on B/C, area 4, frame 41/42, right side, we notice that it is impossible for us to position the four cable of seat 20K in the 3 green supports (support too small). | G103: STELIA | H103: 03/06 Le support a été instalé | K103: F | L103: 2019-03-28 | M103: 2019-06-03 | O103: REOPEN
A104: CI | B104: A350 | C104: 328 | D104: Nc | E104: 206380500 | F104: MISS - FIP.BCS - AREA 2 During installation finishing parts of B/C seats,item 30, area 2, fr.41/42, left side, we notice that one washer and one fasten are missing on the fixing of vertical shroud (seat A, row 20). - PN PART: FJSA1-1N2091-01. | G104: AIRBUS | H104: 04/06 La fixation à été repris | K104: F | L104: 2019-04-01 | M104: 2019-06-04 | W104: 0.5
A105: CI | B105: A350 | C105: 328 | D105: Nc | E105: 206409626 | F105: During security visit before installation of the pelmet, we notice that the bonding inter FNT GD58 / GD57 are not connected. This NC has been created following the NC 206315428 (MSN 322). Please see the MAP assessment. | G105: STELIA | H105: 03/06 La masse a été connecté | K105: f | L105: 2019-04-09 | M105: 2019-06-03 | V105: 0.5
A106: CI | B106: A350 | C106: 328 | D106: Nc | E106: 206354823 | F106: At reception of ottoman zone 2, frames 20/21 axis A/C, we notice that 2 rivet are missing on lateral seal of the item 2 (RHS). We ask given in conformity. | G106: STELIA | H106: 25/03 Joint re-installé correctement 26/03 Rivet instalé 29/03 Joinr ajusté et collé 03/06 Joint instalé correctement | J106: TBE | K106: F | L106: 2019-03-20 | M106: 2019-06-03 | V106: 0.5
A107: CI | B107: A330 | C107: 1937 | D107: EQLB | E107: LR.1937-0260 | F107: Cab all B/C seat head speaker plug not installed correctly on several set for information seat 1E seems ok and seat 1 D not ok | G107: AIRBUS | H107: 02/06 Apres verification As per design 06/06 hauut-parleur instalé correctement + trajet | K107: f | L107: 2019-04-19 | M107: 2019-06-06 | Y107: 1
A108: CI | B108: A330 | C108: 1947 | D108: I-Nc | E108: 206548277 | F108: P/N : FJNS3-1GA104-01 S/N : 121 Kind of defect : Bad surface aspect * Scratche on the meal table * * According to M2831D chapiter 3p39 * | I108: Commander le 17/06 BA710310-003 NDD | K108: O | L108: 2019-05-28
A109: CI | B109: A330 | C109: 1947 | D109: I-Nc | E109: 206548183 | F109: V-Inc-AR-PbAspect-B/CS-noQP s P/N : FJNS3-1GA104-01 S/N : 120 Kind of defect : Finishing and cosmetic aspect ************************************************************ * Bad finishings on cocktail table * ************************************************************ | G109: STELIA | H109: 07/06 Le silicone a été nettoyé | K109: F | L109: 2019-05-28 | M109: 2019-06-11 | Z109: 1
A110: CI | B110: A330 | C110: 1947 | D110: I-Nc | E110: 206548121 | F110: P/N : FJNS3-1GA203-01 S/N : 125 Kind of defect : Non conforming assembly ************************************************************ * Fixed in panel IFE Handset is loose * ************************************************************ Moment of detection : During Incoming Inspection -------------------------------------- | G110: STELIA | K110: F | L110: 2019-05-28 | M110: 2019-06-11 | Z110: 1
A111: CI | B111: A330 | C111: 1923 | D111: I-Nc | E111: 206547963 | F111: P/N : SJNS3-1V7101-01 S/N : 4 Row : 1 Kind of defect : Finishing and cosmetic aspect ************************************************************ "Panel behind video monitor have bad finishings at * junction between cover and trim M2831.D Chapter 2.5 * P18" * ************************************************************ | K111: O | L111: 2019-05-28
A112: CI | B112: A330 | C112: 1923 | D112: I-Nc | E112: 206547826 | F112: Location : Incoming Item : B/c seat P/N : FJNS3-1V7102-01 S/N : 37 Row : 5A Kind of defect : Damage ************************************************************ Mark on top edge of video shroud * M2831.D Chapter 3 Page 47 * | K112: O | L112: 2019-05-28
A113: CI | B113: A330 | C113: 1923 | D113: I-Nc | E113: 206547824 | F113: P/N : FJNS3-17401-01 S/N : 61 Kind of defect : Damage ************************************************************ "Under trim backshell, panel scratched above the * reading light. * M2831.D Chapter 3p39" * | K113: O | L113: 2019-05-28
A114: CI | B114: A330 | C114: 1923 | D114: I-Nc | E114: 206547820 | F114: P/N : FJNS3-1V7202-01 S/N : 47 P/N : FJNS3-1V7102-01 S/N : 35 P/N : FJNS3-1V7301-01 S/N : 53 P/N : FJNS3-1V7402-01 S/N : 62 P/N : SJNS3-1V7301-01 S/N : 06 Kind of defect : Damage ************************************************************ "Trim of monitor scratched. * M2831.D Chapter 3 p39" * ************************************************************ | K114: O | L114: 2019-05-28
A115: CI | B115: A330 | C115: 1923 | D115: I-Nc | E115: 206547707 | F115: P/N : FJNS3-1V7402-01 S/N : 58 P/N : FJNS3-1V7102-01 S/N : 39 P/N : FJNS3-1V7102-01 S/N : 35 P/N : FJNS3-1V7301-01 S/N : 51 P/N : FJNS3-1V7201-01 S/N : 42 Row : 2H P/N : FJNS3-1V7302-01 S/N : 50 Row : 2D Kind of defect : Damage ************************************************************ "Scratch on Meal table trim * (5mn) * M2831.D Chapter 3 Page 39" * | K115: O | L115: 2019-05-28
A116: CI | B116: A330 | C116: 1923 | D116: I-Nc | E116: 206547702 | F116: P/N : FJNS3-1V7202-03 S/N : 41 P/N : FJNS3-1V7402-01 S/N : 58 P/N : FJNS3-1V7201-01 S/N : 46 P/N : FJNS3-1V7401-01 S/N : 69 P/N : FJNS3-1V7102-01 S/N : 35 Kind of defect : Damage ************************************************************ "Panel under console button scratched. * M2831.D Chapter 3p39" * ************************************************************ | H116: 19/06 Retouche peinture | J116: TBE | K116: O | L116: 2019-05-28 | AL116: 1
A117: CI | B117: A330 | C117: 1923 | D117: I-Nc | E117: 206547625 | F117: P/N : FJNS3-1V7101-01 S/N : 36 P/N : FJNS3-1V7401-03 S/N : 57 P/N : FJNS3-1V7401-01 S/N : 59 P/N : FJNS3-1V7301-01 S/N : 53 P/N : FJNS3-1V7201-01 S/N : 44 P/N : FJNS3-1V7202-01 S/N : 43 P/N : FJNS3-1V7301-01 S/N : 51 P/N : FJNS3-1V7102-03 S/N : 33 P/N : FJNS3-1V7306-01 S/N : 56 Row : 8D P/N : FJNS3-1V7302-01 S/N : 52 Row : 11D P/N : FJSN3-1V7302-01 S/N : 50 Row : 2D Kind of defect : Finishing and cosmetic aspect ************************************************************ "Backrest leather have wrinckles M2831.D Chapter 3.34 * Page 60" * ********************************************************** | K117: O | L117: 2019-05-28
A118: CI | B118: A330 | C118: 1923 | D118: I-Nc | E118: 206547622 | F118: P/N : FJNS3-1V7101-01 S/N : 36 P/N : FJNS3-1V7101-01 S/N : 34 Kind of defect : Non conforming assembly ************************************************************ "Red cover behind backrest debonded M2831.D Chapter * 3.9" * ************************************************************ | G118: STELIA | H118: 11/06 Padding ajusté | J118: RTK | K118: F | L118: 2019-05-28 | M118: 2019-06-11 | AD118: 0.5
A119: CI | B119: A350 | C119: 335 | D119: Nc | E119: 206500862 | F119: Nous avons remarqué un defaut sur le monument 2G, Backshell , Cove ring surface.Comment : During jalon 1, zone 2, B/C, RH, CTR, LH, we noticed the color dispatch on four seats. C20/21 RH Ottoman C23/25 CTR RH seat row 2G C27/29 RH Seat row 4K C31/33 RH seat row 6K | G119: AIRBUS | H119: 23/05 Fermer as per design / no criteria 06/06 After check as per design | K119: F | L119: 2019-05-14 | M119: 2019-06-07 | N119: =IF(OR(L119="",M119=""),"",IF(NETWORKDAYS(L119,M119)-1>=0,NETWORKDAYS(L119,M119)-1,0)) -> 18 | Y119: 0.25
A120: CI | B120: A330 | C120: 1923 | D120: Gamme | E120: AG00-004590 | F120: MISSING DIVIDER TO BE INSTALL EA Description: SINGLE SEAT BC OSW Descr: MISSING DIVIDER TO BE INSTALL Part Descr: PASSENGER SEAT SGL EA PNR: FJNS3-1V7401-01 EA PNR: FJNS3-1V7401-03 EA SerNr.: 63 – 61 – 59 EA SerNr.: 57 ADD BLACK PEN "B" AMENDMENT ON LABEL EA Description: SINGLE SEAT BC OSW Descr: ADD BLACK PEN "B" AMENDMENT ON LABEL Part Descr: PASSENGER SEAT SGL EA PNR: FJNS3-1V7401-01 Part Descr: PASSENGER SEAT SGL EA SerNr.: 61 – 59 – 63 EA SerNr.: 57 | H120: 19/06 Montage de dividers et marquage ammendement | J120: TDT/RTK | K120: f | L120: 2019-05-22 | M120: 2019-06-19 | AL120: 3.5
A121: CI | B121: A330 | C121: 1947 | D121: Gamme | E121: AG00-004592 | F121: OSW Descr: MISSING DIVIDER TO BE INSTALL Part Descr: PASSENGER SEAT SGL EA PNR: FJNS3-1GA403-03 EA SerNr.: 137 | I121: PAS ENCORE RECU | K121: O | L121: 2019-05-23
A122: CI | B122: A330 | C122: 1937 | D122: EQLB | E122: LR.1937-0230 | F122: Cabin all B/C seat placard FJNS3-1M0302-01 to mutch visible | G122: OTHER | H122: 06/05 Etiquette posé | I122: RECU FJNS3-1M0302-01 | K122: F | L122: 2019-04-19 | M122: 2019-06-06 | N122: =IF(OR(L122="",M122=""),"",IF(NETWORKDAYS(L122,M122)-1>=0,NETWORKDAYS(L122,M122)-1,0)) -> 34 | Y122: 0.5
A123: CI | B123: A350 | C123: 316 | D123: TLB | E123: MID_355 | F123: CID-47: CABIN BC SEAT 17 D : Tamper seal is missing. | G123: AIRBUS | H123: Fournie au poste | K123: f | L123: 2019-06-04 | M123: 2019-06-04 | W123: 0.5
A124: CI | B124: A350 | C124: 316 | D124: EQLB | E124: MID_336 / CID-28 | F124: CID-28: The Fasten seat belt¿ placard PN FJSA1-1M0134-01 is missing on BC seat 19A. You can find enclosed picture of 19A where placard is missing as well as picture of seat with placards on seat 19K. | H124: 03/06 Etiquette posées | J124: TBE | K124: F | L124: 2019-06-03 | M124: 2019-06-03 | V124: 0.5
A125: CI | B125: A350 | C125: 316 | D125: EQLB | E125: MID_335 / CID-27 | F125: CID-27: The load limit placards are missing in compartment part of BC Ottoman at seats 21D and 21F. You can find enclosed pictures of door with no placard, as well as door with LOAD LIMIT placard installed on seat 18D. | H125: 03/06 Etiquette posées | J125: TBE | K125: F | L125: 2019-06-03 | M125: 2019-06-03 | V125: 1
A126: CI | B126: A350 | C126: 316 | D126: EQLB | E126: XW.0316-0197 | F126: CAB, BC, SEAT 11A, AMENITY STWG CMPT: DOOR IS STIFF TO CLOSE. | H126: 03/06 Porte lubrifié | J126: JBDT | K126: F | L126: 2019-06-03 | M126: 2019-06-04 | V126: 0.5
A127: CI | B127: A350 | C127: 316 | D127: EQLB | E127: XW.0316-0202 | F127: CAB, BC, SEAT 12D / 16D, MONITOR SHROUD, ON TOP: PAINT MISMATCH IS VISIBLE AROUND HOLES. | H127: 03/06 retouche peinture + ouverture et fermeture zone ecran 05/06 Retouche peinture | J127: JBDT | K127: F | L127: 2019-06-03 | M127: 2019-06-04 | V127: 1.5 | X127: 1
A128: CI | B128: A350 | C128: 316 | D128: EQLB | E128: XW.0316-0212 | F128: CAB, BC, ALL CENTRAL SEATS, AFT PARTS, DIVIDING PANEL: FOAMS ARE WAVY. | G128: OTHER | H128: 06/06 Fermer CL | K128: f | L128: 2019-06-03 | M128: 2019-06-06
A129: CI | B129: A350 | C129: 316 | D129: EQLB | E129: XW.0316-0217 | F129: CAB, BC, SEAT 18D, BACK CUSHION, INBD SIDE: LEATHER IS DAMAGED. | H129: 03/06 Reprise teinture | J129: RTK | K129: F | L129: 2019-06-03 | M129: 2019-06-04 | V129: 0.5
A130: CI | B130: A350 | C130: 316 | D130: EQLB | E130: XW.0316-0266 | F130: CAB, BC, ALL SEATS, GREEN COMMITMENT STICKERS: PLEASE REMOVE AND CLEAN ALL STICKERS FROM BC AREA. | H130: 03/06 Etiquette enlever + nettoyage all seat | J130: JBDT/RTK | K130: F | L130: 2019-06-03 | M130: 2019-06-04 | V130: 2
A131: CI | B131: A350 | C131: 316 | D131: EQLB | E131: XW.0316-0198 | F131: CAB, BC, SEAT 11A, SEAT MOTION: SEAT DOES NOT GO FULLY TO BED POSITION, SEAT IS NOT FULLY FLAT | H131: 04/06 Cover refixer | K131: f | L131: 2019-06-03 | M131: 2019-06-05 | W131: 0.5
A132: CI | B132: A350 | C132: 316 | D132: EQLB | E132: XW.0316-0239 | F132: CAB, BC, SEATS 11D / 11F, BTWN MONITORS: FOAM IS PINCHED ON 11F SIDE. | H132: 04/06 La mousse a été changé | J132: JBDT | K132: f | L132: 2019-06-03 | M132: 2019-06-04 | W132: 0.5
A133: CI | B133: A350 | C133: 316 | D133: EQLB | E133: XW.0316-0199 | F133: CAB, BC, SEATS 11D / 12A / 15D / 17A / 18F / 19A, SEAT CUSHIONS: TOO IMPORTANT GAP IS VISIBLE BTWN SEAT & BACK CUSHIONS. | H133: 04/06 Cover refixer | K133: f | L133: 2019-06-03 | M133: 2019-06-04 | W133: 0.5
A134: CI | B134: A350 | C134: 316 | D134: EQLB | E134: XW.0316-0208 | F134: CAB, BC, ALL BC SEATS: WRINKLES ARE VISIBLE ON THE LEATHER. PLEASE CHECK ALL BC SEATS AND REINSTALL PROPERLY. | G134: Other | H134: 06/06 Fermer CL | K134: F | L134: 2019-06-03 | M134: 2019-06-06
A135: CI | B135: A350 | C135: 316 | D135: EQLB | E135: XW.0316-0215 | F135: CAB, BC, SEAT 17D, BED POSITION: STEP IS VISIBLE BTWN SEAT & FOOT CUSHION AND UNEVEN GAP VISIBLE ALONG. | G135: Other | H135: 03/06 Ajustement coussins | J135: RTK | K135: F | L135: 2019-06-03 | M135: 2019-06-04 | V135: 0.5
A136: CI | B136: A350 | C136: 316 | D136: EQLB | E136: XW.0316-0218 | F136: CAB, BC, SEAT 18D, READING LIGHT: COVER IS NOT PROPERLY INSTALLED, GAPPING AT THE BOTTOM. | H136: 03/06 Reprise joint silicone | J136: RTK | K136: F | L136: 2019-06-03 | M136: 2019-06-04 | V136: 0.5
A137: CI | B137: A350 | C137: 316 | D137: EQLB | E137: XW.0316-0228 | F137: CAB, BC, SEAT 19A, COCKTAIL TABLE, INBD PART: TRACE IS VISIBLE. | G137: AIRBUS | H137: 04/06 Retouche peinture | J137: JBDT | K137: F | L137: 2019-06-03 | M137: 2019-06-05 | W137: 1
A138: CI | B138: A350 | C138: 316 | D138: EQLB | E138: XW.0316-0231 | F138: CAB, BC, SEAT 20D, INBD ARMREST: ARMREST IS HARD TO LOCK DOWN. | H138: 04/06 Conssole Ajusté + accoudoire testé 05/06 Après Reopen accoudoir démonté pour le limage du cover plastique / Remontage | J138: ATE | K138: F | L138: 2019-06-03 | M138: 2019-06-05 | W138: 1 | X138: 1.5
A139: CI | B139: A350 | C139: 316 | D139: EQLB | E139: XW.0316-0232 | F139: CAB, BC, SEAT 20A, REAR TOP PANEL: PANEL IS LOOSE. | G139: Other | H139: 05/06 Panneaux changer Demontage de toute la zones / remontage et changement de la pièce | I139: PN/ FJSA1-1N2180-01 | K139: F | L139: 2019-06-03 | M139: 2019-06-06 | Y139: 8
A140: CI | B140: A350 | C140: 316 | D140: EQLB | E140: XW.0316-0235 | F140: CAB, BC, SEAT 21A, OTBD ARMREST: LEATHER IS WAVY. | G140: STELIA | H140: 06/06 Remplacement de l'accoudoir | K140: F | L140: 2019-06-03 | M140: 2019-06-06 | Y140: 1
A141: CI | B141: A350 | C141: 316 | D141: EQLB | E141: XW.0316-0259 | F141: CAB , BC , SEAT 21F , LEFT ARMREST , BUTTON : HARD TO OPERATE | G141: Other | H141: 04/06 Accoudoir ajusté au mieux 05/06 Dépose + repose nouveau accoudoir + test et lubrification | J141: JBDT / RTK | K141: F | L141: 2019-06-03 | M141: 2019-06-06 | W141: 0.5 | X141: 2.5
A142: CI | B142: A350 | C142: 316 | D142: EQLB | E142: XW.0316-0200 | F142: CAB, BC, SEATS 11D / 14D / 12K / 16F / 17K / 19D / 19F, BACKSHELL, AISLE SIDE, ABOVE SEAT ROW NUMBERING: TOO IMPORTANT GAP IS VISIBLE. | G142: OTHER | H142: 04/06 Vérification des gaps a la cale afin de vérifier les tolérance 05/06 Cassquette ajusté | J142: RTK | K142: F | L142: 2019-06-03 | M142: 2019-06-06 | W142: 0.5 | X142: 1
A143: CI | B143: A350 | C143: 316 | D143: EQLB | E143: XW.0316-0204 | F143: CAB, BC, SEAT 12A, MEAL TABLE: TABLE IS STIFF WHILE OPENING. | H143: 03/06 Meal table lubrifié | J143: RTK | K143: F | L143: 2019-06-03 | M143: 2019-06-04 | V143: 0.5
A144: CI | B144: A350 | C144: 316 | D144: EQLB | E144: XW.0316-0209 | F144: CAB, BC, ALL BC SEATS, SLIDING MIRROR: SOME HAVE DAMPER WHILE OPENING, OTHERS NOT. PLEASE CHECK ALL BC SEATS SLIDING MIRRORS. | G144: OTHER | H144: 06/06 Fermer CL | K144: F | L144: 2019-06-03 | M144: 2019-06-06
A145: CI | B145: A350 | C145: 316 | D145: EQLB | E145: XW.0316-0210 | F145: CAB, BC, SEAT 16A / 17A / 19D, BED POSITION: HEADREST IS NOT FLUSH WITH HALF MOON CUSHION. | H145: 03/06 Têtière ajusté | J145: JBDT | K145: F | L145: 2019-06-03 | M145: 2019-06-04 | V145: 0.5
A146: CI | B146: A350 | C146: 316 | D146: EQLB | E146: XW.0316-0227 | F146: CAB, BC, SEAT 19A, MONITOR SHROUD: DAMAGES ARE VISIBLE ON THE SHROUD. | H146: 03/06 Retouche peinture + attente séchage entre les couche + protection | J146: JBDT | K146: F | L146: 2019-06-03 | M146: 2019-06-04 | V146: 1.5
A147: CI | B147: A350 | C147: 316 | D147: EQLB | E147: XW.0316-0230 | F147: CAB, BC, SEAT 20D, FROM BED TO TTL POSITION: SEAT CUSHION HAS A STEP DOWNWARD AT BEGINNING OF MOTION. | G147: STELIA | H147: 03/06 Ajustement coussins | J147: RTK | K147: F | L147: 2019-06-03 | M147: 2019-06-04 | V147: 0.5
A148: CI | B148: A350 | C148: 316 | D148: EQLB | E148: XW.0316-0238 | F148: CAB, BC, SEATS 11D / 11F, BTWN MONITORS: LOWER FOAM IS DAMAGED ON 11D SIDE, HOLE VISIBLE | G148: OTHER | H148: 04/06 mousse recollé + attente séchage 05/06 Dépose ski + divider + mousse abimé / dépose + perçage de la nouvelle mousse + repose des élèment. | J148: JBDT | K148: F | L148: 2019-06-03 | M148: 2019-06-06 | W148: 0.5 | X148: 3.5
A149: CI | B149: A350 | C149: 316 | D149: EQLB | E149: XW.0316-0258 | F149: CAB , BC , SEAT 18F , RHS, ARMREST ACCESS PANEL , TOP SURFACE : CRACK IS VISIBLE | G149: AIRBUS | H149: 05/06 Conssole basse changé | I149: FJSA1-1N2180-02 | J149: TBE | K149: F | L149: 2019-06-03 | M149: 2019-06-05 | X149: 0.5
A150: CI | B150: A350 | C150: 316 | D150: EQLB | E150: XW.0316-0213 | F150: CAB, BC, SEAT 17D, ABOVE LITERATURE POCKET: PLACARD IS NOT PROPERLY STUCK. | H150: 03/06 Etiquette changé | J150: RTK | K150: F | L150: 2019-06-03 | M150: 2019-06-04 | V150: 0.5
A151: CI | B151: A350 | C151: 316 | D151: EQLB | E151: XW.0316-0214 | F151: CAB, BC, SEAT 17D / 18D, COCKTAIL TABLE, FWD PART: SEALANT HAS A BAD ASPECT | H151: 03/06 Silicone déjà fait | J151: RTK | K151: F | L151: 2019-06-03 | M151: 2019-06-04 | V151: 0.5
A152: CI | B152: A350 | C152: 316 | D152: EQLB | E152: XW.0316-0216 | F152: CAB, BC, SEAT 16A, BACKSHELL, FACING 17A, BUBBLE SHROUD: DAMAGES ARE VISIBLE. | G152: AIRBUS | I152: PIECE EN COMMANDE | K152: F | L152: 2019-06-03 | M152: 2019-06-05
A153: CI | B153: A350 | C153: 316 | D153: EQLB | E153: XW.0316-0219 | F153: CAB, BC, SEAT 18D, INBD INNER PADDING, AFT OF READING LIGHT: PADDING IS PINCHED. | H153: 03/06 Repositionnement du padding | J153: RTK | K153: F | L153: 2019-06-03 | M153: 2019-06-04 | V153: 0.5
A154: CI | B154: A350 | C154: 316 | D154: EQLB | E154: XW.0316-0221 | F154: CAB, BC, SEAT 19D, MONITOR SHROUD: OTBD TRIM IS NOT PROPERLY INSTALLED AND LOWER SHROUD IS GAPPING WITH MONITOR. | G154: STELIA | H154: 06/06 changement platine écran 19D | J154: ATBE/ATE | K154: F | L154: 2019-06-03 | M154: 2019-06-06 | Y154: 2
A155: CI | B155: A350 | C155: 316 | D155: EQLB | E155: XW.0316-0226 | F155: CAB, BC, SEAT 19A, MEAL TABLE, MID EXTENDED POSITION: TABLE IS LOCKED. | H155: 04/06 Dépose / repose meal table la vis ne ce monte pas correctement | J155: RTK + JBDT | K155: F | L155: 2019-06-03 | M155: 2019-06-05 | W155: 2
A156: CI | B156: A350 | C156: 316 | D156: EQLB | E156: XW.0316-0233 | F156: CAB, BC, SEAT 20A, MEAL TABLE: TABLE IS HARD TO RELEASE. | G156: STELIA | H156: 03/06 Lubrification du pion | J156: JBDT | K156: F | L156: 2019-06-03 | M156: 2019-06-04 | V156: 0.5
A157: CI | B157: A350 | C157: 316 | D157: EQLB | E157: XW.0316-0234 | F157: CAB, BC, SEAT 19A, BACKSHELL, FACING 20A: TRACES ARE VISIBLE ON THE BUBBLE SHROUD. | K157: F | L157: 2019-06-03 | M157: 2019-06-04
A158: CI | B158: A350 | C158: 316 | D158: EQLB | E158: XW.0316-0236 | F158: CAB, BC, SEAT 20K, SEAT CUSHION: LEATHER IS DAMAGED. | G158: OTHER | H158: 03/06 Aucun ddefaut trouvé | J158: JBDT | K158: F | L158: 2019-06-03 | M158: 2019-06-04 | V158: 0.5
A159: CI | B159: A350 | C159: 316 | D159: EQLB | E159: XW.0316-0265 | F159: CAB , BC , SEAT 20F , BACKSHELL COVER , AISLE SIDE : SCRATCH IS VISIBLE | G159: OTHER | H159: 06/06 Fermer CL Rejeté "La possibilité de glisser / tomber des effets personnels dans cet espace est assez élevée. Pensez à installer un type de mousse plus robuste en caoutchouc." | K159: o | L159: 2019-06-03 | M159: 2019-06-06
A160: CI | B160: A350 | C160: 316 | D160: EQLB | E160: XW.0316-0201 | F160: CAB, BC, SEAT 12D / 15A / 15D / 18D, ARMRESTS: BUTTON IS STIFF OR LOOSE WHEN ARMREST IS UP. | H160: 03/06 Les accoudoir fonctionne normalement si il y une pression de la main | J160: RTK | K160: F | L160: 2019-06-03 | M160: 2019-06-04 | V160: 0.5
A161: CI | B161: A350 | C161: 316 | D161: EQLB | E161: XW.0316-0203 | F161: CAB, BC, SEAT 11K / 18K, AISLE ARMREST: PUSHBUTTON HAS INTERMITTENT LOCKING WHEN DEPLOYED. | H161: 03/06 Apres test fonctionne normalement | J161: JBDT | K161: F | L161: 2019-06-03 | M161: 2019-06-04 | V161: 0.5
A162: CI | B162: A350 | C162: 316 | D162: EQLB | E162: XW.0316-0207 | F162: CAB, BC, SEAT 12D, BACKSHELL, FACING 14D: TRACES ARE VISIBLE ON THE BUBBLE SHROUD. | H162: 03/06 Nettoyage de trace backshell + lubrification 05/06 Bulle changé | J162: RTK | K162: F | L162: 2019-06-03 | M162: 2019-06-05 | V162: 0.5 | X162: 0.5
A163: CI | B163: A350 | C163: 316 | D163: EQLB | E163: XW.0316-0211 | F163: CAB, BC, SEAT 11K, SEAT CUSHION: LEATHER IS DAMAGED. | H163: 03/06 Pas de trace trouvé | J163: JBDT | K163: F | L163: 2019-06-03 | M163: 2019-06-04 | V163: 0.5
A164: CI | B164: A350 | C164: 316 | D164: EQLB | E164: XW.0316-0220 | F164: CAB, BC, SEAT 18A, MEAL TABLE: HINGES ARE DAMAGED. | G164: AIRBUS | H164: 06/06 Fermer CL | K164: F | L164: 2019-06-03 | M164: 2019-06-06
A165: CI | B165: A350 | C165: 316 | D165: EQLB | E165: XW.0316-0237 | F165: CAB, BC, SEAT 20K, SINGAPORE TREE COVER, OTBD UPPER CORNER: PANEL IS LOOSE AND GAPPING. | H165: 03/06 Cover repositioné | K165: F | L165: 2019-06-03 | M165: 2019-06-04 | V165: 1
A166: CI | B166: A350 | C166: 328 | D166: Nc | E166: 206560755 | F166: Au cours de l’inspection P20 J1 du WP B/C SEAT. Nous avons remarqué un defaut sur le monument 11D, Ottoman, Seal. Comment: foam between FRM1A has bad aspect cosmetic. Item 2 6V03836200SIA SJSA2-1SQ301-01 V5219ME011 MX Same problem as NC 206424323 on MSN 322 Please provide new item. | G166: AIRBUS | H166: 14/06 Joint re installéé correctement | K166: F | L166: 2019-06-04 | M166: 2019-06-14 | AG166: 1
A167: CI | B167: A350 | C167: 354 | D167: Gamme | E167: 6017258202-AG00-004594 | F167: Installation of 1 missing door OSW Descr: Installation of 1 missing door Part Descr: SEAT_B/C_CTR_SGL_L/R EA PNR: FJST1-103307-01 - EA SerNr.: 430 EA PNR: FJST1-103407-01 -EA SerNr.: 437 EA PNR: SJST1-103301-01 - EA SerNr.: 55 EA PNR: SJST1-103401-01 - EA SerNr.: 56 | K167: o | L167: 2019-06-03
A168: CI | B168: A350 | C168: 354 | D168: Gamme | E168: 6017258203-AG00-004593 | F168: Installation of 1 missing ski OSW Descr: Installation of 1 missing ski Part Descr: SEAT_B/C_CTR_SGL_F/R EA PNR: FJST1-103401-01 - EA SerNr.: 431 – 432 -433 Installation of 1 missing ski OSW Descr: Installation of 1 missing ski Part Descr: SEAT_B/C_CTR_SGL_F/R EA PNR: FJST1-103401-01 - EA SerNr.: 431 – 432 -433 | K168: o | L168: 2019-06-03
A169: CI | B169: A350 | C169: 354 | D169: Gamme | E169: 6017258207-AG00004596 | F169: Installation of 1 missing upper plate OSW Descr: Installation of 1 missing upper plate Part Descr: SEAT_B/C_CTR_FNT_STD EA PNR: SJST1-103301-01 - EA SerNr.: 55 | K169: F | L169: 2019-06-03 | M169: 2019-06-08
A170: CI | B170: A350 | C170: 328 | D170: Nc | E170: 206564695 | F170: During installation of WP B/C SEAT, we notice a defect on monument , Ottoman, . Comment: During installation we notice that two items are missing: Item 5004: Ref: XLI000000000003424 P/N: ST1-602-036-23 Qty: 3 Item 5005 Ref: XLI000000000003421 P/N: ST1-602-036-22 Qty: 10 Au cours de l’inspection installation N/A du WP B/C SEAT. Nous avons remarqué un defaut sur le monument, Ottoman, . Comment : | G170: AIRBUS | H170: 13/06 Les deux manquants on été installé | I170: P/N ST1-602-036-23 P/N ST1-602-036-22 | K170: F | L170: 2019-06-05 | M170: 2019-06-13
A171: CI | B171: A350 | C171: 316 | D171: TLB | E171: MID_367 / CID-59 | F171: CID-59: BIG BUBBLE ON RH WALL CLOSE TO CPT S1ACL1 (SEE BLUE TAPE) | G171: STELIA | H171: 05/06 Le panneau a été remplacé | I171: SJSA1-1Q4307-01 | K171: f | L171: 2019-06-04 | M171: 2019-06-05 | X171: 4
A172: CI | B172: A350 | C172: 328 | D172: Nc | E172: 206562416 | F172: During inspection P20 J1 of WP B/C SEAT, we notice a defect on mon ument , Ottoman, .Comment: Au cours de l’inspection P20 J1 du WP B/C SEAT. Nous avons remarqué un defaut sur le monument , Ottoman, . Comment : During installation of ottoman area 1RH, we note following parts are missing: ITEM COMPOSANT DESIGNATION 5000 ABS1262F010 FITTING QTYx4 5001 ABS1262C030 FITTING QTYx4 5002 XLI000000000003426 F4643-SJSA2-1Q4006-31#WASHERQTYx4 5003 XLI000000000003427 F4643-NAS625-20#SCREW QTYx4 5004 XLI000000000003424 F4643-ST1-602-036-23#ECCENTRIC QTYx2 5005 XLI000000000003421 F4643-ST1-602-036-22#ECCENTRIC QTYx2 5006 XLI000000000003423 F4643-SJSA2-1Q4004-31#SPACER BLOCK QTYx4 | G172: AIRBUS | H172: 13/06 Les manquants on été installés | K172: F | L172: 2019-06-04 | M172: 2019-06-13
A173: CI | B173: A350 | C173: 316 | D173: EQLB | E173: XW.0316-0270 | F173: CAB, BC, SEAT 17F, INBD ARMREST: LEATHER IS STAINED. PLEASE CLEAN | G173: AIRBUS | H173: 06/06 Remplacement accoudoir | J173: ATE/TBE | K173: f | L173: 2019-06-04 | M173: 2019-06-05 | Y173: 1
A174: CI | B174: A350 | C174: 316 | D174: EQLB | E174: XW.0316-0269 | F174: CAB, BC, SEAT 17F, BACKSHELL, VISIBLE FROM SEAT 18F, C TRIM: STEP VISIBLE BTWN C & L TRIMS. | G174: Other | H174: 06/06 Apres vérifiction les Gap sont conforme à la CGL | K174: F | L174: 2019-06-04 | M174: 2019-06-06 | Y174: 0.5
A175: CI | B175: A350 | C175: 316 | D175: TLB | E175: MID_375 / CID-67 | F175: CID-67: CABINE, BC TAMPER SEALS DAMAGED SEATS 12K, 12D, 14K, 14A, 15D, 17K, 19K, | G175: Other | H175: 06/06 Les tempers seal on été fournie au poste | K175: F | L175: 2019-06-04 | M175: 2019-06-06 | Y175: 1
A176: CI | B176: A350 | C176: 316 | D176: TLB | E176: MID_382 | F176: CID-74: SAP QLB XW.0316-0268 CUSTOMER REQUEST: Please check tamper seal condition on all seats. Some were found broken during the CAF (ex: 12A). The check will be performed during check of zone closure before TAC. | G176: AIRBUS | H176: 06/06 Temper seal fournie au poste | J176: TBE | K176: F | L176: 2019-06-06 | M176: 2019-06-06 | Y176: 1
A177: CI | B177: A350 | C177: 328 | D177: NC | E177: 206573660 | F177: BCS-AR-12K-DAMAGE-Armrest After the hand-over between STELIA and AIRBUS QUALITY for the Trace Line "Modification of Armrest", we notice this following defect: - Row : 12K, Scratch on the armrest (aisle side, ) According with CQB47 1262017 COSMETIC GUIDELINE SIA A350 SYMPHONY rev E Apendix A Table 3, the defect is not acceptable Please rework this defect to return at the conformity. P/N: FJSA2-1SQ202-01 S/N: 372 | G177: STELIA | H177: 07/06 Retoouche peinture | K177: F | L177: 2019-06-07 | M177: 2019-06-07 | Z177: 0.5
A178: CI | B178: A350 | C178: 328 | D178: NC | E178: 206573731 | F178: BCS-AR-14K-LEATHER-Armrest After the hand-over between STELIA and AIRBUS QUALITY for the Trace Line "Modification of Armrest", we notice this following defect: Row : 14K, impact (aisle side,outboardside, interior side) According with CQB47 1262017 COSMETIC GUIDELINE SIA A350 SYMPHONY rev E Apendix A Table 3, the defect is not acceptable Please rework this defect to return at the conformity. B/C 14K RHS PN FJSA2-1SQ201-01 SN 373 | G178: STELIA | K178: F | L178: 2019-06-07 | M178: 2019-06-07
A179: CI | B179: A350 | C179: 328 | D179: NC | E179: 206570900 | F179: BCS-AR-21F-DAMAGE-armrest After the hand-over between STELIA and AIRBUS QUALITY for the Trace Line "Modification of Armrest", we notice this following defect: MSN: 328 B/C 21F CTR PN FJSA2-1SQ405-01 SN 400 : Scratch on the armrest (interior side) According with CQB47 1262017 COSMETIC GUIDELINE SIA A350 SYMPHONY rev E Apendix A Table 3, the defect is not acceptable | G179: STELIA | K179: F | L179: 2019-06-06 | M179: 2019-06-07
A180: CI | B180: A350 | C180: 328 | D180: NC | E180: 206571316 | F180: BCS-AR-21D-DAMAGE-armrest After the hand-over between STELIA and AIRBUS QUALITY for the Trace Line "Modification of Armrest", we notice this following defect: MSN: 328 B/C 21D CTR PN FJSA2-1SQ305-01 SN 390 : Scratch on the armrest (interior side) According with CQB47 1262017 COSMETIC GUIDELINE SIA A350 SYMPHONY rev E Apendix A Table 3, the defect is not acceptable | G180: STELIA | H180: 11/06 Retouche peinture ok dépose + repose + edssaie "plusieur couche" | J180: ESI/TBE | K180: F | L180: 2019-06-06 | M180: 2019-06-12 | O180: REOPEN | AD180: 2
A181: CI | B181: A350 | C181: 328 | D181: Gamme | E181: 6016856836-AG00004588 | F181: OSW Descr: re install frame screen Part Descr: FNT_B/C_R/H_FNT_F/R EA PNR: SJSA2-1SQ202-01 EA SerNr.: 59 EA PNR: FJSA2-1SQ402-01 EA SerNr.: 396 | G181: STELIA | K181: F | L181: 2019-06-06 | M181: 2019-06-16
A182: CI | B182: A350 | C182: 328 | D182: NC | E182: 206571682 | F182: BCS-AR-20F-DAMAGE-armrest After the hand-over between STELIA and AIRBUS QUALITY for the Trace Line "Modification of Armrest", we notice this following defect: MSN: 328 B/C 20F CTR PN FJSA2-1SQ402-01 SN 399 : Scratch on the armrest (interior side) According with CQB47 1262017 COSMETIC GUIDELINE SIA A350 SYMPHONY rev E Apendix A Table 3, the defect is not acceptable | G182: STELIA | H182: 07/06 Dépose accoudoir + dépose + retouche peinture + repose | J182: RTK/JBDT | K182: F | L182: 2019-06-06 | M182: 2019-06-11 | Z182: 1.25
A183: CI | B183: A350 | C183: 328 | D183: NC | E183: 206571819 | F183: After the hand-over between STELIA and AIRBUS QUALITY for the Trace Line "Modification of Armrest", we notice this following defect: MSN: 328 B/C 20F CTR PN FJSA2-1SQ402-01 SN 399 : Scratch on the armrest According with CQB47 1262017 COSMETIC GUIDELINE SIA A350 SYMPHONY rev E Apendix A Table 3, the defect is not acceptable | G183: STELIA | H183: 06/06 Retouche peinture | K183: F | L183: 2019-06-06 | M183: 2019-06-07 | Y183: 0.75
A184: CI | B184: A350 | C184: 328 | D184: NC | E184: 206572368 | F184: After the hand-over between STELIA and AIRBUS QUALITY for the Trace Line "Modification of Armrest", we notice this following defect: - Row : 11K, Scratch on the armrest (aisle side, outboardside, interior side) According with CQB47 1262017 COSMETIC GUIDELINE SIA A350 SYMPHONY rev E Apendix A Table 3, the defect is not acceptable Please rework this defect to return at the conformity. P/N: FJSA2-1SQ201-01 S/N: 371 | G184: AIRBUS | H184: 07/06 Dépose accoudoir + dépose + retouche peinture + repose | J184: RTK/JBDT | K184: F | L184: 2019-06-06 | M184: 2019-06-11 | Z184: 1.25
A185: CI | B185: A350 | C185: 328 | D185: NC | E185: 206572517 | F185: Type of nonconformity: Scratch After the hand-over between STELIA and AIRBUS QUALITY for the Trace Line "Modification of Armrest", we notice this following defect: - Row : 12F, Scratch on the armrest (aisle side, outboardside, interior side) According with CQB47 1262017 COSMETIC GUIDELINE SIA A350 SYMPHONY rev E Apendix A Table 3, the defect is not acceptable Please rework this defect to return at the conformity. P/N: FJSA2-1SQ402-01 S/N: 392 | G185: STELIA | H185: 06/06 Retouche peinture | K185: F | L185: 2019-06-06 | M185: 2019-06-07 | Y185: 0.75
A186: CI | B186: A350 | C186: 328 | D186: NC | E186: 206572575 | F186: After the hand-over between STELIA and AIRBUS QUALITY for the Trace Line "Modification of Armrest", we notice this following defect: - Row : 12K, Scratch on the armrest (aisle side, outboardside, interior side) According with CQB47 1262017 COSMETIC GUIDELINE SIA A350 SYMPHONY rev E Apendix A Table 3, the defect is not acceptable Please rework this defect to return at the conformity. P/N: FJSA2-1SQ202-01 S/N: 372 | G186: AIRBUS | I186: En commande sous point trace | K186: o | L186: 2019-06-06
A187: CI | B187: A350 | C187: 328 | D187: NC | E187: 206572603 | F187: After the hand-over between STELIA and AIRBUS QUALITY for the Trace Line "Modification of Armrest", we notice this following defect: - Row : 14K, Scratch on the armrest (aisle side, outboardside, interior side) According with CQB47 1262017 COSMETIC GUIDELINE SIA A350 SYMPHONY rev E Apendix A Table 3, the defect is not acceptable Please rework this defect to return at the conformity. P/N: FJSA2-1SQ201-01 S/N: 373 | G187: STELIA | H187: 07/06 Dépose accoudoir + dépose + retouche peinture + repose | J187: RTK/JBDT | K187: F | L187: 2019-06-06 | M187: 2019-06-11 | Z187: 1.25
A188: CI | B188: A350 | C188: 328 | D188: NC | E188: 206572608 | F188: After the hand-over between STELIA and AIRBUS QUALITY for the Trace Line "Modification of Armrest", we notice this following defect: - Row : 15F, Scratch on the armrest (aisle side, outboardside, interior side) According with CQB47 1262017 COSMETIC GUIDELINE SIA A350 SYMPHONY rev E Apendix A Table 3, the defect is not acceptable Please rework this defect to return at the conformity. P/N: FJSA2-1SQ402-01 S/N: 394 | G188: STELIA | H188: 06/06 Retouche peinture | K188: F | L188: 2019-06-06 | M188: 2019-06-07 | Y188: 0.75
A189: CI | B189: A350 | C189: 328 | D189: NC | E189: 206572655 | F189: After the hand-over between STELIA and AIRBUS QUALITY for the Trace Line "Modification of Armrest", we notice this following defect: - Row : 16F, Scratch on the armrest (aisle side, outboardside, interior side) According with CQB47 1262017 COSMETIC GUIDELINE SIA A350 SYMPHONY rev E Apendix A Table 3, the defect is not acceptable Please rework this defect to return at the conformity. P/N: FJSA2-1SQ401-01 S/N: 395 | G189: STELIA | H189: 06/06 Retouche peinture | K189: F | L189: 2019-06-06 | M189: 2019-06-07 | Y189: 0.75
A190: CI | B190: A350 | C190: 328 | D190: NC | E190: 206572713 | F190: After the hand-over between STELIA and AIRBUS QUALITY for the Trace Line "Modification of Armrest", we notice this following defect: - Row : 16K, Scratch on the armrest (aisle side, outboardside, interior side) According with CQB47 1262017 COSMETIC GUIDELINE SIA A350 SYMPHONY rev E Apendix A Table 3, the defect is not acceptable Please rework this defect to return at the conformity. P/N: FJSA2-1SQ201-01 S/N: 375 | G190: STELIA | H190: 06/06 Retouche peinture | K190: F | L190: 2019-06-06 | M190: 2019-06-07 | Y190: 0.75
A191: CI | B191: A350 | C191: 328 | D191: NC | E191: 206572716 | F191: After the hand-over between STELIA and AIRBUS QUALITY for the Trace Line "Modification of Armrest", we notice this following defect: - Row : 17D, Scratch on the armrest (aisle side, outboardside, interior side) According with CQB47 1262017 COSMETIC GUIDELINE SIA A350 SYMPHONY rev E Apendix A Table 3, the defect is not acceptable Please rework this defect to return at the conformity. P/N: FJSA2-1SQ302-01 S/N: 386 | G191: STELIA | H191: 07/06 Dépose accoudoir + dépose + retouche peinture + repose | J191: RTK/JBDT | K191: F | L191: 2019-06-06 | M191: 2019-06-11 | Z191: 1.25
A192: CI | B192: A350 | C192: 328 | D192: NC | E192: 206572719 | F192: After the hand-over between STELIA and AIRBUS QUALITY for the Trace Line "Modification of Armrest", we notice this following defect: - Row : 17D, Scratch on the armrest (aisle side, outboardside, interior side) According with CQB47 1262017 COSMETIC GUIDELINE SIA A350 SYMPHONY rev E Apendix A Table 3, the defect is not acceptable Please rework this defect to return at the conformity. P/N: FJSA2-1SQ302-01 S/N: 386 | G192: STELIA | H192: 06/06 Retouche peinture | K192: F | L192: 2019-06-06 | M192: 2019-06-07 | Y192: 0.75
A193: CI | B193: A350 | C193: 328 | D193: NC | E193: 206572766 | F193: After the hand-over between STELIA and AIRBUS QUALITY for the Trace Line "Modification of Armrest", we notice this following defect: - Row : 18F, Scratch on the armrest (aisle side, outboardside, interior side) According with CQB47 1262017 COSMETIC GUIDELINE SIA A350 SYMPHONY rev E Apendix A Table 3, the defect is not acceptable Please rework this defect to return at the conformity. P/N: FJSA2-1SQ405-0 S/N: 397 | G193: STELIA | H193: 06/06 Retouche peinture | K193: F | L193: 2019-06-06 | M193: 2019-06-07 | Y193: 0.75
A194: CI | B194: A350 | C194: 328 | D194: NC | E194: 206572787 | F194: After the hand-over between STELIA and AIRBUS QUALITY for the Trace Line "Modification of Armrest", we notice this following defect: MSN: 328 B/C 11K RHS PN FJSA2-1SQ201-01 SN 371 : Impact on the armrest (Aisle side) According with CQB47 1262017 COSMETIC GUIDELINE SIA A350 SYMPHONY rev E Apendix A Table 3, the defect is not acceptable Please rework this defect to return at the conformity. | H194: 11/06 Retouche peinture ok dépose + repose + edssaie "plusieur couche" | J194: ESI/TBE | K194: F | L194: 2019-06-06 | M194: 2019-06-12 | AD194: 2
A195: CI | B195: A350 | C195: 328 | D195: NC | E195: 206572836 | F195: After the hand-over between STELIA and AIRBUS QUALITY for the Trace Line "Modification of Armrest", we notice this following defect: - Row : 19F, Scratch on the armrest (aisle side, outboardside, interior side) According with CQB47 1262017 COSMETIC GUIDELINE SIA A350 SYMPHONY rev E Apendix A Table 3, the defect is not acceptable Please rework this defect to return at the conformity. P/N: FJSA2-1SQ401-01 S/N: 398 | G195: STELIA | H195: 07/06 Retouche accoudoir | K195: F | L195: 2019-06-06 | M195: 2019-06-07 | Z195: 0.5
A196: CI | B196: A350 | C196: 328 | D196: NC | E196: 206572837 | F196: After the hand-over between STELIA and AIRBUS QUALITY for the Trace Line "Modification of Armrest", we notice this following defect: - Row : 20D, Scratch on the armrest (aisle side, outboardside, interior side) According with CQB47 1262017 COSMETIC GUIDELINE SIA A350 SYMPHONY rev E Apendix A Table 3, the defect is not acceptable Please rework this defect to return at the conformity. P/N: FJSA2-1SQ302-01 S/N: 389 | G196: STELIA | H196: 06/06 Retouche accoudoir | J196: esi/tbe | K196: F | L196: 2019-06-06 | M196: 2019-06-07 | Z196: 1
A197: CI | B197: A350 | C197: 328 | D197: NC | E197: 206572863 | F197: After the hand-over between STELIA and AIRBUS QUALITY for the Trace Line "Modification of Armrest", we notice this following defect: MSN: 328 B/C 20D RHS PN FJSA2-1SQ302-01 SN 389 : Scratch on the armrest (Aisle side) According with CQB47 1262017 COSMETIC GUIDELINE SIA A350 SYMPHONY rev E Apendix A Table 3, the defect is not acceptable Please rework this defect to return at the conformity. | G197: STELIA | J197: ESI/TBE | K197: F | L197: 2019-06-06 | M197: 2019-06-07 | Z197: 1
A198: CI | B198: A350 | C198: 316 | D198: EQLB | E198: XW.0316-0085 | F198: CAB, BC, ALL CENTRAL SEATS, LAMINATE CENTRAL DIVIDER, SEALS ALONG: MANY WRINLLES ARE VISIBLE [Cyril YENE (KLM) sent to Stelia Aeropsace [Ex Sogerma] - | G198: AIRBUS | H198: 25/03 Fermer par David 06/06 FERMER DE NOUVEAU AVEC CL | K198: F | L198: 2019-03-21 | M198: 2019-06-06
A199: CI | B199: A350 | C199: 316 | D199: EQLB | E199: XW.0316-0099 | F199: CAB, BC, BTWN SEATS 20DF, FWD GAP FILLER: FOAM IS WAVY | G199: AIRBUS | H199: 25/03 Fermé par David 06/06 FERMER DE NOUVEAU AVEC CL | K199: F | L199: 2019-03-21 | M199: 2019-06-06
A200: CI | B200: A350 | C200: 316 | D200: EQLB | E200: XW.0316-0107 | F200: CAB, BC, BTWN SEATS 12DF, GAP FILLER: FOAM IS WRINKLED. | G200: AIRBUS | H200: 25/03 Voir si fermer avec CGL 26/03 CGL 06/06 FERMER DE NOUVEAU AVEC CL | K200: F | L200: 2019-03-21 | M200: 2019-06-06
A201: CI | B201: A350 | C201: 316 | D201: EQLB | E201: XW.0316-0138 | F201: CAB, BC, SEATS 19A /19D / 19F / 20A, MEAL TABLE: HANDLE IS HARD FOR RELEASE. | G201: STELIA | H201: 25/03 Fermer par David Voir si il faut changer la tablete (selon stock) 05/06 Repris des vis de fixation + graissage pion pour un fonctionnement plus souple 06/06 FERMER DE NOUVEAU AVEC CL | K201: F | L201: 2019-03-21 | M201: 2019-06-06 | X201: 3
A202: CI | B202: A350 | C202: 328 | D202: Nc | E202: 206577492 | F202: Lécran du siége passager 15K est non alimenté ,câblage avion OK. Demandons intervention pour remise en conformité. | H202: 12/06 Après avoir redemarré l'écran il fonctionne correctement. | K202: F | L202: 2019-06-09 | M202: 2019-06-12 | AD202: 1
A203: CI | B203: A350 | C203: 328 | D203: Nc | E203: 206577467 | F203: Lécran du siége passager 21K est non alimenté ,câblage avion OK. | H203: 12/06 Après avoir redemarré l'écran il fonctionne correctement. | K203: F | L203: 2019-06-09 | M203: 2019-06-12 | AD203: 1
... 311 more rows

Sheet Mai 2019
S5: PROD CI/ST/AC | T5: =SUM(T13:T562) -> 0 | U5: =SUM(U13:U762) -> 60 | V5: 35 | W5: 0 | X5: 0 | Y5: 56.5 | Z5: 69 | AA5: 36 | AB5: 74.5 | AC5: 48 | AD5: 24 | AE5: 0 | AF5: 69 | AG5: 73 | AH5: 74 | AI5: 56.5 | AJ5: 36 | AK5: 0 | AL5: 0 | AM5: 49 | AN5: 66 | AO5: 65 | AP5: =SUM(AP13:AP762) -> 65 | AQ5: 34 | AR5: 0 | AS5: 0 | AT5: 68 | AU5: 57 | AV5: 65 | AW5: 0 | AX5: 20 | AY5: =SUM(AY13:AY562) -> 513
E6: Month: | F6: 01/05/2019 | G6: 2019-05-01 | S6: PROD ATR | T6: ='[2]MAI 19'!M3 -> 0 | U6: ='[2]MAI 19'!N3 -> 4 | V6: ='[2]MAI 19'!O3 -> 0 | W6: ='[2]MAI 19'!P3 -> 0 | X6: ='[2]MAI 19'!Q3 -> 0 | Y6: ='[2]MAI 19'!R3 -> 0 | Z6: ='[2]MAI 19'!S3 -> 0 | AA6: ='[2]MAI 19'!T3 -> 0 | AB6: ='[2]MAI 19'!U3 -> 0 | AC6: ='[2]MAI 19'!V3 -> 0 | AD6: ='[2]MAI 19'!W3 -> 0 | AE6: ='[2]MAI 19'!X3 -> 0 | AF6: ='[2]MAI 19'!Y3 -> 0 | AG6: ='[2]MAI 19'!Z3 -> 3 | AH6: ='[2]MAI 19'!AA3 -> 0 | AI6: ='[2]MAI 19'!AB3 -> 3 | AJ6: ='[2]MAI 19'!AC3 -> 0 | AK6: ='[2]MAI 19'!AD3 -> 0 | AL6: ='[2]MAI 19'!AE3 -> 0 | AM6: ='[2]MAI 19'!AF3 -> 0 | AN6: ='[2]MAI 19'!AG3 -> 0 | AO6: ='[2]MAI 19'!AH3 -> 0 | AP6: ='[2]MAI 19'!AI3 -> 0 | AQ6: ='[2]MAI 19'!AJ3 -> 0 | AR6: ='[2]MAI 19'!AK3 -> 0 | AS6: ='[2]MAI 19'!AL3 -> 0 | AT6: ='[2]MAI 19'!AM3 -> 0 | AU6: ='[2]MAI 19'!AN3 -> 0 | AV6: ='[2]MAI 19'!AO3 -> 0 | AW6: ='[2]MAI 19'!AP3 -> 0 | AX6: ='[2]MAI 19'!AQ3 -> 0 | AY6: ='[2]MAI 19'!AR3 -> 6 | AZ6: ='[2]JANVIER 19'!AS3 -> 0 | BA6: ='[2]JANVIER 19'!AT3 -> 0 | BB6: ='[2]JANVIER 19'!AU3 -> 0 | BC6: ='[2]JANVIER 19'!AV3 -> 0 | BD6: ='[2]JANVIER 19'!AW3 -> 0
H7: New month | S7: TOTAL CI/ST/ATR | T7: =SUM(T5:T6) -> 0 | U7: =SUM(U5:U6) -> 64 | V7: =SUM(V5:V6) -> 35 | W7: =SUM(W5:W6) -> 0 | X7: =SUM(X5:X6) -> 0 | Y7: =SUM(Y5:Y6) -> 56.5 | Z7: 69 | AA7: 36 | AB7: 74.5 | AC7: =SUM(AC5:AC6) -> 48 | AD7: 24 | AE7: =SUM(AE5:AE6) -> 0 | AF7: =SUM(AF5:AF6) -> 69 | AG7: 76 | AH7: 74 | AI7: =SUM(AI5:AI6) -> 59.5 | AJ7: 36 | AK7: =SUM(AK5:AK6) -> 0 | AL7: 0 | AM7: 49 | AN7: 66 | AO7: 65 | AP7: =SUM(AP5:AP6) -> 65 | AQ7: 34 | AR7: 0 | AS7: 0 | AT7: 68 | AU7: 57 | AV7: 65 | AW7: 0 | AX7: 20 | AY7: =SUM(T7:AX7) -> 1210.5
S8: TOTAL JR | T8: =T7+T12 -> 0 | U8: =U7+U12 -> 72 | V8: =V7+V12 -> 40 | W8: =W7+W12 -> 0 | X8: =X7+X12 -> 0 | Y8: 64.5 | Z8: 69 | AA8: 36 | AB8: 84 | AC8: =AC7+AC12 -> 55.5 | AD8: 24 | AE8: =AE7+AE12 -> 0 | AF8: =AF7+AF12 -> 79 | AG8: 84 | AH8: 83 | AI8: =AI7+AI12 -> 68.5 | AJ8: 41.5 | AK8: =AK7+AK12 -> 0 | AL8: 0 | AM8: 58 | AN8: 76 | AO8: 73.5 | AP8: =AP7+AP12 -> 73 | AQ8: 41 | AR8: 0 | AS8: 0 | AT8: 76.5 | AU8: 65 | AV8: 73 | AW8: 0 | AX8: 20 | AY8: 1357
A9: NC DESCRIPTION | H9: NC FOLLOW-UP | L9: KPI and CONTINUOUS IMPROVEMENT | T9: =G6 -> 2019-05-01 | U9: =T9+1 -> 2019-05-02 | V9: 2019-05-03 | W9: 2019-05-04 | X9: 2019-05-05 | Y9: 2019-05-06 | Z9: 2019-05-07 | AA9: 2019-05-08 | AB9: 2019-05-09 | AC9: 2019-05-10 | AD9: 2019-05-11 | AE9: 2019-05-12 | AF9: 2019-05-13 | AG9: 2019-05-14 | AH9: 2019-05-15 | AI9: 2019-05-16 | AJ9: 2019-05-17 | AK9: 2019-05-18 | AL9: 2019-05-19 | AM9: 2019-05-20 | AN9: 2019-05-21 | AO9: 2019-05-22 | AP9: 2019-05-23 | AQ9: 2019-05-24 | AR9: 2019-05-25 | AS9: 2019-05-26 | AT9: =AS9+1 -> 2019-05-27 | AU9: =IF(OR(DAY(AT9+1)=1,DAY(AT9+1)=2,DAY(AT9+1)=3,DAY(AT9+1)=4),"",AT9+1) -> 2019-05-28 | AV9: =IF(OR(DAY(AU9+1)=1,DAY(AU9+1)=2,DAY(AU9+1)=3,DAY(AU9+1)=4),"",AU9+1) -> 2019-05-29 | AW9: =IF(ISERR(IF(OR(DAY(AV9+1)=1,DAY(AV9+1)=2,DAY(AV9+1)=3,DAY(AV9+1)=4),"",AV9+1)),"",IF(OR(DAY(AV9+1)=1,DAY(AV9+1)=2,DAY(AV9+1)=3,DAY(AV9+1)=4),"",AV9+1)) -> 2019-05-30 | AX9: =IF(ISERR(IF(OR(DAY(AW9+1)=1,DAY(AW9+1)=2,DAY(AW9+1)=3,DAY(AW9+1)=4),"",AW9+1)),"",IF(OR(DAY(AW9+1)=1,DAY(AW9+1)=2,DAY(AW9+1)=3,DAY(AW9+1)=4),"",AW9+1)) -> 2019-05-31 | AY9: =AY8-AY7 -> 146.5
A11: PERIMETER | B11: A/C program | C11: MSN | D11: Type | E11: Ref AM/NC/TLB/eQLB/WO | F11: Non-Conformity description | G11: NC Liability | H11: Description of the work done | I11: ECME/Material PN/SN | J11: Worker | K11: NC State | L11: Reception date | M11: Closure date | N11: Reactivity | O11: Reactivity NC Main cause | P11: FTR | Q11: Defect category | R11: Root cause comments | S11: Root cause fundamantal | T11: =IF(WEEKDAY(T9)=2,"L",IF(WEEKDAY(T9)=3,"M",IF(WEEKDAY(T9)=4,"M",IF(WEEKDAY(T9)=5,"J",IF(WEEKDAY(T9)=6,"V",IF(WEEKDAY(T9)=7,"S",IF(WEEKDAY(T9)=1,"D"))))))) -> M | U11: J | V11: V | W11: S | X11: D | Y11: L | Z11: M | AA11: M | AB11: J | AC11: V | AD11: S | AE11: D | AF11: L | AG11: M | AH11: M | AI11: J | AJ11: V | AK11: S | AL11: D | AM11: L | AN11: M | AO11: M | AP11: J | AQ11: V | AR11: S | AS11: D | AT11: L | AU11: M | AV11: M | AW11: J | AX11: v | AY11: PROD | AZ11: Commentaires STELIA S1 | BA11: Commentaires STELIA S2 | BB11: Commentaires STELIA S3 | BC11: Commentaires STELIA S4 | BD11: Comment AAA | XFD11: =SUBTOTAL(9,A11:XFC11) -> 0
A12: GESTION | F12: Heures Laurence guettar | U12: 8 | V12: 5 | Y12: 8 | AB12: 9.5 | AC12: 7.5 | AF12: 10 | AG12: 8 | AH12: 9 | AI12: 9 | AJ12: 5.5 | AM12: 9 | AN12: 10 | AO12: 8.5 | AP12: 8 | AQ12: 7 | AT12: 8.5 | AU12: 8 | AV12: 8 | AY12: =SUM(T12:AX12) -> 146.5
A13: GESTION | F13: Heures Kevin CHACON | U13: 8 | V13: 5 | Z13: 10 | AA13: 9 | AB13: 9.5 | AF13: 10 | AG13: 8 | AH13: 9 | AI13: 8.5 | AJ13: 5 | AT13: 8.5 | AU13: 8 | AV13: 8 | AY13: =SUM(T13:AX13) -> 106.5
A14: GESTION | F14: Heure Karine DELFAUT | AP14: 3 | AQ14: 5 | AU14: 8 | AV14: 8 | AY14: =SUM(AY12:AY13) -> 253
A15: GESTION | F15: attente bureau/ trajet / attente ic / reception colis sur site/ non acces | H15: 10/05 attente badge richard (5h) 13/05 Collis récupéré à G1 + plein voiture + route airlog + recherche colis 16/05attente chef avion + branchement air 17/05 Perte de temps AA pour ralonge + route + attente + essaie pour Ic + impossible à brancher l'air | U15: 6.5 | V15: 4 | Y15: 3.5 | Z15: 2 | AA15: 4 | AB15: 5 | AC15: 2.5 | AF15: 1 | AG15: 3 | AH15: 1.5 | AI15: 19.5 | AJ15: 10 | AM15: 8.5 | AN15: 9 | AO15: 4 | AP15: 16.5 | AQ15: 5 | AT15: 4.5 | AU15: 3 | AV15: 16.5
A16: GESTION | F16: Heures Xavier OUDIN | U16: 8 | V16: 5 | Y16: 8.5 | Z16: 10 | AB16: 10 | AC16: 7.5 | AF16: 10 | AG16: 10 | AH16: 9 | AJ16: 5.5 | AM16: 9 | AN16: 10 | AO16: 9 | AP16: 8 | AQ16: 7 | AT16: 9 | AU16: 9 | AV16: 9 | AY16: =SUM(T16:AX16) -> 153.5
A17: GESTION | F17: PERTE TEMPS TRAJETS ( MANQUE VOITURE ) | U17: 10 | V17: 3.5 | Y17: 4 | Z17: 2 | AB17: 5.5 | AC17: 3 | AG17: 2 | AH17: 13 | AI17: 13 | AJ17: 6.5 | AM17: 9 | AN17: 10 | AO17: 4 | AP17: 11 | AQ17: 6 | AT17: 4 | AU17: 5 | AV17: 6.5
A18: CI | F18: TAXI JV + IC JV
A19: Other | F19: FORMATION | J19: RTK/ATE | Y19: 8 | Z19: 24 | AA19: 4 | AB19: 3 | AC19: 8 | AF19: 32 | AG19: 18 | AN19: 8 | AO19: 16 | AP19: 5 | AT19: 8
A20: CI | B20: A350 | C20: 301 | D20: Nc | E20: 206329494 | F20: problem on bed position While performing seat actuation test on seat 3F we notice a problem on bed position (the back of the seat goes back).. Demandons intervention pour remise en conformité. | G20: STELIA | H20: 14/03 Recherche panne croisement ecu 07/05 Boitier TPMU changé + changement des ceinture/roulement | I20: Boitier OUT; 190911-N°494732 Boitier IN : 190402 n°591579 | J20: TDT/ATE | K20: f | L20: 2019-03-13 | M20: 2019-05-07 | N20: =IF(OR(L20="",M20=""),"",IF(NETWORKDAYS(L20,M20)-1>=0,NETWORKDAYS(L20,M20)-1,0)) -> 39 | Y20: 9 | Z20: 1.5
A21: CI | B21: A350 | C21: 301 | D21: EQLB | E21: XW.0301-0120 | F21: CAB, BC, SEATS 5A, 1E, 2G, 2K, 6G, 3E, SEAT BELTS : THREADS VISIBLE | G21: STELIA | H21: 19/03 fils enlevé, 22/03 REOPEN 5A-6G-1E 07/05 Changement roulemment /ceinture | I21: PN/ 3208-1-011-8105 Reçu le 05/04 | J21: TDT/ATE | K21: F | L21: 2019-03-18 | M21: 2019-05-07 | N21: 36 | O21: REOPEN | Z21: 2
A22: CI | B22: A350 | C22: 301 | D22: Nc | E22: 206493625 | F22: Equipements secours, lors de la prise en main de la pochette des scellés pour la fermeture compartiments "gilets secours", nous constatons que ceux-ci sont tous détériorés (pliure importante). TEMPER PROOF SEAL/ ITEM 3k, FJSL4-1AZ203-01, qte 29. Demandons réapprovisionnement. | G22: AIRBUS | H22: 14/05 Livré au poste | J22: JBTD/JMS | K22: F | L22: 2019-05-10 | M22: 2019-05-14 | N22: 2 | AG22: 1
A23: CI | B23: A350 | C23: 305 | D23: EQLB | E23: XW.0305-0071 | F23: CAB BC SEAT 16A NOISY TO PUT IN BED POSITION AND DON4T GO IN FLAT POSITION | G23: STELIA | H23: 07/05/19 Rework done | K23: F | M23: 2019-05-07 | Z23: 0.5
A24: CI | B24: A350 | C24: 305 | D24: EQLB | E24: XW.0305-0062 | F24: CAB BC SEAT ALL SEATS WRINKLES ON THE LEATHER COVER AROUND HEADREST ON BED POSITION. | G24: Other | H24: 08/05 CLOSED CL | K24: F | L24: 2019-05-06 | M24: 2019-05-08 | N24: 2
A25: CI | B25: A350 | C25: 305 | D25: EQLB | E25: XW.0305-0073 | F25: CAB BC SEAT DIVIDER GUIDE GAP ON LH, SEATS 11D / 14D / 16D / 18D | G25: Other | H25: 08/05 CLOSED CL | K25: F | L25: 2019-05-06 | M25: 2019-05-08 | N25: 2
A26: CI | B26: A350 | C26: 305 | D26: EQLB | E26: XW.0305-0068 | F26: CAB BC SEAT 14A, 2 DEVIATIONS ON THE LOWER PART OF THE COCKTAIL TABLE | G26: Other | H26: 08/05 CLOSED CL | K26: F | L26: 2019-05-06 | M26: 2019-05-08 | N26: 2
A27: CI | B27: A350 | C27: 305 | D27: EQLB | E27: XW.0305-0063 | F27: CAB BC SEATS, ELEC CONNECTION FRAME MOVABLE ON ALL SEATS | G27: STELIA | H27: 08/05 CLOSED CL | K27: F | L27: 2019-05-06 | M27: 2019-05-08 | N27: 2
A28: CI | B28: A350 | C28: 305 | D28: TLB | E28: MID_510 | F28: CID-63: All BC seats Perform inspection on security bolts under seatpans (deformation+tightening) | G28: Other | H28: 09/05 Toutes les assises on été vérifier | J28: XON | K28: F | L28: 2019-05-07 | M28: 2019-05-09 | N28: 2 | AB28: 3
A29: CI | B29: A350 | C29: 309 | D29: NC/TLB | E29: 206091856 | F29: MID_31 ottoman Area 1 C21 RHS: A réception au poste, nous constatons 3 enfoncements sur la déco noir de lottoman item 3 réf: SJSA2-1SQ201-01 au niveau des sangles de maintien. | G29: STELIA | H29: WAITING CL | J29: DTM | K29: F | L29: 2019-01-28 | M29: 2019-05-06 | N29: 70
A30: CI | B30: A350 | C30: 309 | D30: EQLB | E30: XW.0309-0046 | F30: CAB, BC, Wrinkles at 12D/F in center foam. Please rework. | G30: STELIA | H30: 02/04 Pièce changer 12/04 Rejeté "Mousse toujour fripé" 25/04 Remise en place joint inter-siège 30/04 Rejeté 12DF/ et 15DF 06/05 La mousse du 12DF à été repositionné proprement. | I30: FJSA1-1S1535-01 reçu le 20/03 | J30: ATE/ESI/TDT | K30: f | L30: 2019-03-07 | M30: 2019-05-06 | N30: 42 | O30: REOPEN | Y30: 0.5
A31: CI | B31: A350 | C31: 309 | D31: EQLB | E31: XW.0309-0025 | F31: CAB B/C SEAT 17K : mark on black cover of thz armrest window side | G31: AIRBUS | H31: 15/03 Retouche peinture 12/04 Rejeté "Trace visible, a nettoyer" 18/04 Dépose accoudoir / ponçage + peinture + repose ( très long) 30/04 Rejeté La ceinture de sécurité est bloquée à l'intérieur de l'accoudoir et nettoyer marque 05/05 Accoudoire changé | I31: 30/04 EN COUR FJSA1-1G1000-02 Enss accoudoir central a monter apres le HO | J31: TBE | K31: F | L31: 2019-03-01 | M31: 2019-05-15 | N31: 53 | O31: REOPEN
A32: CI | B32: A350 | C32: 309 | D32: TLB | E32: MID_273 | F32: B/C, Seat 18K cover on the low of the foot rest cracked. Please replace. | G32: AIRBUS | H32: 06/05 FOOTREST CHANGER (PRELEVER SUR LE 322) | I32: 29/04 COMMANDE FOOTREST FJSA2-1N2397-02 | J32: TDT | K32: F | L32: 2019-04-29 | M32: 2019-05-06 | N32: 5 | Y32: 1.5
A33: CI | B33: A350 | C33: 309 | D33: TLB | E33: MID_296 | F33: Following check list 3 days before HO. The label (FJSA1-1M0131-01) is damaged from BC seat row 19K. | G33: AIRBUS | H33: 02/05 Etiquette installé | K33: F | L33: 2019-05-02 | M33: 2019-05-02 | N33: 0 | U33: 0.5
A34: CI | B34: A350 | C34: 309 | D34: TLB | E34: MID_281 | F34: In cabin ons seat 19 D We notice a deformation on black cover. | G34: STELIA | H34: 06/05 FERMER CL | K34: F | L34: 2019-04-30 | M34: 2019-05-06 | N34: 4
A35: CI | B35: A350 | C35: 309 | D35: EQLB | E35: XW,0309-0052 | F35: CAB, BC, S17F, HEAD SET SUPPORT LOOSE AND CAN ROTATE. PLEASE REWORK. | G35: AIRBUS | H35: 02/05 Support retravaillé | K35: F | L35: 2019-04-30 | M35: 2019-05-02 | N35: 2 | U35: 0.75
A36: CI | B36: A350 | C36: 309 | D36: TLB | E36: MID_298 | F36: Following Check list 3 days before HO : There is 10 temper seal broken in the BC Area asking for supply | G36: AIRBUS | H36: 02/05 Fourni au poste | K36: F | L36: 2019-04-30 | M36: 2019-05-02 | N36: 2 | U36: 0.5
A37: CI | B37: A350 | C37: 309 | D37: TLB | E37: MID_274 | F37: BC, Seat 17K, 18K. Please clean black traces and glue traces. | G37: AIRBUS | H37: 02/05 Les traces on été nettoyé | K37: F | L37: 2019-04-30 | M37: 2019-05-02 | N37: 2 | U37: 0.25
A38: ST | B38: A350 | C38: 309 | D38: TLB | E38: MID_63 | F38: Cockpit ; 3rd occupant seat : time to time : mechanical vertical adjustement from side up to side down abnormal noise heard. | G38: AIRBUS | H38: 07/05 Après vérification le siège est conforme a la définition | K38: F | L38: 2019-04-30 | M38: 2019-05-07 | N38: 5 | Z38: 0.5
A39: CI | B39: A330 | C39: 1937 | D39: EQLB | E39: LR.1937-0223 | F39: Cab B/C stowage door doesn t work correctly on several seat 3A, 1E, 7D | H39: 02/05 Porte ajusté 15/05 Rejeté " la porte de rangement du siège 3A ne fonctionne toujours pas correctement à l'ouverture" 07/06 Porte ajusté | K39: f | L39: 2019-04-19 | M39: 2019-06-07 | N39: 35 | U39: 1
A40: CI | B40: A330 | C40: 1937 | D40: EQLB | E40: LR.1937-0281 | F40: Cab all B/C seat customer request to removed placard FJNS3-1M0301-01 because to much visible | H40: 24/04 Fermer CL 20/05 "Rejeté "Please applied SM D940095.A" 07/06 Etiquette installé | I40: Attente appro | K40: F | L40: 2019-04-19 | M40: 2019-06-07 | N40: 35
A41: CI | B41: A350 | C41: 322 | D41: EQLB | E41: XW.0322-0130 | F41: CAB, BC ,SEAT 18K, 17K, 15K, 17F, 16F, 15F, 12F, 11F, BOTH SIDE, ARMREST : SNUBBER WHEN THEY DEPLOYIN | G41: STELIA | H41: 19/04 17K Ok accoudoir démonté/contrôlé/remonté 03/05 FERMER Accoudoir réglé | J41: ATE/TDT | K41: F | L41: 2019-04-17 | M41: 2019-05-03 | N41: 12 | V41: 1.5
A42: CI | B42: A350 | C42: 322 | D42: EQLB | E42: XW.0322-0114 | F42: CAB, BC, SEATS 12F, 19F, 14A, BIFOLD MEAL TABLE : DIFFICULT TO OPEN | G42: STELIA | H42: 18/04 12F ok / 19F 14A Tablette dur a ouvrir , voir si à changer 03/05 Réglage de la meal table 22/05 Collagedouble face sur moquette | J42: DLY/ATE/JBDT/JMS | K42: f | L42: 2019-04-17 | M42: 2019-05-03 | N42: 12 | U42: 0.5 | V42: 3 | AO42: 1
A43: CI | B43: A350 | C43: 322 | D43: EQLB | E43: XW.0322-0116 | F43: CAB, BC, SEAT 19K, 19K, 11K, : HEAD REST STIFF | G43: STELIA | H43: 18/04 Têtière repris 24/04 Têtière toujour dure 03/05 ajusté au mieux possible | J43: ADS | K43: F | L43: 2019-04-17 | M43: 2019-05-03 | N43: 12 | O43: REOPEN | V43: 0.5
A44: CI | B44: A350 | C44: 322 | D44: EQLB | E44: XW.0322-0118 | F44: CAB, BC ,SEAT 14A, 20K, 15K, 14K, 12K, 20F, 18F, 16F, AMENITY STOWAGE: DOOR STIFF | G44: STELIA | H44: 18/04 Repris 24/04 Ok pour tous fauf le 18F toujour dur 03/05 La porte a été ajusté | J44: DLY | K44: f | L44: 2019-04-17 | M44: 2019-05-03 | N44: 12 | O44: REOPEN | V44: 0.5
A45: CI | B45: A350 | C45: 322 | D45: EQLB | E45: XW.0322-0111 | F45: CAB, BC, SEAT 16DF, CENTER DIVIDER : INTERFERENCE SOUND WHEN STOWED | G45: STELIA | H45: 18/04 NPRF Bruit identique au 21DF,18DF,14DF 03/05 DIVIDER REGLER | J45: ADSATE | K45: F | L45: 2019-04-17 | M45: 2019-05-03 | N45: 12 | V45: 0.5
A46: CI | B46: A350 | C46: 322 | D46: EQLB | E46: XW.0322-0112 | F46: CAB, BC, SEAT 19DF, CENTER DIVIDER : UNABLE TO DEPLOY | G46: STELIA | H46: 02/05 Divider à ajusté ou à changer 03/05 Le divider a été ajusté | J46: TBE | K46: f | L46: 2019-04-17 | M46: 2019-05-03 | N46: 12 | U46: 0.5 | V46: 1.5
A47: CI | B47: A350 | C47: 322 | D47: EQLB | E47: XW.0322-0094 | F47: CAB, BC, SEATS 14K, 17K, 19K, 21A, 21K , 16A, 15A 12D, 15D, 16D, 17D, 19D, 20D, 21D, 21F, 20F, 18F, 17F, 15F, 14F, 11F: NOISY (CREAKING SOUNDS) WHEN GOING TO AND FROM BED POSITION | G47: STELIA | H47: 19/04 17 D bruit ok - tetière/ demi lune / parapluie remis en place bet check des bruit de tout les autres sièges 03/05 Tout les siège reglé | J47: ATE/DLY/JMS/TDT | K47: f | L47: 2019-04-17 | M47: 2019-05-03 | N47: 12 | U47: 7.5 | V47: 2
A48: CI | B48: A350 | C48: 322 | D48: EQLB | E48: XW.0322-0136 | F48: CAB, BC, SEAT 16F, AMENITY STOWAGE COMPT, INSIDE : NO LIGHT | G48: STELIA | H48: 02/05 Switch reglé | K48: F | L48: 2019-04-23 | M48: 2019-05-03 | N48: 8 | U48: 0.5
A49: CI | B49: A350 | C49: 322 | D49: EQLB | E49: XW.0322-0137 | F49: CAB, BC, SEAT 21A, LITT POCKET, ORANGE PART : NOT CORRECTLY INSTALLED | G49: AIRBUS | H49: 02/05 Literrature pocket regler | J49: ADS | K49: F | L49: 2019-04-23 | M49: 2019-05-03 | N49: 8 | U49: 0.5
A50: CI | B50: A350 | C50: 312 | D50: EQLB | E50: XW.0312-0040 MID_190 | F50: CAB BC SEATS 8HJ 7GL 6HJ 5L 4HJ 3GL 2HJ 1G 1EC 4A 5CE 6D 7CE 8AD MEAL TABLE CLOSURE STIFF. (Please to give tolerance measurements taken by seats and specification) | G50: STELIA | H50: 22/03 Prise de mesure des tablettes 09/05 Dépose tablette 1E,1C,4E,7C,7E,8J,8L Dépose sur tablette 14/05 Fermeture du point du poste (changement de la reponse) 15/05 Toutes les meal-table remonté + recherche de vis + rondelle | I50: Attente peson PN TABLETTE . FJST1-1T6001-01; FJST1-1T6001-02 | J50: JBDT/ESI/ATE/TBE/ESI | K50: F | L50: 2019-03-21 | M50: 2019-05-16 | N50: 40 | AB50: 6 | AG50: 2 | AH50: 3
A51: CI | B51: A350 | C51: 312 | D51: TLB | E51: MID_30 | F51: SAP WO - RTI 1007807132 FIT UNTIL : H/O - Handover WO 1007807132 Titre RTI : GTI IFE intercae tests | G51: IFE Pana | H51: 06/05 FSIB changer | I51: PN/ RDFA3800-01 SN IN H146126 SN OUT H742985 | K51: F | L51: 2019-04-26 | M51: 2019-05-06 | N51: 6 | Y51: 1
A52: CI | B52: A330 | C52: 1937 | D52: EQLB | E52: LR.1937-0252 | F52: Cab B/C seat 5E cover panel disbonded | H52: 10/05démontage / Double face mis en place/remontage 15/05 Rejeté "panneau de couverture reste décollé" 06/06 cover fixé | J52: ESI/JMS/ | K52: F | L52: 2019-04-19 | M52: 2019-06-06 | N52: 34 | AC52: 2
A53: CI | B53: A330 | C53: 1937 | D53: EQLB | E53: LR.1937-0268 | F53: Cab B/C seat 3 D and 3 E cover panel are disbonded close screen | H53: 28/05 CL Rejeté 06/06 Panneau ajusté | K53: F | L53: 2019-04-19 | M53: 2019-06-06 | N53: 34
A54: CI | B54: A350 | C54: 316 | D54: TLB | E54: MID_69 | F54: CABIN SR 11K INTERIOR SKIN UPPER SIDE UNSTUCK | G54: STELIA | K54: F | L54: 2019-04-11 | M54: 2019-05-06 | N54: 17
A55: CI | B55: A350 | C55: 316 | D55: Nc | E55: 206078829 | F55: Bubble/Mark/Scratch on the corner of the meal table SN 301 285 289 293 318 288 281 286 | G55: STELIA | H55: 22/05 check des assise + changement bumper | I55: EN commander ST43-3450 Reçu 15/04 | K55: F | L55: 2019-01-23 | M55: 2019-05-22 | N55: 85 | AO55: 2
A56: CI | B56: A350 | C56: 316 | D56: EQLB | E56: XW.0316-0058 | F56: CAB, BC, ALL SEATS, ARMREST ACCESS PANEL: PANEL IS LOOSE. PLEASE CHECK ALL BC SEATS. | G56: AIRBUS | H56: 14/05 FERMER ACCOUDOIR AJUSTE 17/05 Rejeté "11A / 11D / 12A / 14D / 15A / 16D / 16A / 17D / 17A / 19D / 20A / 12K / 16K / 20F." 23/05 Toutes les conssole basse on été ajusté et velcro remis ou ajouté | J56: DMT/TDT | K56: f | L56: 2019-03-29 | M56: 2019-05-23 | N56: 39 | O56: REOPEN | P56: No - x2 | AG56: 3 | AP56: 3.5
A57: CI | B57: A350 | C57: 316 | D57: EQLB | E57: XW.0316-0088 | F57: CAB, BC, SEAT 12D, SEAT MOTION: NOISE AUDIBLE DURING MOTION. | G57: AIRBUS | H57: 22/05 Teinture faite | J57: JBDT/JMS | K57: f | L57: 2019-03-29 | M57: 2019-05-22 | N57: 38 | AO57: 2
A58: CI | B58: A350 | C58: 309 | D58: TLB | E58: MID_284 | F58: In Cabin On ottoman central B/C on the both side we notice a deformation on deco. | G58: STELIA | H58: 06/05 FERMER CL | K58: F | L58: 2019-04-30 | M58: 2019-05-06 | N58: 4
A59: CI | B59: A350 | C59: 322 | D59: EQLB | E59: XW.0322-0131 | F59: CAB , BC, SEAT 20A, 21K, 11K, 12D, LHS ARMREST, PUSH BUTTON : DIFFICULT TO USE | G59: STELIA | H59: 18/04 Après verification NPRF 19/04 12D ok 21k/20a/11k doit être retravaillé 02/05 18k, 17k, 15k, 17f, 16f, 15f, 2f, 11f, Problème suite au modif NPRF 06/05 Apres demontage / remontage de l'accoudoir ok | J59: DLY/TBE/ADS | K59: f | L59: 2019-04-17 | M59: 2019-05-06 | N59: 13 | U59: 0.5 | Y59: 2
A60: CI | B60: A350 | C60: 316 | D60: EQLB | E60: XW.0316-0104 | F60: CAB, BC, FACING SEAT 19A, STWG S2AL, UPPER INBD AFT CORNER: TRIM IS DAMAGED. | G60: AIRBUS | H60: 23/05 Rework ottoman 26/03 Couver par point TRACE "6016646799" Attente pièce | J60: RTK | K60: f | L60: 2019-03-21 | AP60: 3.5
A61: CI | B61: A350 | C61: 322 | D61: EQLB | E61: XW.0322-0098 | F61: CAB, BC, SEAT 14A : NOISY WHEN RECLINING | G61: STELIA | H61: 18/04 NPRF Pour le bruit têtière et demi lune bien placé 03/05 Assise lubrifié + ouverture/fermeture assise + recherche bruit + essaie 06/05 Lubrifié | J61: ATE/TBE/ADS | K61: f | L61: 2019-04-17 | M61: 2019-05-06 | N61: 13 | V61: 2 | Y61: 0.5
A62: CI | B62: A350 | C62: 322 | D62: EQLB | E62: XW.0322-0104 | F62: CAB, BC, SEAT 18A, AISLE SIDE BLUE LIGHT : NO BLUE LIGHT DESPITE POWER CHARGER PLUGGED IN PED POWER (AND POWER ON ) | G62: STELIA | H62: 02/05 18A Blue ligt ne s'allume pas , à vérifier quand le switch sera remonté 06/05 Cable connecte | K62: F | L62: 2019-04-17 | M62: 2019-05-06 | N62: 13 | U62: 0.25 | Y62: 0.5
A63: CI | B63: A350 | C63: 316 | D63: EQLB | E63: XW.0316-0173 | F63: CAB, BC, SEAT 18F, MEAL TABLE, STOWED POSITION: WHEN PUSHING ON THE TABLE, IT DOESN'T COME BACK FLUSH WITH THE STRUCTURE. | G63: STELIA | H63: 01/04 Tablette ajusté 10/05 Rejété toujour le meme problème | J63: ATE | K63: f | L63: 2019-03-29 | O63: REOPEN
A64: CI | B64: A350 | C64: 316 | D64: EQLB | E64: XW.0316-0175 | F64: CAB, BC, SEAT 17A, COCKTAIL TABLE: PAINT IS DAMAGED ON FWD PART. | G64: AIRBUS | H64: 09/05 Pièce changer | I64: FJSA2-1R0381-01 | K64: F | L64: 2019-03-29 | M64: 2019-05-09 | N64: 29 | AB64: 1.5
A65: CI | B65: A350 | C65: 322 | D65: EQLB | E65: XW.0322-0127 | F65: CAB, BC, SEAT 18F, 21F, 15D, ADJUSTABLE ARMREST: CANNOT DEPLOY | G65: STELIA | H65: 07/05 Accoudoir ajusté | K65: F | L65: 2019-04-17 | M65: 2019-05-07 | N65: 14 | Z65: 0.5
A66: CI | B66: A350 | C66: 322 | D66: EQLB | E66: XW.0322-0133 | F66: CAB, BC, SEAT 14A, 16A, 21A, 21K, 17K, 14K, 12K, 11D, 14D, 19D, 21F,12F, BOTH SIDE, ARMREST : LEATHER WRINKLED | G66: STELIA | H66: 07/05 FERMER CGL P44 | K66: F | L66: 2019-04-17 | M66: 2019-05-07 | N66: 14
A67: CI | B67: A350 | C67: 322 | D67: EQLB | E67: XW.0322-0097 | F67: CAB, BC, ALL SEATS, HEADREST, BOTTOM PART, DUAL LOCK, HOOK SIDE : VELCRO CHAFFING AGAINST SHOULDER STRAP AND MAKING CHAFFING NOISE WHEN PULLING THE STRAP | G67: Other | H67: 07/05 FERMER CL | K67: F | L67: 2019-04-17 | M67: 2019-05-07 | N67: 14
A68: CI | B68: A330 | C68: 1937 | D68: EQLB | E68: LR.1937-0220 | F68: Cab B/C seat gap visible on padding on several seat 1D, 2D, 3D, 5D, 6D, 7D, 8D | H68: 10/05 Ajustement padding 17/05 Rejeté "Gap toujours visible 20/05 Ajustement des gaps 05/06 Ajustement des paddings | J68: TBE/RTK | K68: F | L68: 2019-04-19 | M68: 2019-06-05 | N68: 33 | AC68: 3 | AM68: 4
A69: CI | B69: A350 | C69: 305 | D69: EQLB | E69: xw.0305-0069 | F69: CAB BC SEAT 14D, THE MEAL TABLE DOES NOT OPEN FULLY WITHOUT FORCE HELP | G69: STELIA | H69: 06/05 Changement de la tablette 14D | J69: JMS | K69: f | L69: 2019-05-06 | M69: 2019-05-07 | N69: 1 | Y69: 1
A70: CI | B70: A350 | C70: 305 | D70: EQLB | E70: xw.0305-0065 | F70: CAB BC SEAT 12A NOISY TO PUT IN BED POSTION AND SEAT PAN DROP TO COME BACK IN TTL | G70: STELIA | H70: 06/05 Siège 12A fait à fermer assises basse désséré + graissage +ouverture + fermeture du siège; | J70: TBE | K70: F | L70: 2019-05-06 | M70: 2019-05-07 | N70: 1 | Y70: 1
A71: CI | B71: A350 | C71: 305 | D71: EQLB | E71: xw.0305-0066 | F71: CAB BC SEAT 18F, PAD MORE VIBRATING THAN THE OTHERS SEATS | G71: STELIA | H71: 06/05 commande ajusté vibration normal à fermer | J71: TBE | K71: F | L71: 2019-05-06 | M71: 2019-05-07 | N71: 1 | Y71: 0.5
A72: CI | B72: A350 | C72: 305 | D72: EQLB | E72: xw.0305-0070 | F72: CAB BC SEAT 16A INBOARD MOVABLE ARMREST NOISY | G72: STELIA | H72: 06/05 Test avec un autre accoudoir non concluant car un nouveau bruit ce fait. | J72: TBE | K72: f | L72: 2019-05-06 | M72: 2019-05-07 | N72: 1 | Y72: 1
A73: CI | B73: A350 | C73: 305 | D73: EQLB | E73: xw.0305-0072 | F73: CAB BC SEAT 17A , PAINT DEFECT ON MEAL TABLE FRAME | G73: STELIA | H73: 06/05 Retouche peinture ok | J73: TBE | K73: F | L73: 2019-05-06 | M73: 2019-05-07 | N73: 1 | Y73: 0.5
A74: CI | B74: A350 | C74: 305 | D74: EQLB | E74: xw.0305-0074 | F74: CAB BC SEAT 18A, INTERNAL COVER OF ARMREST WITH DEVIATIONS | G74: STELIA | H74: 06/05 Accoudoir chanher ok + ouverture + fermeture + deposep pièce + graissage + essaie | J74: TBE | K74: F | L74: 2019-05-06 | M74: 2019-05-07 | N74: 1 | Y74: 1
A75: CI | B75: A350 | C75: 305 | D75: EQLB | E75: XW,0305-0067 | F75: CAB BC SEAT 14A, DEVIATION ON THE LOWER COVER UNDER THE LITTERATURE POCKET | G75: AIRBUS | H75: 07/05 Cover changer | I75: FJSA1-1N2024-07 | K75: F | L75: 2019-05-06 | M75: 2019-05-07 | N75: 1 | Z75: 1
A76: CI | B76: A350 | C76: 305 | D76: EQLB | E76: XW,0305-0075 | F76: CAB BC SEAT 19A COVER UNDER MONITOR NOT PROPERLY INSTALLED | G76: STELIA | H76: 07/05 ajusté | K76: F | L76: 2019-05-06 | M76: 2019-05-07 | N76: 1 | Z76: 0.5
A77: CI | B77: A350 | C77: 305 | D77: EQLB | E77: xw.0305-0076 | F77: CAB BC SEAT 19D NOISY TO PUT ON BED POSITION AT THE END OF THE COURSE (SPRING NOISE) | G77: STELIA | H77: 06/05 Réglage bruit de siège 08/05 Bruit vu avec FCM ok | J77: JMS/TBE/RTK | K77: F | L77: 2019-05-07 | M77: 2019-05-08 | N77: 1 | Y77: 1 | AA77: 1.5
A78: CI | B78: A350 | C78: 305 | D78: EQLB | E78: xw.0305-0064 | F78: CAB BC SEAT 11F, GAP BTW COCKTAIL TABLE COVER AND TOP COVER, PLEASE ASSESS | G78: STELIA | H78: 07/05 Pose de silicone sur la casqutte 11F 08/05 Gap ajusté | J78: JMS/TDT/TBE | K78: F | L78: 2019-05-07 | M78: 2019-05-08 | N78: 1 | Z78: 1 | AA78: 1.5
A79: CI | B79: A350 | C79: 312 | D79: TLB | E79: MID_148 | F79: BC SR2A USB PORT RED LIGHT ILLUMINATED | G79: AIRBUS | H79: 09/08 Apres Vérification aucune panne | K79: F | L79: 2019-05-08 | M79: 2019-05-09 | N79: 1 | AB79: 0.5
A80: CI | B80: A350 | C80: 322 | D80: EQLB | E80: XW.0322-0115 | F80: CAB, BC, SEATS 16K, 18K, 19K, 20F, 21K, 21A, 18D, 18A, 16D, 16A, 15D, 15A, 12D, 11D, MEAL TABLE HINGES WHEN OPENED , SCRATCHES VISIBLE | H80: VOIR CL | K80: o | L80: 2019-04-17
A81: CI | B81: A350 | C81: 322 | D81: EQLB | E81: XW.0322-0093 | F81: CAB, BC, SEATS 12K, 16K, 17K, 18K, 21A, 20A, 18A,17A, 16A, 11A, 12D, 14D, 15D, 16D, 17D, 19D, 20D, 21D, 21F, 20F, 19F, 15F, 11F, WHEN SEAT IS IN BED POSITION, FIXED HORSESHOE CUSHION LEATHER : LEATHER IS WRINKLED | H81: VOIR CL | K81: o | L81: 2019-04-17
A82: CI | B82: A330 | C82: 1937 | D82: EQLB | E82: LR.1937-0222 | F82: Cab B/C gap visible on padding on several seat 2H, 5H,7H | H82: 02/05 Padding ajusté 15/05 Rejeté "gap toujours visible et inclure le 3H" 05/06 Gap repris | K82: f | L82: 2019-04-19 | M82: 2019-06-05 | N82: 33 | U82: 0.5
A83: CI | B83: A350 | C83: 322 | D83: EQLB | E83: XW.0322-0123 | F83: CAB, BC, SEAT 1IF, 1RF, 11F, 1TA, 15K, 12K, 19F, 21F, 21D, AISLE SIDE, EXTERNAL SIDE : GAP BTW THE PANEL AND FRONT COVÉ - | G83: OTHER | H83: 18/04 11F/ 14F / 21D / 2mm 12K / 15K/ 19F/ 21F/ CL 02/05 Après check si on plaque la coque elle vient en contact avec l'étiquette de place , NPRF 10/05 Fermer avec la CGL | J83: ADS | K83: F | L83: 2019-04-17 | M83: 2019-05-10 | N83: 17 | U83: 0.5 | AC83: 0.5
A84: CI | B84: A350 | C84: 322 | D84: EQLB | E84: XW.0322-0108 | F84: CAB, BC, SEATS 12K, 15K, 15F, 16F, 17K, 18A, 17D, 16A, 15D, ALCANTARA PADDING AT READING LIGHT AREA : PADDING IS PINCHED - | H84: VOIR CL | K84: o | L84: 2019-04-17 | N84: =IF(OR(L84="",M84=""),"",IF(NETWORKDAYS(L84,M84)-1>=0,NETWORKDAYS(L84,M84)-1,0)) -> 
A85: CI | B85: A330 | C85: 1937 | D85: EQLB | E85: LR.1937-0221 | F85: Cab B/C gap visible on padding on several seat 1A, 2A, 3A, 5A, 6A, 7A, | H85: 10/05 Ajustement padding 17/05 Rejeté "Gap toujours visible 05/06 Ajustement Padding | J85: RTK/JMS/ESI | K85: F | L85: 2019-04-19 | M85: 2019-06-05 | N85: 33 | AC85: 3
A86: CI | B86: A330 | C86: 1937 | D86: EQLB | E86: LR.1937-0278 | F86: Cab B/C aliminium profil disbonded on several seat 6E, 7E, 3D, 6D, 7A, 2A | H86: 17/05 Joint blanc effectué + nettoyage 27/05 Rejeté 6E et 7A profilé decolllé 05/06 6E et 7a repris | J86: JBDT/RTK | K86: F | L86: 2019-04-19 | M86: 2019-06-05 | N86: 33 | AJ86: 2
A87: CI | B87: A330 | C87: 1938 | D87: EQLB | E87: LR.1938-0144 | F87: Cabin BC seat 1A/3A/6A/1D/3D/6D/8D/2E/5E/7E/2H/5H/8H Jack plug installed upside down | H87: 03/06 Fermer avec le plan | K87: F | L87: 2019-05-20 | M87: 2019-06-03 | N87: 10
A88: CI | B88: A350 | C88: 322 | D88: EQLB | E88: XW.0322-0110 | F88: CAB, BC, SEATS 11DF, 14DF, 16DF, 19DF, CENTER DIVIDER : GAP VISIBLE | H88: 18/04 Repris au mieux 24/04 Rejeté gap toujour présent 02/05 11DF/14DF/16DF/19DF GAP Mousse coque NPRF VOIR CL | J88: ADS/DLY/ADS /TBE | K88: O | L88: 2019-04-17 | O88: REOPEN | U88: 0.5
A89: CI | B89: A330 | C89: 1937 | D89: EQLB | E89: LR.1937-0242 | F89: Cab B/C seat 7H edge profile impacted on lower area | G89: AIRBUS | H89: 15/05 Retouche peinture / Rejeté "l'impact reste visible sur le bord du profil" 22/05 Retouche peinture+ ponçage | J89: JBDT/JMD | K89: F | L89: 2019-04-19 | M89: 2019-05-23 | N89: 24 | AO89: 2
A90: CI | B90: A330 | C90: 1937 | D90: EQLB | E90: LR.1937-0198 | F90: Cab B/C seat1H screen cover scratched on upper corner | G90: AIRBUS | H90: 15/05 Retouche peinture 17/05 Rejeté "impact toujours visible" 22/05 Retouche peinture + ponçage 23/05 Retouche peinture | J90: JBDT/JMS | K90: F | L90: 2019-04-19 | M90: 2019-05-23 | N90: 24 | AO90: 1 | AP90: 1
A91: CI | B91: A350 | C91: 312 | D91: TLB | E91: CID_21 | F91: During pre ground check inspection, B/C center L/H, forward stowage: Found losse strap in stowage compartment. Please provide installation drawing. | H91: 23/05 Point fermer avec document attaché | K91: F | L91: 2019-05-22 | M91: 2019-05-23 | N91: 1
A92: CI | B92: A350 | C92: 322 | D92: Nc | E92: 206205502 | F92: Zone 2 B/C dernier siège central droit, constatons une rayure sur la coque. Voir doc. joint. Are 2 B/C last CTR RH seat we notice a scratch on the lateral panel. See attached doc. | G92: AIRBUS | H92: 10/04 Après vérification coque à changer 02/05 Retouche peinture faite 27/05M Marroufle | I92: CAPOT LATERAL EN COMMANDE PN/ FJSA1-1N2387-01 | J92: JMS/RTK | K92: F | L92: 2019-03-06 | M92: 2019-05-27 | N92: 58 | P92: No - x1 | U92: 1 | AT92: 1
A93: ST | B93: A350 | C93: 301 | D93: TLB | E93: MID_90 | F93: Cockpit ; 3rd occupant seat : clac noise audible from backrest close to lumbar | H93: 22/05 Réglage cable lombaire + attente contrôle + route + fermeture | I93: SEAT PN TAAI8-03IM06-01 SER A350-11267 | K93: F | L93: 2019-05-22 | M93: 2019-05-22 | N93: 0 | AO93: 2
A94: CI | B94: A330 | C94: 1938 | D94: EQLB | E94: LR.1938-0155 | F94: Cabin BC seat 1E fwd screen Screen noisy | G94: STELIA | H94: 21/05 screen reworke | K94: F | L94: 2019-05-20 | M94: 2019-05-21 | N94: 1 | AN94: 1
A95: CI | B95: A350 | C95: 322 | D95: Nc | E95: 206413725 | F95: During inspection P20 J1 of WP B/C SEAT, we notice a defect on mon ument 14D, Backshell , Covering surface.Comment: Scratch inside backshell Au cours de l’inspection P20 J1 du WP B/C SEAT. Nous avons remarqué un defaut sur le monument 14D, Backshell , Cov ering surface. | G95: AIRBUS | H95: 27/05 ratrappage defaut | I95: EN COMMANDE FJSA1-1N2398-02 | J95: TBE | K95: F | L95: 2019-04-10 | M95: 2019-05-27 | N95: 33 | AT95: 0.5
A96: CI | B96: A330 | C96: 1938 | D96: EQLB | E96: LR.1938-0158 | F96: Cabin BC seat 1H outboard cover Cover not fasten | G96: AIRBUS | H96: 2/05 Cover enlevé et réajusté 20/05 Cover ajusté | K96: f | L96: 2019-05-20 | M96: 2019-05-21 | N96: 1 | AM96: 0.5
A97: CI | B97: A350 | C97: 322 | D97: Nc | E97: 206417499 | F97: During inspection P20 J3 of WP B/C SEAT, we notice a defect on mon ument 20A, Backshell , .Comment: impact on top trim | G97: AIRBUS | H97: 02/05 check impact trim 08/05 La trim a été changé | I97: EN COMMANDE FJSA1-1N3051-01 | J97: TDT/TBE | K97: F | L97: 2019-04-11 | M97: 2019-05-09 | N97: 20 | U97: 0.5 | AA97: 1
A98: CI | B98: A350 | C98: 322 | D98: Nc | E98: 206418079 | F98: During inspection P20 J3 of WP B/C SEAT, we notice a defect on mon ument 20D, Backshell , Covering surface.Comment: scratch on backshell Au cours de l’inspection P20 J3 du WP B/C SEAT. Nous avons remarqué un defaut sur le monument 20D, Backshell , Cov ering surface.Comment : | G98: AIRBUS | H98: 27/05 La coque a été channger ( demontage de l'ancienne et remontage de la nouvelle) | I98: EN COMMANDE; FJSA1-1N2056-01 RECU A FAIRE | K98: f | L98: 2019-04-11 | M98: 2019-05-28 | N98: 33 | AT98: 5
A99: CI | B99: A350 | C99: 322 | D99: Nc | E99: 206418910 | F99: During inspection P20 J3 of WP B/C SEAT, we notice a defect on mon ument 20D, Footwell structure, .Comment: Part of footrest damaged Au cours de l’inspection P20 J3 du WP B/C SEAT. Nous avons remarqué un defaut sur le monument 20D, Footwell struct ure, .Comment : | G99: AIRBUS | H99: 27/05 footrest déposé et changé | I99: EN COMMANDE FJSA2-1N2397-01 | J99: TDT | K99: F | L99: 2019-04-11 | M99: 2019-05-27 | N99: 32 | AT99: 1
A100: CI | B100: A350 | C100: 322 | D100: Nc | E100: 206418714 | F100: During inspection P20 J3 of WP B/C SEAT, we notice a defect on mon ument 20F, Footwell structure, .Comment: Part of footrest damaged Au cours de l’inspection P20 J3 du WP B/C SEAT. Nous avons remarqué un defaut sur le monument 20F, Footwell struct ure, | G100: AIRBUS | H100: 27/05 footrest déposé et changé | I100: EN COMMANDE FJSA2-1N2397-02 | J100: TDT | K100: F | L100: 2019-04-11 | M100: 2019-05-27 | N100: 32 | AT100: 1
A101: CI | B101: A330 | C101: 1938 | D101: EQLB | E101: LR.1938-0159 | F101: Cabin BC seat 2A aisle cover Cover not fasten | G101: AIRBUS | H101: 21/05 Cover installé correctement | K101: f | L101: 2019-05-20 | M101: 2019-05-21 | N101: 1 | AN101: 1
A102: CI | B102: A330 | C102: 1938 | D102: EQLB | E102: LR.1938-0163 | F102: Cabin BC seat 3A cover Cover unstuck | G102: AIRBUS | H102: 21/05 Cover déposé/réajusté | K102: F | L102: 2019-05-20 | M102: 2019-05-21 | N102: 1 | AN102: 1
A103: CI | B103: A350 | C103: 322 | D103: Nc | E103: 206424323 | F103: During inspection P20 J2 of WP B/C SEAT, we notice a defect on mon ument , Ottoman, Seal. Au cours de l’inspection P20 J2 du WP B/C SEAT. Nous avons remarqué un defaut sur le monument , Ottoman, Seal. | G103: AIRBUS | H103: joint inter-stowage à changer | I103: EN COMMANDE SJSA-150715-01 | K103: F | L103: 2019-04-12 | M103: 2019-06-06 | N103: 39
A104: CI | B104: A330 | C104: 1938 | D104: EQLB | E104: LR.1938-0162 | F104: Cabin BC seat 3D headrest cover Cover dirty | G104: AIRBUS | H104: 21/05 Nettoyé | K104: F | L104: 2019-05-20 | M104: 2019-05-21 | N104: 1 | AN104: 1
A105: CI | B105: A350 | C105: 327 | D105: Gamme | E105: 6016992292-AG00-004573 | F105: replacement IFE, harness, screen EA Description: SEAT OSW Descr: replacement IFE, harness, screen Part Descr: BC SEAT- DBL CTR FR (S33) EA PNR: FJEQ5-101302-01 EA SerNr.: 37 EQPT FIN: V5212ME001 MX | G105: STELIA | H105: 10/04 Changement du cable et de l'écran | I105: réf 183501-201, numéro de série A1836797 | J105: JBDT | K105: f | L105: 2019-04-03 | M105: 2019-05-13 | N105: 28
A106: CI | B106: A350 | C106: 327 | D106: Gamme | E106: 6016992292-AG00-004572 | F106: install houssing ant labell EA Description: SEAT OSW Descr: install houssing ant labell Part Descr: BC SEAT- DBL CTR FR (S33) EA PNR: FJEQ5-101302-01 EA SerNr.: 37 | G106: STELIA | H106: 14/05 mis en place de l'étiquette + trajet | J106: TBE/ESI | K106: f | L106: 2019-03-26 | M106: 2019-05-17 | N106: 38 | AG106: 1
A107: CI | B107: A350 | C107: 327 | D107: Gamme | E107: 6016992314-AG00-004576 | F107: install security labell EA Description: SEAT OSW Descr: install security labell Part Descr: BC SEAT- DBL RH LR (L32) EA PNR: FJEQ5-101204-01 EA SerNr.: 36 EQPT FIN: V5212ME003 MG | G107: STELIA | H107: 15/05 Etiquette posé | J107: ESI | K107: f | L107: 2019-03-26 | M107: 2019-05-17 | N107: 38 | AH107: 0.5
A108: CI | B108: A350 | C108: 327 | D108: Gamme | E108: 6016992301-AG00-004574 | F108: remplacement habillage et collage etiquette EA Description: SEAT OSW Descr: remplacement fairing Part Descr: BC SEAT- DBL LH FR (S31K) EA PNR: FJEQ5-101101-01 EA SerNr.: 31 EQPT FIN: V5212ME001 MA Estimated Work: 75000 min TRACE State: RE TRACE Type: E Concession Ref: | G108: STELIA | H108: 15/05 Backchel demonté + recherche comment démonter + plusieur pièce démonté | J108: TBE | K108: O | L108: 2019-04-03 | AH108: 2
A109: CI | B109: A350 | C109: 327 | D109: Gamme | E109: 6016992351-9 | F109: EA Description: SEAT OSW Descr: Reassembly of seat parts of Stelia resp | G109: STELIA | H109: 24/05 Repose du Backshell | J109: RTK/TDT/ESI | K109: O | L109: 2019-04-03 | AQ109: 4
A110: CI | B110: A350 | C110: 327 | D110: I-Nc | E110: 206385479 | F110: V-Inc-AR-PbDoc-B/CS-QP-INC-GEN0002 -------------------------------------- Moment of Detection : During Incoming Inspection PN: FJEQ5-101302-01 SN: 37 PN: FJEQ5-101101-01 SN: 31 PN: FJEQ5-101103-01 SN: 32 PN: FJEQ5-101104-01 SN: 33 PN: FJEQ5-101201-01 SN: 34 PN: FJEQ5-101203-01 SN: 35 PN: FJEQ5-101204-01 SN: 36 PN: FJEQ5-101303-01 SN: 38 PN: FJEQ5-101304-01 SN: 39 ************************************************************ * Source inspection report states there is 7 TRACE points, No record in TRACE of the outstanding work that needs to be carried out for the following parts | G110: STELIA | K110: F | L110: 2019-04-02 | M110: 2019-05-13 | N110: 29
A111: CI | B111: A350 | C111: 327 | D111: I-Nc | E111: 206372663 | F111: V-Inc-AR.ZT-NCAssem-B/CS-QP-INC-GEN0017 The lateral cover of the armrest is not correctly fitted QP-INC-GEN0017 SN 32 37 33 39 36 35 34 38 31 | G111: STELIA | H111: 09/05 Après vérification AS PER DESIGN | K111: F | L111: 2019-03-28 | M111: 2019-05-09 | N111: 30 | AB111: 1
A112: CI | B112: A350 | C112: 327 | D112: Nc | E112: 206407740 | F112: During the security visit before the B/C finishing part installation, area 1 , frame 21/22 RHS, we notice that the seal on the back of the seat item 1 is cut. | G112: AIRBUS | H112: 28/05 Le joint a été changer | I112: EN COMMANDE FJEQ1-1R2110-03 | K112: F | L112: 2019-04-09 | M112: 2019-05-28 | N112: 35 | AU112: 1
A113: CI | B113: A350 | C113: 327 | D113: I-Nc | E113: 206418479 | F113: During unpacking of the finishing part of the B/C area 1, we notice that the screws kit installation for the curtain rear of the seat items 300 and 310, frame 20/24 CTR, is incomplete. | G113: STELIA | H113: 13/05 Le rideau a été changer | I113: FJEQ1-1R2110-03 | K113: F | L113: 2019-04-11 | M113: 2019-05-13 | N113: 22 | AF113: 1
A114: CI | B114: A350 | C114: 327 | D114: Nc | E114: 206495822 | F114: DAM-STICKER-B/CSEATS During B/C Seats PNE inspection, we notice that 2 stickers "Réservé aux magazines Literature only" reference FJEQ5-1M0009-01 are damaged on seats 1A and 1K. | G114: AIRBUS | I114: EN COMMANDE FJEQ5-1M0009-01 | K114: F | L114: 2019-05-13 | M114: 2019-05-23 | N114: 8 | AP114: 2.5
A115: CI | B115: A350 | C115: 327 | D115: Nc | E115: 206496310 | F115: During inspection P20 J1 of WP B/C SEAT, we notice a defect on mon ument 1A, Lateral shell, Kickstrip.Comment: Au cours de l’inspection P20 J1 du WP B/C SEAT. Nous avons remarqué un defaut sur le monument 1A, Lateral shell, K ickstrip We notice that lateral foot cover atseats 1A AND 2K is unstuck | G115: AIRBUS | H115: 14/05 Les deux ont été poncé, collé et ajusté 16/05 Retouché attente séchage 16/05 Rejete a refaire sur le 1A 17/05 Pièce recoller | J115: ESI/TBE/RTK/JMS/TDT | K115: F | L115: 2019-05-13 | M115: 2019-05-17 | N115: 4 | AG115: 1.5 | AI115: 0.5 | AJ115: 2
A116: CI | B116: A350 | C116: 327 | D116: Nc | E116: 206496313 | F116: Au cours de l’inspection P20 J1 du WP B/C SEAT. Nous avons remarqué un defaut sur le monument 2E, Footwell, Trim. Comment : The footwell trim is badly positionned. Also many remaining sealant is presenr on whole B.C seats trm area. Please clean it. | G116: AIRBUS | H116: 14/05 Panneau repositionnet + joint | J116: ESI/TBE | K116: F | L116: 2019-05-13 | M116: 2019-05-15 | N116: 2 | AG116: 2
A117: CI | B117: A350 | C117: 327 | D117: Nc | E117: 206496712 | F117: Information complémentaire : During ground test we noticed the seat 3A and 1E cheer up automatically in end of bed position. Demandons intervention pour remise en conformité. | H117: 15/05 test et recherche de bruit.+ parapluie ajusté ok 16/05 Vérification du bruit parapluie siège 1E (Pièce à commander) 16/05 Rejeté sur le 1E 20/05 Ajustement siège + réglage parapluie | I117: PARAPLUIE EN COMMANDE PN/ FJEQ1-1N3116-31 | J117: RTK/ESI | K117: o | L117: 2019-05-13 | M117: 2019-05-16 | N117: 3 | AH117: 4.5 | AI117: 0.5 | AM117: 9
A118: CI | B118: A330 | C118: 1938 | D118: EQLB | E118: LR.1938-0141 | F118: Cabin BC seat 7H jack plug Jack plug not fasten | G118: AIRBUS | H118: 21/05 Prise re-ajusté | K118: F | L118: 2019-05-20 | M118: 2019-05-21 | N118: 1 | AN118: 1
A119: CI | B119: A350 | C119: 335 | D119: Nc | E119: 206456921 | F119: Au cours de l’inspection P38 J1 du WP B/C SEAT. Nous avons remarqué un defaut sur le monument 3E, Seat structure, Cove ring surface. | G119: AIRBUS | H119: 13/05 Accoudoir polisher mais non concluant + démontage et changement de place car trace très légère/démontage de l'accoudoire sur l'autre place et remontage des deux sur zone moins visible. | J119: RTK/JBDT | K119: f | L119: 2019-04-25 | M119: 2019-05-13 | AF119: 2
A120: CI | B120: A330 | C120: 1938 | D120: EQLB | E120: LR.1938-0179 | F120: Cabin BC seat ottoman of first row Seal bad aspect | G120: AIRBUS | H120: 21/05 joint réajusté | J120: TDT | K120: F | L120: 2019-05-20 | M120: 2019-05-21 | N120: =IF(OR(L120="",M120=""),"",IF(NETWORKDAYS(L120,M120)-1>=0,NETWORKDAYS(L120,M120)-1,0)) -> 1 | AN120: 1
A121: CI | B121: A350 | C121: 327 | D121: Nc | E121: 206414966 | F121: During the finishing part installation of the B/C, area 1, frame 25/26 LHS, seat item 120, we notice that the structural support which serves to maintain the curtain rear is broken. | G121: AIRBUS | H121: 14/05 Pièce au poste à remettre + changement rail parapluie | J121: TBE/ESI | K121: F | L121: 2019-05-10 | M121: 2019-05-15 | N121: 3 | AG121: 2
A122: CI | B122: A350 | C122: 328 | D122: I-Nc | E122: 206214268 | F122: V-Inc-AR-PbAspect-B/CS-noQP The leather of the inner movable armrest is wrinkled following GCA point 2 page 38 SN 362 - 378 - 382 - 375 - 364 - 386 - 390 - 367 | G122: STELIA | H122: 04/06 Le cuir a été instalé correctement | K122: F | L122: 2019-03-06 | M122: 2019-06-04 | N122: 64
A123: CI | B123: A350 | C123: 328 | D123: I-Nc | E123: 206214260 | F123: V-Inc-AR-Damage-B/CS-QP-BCS-4409-3565 Impact on the meal table corner QP-BCS-4409-3565 GCA point 2 page 37 SN 365 - 363 - 385 | G123: STELIA | H123: 03/06 Le bumper a été changer | I123: EN COMMANDE ST43-3450 | K123: F | L123: 2019-03-06 | M123: 2019-06-03 | N123: 63
A124: CI | B124: A350 | C124: 328 | D124: Gamme | E124: 6016856857-GI-332-102 | F124: Install 4 missing doors and placards EA Description: SEAT OSW Descr: Install 4 missing doors and placards Part Descr: FNT_B/C_CTR_FNT_F/R EA PNR: SJSA2-1SQ301-01 EA SerNr.: 57 | G124: STELIA | J124: STECO | K124: O | L124: 2019-03-01
A125: CI | B125: A350 | C125: 328 | D125: Gamme | E125: 6016856837-GI-332-102 | F125: Replace 1 damaged decor panel EA Description: SEAT OSW Descr: Replace 1 damaged decor panel Part Descr: FNT_B/C_CTR_FNT_F/R EA PNR: SJSA2-1SQ302-01 EA SerNr.: 60 EQPT FIN: V5219ME019 MX | G125: STELIA | J125: STECO | K125: O | L125: 2019-03-01
A126: CI | B126: A350 | C126: 328 | D126: Gamme | E126: 6016856836-GI-332-102 | F126: Install 1 missing door and placards EA Description: SEAT OSW Descr: Install 1 missing door and placards Part Descr: FNT_B/C_R/H_FNT_F/R EA PNR: SJSA2-1SQ202-01 EA SerNr.: 59 | G126: STELIA | J126: STECO | K126: O | L126: 2019-03-01
A127: CI | B127: A350 | C127: 328 | D127: Gamme | E127: 6016856835-GI-332-102 | F127: Install 1 missing door and placards EA Description: SEAT OSW Descr: Install 1 missing door and placards Part Descr: FNT_B/C_L/H_FNT_F/R EA PNR: SJSA2-1SQ102-01 EA SerNr.: 58 | G127: STELIA | J127: STECO | K127: O | L127: 2019-03-01
A128: CI | B128: A350 | C128: 328 | D128: Gamme | E128: 6016856834-GI-332-102 | F128: Install 1 missing door and placards EA Description: SEAT OSW Descr: Install 1 missing door and placards Part Descr: FNT_B/C_R/H_FNT_F/R EA PNR: SJSA2-1SQ201-01 EA SerNr.: 56 | G128: STELIA | J128: STECO | K128: O | L128: 2019-03-01
A129: CI | B129: A350 | C129: 328 | D129: Gamme | E129: 6016856833-GI-332-102 | F129: Install 1 missing door and placards EA Description: SEAT OSW Descr: Install 1 missing door and placards Part Descr: FNT_B/C_L/H_FNT_F/R EA PNR: SJSA2-1SQ101-01 EA SerNr.: 55 | G129: STELIA | J129: STECO | K129: O | L129: 2019-03-01
A130: CI | B130: A350 | C130: 328 | D130: Gamme | E130: 6016856834-305_MID_195 | F130: Cannibalization panel SJSA2-1Q4117-01 EA Description: SEAT OSW Descr: Cannibalization panel SJSA2-1Q4117-01 Part Descr: FNT_B/C_R/H_FNT_F/R EA PNR: SJSA2-1SQ201-01 EA SerNr.: 56 | G130: STELIA | J130: STECO | K130: O | L130: 2019-03-21
A131: CI | B131: A350 | C131: 328 | D131: Gamme | E131: 6016856833-305_MID_173 | F131: Cannibalization panel SJSA2-1Q4103-01 EA Description: SEAT OSW Descr: Cannibalization panel SJSA2-1Q4103-01 Part Descr: FNT_B/C_L/H_FNT_F/R EA PNR: SJSA2-1SQ101-01 EA SerNr.: 55 | G131: STELIA | J131: STECO | K131: O | L131: 2019-03-21
A132: CI | B132: A350 | C132: 328 | D132: Nc | E132: 206349894 | F132: DAM - FRM - Z2 Type of nonconformity: Impact At reception, we notice that the FRM item 1, zone 2, frames 19/20 left side is damaged on the trim. We ask given in conformity. See standrd doc | G132: STELIA | H132: 03/06 Retouche peinture 04/06 Rejeté 06/06 retouche peniture reprise. | K132: f | L132: 2019-03-20 | M132: 2019-06-06 | N132: 56
A133: CI | B133: A350 | C133: 328 | D133: Nc | E133: 206371507 | F133: At the time of the reception of the finishing parts B/C seats, zone 2, we notice that the console cover (PN: FJSA1-1N2180-02), frame 27/28, a/c axis (right side), is broken on the seat F, row 15. | G133: OTHER | H133: 03/06 Piece changer | I133: EN COMMANDE SJSA1-1N2180-02 | K133: F | L133: 2019-03-28 | M133: 2019-06-03 | N133: 47
A134: CI | B134: A350 | C134: 328 | D134: Nc | E134: 206375708 | F134: During connexion of seat to seat on B/C, area 4, frame 41/42, right side, we notice that it is impossible for us to position the four cable of seat 20K in the 3 green supports (support too small). | G134: STELIA | H134: 03/06 Le support a été instalé | K134: F | L134: 2019-03-28 | M134: 2019-06-03 | N134: 47
A135: CI | B135: A350 | C135: 328 | D135: Nc | E135: 206380500 | F135: MISS - FIP.BCS - AREA 2 During installation finishing parts of B/C seats,item 30, area 2, fr.41/42, left side, we notice that one washer and one fasten are missing on the fixing of vertical shroud (seat A, row 20). - PN PART: FJSA1-1N2091-01. | G135: AIRBUS | H135: 04/06 La fixation à été repris | K135: F | L135: 2019-04-01 | M135: 2019-06-04 | N135: 46
A136: CI | B136: A350 | C136: 328 | D136: Nc | E136: 206409626 | F136: During security visit before installation of the pelmet, we notice that the bonding inter FNT GD58 / GD57 are not connected. This NC has been created following the NC 206315428 (MSN 322). Please see the MAP assessment. | G136: STELIA | H136: 03/06 La masse a été connecté | K136: f | L136: 2019-04-09 | M136: 2019-06-03 | N136: 39
A137: CI | B137: A350 | C137: 328 | D137: Nc | E137: 206354823 | F137: At reception of ottoman zone 2, frames 20/21 axis A/C, we notice that 2 rivet are missing on lateral seal of the item 2 (RHS). We ask given in conformity. | G137: STELIA | H137: 25/03 Joint re-installé correctement 26/03 Rivet instalé 29/03 Joinr ajusté et collé 03/06 Joint instalé correctement | K137: F | L137: 2019-03-20 | M137: 2019-06-03 | N137: 53
A138: CI | B138: A350 | C138: 335 | D138: Nc | E138: 206457927 | F138: During inspection P38 J1 of WP B/C SEAT, we notice a defect on monumen t 3K, Fixted armrest, Covering surface. Nous avons remarqué un defaut sur le monument 3K, Fixted armrest, Cove ring surface. | G138: AIRBUS | H138: 13/05 Accoudoir polisher | J138: JBDT | K138: f | L138: 2019-04-25 | M138: 2019-05-13 | AF138: 1
A139: CI | B139: A330 | C139: 1938 | D139: EQLB | E139: LR.1938-0174 | F139: Cabin BC seats 6D/8D /8E rear table Table difficult to store mechanism to be adjusted | G139: STELIA | H139: 21/05 Tablette ajusté | K139: F | L139: 2019-05-20 | M139: 2019-05-21 | N139: =IF(OR(L139="",M139=""),"",IF(NETWORKDAYS(L139,M139)-1>=0,NETWORKDAYS(L139,M139)-1,0)) -> 1 | AN139: 1
A140: CI | B140: A350 | C140: 335 | D140: Nc | E140: 206456686 | F140: Au cours de l’inspection P38 J1 du WP B/C SEAT. Nous avons remarqué un defaut sur le monument 7E, Seat structure, Cove ring surface. | G140: AIRBUS | H140: 13/05 Accoudoir polisher | J140: JBDT | K140: f | L140: 2019-04-25 | M140: 2019-05-13 | AF140: 1
A141: CI | B141: A350 | C141: 335 | D141: Nc | E141: 206456574 | F141: Au cours de l’inspection P38 J1 du WP B/C SEAT. Nous avons remarqué un defaut sur le monument 1E, Ottoman, Footrest. | G141: AIRBUS | H141: 13/05 Poncage bas de coque | J141: JBDT | K141: f | L141: 2019-04-25 | M141: 2019-05-13 | AF141: 1
A142: CI | B142: A350 | C142: 335 | D142: Nc | E142: 206456514 | F142: Au cours de l’inspection P38 J1 du WP B/C SEAT. Nous avons remarqué un defaut sur le monument 3A, Backrest, Covering s urface. | G142: AIRBUS | H142: VOIR CGL AS PER DESIGN OU CHANGEMENT DE LA MANCHETTE 13/05 Cuir accoudoir chauffer/ plus d'enfoncement mais reste un defaut dans le cuir | J142: RTK | K142: f | L142: 2019-04-25 | M142: 2019-05-13 | AF142: 1
A143: CI | B143: A350 | C143: 335 | D143: Nc | E143: 206456490 | F143: Au cours de l’inspection P38 J1 du WP B/C SEAT. Nous avons remarqué un defaut sur le monument 2A, Cocktail table, Trim | G143: AIRBUS | H143: 15/05 Retouche peinture + nettoyage ( perte de temps car ils ont du la refaire plusieur fois) 22/05 accé refuser la veille du final cabin 24/05 Retouche peinture | J143: RTK/ATE | K143: F | L143: 2019-04-25 | M143: 2019-05-24 | AH143: 6 | AO143: 1 | AQ143: 1
A144: CI | B144: A350 | C144: 335 | D144: Nc | E144: 206456856 | F144: Au cours de l’inspection P38 J1 du WP B/C SEAT. Nous avons remarqué un defaut sur le monument 7A, Lateral shell, . | G144: AIRBUS | H144: RETOUCHE PEINTURE ACCOUDOIR COQUE / A VOIR 13/05 Déco marroufler + trim accoudoir polisher | J144: RTK | K144: f | L144: 2019-04-25 | M144: 2019-05-13 | AF144: 1
A145: CI | B145: A350 | C145: 335 | D145: Nc | E145: 206456360 | F145: Au cours de l’inspection P38 J1 du WP B/C SEAT. Nous avons remarqué un defaut sur le monument 1A, Lateral shell, Later al panel. | G145: AIRBUS | H145: 13/05 Déco marrouflé + lubrifié | J145: RTK | K145: f | L145: 2019-04-25 | M145: 2019-05-13 | AF145: 1
A146: CI | B146: A330 | C146: 1938 | D146: EQLB | E146: LR.1938-0108 | F146: cabin BC seat 1A mark on backshell leather | G146: AIRBUS | H146: 21/05 Backshell repris | K146: F | L146: 2019-05-20 | M146: 2019-05-21 | N146: =IF(OR(L146="",M146=""),"",IF(NETWORKDAYS(L146,M146)-1>=0,NETWORKDAYS(L146,M146)-1,0)) -> 1 | AN146: 1
A147: CI | B147: A350 | C147: 309 | D147: TLB | E147: MID_380 | F147: CID-42: CABIN, BC : FOUND TAMPER SEALS OF LIFE VEST, UNDER SEATS, BROKEN SR 11A, 11K, 12F, 14A, 14D, 19D & 19K PLEASE PROVIDE NEW TAMPER SEALS | G147: STELIA | H147: 14/05 FOURNI AU POSTE | K147: f | L147: 2019-05-13 | M147: 2019-05-14 | N147: 1 | AG147: 1
A148: CI | B148: A350 | C148: 309 | D148: TLB | E148: MID_394 | F148: CID-56: IFE SYSTEM SR 14K IFE SCREEN WITH BLACK BACKGROUND The issue was due to bad installation of the content media on the screen. Content was deleted and reinstalled. The screen 14K was tested OK. | G148: IFE THALES | K148: F | L148: 2019-05-14 | M148: 2019-05-14 | N148: 0
A149: CI | B149: A350 | C149: 309 | D149: TLB | E149: MID_383 | F149: CID-45: In cabin, load limits placard missing in BC seats compartment 18F and 21F (See Attached). | G149: AIRBUS | K149: F | L149: 2019-05-13 | M149: 2019-05-14 | N149: 1
A150: CI | B150: A350 | C150: 309 | D150: EQLB | E150: XW.0309-0073 | F150: CAB, BC, CENTER DEVIDER, S21D/F, INTERMITTENT FAILURE TO OPEN IT WHEN CLOSED. | G150: AIRBUS | H150: 14/05 Démonage Divider et réglage verrin | J150: XON | K150: f | L150: 2019-05-13 | M150: 2019-05-14 | N150: 1 | AG150: 1.5
A151: CI | B151: A350 | C151: 309 | D151: EQLB | E151: XW.0309-0072 | F151: CAB, BC, S19D, BACKREST SHAFFING | G151: AIRBUS | H151: 14/05 Cornière en plastique + démontage accoudoir. | J151: XON | K151: F | L151: 2019-05-13 | M151: 2019-05-14 | N151: 1 | AG151: 1.5
A152: CI | B152: A350 | C152: 312 | D152: EQLB | E152: XW.0312-0086 | F152: CAB BC SEAT 7G , DEVIATION ON THE FWD AREA OF THE DIVIDER | G152: AIRBUS | H152: 14/05 Après la lubrification la rayure a disparue. | J152: JBDT/JMS | K152: f | L152: 2019-05-13 | M152: 2019-05-14 | N152: 1 | AG152: 2
A153: CI | B153: A350 | C153: 335 | D153: Nc | E153: 206498986 | F153: Seat 1E foot light dont work Sur le siége 1E le foot light ne fonctionne pas. Demandons intervention pour remise en conformité. | G153: STELIA | H153: 14/05Demontage du caisson recherche de panne / Cable reconnecté | K153: f | L153: 2019-05-14 | M153: 2019-05-14 | N153: 0 | AG153: 0.5
A154: CI | B154: A350 | C154: 322 | D154: Gamme | E154: 1009992352-AG0000458801 | F154: re install ottoman cover | G154: STELIA | H154: 27/05 PIECE MONTE | K154: F | L154: 2019-05-15 | M154: 2019-05-27 | N154: 8 | AT154: 1
A155: CI | B155: A350 | C155: 322 | D155: Gamme | E155: 1009992720-AG00-004588 | F155: Cannibalizatio kick stip FJSA1-1N2024-01 | G155: STELIA | H155: 27/05 PIECE MONTE | J155: TDT | K155: F | L155: 2019-05-15 | M155: 2019-05-27 | AT155: 2
A156: CI | B156: A350 | C156: 322 | D156: Gamme | E156: 1009992352-AG00004588 | F156: re install armrest | G156: STELIA | K156: O | L156: 2019-05-15 | N156: =IF(OR(L156="",M156=""),"",IF(NETWORKDAYS(L156,M156)-1>=0,NETWORKDAYS(L156,M156)-1,0)) -> 
A157: CI | B157: A350 | C157: 309 | D157: EQLB | E157: XW.0309-0075 | F157: CAB, BC, S15D/F, CENTER FOAM WRINKLED. | G157: OTHER | H157: 15/05 FERMER CL | K157: F | L157: 2019-05-13 | M157: 2019-05-15 | N157: =IF(OR(L157="",M157=""),"",IF(NETWORKDAYS(L157,M157)-1>=0,NETWORKDAYS(L157,M157)-1,0)) -> 2
A158: CI | B158: A350 | C158: 335 | D158: Nc | E158: 206499987 | F158: DIP/P20J1/CIG/Z2/ Au cours de l’inspection P20 J1 du WP B/C SEAT. Nous avons remarqué un defaut sur le monument , Meal table, Hinge mechanism.Comment : When inspecting the B / C, we find that the meal table does not op en properly : Seat 2A/3E/7E/4K/5K. | G158: STELIA | H158: 15/05 tablette graissées et ajustées | J158: JMS ATE | K158: f | L158: 2019-04-25 | M158: 2019-05-15 | AH158: 6
A159: CI | B159: A350 | C159: 309 | D159: EQLB | E159: XW.0309-0070 | F159: CAB, BC, S19A, 11D, 14D, 15D, 18A, HEADREST NOT ALIGN WITH BACKREST CUSHION | G159: AIRBUS | H159: 14/05 Appuie tête repositionné et accepté par le client en direct. | K159: F | L159: 2019-05-13 | M159: 2019-05-15 | N159: =IF(OR(L159="",M159=""),"",IF(NETWORKDAYS(L159,M159)-1>=0,NETWORKDAYS(L159,M159)-1,0)) -> 2 | AG159: 1
A160: CI | B160: A330 | C160: 1938 | D160: NC | E160: 206505019 | F160: fond stowage siège 6H abimé Suite intervention fournisseur sur NC206495992, il a détérioré le fond du petit stowage sur la console du siège. Voir flamme et standard doc Demandons intervention | G160: AIRBUS | K160: O | L160: 2019-05-15
A161: CI | B161: A330 | C161: 1938 | D161: NC | E161: 206500165 | F161: Ecran spare SR 7H INOP Lors de notre essai "IFE" nous avons constaté en B/C, zone 1, côté RH que lécran en spare du SR 7H ne fonctionne pas. Panne confirmé par croisement, lécran est fonctionnel. Demandons intervention. | G161: IFE ZODIAC | H161: 17/05 Le support a été ajusté par Zodiac | K161: F | L161: 2019-05-14 | M161: 2019-05-17 | N161: 3
A162: CI | B162: A330 | C162: 1938 | D162: NC | E162: 206495992 | F162: Defaut light 6H Lors du test des fonctions du siège 6H nous constatons que léclairage du rangement au dessus de la console(à droite de lassise) ne séteint pas lorsque lon ferme la porte. | H162: 16/05Après plusieur essaie non-concluant pb lumière switch à changer 6H | I162: V7-1B10E9-207 | J162: TDT/JMS | K162: O | L162: 2019-05-03 | AI162: 2
A163: CI | B163: A330 | C163: 1938 | D163: NC | E163: 206490889 | F163: Fixation siege B/C 3D trop longue En cabine, zone 1 sur siége B/C rang 3D CMS: 6388716100ACI P/N: FJNS3-1SB301-01 S/N: 105 Lors du montage dans lavion, nous constatons que la fixation arriére gauche est décallée par rapport au rail. Aprés comparaison sur un siége de même reference, la ferrure de la fixation est plus longue de 1,5cm. Voir flamme et standard doc Demandons intervention. | H163: 21/05 Depose/Repose de la ferrure Beaucoup d'attente d'attente pour que Airbus depose le siege (ma,que de main-d'oeuvre) | J163: RTK/ATE/ESI | K163: O | L163: 2019-05-09 | AN163: 14
A164: CI | B164: A330 | C164: 1938 | D164: NC | E164: 206473293 | F164: Siège item 411, rang 6D SIEGE B/C 6D: Lors du déballage, constatons un défaut sur le panneau habillage situé à larrière au dessous du repose pieds. Vopir standard doc | H164: WAITING CL ? | K164: O | L164: 2019-05-02
A165: CI | B165: A330 | C165: 1938 | D165: Gamme | E165: AG00-004587 | F165: Divider to be install / write weight on ID label / RFID TAG to be install / Divider to be install / write weight on ID label / RFID TAG to be install / | K165: O | L165: 2019-04-24
A166: CI | B166: A330 | C166: 1937 | D166: NC | E166: 206443347 | F166: Joint arriere dernier rang mal positionn En zone 1 sur les deux derniers sieges B/C axe avion Nous constatons que le joint arriere entre les sieges et la F cloison nest pas bien possitionné Voir flamme et standard doc Demandons intervention | H166: 16/05 La piece a été ajusté | K166: O | L166: 2019-04-19 | M166: 2019-05-17 | N166: 20 | AI166: 1
A167: CI | B167: A330 | C167: 1937 | D167: NC | E167: 206443198 | F167: jeu sur cover sieges dernier rang En cabine zone 1 sur les 4 sieges B/C du dernier rang Nous constatons que les covers sur les cotés des sieges ne plaquent pas correctement sur la structure | H167: 24/04 Support recoller velcro changer aucun changement VOIC SI CL 16/05 Scotch retiré + PN recupéré pour la commande | I167: PLAQUE A COMMANDER FJNS3-2N0753A02 IND A 100102838498 | J167: JMS | K167: O | L167: 2019-04-19 | AI167: 0.5
A168: CI | B168: A330 | C168: 1937 | D168: NC | E168: 206443121 | F168: Rang 2H: Rayure partie basse, couloir Constatons une rayure au niveau du cover en partie basse, côté couloir (sous le bumper). Voir pièce-jointe. Demandons intervention. | H168: RETOUCHE PEINTURE | I168: commande de piece | K168: O | L168: 2019-04-19
A169: CI | B169: A330 | C169: 1937 | D169: NC | E169: 206443082 | F169: 5H: Impact proche prise PC Constatons 1 impact sur le cover plastique proche de la prise PC (en partie basse). Voir stanadrd doc. Demandons intervention. | H169: Retouche peinture à faire | K169: O | L169: 2019-04-18
A170: CI | B170: A330 | C170: 1937 | D170: NC | E170: 206443046 | F170: B/C: Seat 3A: Plastic inclusion / deform Constatons une déformation positive du Backshell, proche de lidentification rang de siège "3A". Voir standard doc. | H170: WAITING CL | K170: O | L170: 2019-04-18
A171: CI | B171: A350 | C171: 309 | D171: EQLB | E171: XW.0309-0077 | F171: CAB, BC, S17A, MIRROR LOOSE (NO FRICTION), PLEASE ADJUST. | G171: STELIA | H171: 15/05 FERMER CL | K171: F | L171: 2019-05-13 | M171: 2019-05-15 | N171: 2
A172: CI | B172: A330 | C172: 1937 | D172: NC | E172: 206440094 | F172: rayure coté couloir En cabine zone 1 coté droit sur siege B/C 1H Nous constatons une rayure coté couloir Voir flamme et standard doc demandons intervention | H172: WAITING CL | K172: O | L172: 2019-04-18
A173: CI | B173: A350 | C173: 309 | D173: EQLB | E173: XW.0309-0074 | F173: CAB, BC, S20A, CUSHION BACKREST, LEATHER SEWING DEVIATION. | G173: STELIA | H173: 15/05 FERMER CL | K173: F | L173: 2019-05-13 | M173: 2019-05-15 | N173: 2
A174: CI | B174: A350 | C174: 322 | D174: Nc | E174: 206414514 | F174: During inspection P20 J1 of WP B/C SEAT, we notice a defect on mon ument 16F, Backshell , Covering surface.Comment: top deco panel bad aspect Au cours de l’inspection P20 J1 du WP B/C SEAT. Nous avons remarqué un defaut sur le monument 16F, Backshell , Cov ering surface. | G174: AIRBUS | H174: 27/05 Pièce changer | I174: CASQUETTE BLEU EN COMMANDE FJSA1-1N2038-01 | J174: RTK | K174: F | L174: 2019-04-10 | M174: 2019-05-15 | N174: 25 | AT174: 3.5
A175: CI | B175: A330 | C175: 1937 | D175: NC | E175: 206441541 | F175: Rayures sur cuir stowage siege B/C En cabine zone 1 axe avion sur siege B/C 6D Nous constatons que le cuir de la porte du stowage sur la console est rayé | H175: 16/05 Nettoyage porte + nourrit au lait/ non-concluant à commander | J175: JMS | K175: O | L175: 2019-04-18 | AI175: 0.5
A176: CI | B176: A330 | C176: 1937 | D176: NC | E176: 206414465 | F176: Eclairage stowage siège 5A INOP Lors de lessai sièges couchettes, nous constatons que sur le siège 5A leclairage du compartiment stowage est Inop. | H176: 15/0 NFF 16/04 Rejeté la lumière reste allumer que la porte sois ouverte ou fermé | I176: EN COMMANDE FJNS3-2R0364A01 | K176: O | L176: 2019-04-10
A177: CI | B177: A350 | C177: 335 | D177: Nc | E177: 206498939 | F177: SEAT 6K INOP Durant nos essais, nous constatons que le siège 6K ne sallonge pas. . Demandons intervention pour remise en conformité. | G177: AIRBUS | H177: 15/05 FERMER NFF | K177: F | L177: 2019-05-14 | M177: 2019-05-15 | N177: 1
A178: CI | B178: A350 | C178: 335 | D178: Nc | E178: 206500059 | F178: Nous avons remarqué un defaut sur le monument , Backshell , Coveri ng surface.Comment : When inspecting the B / C, we note that damage on seat backshell: Seat 2A/4A/5A/1F/2D/4D/4G/6D/2K. | G178: AIRBUS | H178: 15/05 Ajustement padding et coussin replacer | J178: ATE/JMS | K178: F | L178: 2019-05-14 | M178: 2019-05-15 | N178: 1 | AH178: 6
A179: CI | B179: A330 | C179: 1938 | D179: EQLB | E179: LR.1938-0096 | F179: cabin BC seat 1A outboard cover unstuck | G179: AIRBUS | H179: 21/05 Installé correctement | K179: f | L179: 2019-05-20 | M179: 2019-05-21 | N179: 1 | AN179: 1
A180: CI | B180: A330 | C180: 1938 | D180: EQLB | E180: LR.1938-0097 | F180: cabin BC seat 1A tablet fo seat 2A | G180: AIRBUS | H180: 21/05 Tablette nettoyé | J180: TDT | K180: f | L180: 2019-05-20 | M180: 2019-05-21 | N180: 1 | AN180: 0.5
A181: AC | B181: A320 | C181: 9085 | D181: AM/GAMME | E181: 9731903 / N25.SO11.547.6.M | F181: Suite au prélèvement sur le MSN 8978 et suite à l'AM 9725966 nous constatons qe le module strapontin est fissuré. | G181: AIRBUS | H181: 21/05 retouche peinture | K181: F | L181: 2019-05-20 | M181: 2019-05-21 | N181: 1 | AN181: 1.5
A182: AC | B182: A320 | C182: 9075 | D182: Gamme | E182: N25.SO11.547.5.M | F182: Suite a une erreur de marquage, ecrire le bon PN sur le strapotin D251.11126.020.01 | G182: STELIA | K182: F | L182: 2019-05-17 | M182: 2019-05-21 | N182: 2
A183: CI | B183: A330 | C183: 1937 | D183: NC | E183: 206443190 | F183: deformation en partie haute compartiment En cabine zone 1 sur tous les sieges B/C nous constatons des deformation en partie haute des compartiemnts repose pieds. | G183: AIRBUS | H183: 02/05 Rejeté as per design | K183: F | L183: 2019-04-19 | M183: 2019-05-02 | N183: 9
A184: CI | B184: A330 | C184: 1937 | D184: NC | E184: 206443097 | F184: Backshell dformés sieges B/c En cabine zone 1 sur tous les sieges B/C, nous constatons que les backshells presentent des bosses, des pliures, des jeux | G184: AIRBUS | H184: 02/05 Rejeté as per design | K184: F | L184: 2019-04-19 | M184: 2019-05-02 | N184: 9
A185: AC | B185: A320 | C185: 9056 | D185: Gamme | E185: N25.SO11.547.3.M | F185: Suite a erreur de marquage, ecrire le bon PN sur le strapontin | G185: STELIA | H185: 16/05 Gamme inutile le marquage intial été bon Perte de temps trajet + perte de temps attente accée | J185: JBDT | K185: F | L185: 2019-05-16 | M185: 2019-05-16 | N185: 0 | AI185: 2
A186: CI | B186: A350 | C186: 309 | D186: EQLB | E186: XW,0309-0045 | F186: CAB, BC, S11F, 14F, 16F, 18F, 19F, 21F, Gap between center partition and seat inboard fairing. Please assess. | G186: STELIA | H186: 15/05 FERMER CL | K186: F | L186: 2019-03-06 | M186: 2019-05-15 | N186: 50
A187: CI | B187: A330 | C187: 1937 | D187: NC | E187: 206441357 | F187: etat de surface arriere siege 6H En cabine zone 1 sur habillage arriere siege B/C rang 6H Nous constatons une zone dont la surface est irreguliere (presence de gouttes) | G187: AIRBUS | H187: 02/05 Rejeté as per design | K187: F | L187: 2019-04-18 | M187: 2019-05-02 | N187: 10
A188: CI | B188: A350 | C188: 309 | D188: EQLB | E188: XW,0309-0039 | F188: CAB, SEAT 11A 15G 19F, DECO PANEL AROUND LATERAL READING LIGHT, NOT PROPERLY INSTALLED, PLEASE REWORK | G188: OTHER | H188: 15/05 FERMER CL | K188: F | L188: 2019-03-01 | M188: 2019-05-15 | N188: =IF(OR(L189="",M189=""),"",IF(NETWORKDAYS(L189,M189)-1>=0,NETWORKDAYS(L189,M189)-1,0)) -> 53
A189: CI | B189: A350 | C189: 309 | D189: EQLB | E189: XW,0309-0019 | F189: CAB, SEAT12F 15F 18A 18D, HEADREST LEATHER AND BED EXTANTION HABE WRINKLE , PLEASE ADJUCT | G189: STELIA | H189: 15/05 FERMER CL | K189: F | L189: 2019-03-01 | M189: 2019-05-15 | N189: =IF(OR(#REF!="",#REF!=""),"",IF(NETWORKDAYS(#REF!,#REF!)-1>=0,NETWORKDAYS(#REF!,#REF!)-1,0)) -> 
A190: CI | B190: A350 | C190: 309 | D190: EQLB | E190: XW,0309-0005 | F190: CAB, SEAT 14F 15A, SEAT AND BACKREST SEWING NOT ALIGNED, PLEASR ADJUST | G190: STELIA | H190: 15/05 FERMER CL | K190: F | L190: 2019-03-01 | M190: 2019-05-15 | N190: =IF(OR(L190="",M190=""),"",IF(NETWORKDAYS(L190,M190)-1>=0,NETWORKDAYS(L190,M190)-1,0)) -> 53
A191: CI | B191: A350 | C191: 327 | D191: Nc | E191: 206496771 | F191: Seat 2J 3B 3A clac During ground test we noticed the seat 2J, 3B, 3A clac between bed position and TTL position . Demandons intervention pour remise en conformité. | G191: STELIA | H191: 15/05 Recherche de bruit + lubrification ok 16/05 Siège regler | J191: RTK/TDT/ESI | K191: f | L191: 2019-05-13 | M191: 2019-05-16 | N191: 3 | AH191: 2 | AI191: 1.5
A192: CI | B192: A330 | C192: 1937 | D192: EQLB | E192: LR.1937-0260 | F192: Cab all B/C seat head speaker plug not installed correctly on several set for information seat 1E seems ok and seat 1 D not ok | G192: AIRBUS | H192: 02/06 Apres verification As per design 15/05 hauut-parleur instalé correctement | K192: f | L192: 2019-04-19 | M192: 2019-06-06 | N192: 34
A193: CI | B193: A350 | C193: 327 | D193: Nc | E193: 206496798 | F193: Seat 1A During ground test we noticed the seat 1A has a squeaking between bed position and TTL. Demandons intervention pour remise en conformité. | G193: STELIA | H193: 15/05 Siège lubrifié | J193: TFT/JBDT | K193: F | L193: 2019-05-13 | M193: 2019-05-16 | N193: 3 | AH193: 1
A194: CI | B194: A350 | C194: 327 | D194: Nc | E194: 206496891 | F194: Seat 1J 1K During ground test we noticed the seat 1J and 1K are not power ON, the aircraft power is ok breaker ok and wiring ok thanks to check seat group. Demandons intervention pour remise en conformité. | G194: STELIA | H194: VOIR LE SWITCH ON/OFF 14/05 Recherche de panne 15/05 Dépose et inspection 16/05 point fait attente essaie | J194: TBE/ESI/RTK | K194: F | L194: 2019-05-13 | M194: 2019-05-16 | N194: 3 | AG194: 4 | AH194: 1 | AI194: 0.5
A195: CI | B195: A330 | C195: 1937 | D195: NC | E195: 206439758 | F195: Rayure sur corniere ottoman En cabine zone 1 coté droit sur ottoman Nous constatons plusieurs rayures sur la corniere coté couloir Voir flamme et standard doc | G195: AIRBUS | H195: 16/05 Ponçage de la trim + nettoyage | J195: JBDT | K195: f | L195: 2019-04-18 | M195: 2019-05-16 | N195: 20 | AI195: 0.5
A196: ST | B196: A330 | C196: 1890 | D196: TLB | E196: MID_77 | F196: In cockpit, F/O seat, the left part of the seat belt is degraded. The belt itself has no defect. The degradation is only cosmetic and concers the plastic part. | H196: 15/05 The seat beal has been replaced. | I196: CAPT PN: 2000013-13-001 F/O PN 2000013-11-001 PILOTE TAAI3-03 PE 20-01 / SER A320-11627 COPILOTE TAAI3-03 03CE20-01 / SER A320-11600 | K196: f | L196: 2019-05-14 | M196: 2019-05-15 | N196: 1 | AH196: 1
A197: CI | B197: A350 | C197: 309 | D197: EQLB | E197: xw.0309-0081 | F197: CAB, BC, SEAT 11F, ARMREST CUSHION NOT FIXED; | G197: STELIA | H197: 15/05 Vis remis sur l'accoudoir | J197: TBE/ESI | K197: F | L197: 2019-05-15 | M197: 2019-05-16 | N197: 1 | AH197: 1
A198: CI | B198: A350 | C198: 335 | D198: Nc | E198: 206500927 | F198: During inspection P20 J1 of WP B/C SEAT, we notice a defect on mon ument 2A, Backrest, During inspection jalon 1, zone 2, LH, C23/25, seat row 2A, we noticed a scratch on backrest. | G198: AIRBUS | H198: 14/05 Fermer couvert parla Nc 206456490 | K198: f | L198: 2019-05-14 | M198: 2019-05-17 | N198: 3
A199: CI | B199: A350 | C199: 327 | D199: NC | E199: 206512294 | F199: Seat 1K actuation panel no power During the seat actuation, we notice the actuation seat panel 1K have no power.. Demandons intervention pour remise en conformité. | G199: STELIA | H199: 17/05 Ouverture panneaux arrière + contrôle boitier ne fonctionne pas 20/05 Recherche panne + resolution | J199: RTK/JBDT/TBE | K199: f | L199: 2019-05-17 | M199: 2019-05-20 | N199: 1 | AJ199: 1 | AM199: 4
A200: CI | B200: A350 | C200: 335 | D200: Nc | E200: 206458019 | F200: During inspection P38 J1 of WP B/C SEAT, we notice a defect on monument 2G, Footstep, Antislip. Nous avons remarqué un defaut sur le monument 2G, Footstep, Antislip. | G200: AIRBUS | H200: 21/05 remplacement cuir footrest | I200: COMMANDE LE 26/04 SEAT PN / FJSLA-1AZ402-01 PN: 24DCMX32400 | J200: ESI | K200: F | L200: 2019-04-25 | M200: 2019-05-21 | N200: 18 | AN200: 1
A201: CI | B201: A350 | C201: 301 | D201: NC | E201: 206505181 | F201: B/C 1A scratch on B/C panel behind armrest see attached file | G201: AIRBUS | H201: 20/05 Attente ouverture ic + ponçage + retouche peinture (4 couche avec attente séchage ) | K201: F | L201: 2019-05-15 | M201: 2019-05-21 | N201: 4 | AM201: 5
A202: CI | B202: A330 | C202: 1937 | D202: NC | E202: 206443123 | F202: 6E: rayure tablette Constatons une rayure à larrière de la tablette, partie peinte. Voir pièces-jointes | G202: AIRBUS | H202: 15/05 Retouche peinture | K202: F | L202: 2019-04-19 | M202: 2019-05-15 | N202: 18 | AH202: 1
A203: CI | B203: A330 | C203: 1937 | D203: NC | E203: 206443195 | F203: impact sur corniere siege B/C 5A En cabine zone 1 coté gauche sur siege B/C rang 5A nous constatons deux impact sur la corniere coté couloir | G203: AIRBUS | H203: 15/05 Retouche peinture faite | K203: F | L203: 2019-04-19 | M203: 2019-05-15 | N203: 18 | AH203: 1
A204: CI | B204: A330 | C204: 1937 | D204: NC | E204: 206443255 | F204: Rayure corniere tablette siege 5H En cabine zone 1 sur tablette siege B/C rang 5H Nous constatons une rayure sur la corniere de la tablette | G204: AIRBUS | H204: 15/05 Retouche peinure faite | K204: F | L204: 2019-04-19 | M204: 2019-05-15 | N204: 18 | AH204: 1
A205: CI | B205: A330 | C205: 1937 | D205: EQLB | E205: LR.1937-0257 | F205: Cab B/C seat 3E gap visible between covers below screen | G205: STELIA | H205: 15/05 Cornière remis en place par la télécommande | J205: TDT/JBDT | K205: F | L205: 2019-04-19 | M205: 2019-05-15 | N205: 18 | AH205: 1.5
... 147 more rows

Sheet Avril 2019
S5: PROD CI/ST/AC | T5: =SUM(T14:T548) -> 37.5 | U5: =SUM(U14:U548) -> 58 | V5: =SUM(V14:V548) -> 50 | W5: =SUM(W14:W548) -> 51.5 | X5: =SUM(X14:X548) -> 32 | Y5: 0 | Z5: 0 | AA5: 56.5 | AB5: =SUM(AB14:AB548) -> 83 | AC5: =SUM(AC14:AC548) -> 74 | AD5: =SUM(AD14:AD548) -> 71.5 | AE5: =SUM(AE14:AE548) -> 45 | AF5: 0 | AG5: 0 | AH5: 52 | AI5: 71.5 | AJ5: 72.5 | AK5: =SUM(AK14:AK548) -> 72.5 | AL5: 45.5 | AM5: 0 | AN5: 0 | AO5: 0 | AP5: =SUM(AP14:AP548) -> 72 | AQ5: =SUM(AQ14:AQ548) -> 63 | AR5: =SUM(AR14:AR548) -> 63 | AS5: =SUM(AS14:AS548) -> 53 | AT5: 10 | AU5: 0 | AV5: =SUM(AV14:AV548) -> 56 | AW5: =SUM(AW14:AW548) -> 55 | AX5: 0 | AY5: =SUM(AY13:AY548) -> 268.5
E6: Month: | F6: AVRIL 2019 | G6: 2019-04-01 | S6: PROD ATR | T6: ='[2]MAI 19'!M3 -> 0 | U6: ='[2]MAI 19'!N3 -> 4 | V6: ='[2]MAI 19'!O3 -> 0 | W6: ='[2]MAI 19'!P3 -> 0 | X6: ='[2]MAI 19'!Q3 -> 0 | Y6: ='[2]MAI 19'!R3 -> 0 | Z6: ='[2]MAI 19'!S3 -> 0 | AA6: ='[2]MAI 19'!T3 -> 0 | AB6: ='[2]MAI 19'!U3 -> 0 | AC6: ='[2]MAI 19'!V3 -> 0 | AD6: ='[2]MAI 19'!W3 -> 0 | AE6: ='[2]MAI 19'!X3 -> 0 | AF6: ='[2]MAI 19'!Y3 -> 0 | AG6: ='[2]MAI 19'!Z3 -> 3 | AH6: ='[2]MAI 19'!AA3 -> 0 | AI6: ='[2]MAI 19'!AB3 -> 3 | AJ6: ='[2]MAI 19'!AC3 -> 0 | AK6: ='[2]MAI 19'!AD3 -> 0 | AL6: ='[2]MAI 19'!AE3 -> 0 | AM6: ='[2]MAI 19'!AF3 -> 4 | AN6: ='[2]MAI 19'!AG3 -> 4 | AO6: ='[2]MAI 19'!AH3 -> 4 | AP6: ='[2]MAI 19'!AI3 -> 4 | AQ6: ='[2]MAI 19'!AJ3 -> 4 | AR6: ='[2]MAI 19'!AK3 -> 0 | AS6: ='[2]MAI 19'!AL3 -> 0 | AT6: ='[2]MAI 19'!AM3 -> 0 | AU6: ='[2]MAI 19'!AN3 -> 0 | AV6: ='[2]MAI 19'!AO3 -> 0 | AW6: ='[2]MAI 19'!AP3 -> 0 | AX6: ='[2]MAI 19'!AQ3 -> 0 | AY6: ='[2]MAI 19'!AR3 -> 0 | AZ6: ='[2]JANVIER 19'!AS3 -> 0 | BA6: ='[2]JANVIER 19'!AT3 -> 0 | BB6: ='[2]JANVIER 19'!AU3 -> 0 | BC6: ='[2]JANVIER 19'!AV3 -> 0 | BD6: ='[2]JANVIER 19'!AW3 -> 0
H7: New month | S7: TOTAL CI/ST/ATR | T7: =SUM(T5:T6) -> 37.5 | U7: 62 | V7: 50 | W7: 51.5 | X7: 32 | Y7: 0 | Z7: 0 | AA7: 56.5 | AB7: 83 | AC7: 74 | AD7: 71.5 | AE7: 45 | AF7: 0 | AG7: 3 | AH7: 52 | AI7: 74.5 | AJ7: 72.5 | AK7: 72.5 | AL7: 45.5 | AM7: 4 | AN7: 4 | AO7: 4 | AP7: 76 | AQ7: 67 | AR7: 63 | AS7: 53 | AT7: 10 | AU7: 0 | AV7: 56 | AW7: 55 | AX7: 0 | AY7: =SUM(T7:AX7) -> 1275
S8: TOTAL JR | T8: =T7+T12+T13 -> 45.5 | U8: =U7+U12+U13 -> 70 | V8: =V7+V12+V13 -> 66.5 | W8: =W7+W12+W13 -> 67.5 | X8: =X7+X12+X13 -> 44 | Y8: 0 | Z8: 0 | AA8: 72.5 | AB8: =AB7+AB12+AB13 -> 99.5 | AC8: =AC7+AC12+AC13 -> 90 | AD8: =AD7+AD12+AD13 -> 88.5 | AE8: =AE7+AE12+AE13 -> 58 | AF8: 0 | AG8: 3 | AH8: 69 | AI8: 91.5 | AJ8: 88.5 | AK8: =AK7+AK12+AK13 -> 89.5 | AL8: 56 | AM8: 4 | AN8: 4 | AO8: 4 | AP8: =AP7+AP12+AP13 -> 92 | AQ8: =AQ7+AQ12+AQ13 -> 83 | AR8: =AR7+AR12+AR13 -> 79 | AS8: =AS7+AS12+AS13 -> 58 | AT8: 10 | AU8: 0 | AV8: =AV7+AV12+AV13 -> 64 | AW8: =AW7+AW12+AW13 -> 71 | AX8: 0 | AY8: =AY7+AY12+SUM(T8,AW8) -> 1546
A9: NC DESCRIPTION | H9: NC FOLLOW-UP | L9: KPI and CONTINUOUS IMPROVEMENT | T9: =G6 -> 2019-04-01 | U9: =T9+1 -> 2019-04-02 | V9: 2019-04-03 | W9: 2019-04-04 | X9: 2019-04-05 | Y9: 2019-04-06 | Z9: 2019-04-07 | AA9: 2019-04-08 | AB9: =AA9+1 -> 2019-04-09 | AC9: 2019-04-10 | AD9: 2019-04-11 | AE9: 2019-04-12 | AF9: 2019-04-13 | AG9: 2019-04-14 | AH9: 2019-04-15 | AI9: 2019-04-16 | AJ9: 2019-04-17 | AK9: 2019-04-18 | AL9: 2019-04-19 | AM9: 2019-04-20 | AN9: 2019-04-21 | AO9: 2019-04-22 | AP9: 2019-04-23 | AQ9: 2019-04-24 | AR9: 2019-04-25 | AS9: 2019-04-26 | AT9: 2019-04-27 | AU9: =IF(OR(DAY(AT9+1)=1,DAY(AT9+1)=2,DAY(AT9+1)=3,DAY(AT9+1)=4),"",AT9+1) -> 2019-04-28 | AV9: =IF(OR(DAY(AU9+1)=1,DAY(AU9+1)=2,DAY(AU9+1)=3,DAY(AU9+1)=4),"",AU9+1) -> 2019-04-29 | AW9: =IF(ISERR(IF(OR(DAY(AV9+1)=1,DAY(AV9+1)=2,DAY(AV9+1)=3,DAY(AV9+1)=4),"",AV9+1)),"",IF(OR(DAY(AV9+1)=1,DAY(AV9+1)=2,DAY(AV9+1)=3,DAY(AV9+1)=4),"",AV9+1)) -> 2019-04-30 | AX9: =IF(ISERR(IF(OR(DAY(AW9+1)=1,DAY(AW9+1)=2,DAY(AW9+1)=3,DAY(AW9+1)=4),"",AW9+1)),"",IF(OR(DAY(AW9+1)=1,DAY(AW9+1)=2,DAY(AW9+1)=3,DAY(AW9+1)=4),"",AW9+1)) ->  | AY9: =AY8-AY7 -> 271
A11: PERIMETER | B11: A/C program | C11: MSN | D11: Type | E11: Ref AM/NC/TLB/eQLB/WO | F11: Non-Conformity description | G11: NC Liability | H11: Description of the work done | I11: ECME/Material PN/SN | J11: Worker | K11: NC State | L11: Reception date | M11: Closure date | N11: Reactivity | O11: Reactivity NC Main cause | P11: FTR | Q11: Defect category | R11: Root cause comments | S11: Root cause fundamantal | T11: =IF(WEEKDAY(T9)=2,"L",IF(WEEKDAY(T9)=3,"M",IF(WEEKDAY(T9)=4,"M",IF(WEEKDAY(T9)=5,"J",IF(WEEKDAY(T9)=6,"V",IF(WEEKDAY(T9)=7,"S",IF(WEEKDAY(T9)=1,"D"))))))) -> L | U11: M | V11: M | W11: J | X11: V | Y11: S | Z11: D | AA11: L | AB11: M | AC11: M | AD11: J | AE11: V | AF11: S | AG11: D | AH11: L | AI11: M | AJ11: M | AK11: J | AL11: V | AM11: S | AN11: D | AO11: L | AP11: M | AQ11: M | AR11: J | AS11: V | AT11: S | AU11: D | AV11: L | AW11: M | AX11: v | AY11: PROD | AZ11: Commentaires STELIA S1 | BA11: Commentaires STELIA S2 | BB11: Commentaires STELIA S3 | BC11: Commentaires STELIA S4 | BD11: Comment AAA | XFD11: =SUBTOTAL(9,A11:XFC11) -> 0
A12: GESTION | F12: Heures Laurence guettar | J12: LGR | T12: 8 | V12: 8.5 | W12: 8 | X12: 6 | AA12: 8 | AB12: 8.5 | AC12: 8 | AD12: 9 | AE12: 5 | AH12: 9 | AI12: 9 | AJ12: 8 | AK12: 9 | AL12: 5.5 | AP12: 8 | AQ12: 8 | AR12: 8 | AS12: 5 | AV12: 8 | AW12: 8 | AY12: =SUM(T12:AX12) -> 154.5
A13: GESTION | F13: Heures Kevin CHACON | J13: KCN | U13: 8 | V13: 8 | W13: 8 | X13: 6 | AA13: 8 | AB13: 8 | AC13: 8 | AD13: 8 | AE13: 8 | AH13: 8 | AI13: 8 | AJ13: 8 | AK13: 8 | AL13: 5 | AP13: 8 | AQ13: 8 | AR13: 8 | AW13: 8 | AY13: =SUM(T13:AX13) -> 139
A14: GESTION | F14: attente bureau/ trajet / attente ic / reception colis sur site/ non acces | H14: 17/04 Aller retour inutile a cause d'airbus qui ne sont pas sur poste pour les ouverture d'ic 24/04 / 23/04 Perte de temps badge DLY-TDT | T14: 3 | U14: 4.5 | V14: 1 | W14: 2.5 | X14: 2 | AA14: 3 | AB14: 1 | AC14: 3 | AD14: 1.5 | AE14: 10 | AH14: 1 | AI14: 5 | AJ14: 5 | AK14: 8 | AL14: 5 | AP14: 6.5 | AR14: 10.5 | AS14: 6 | AV14: 10.5 | AW14: 4
A15: GESTION | F15: Heures Xavier OUDIN | J15: XON | T15: 0.5 | U15: 12 | V15: 10 | W15: 9 | X15: 5 | AA15: 8.5 | AB15: 9 | AC15: 10 | AD15: 9 | AE15: 8 | AP15: 8 | AQ15: 8 | AR15: 8 | AS15: 7.5 | AV15: 9 | AW15: 8 | AY15: =SUM(T15:AX15) -> 129.5
A16: GESTION | F16: PERTE TEMPS TRAJETS ( MANQUE VOITURE ) | T16: 4 | U16: 4 | V16: 1 | W16: 2 | X16: 2 | AA16: 2.5 | AB16: 1 | AC16: 2 | AE16: 9 | AH16: 2 | AI16: 8.5 | AJ16: 5 | AK16: 5 | AL16: 1.5 | AP16: 4 | AR16: 5.5 | AS16: 10.5 | AV16: 13 | AW16: 3
A17: CI | F17: TAXI JV + IC JV
A18: Other | F18: FORMATION | H18: 09/04 Permis bleu Jean-Baptiste Doucet | AB18: 2.5
A19: CI | B19: A350 | C19: 294 | D19: Gamme | E19: 6016369819-GI-332-79 | F19: Install panel after canibalisation | G19: STELIA | H19: 15/02 Reprise cheminement élèctrique après changement cloison de STECO | I19: SJSA2-1Q4532-01 | J19: STECO | K19: F | L19: 2018-12-05 | N19: =IF(OR(L19="",M19=""),"",IF(NETWORKDAYS(L19,M19)-1>=0,NETWORKDAYS(L19,M19)-1,0)) -> 
A20: CI | B20: A350 | C20: 294 | D20: Gamme | E20: 6016369819-STECO | F20: installation of 1 missing doors EA Description: SEAT OSW Descr: installation of 1 missing doors Part Descr: FNT_B/C_L/H_FNT_F/R EA PNR: SJSA2-1SQ102-01 EA SerNr.: 28 EQPT FIN: V5219ME019 MA | G20: STELIA | J20: STECO | K20: F
A21: CI | B21: A350 | C21: 294 | D21: Gamme | E21: 6016369820-STECO | F21: installation of 1 missing doors EA Description: SEAT OSW Descr: installation of 1 missing doors Part Descr: FNT_B/C_R/H_FNT_F/R EA PNR: SJSA2-1SQ202-01 EA SerNr.: 29 EQPT FIN: V5219ME019 MG | G21: STELIA | J21: STECO | K21: F
A22: CI | B22: A350 | C22: 294 | D22: Gamme | E22: 6016369822-STECO | F22: Installation of 1 door and 4 profile EA Description: SEAT OSW Descr: Installation of 1 door and 4 profile Part Descr: FNT_B/C_CTR_FNT_F/R EA PNR: SJSA2-1SQ302-01 EA SerNr.: 30 EQPT FIN: V5219ME019 MX | G22: STELIA | J22: STECO | K22: F
A23: CI | B23: A350 | C23: 294 | D23: Gamme | E23: 6016369823-GI-332-68_1 | F23: Replacement of panel SJSA2-1Q4103-01 EA Description: SEAT OSW Descr: Replacement of panel SJSA2-1Q4103-01 Part Descr: FNT_B/C_L/H_FNT_F/R EA PNR: SJSA2-1SQ101-01 EA SerNr.: 25 EQPT FIN: V5219ME011 MA | G23: STELIA | J23: STECO | K23: F
A24: CI | B24: A350 | C24: 294 | D24: Gamme | E24: 6016369824-STECO | F24: Installation of 1 door and 1 profile EA Description: SEAT OSW Descr: Installation of 1 door and 1 profile Part Descr: FNT_B/C_R/H_FNT_F/R EA PNR: SJSA2-1SQ201-01 EA SerNr.: 26 EQPT FIN: V5219ME011 MG | G24: STELIA | J24: STECO | K24: F
A25: CI | B25: A350 | C25: 294 | D25: Gamme | E25: 6016369832-GI-332-68 | F25: installation of 2 missing doors EA Description: SEAT OSW Descr: installation of 2 missing doors Part Descr: FNT_B/C_CTR_FNT_F/R EA PNR: SJSA2-1SQ301-01 EA SerNr.: 27 EQPT FIN: V5219ME011 MX | G25: STELIA | J25: STECO | K25: F
A26: CI | B26: A350 | C26: 294 | D26: Gamme | E26: 6016369832-STECO | F26: installation of 2 missing doors EA Description: SEAT OSW Descr: installation of 2 missing doors Part Descr: FNT_B/C_CTR_FNT_F/R EA PNR: SJSA2-1SQ301-01 EA SerNr.: 27 EQPT FIN: V5219ME011 MX | G26: STELIA | J26: STECO | K26: F
A27: CI | B27: A350 | C27: 294 | D27: Gamme | E27: AG00-004518 | F27: Replacement of safety placard-new color EA Description: SEAT-BC OSW Descr: Replacement of safety placard-new color | G27: Other | H27: étiquettes siege et stowage finition littérature pocket 26/02 Etiquette remplacé 01/03 pose Etiquette | J27: LGR/NOE/TBE | K27: F | L27: 2018-11-07
A28: CI | B28: A350 | C28: 294 | D28: Gamme | E28: AG00-004533 | F28: Pose étiquettes + bumpers + micro-switch sur les portes des FRM de la Z1 et Z2 | G28: Other | H28: 26/02 Etiquette Porte Stowage | J28: TBE/ATE | K28: F | L28: 2018-11-26
A29: CI | B29: A350 | C29: 305 | D29: Nc | E29: 206019357 | F29: Leather wrinkles on the backrest All seats | G29: STELIA | H29: 16/01 Cuir repositionee sur tétière et coussin 05/02 ATTENTE REP DAVID 11/02 RETOUR SUR POCK - ATTENTE STATUE CL | J29: JBDT / DMT | K29: F | L29: 2018-12-18 | M29: 2019-04-02 | N29: 75 | O29: Admin | P29: No - x1 | Q29: CUIR | R29: QUALITE | S29: CONTRÔLE
A30: CI | B30: A350 | C30: 305 | D30: Nc | E30: 206021108 | F30: Scratch on hinge of meal table PN: FJSA2-1SQ402-01 / SN:236 PN: FJSA2-1SQ101-01 / SN:203 PN: FJSA2-1SQ202-01 / SN:214 PN: FJSA2-1SQ302-01 / SN:226 PN: FJSA2-1SQ401-01 / SN:238 PN: FJSA2-1SQ301-01 / SN:223 PN: FJSA2-1SQ101-01 / SN:201 PN: FJSA2-1SQ401-01 / SN:235 | G30: STELIA | H30: WAITING CL | J30: DMT | K30: F | L30: 2018-12-19 | M30: 2019-04-02 | N30: 74
A31: CI | B31: A350 | C31: 305 | D31: Nc | E31: 206059810 | F31: OTTOMAN CENTRAL RH / WAVINESS UNDER DECO FOIL (item 2)pn: SJSA2-1SQ301-01 | G31: STELIA | H31: WAITING CL | J31: DMT | K31: F | L31: 2019-01-16 | M31: 2019-04-02 | N31: 54
A32: CI | B32: A330 | C32: 1861 | D32: EQLB | E32: LR.1861-0036 | F32: CABIN BC S7C 7H divider is sticking to go up position | G32: STELIA | H32: 02/04 Divider ajusté | K32: F | L32: 2019-02-18 | M32: 2019-04-03 | N32: 32
A33: CI | B33: A330 | C33: 1861 | D33: EQLB | E33: LR.1861-0037 | F33: CABIN BC S8H inside the 2 aisle compt spring is bent | G33: STELIA | K33: O | L33: 2019-02-18
A34: CI | B34: A350 | C34: 309 | D34: Nc | E34: 206168389 | F34: DIP//DE/Z4/19K Au cours de l’inspection During installation N/A du WP B/C SEAT. Nous avons remarqué un defaut sur le monument19K, Ottoman, Seal. Comment : | G34: AIRBUS | H34: 04/03 Contrôle joint à commander - 20/03 Pièce reçue 03/04 Remise en place et reglage du joint | I34: Commander le 04/03 SJSA2-1N5009-31 Reçu le 20/03 | J34: JBDT/ESI | K34: F | L34: 2019-02-25 | M34: 2019-04-02 | N34: 26 | V34: 2 | W34: 2
A35: CI | B35: A350 | C35: 309 | D35: Gamme | E35: 6016584648-GI-332-86 | F35: installation of 1 missing door EA Description: SEAT OSW Descr: installation of 1 missing door Part Descr: SEAT_B/C_CTR_SGL_L/R EA PNR: FJSA2-1SQ405-01 EA SerNr.: 280 EQPT FIN: V5211ME018 ME | G35: STELIA | J35: STECO | K35: F | L35: 2019-01-02
A36: CI | B36: A350 | C36: 309 | D36: Gamme | E36: 6016596010-GI-332-87_GI-332-88 | F36: Installation of missing parts (doors,etc EA Description: SEAT OSW Descr: Installation of missing parts (doors,etc Part Descr: FNT_B/C_CTR_FNT_F/R EA PNR: SJSA2-1SQ301-01 EA SerNr.: 39 EQPT FIN: V5219ME011 MX | G36: STELIA | J36: STECO | K36: F | L36: 2019-01-04
A37: CI | B37: A350 | C37: 309 | D37: Gamme | E37: 6016596025-GI-332-87_GI-332-88 | F37: Installation of missing parts (doors, pr EA Description: SEAT OSW Descr: Installation of missing parts (doors, pr Part Descr: FNT_B/C_L/H_FNT_F/R EA PNR: SJSA2-1SQ102-01 EA SerNr.: 40 EQPT FIN: V5219ME019 MA | G37: STELIA | J37: STECO | K37: F | L37: 2019-01-04
A38: CI | B38: A350 | C38: 309 | D38: Gamme | E38: 6016596026-GI-332-87_GI-332-88 | F38: Installation of missing parts (doors, pr EA Description: SEATOSW Descr: Installation of missing parts (doors, pr Part Descr: FNT_B/C_R/H_FNT_F/R EA PNR: SJSA2-1SQ202-01 EA SerNr.: 41 EQPT FIN: V5219ME019 MG | G38: STELIA | J38: STECO | K38: F | L38: 2019-01-04
A39: CI | B39: A350 | C39: 309 | D39: Gamme | E39: 6016596028-GI-332-87_GI-332-88 | F39: Installation of missing parts (doors, pr EA Description: SEAT OSW Descr: Installation of missing parts (doors, pr Part Descr: FNT_B/C_CTR_FNT_F/R EA PNR: SJSA2-1SQ302-01 EA SerNr.: 42 EQPT FIN: V5219ME019 MX | G39: STELIA | J39: STECO | K39: F | L39: 2019-01-04
A40: CI | B40: A350 | C40: 309 | D40: Gamme | E40: 6016596029-GI-332-87_GI-332-88 | F40: Installation of missing parts (doors, pr EA Description: SEAT OSW Descr: Installation of missing parts (doors, pr Part Descr: FNT_B/C_L/H_FNT_F/R EA PNR: SJSA2-1SQ101-01 EA SerNr.: 37 EQPT FIN: V5219ME011 MA | G40: STELIA | J40: STECO | K40: F | L40: 2019-01-04
A41: CI | B41: A350 | C41: 309 | D41: Gamme | E41: 6016596030-GI-332-87_GI-332-88 | F41: Installation of missing parts (doors, pr EA Description: SEAT OSW Descr: Installation of missing parts (doors, pr Part Descr: FNT_B/C_R/H_FNT_F/R EA PNR: SJSA2-1SQ201-01 EA SerNr.: 38 EQPT FIN: V5219ME011 MG | G41: STELIA | J41: STECO | K41: F | L41: 2019-01-04
A42: CI | B42: A350 | C42: 309 | D42: Gamme | E42: AG00-004551 | F42: EA Description: SEAT-BC OSW Descr: Modification of lower front seat cover ALL SEATS | G42: STELIA | H42: 29/01 Dépose des covers bas du sièges All Seats, Découpe, tracage, ébavurage et nettoyage des covers. 31/01 - 04/02+(IDEM) 26/02 Decoupe des cover 27/02 Monrtage des covers 05/04 Pose des etiquettes | J42: NOE/TBE/CCE/JBDT/ATE | K42: F | L42: 2019-01-10 | X42: 9.5
A43: CI | B43: A350 | C43: 309 | D43: Gamme | E43: AG00-004559 | F43: Installation of labels , seals, bumper,Modification of lower front seat cover | G43: STELIA | H43: 30/01/2019Montage 04/04 Verification des etiquettes manquante | J43: ADS/JBDT | K43: F | L43: 2019-01-18 | W43: 1
A44: CI | B44: A350 | C44: 309 | D44: Gamme | E44: GI-332-86 | F44: EA Description: SEAT OSW Descr: installation of 1 missing door Part Descr: SEAT_B/C_CTR_SGL_L/R EA PNR: FJSA2-1SQ405-01 EA SerNr.: 280 EQPT FIN: V5211ME018 ME Part Descr: SEAT_B/C_CTR_SGL_L/R EA PNR: FJSA2-1SQ405-01 EA SerNr.: 277 EQPT FIN: V5211ME018 ME | G44: STELIA | J44: STECO | K44: F | L44: 2019-01-02
A45: CI | B45: A350 | C45: 309 | D45: Gamme | E45: GI-332-87_GI-332-88 | F45: Installation of missing parts (doors,etc EA Description: SEAT OSW Descr: Installation of missing parts (doors,etc EA PNR: SJSA2-1SQ301-01 EA SerNr.: 39 EQPT FIN: V5219ME011 MX EA PNR: SJSA2-1SQ201-01 EA SerNr.: 38 EQPT FIN: V5219ME011 MG EA PNR: SJSA2-1SQ101-01 EA SerNr.: 37 EQPT FIN: V5219ME011 MA EA PNR: SJSA2-1SQ302-01 EA SerNr.: 42 EQPT FIN: V5219ME019 MX EA PNR: SJSA2-1SQ202-01 EA SerNr.: 41 EQPT FIN: V5219ME019 MG EA PNR: SJSA2-1SQ102-01 EA SerNr.: 40 EQPT FIN: V5219ME019 MA | G45: STELIA | J45: STECO | K45: F | L45: 2019-01-04
A46: CI | B46: A350 | C46: 309 | D46: Gamme | E46: AG00-004555 | F46: Démonter le panneau fond ottoman FJSA2-1N2401-014, monter la lumière ambiance P82365M010n sur la tôle FJSA2-1R2054-01 et monter l'enssemble sur FJSZA1-1H2021-01 plateau ottoman avec 3 vis NAS1801-3-4 et 3 rondelles NAS1149F0332P. Remonter le panneau FJSA2-1N2401-01. Coller les étiquettes REP 24,40,09,18,08 sur la porte SJSA2-1R4200-01 suivant plan FJSA2-1SQ970-07 indice F. | G46: STELIA | H46: 29/01 Démontagepanneauu footrest + montage cornière et lumière + remontage panneau + branchement lumière + recherche rondelle. | K46: F | L46: 2019-01-18
A47: CI | B47: A350 | C47: 316 | D47: Nc | E47: 206078463 | F47: Backrest dress cover is creased and has wrinkles ALL SEATS | G47: AIRBUS | H47: 06/02 NPRF 05/03 Rejeté CL 03/04 DOC CL REJETER | I47: AS PER DESIGN / DMT | J47: TBE/DMT | K47: F | L47: 2019-01-23 | M47: 2019-04-03 | N47: 50 | O47: Atnte acces siege sur poste
A48: CI | B48: A350 | C48: 316 | D48: Nc | E48: 206078466 | F48: Corner of reading light panel padding is creased SN 297 301 313 315 295 291 285 284 292 293 282 298 | G48: AIRBUS | H48: 06/02 Padding replacé au mieux dans le coin de la reading light mais non concluant 05/03 Rejeté CL 03/04 DOC CL REJETER | I48: AS PER DESIGN / DMT | J48: TBE/DMT | K48: F | L48: 2019-01-23 | M48: 2019-04-03 | N48: 50 | O48: Atnte acces siege sur poste
A49: CI | B49: A330 | C49: 1861 | D49: Gamme | E49: 0020915803-9494622 | F49: Cannibalization console FJSL1-1G1082-01 EA Description: SINGLE SEAT BC OSW Descr: Cannibalization console FJSL1-1G1082-01 Part Descr: PASSENGER SEAT SINGLE EA PNR: FJSL1-2AB201-01 EA SerNr.: 98 EQPT FIN: F5990ME16 | G49: STELIA | H49: 07/02 Néttoyage et collage des boites . 12/02 Conssole basse remonté | J49: NOE/MGN/MRO | K49: O | L49: 2019-01-15
A50: CI | B50: A330 | C50: 1861 | D50: Gamme | E50: 0020915793-9492890 | F50: Cannibalization console FJSL1-1G1082-01 EA Description: SINGLE SEAT BC OSW Descr: Cannibalization console FJSL1-1G1082-01 Part Descr: PASSENGER SEAT SINGLE EA PNR: FJSL1-2AB101-01 EA SerNr.: 94 EQPT FIN: F5991ME11 | G50: STELIA | H50: 07/02 Néttoyage et collage des boites . 12/02 Conssole basse remonté | J50: MRO/NOE/MGN/ | K50: O | L50: 2019-01-15
A51: CI | B51: A330 | C51: 1861 | D51: Gamme | E51: 0020915779-9504061 | F51: Cannibalization console FJSL1-1G1082-01 EA Description: SINGLE SEAT BC OSW Descr: Cannibalization console FJSL1-1G1082-01 Part Descr: PASSENGER SEAT SINGLE EA PNR: FJSL1-2AB302-01 EA SerNr.: 107 EQPT FIN: F5990ME14 | G51: STELIA | H51: 07/02 Néttoyage et collage des boites . 12/02 Conssole basse remonté | J51: MRO/NOE/MGN | K51: O | L51: 2019-01-15
D52: Gamme | E52: 6016584647-GI-332-86 | F52: installation of 1 missing door EA Description: SEAT OSW Descr: installation of 1 missing door Part Descr: SEAT_B/C_CTR_SGL_L/R EA PNR: FJSA2-1SQ405-01 EA SerNr.: 277 EQPT FIN: V5211ME018 ME | G52: STELIA | J52: STECO | K52: O | L52: 2019-01-02
A53: CI | B53: A350 | C53: 316 | D53: Nc | E53: 206078829 | F53: Bubble/Mark/Scratch on the corner of the meal table SN 301 285 289 293 318 288 281 286 | G53: STELIA | H53: VOIR BUMPER SUR TABLETTE DEMONTER | I53: EN commander ST43-3450 Reçu 15/04 | K53: o | L53: 2019-01-23 | O53: Atnte acces siege sur poste
A54: CI | B54: A350 | C54: 316 | D54: Nc | E54: 206079710 | F54: Scratch on the meal table hinge ALL SEATS | G54: STELIA | H54: 03/04 DOC CL REJETER | K54: F | L54: 2019-01-23 | M54: 2019-04-03 | N54: 50 | O54: Atnte acces siege sur poste
A55: CI | B55: A350 | C55: 316 | D55: Nc | E55: 206079739 | F55: Seat cushion dress cover is wrinkles 285 289 284 292 293 318 307 320 302 310 317 281 286 | G55: AIRBUS | H55: 05/03 Rejeté CL 03/04 DOC CL REJETER | I55: AS PER DESIGN / DMT | J55: TBE/DMT | K55: F | L55: 2019-01-23 | M55: 2019-04-03 | N55: 50 | O55: Atnte acces siege sur poste
A56: CI | B56: A350 | C56: 316 | D56: Nc | E56: 206116820 | F56: DAMAGE-DECO-PANEL-FRM-Z2 At unpacking on the station,we notice that the FRM,RHS,frame 20/22,area 2,is damaged on the deco panel. See standard doc. | G56: STELIA | H56: CL | J56: DMT | K56: F | L56: 2019-02-06 | M56: 2019-04-09 | N56: 44
A57: CI | B57: A350 | C57: 305 | D57: Gamme | E57: 6016583858-GI-332-85 | F57: installation of 1 missing doors EA Description: SEAT OSW Descr: installation of 1 missing doorsPart Descr: FNT_B/C_L/H_FNT_F/R EA PNR: SJSA2-1SQ101-01 EA SerNr.: 31 EQPT FIN: V5219ME011 MA | G57: STELIA | H57: Motage bumpper Stw zone1 et Central LH et RH ( tony) | J57: STECO | K57: F | L57: 2018-12-26
A58: CI | B58: A350 | C58: 305 | D58: Gamme | E58: 6016583859-GI-332-85 | F58: installation of 1 missing doors EA Description: SEAT OSW Descr: installation of 1 missing doors Part Descr: FNT_B/C_R/H_FNT_F/R EA PNR: SJSA2-1SQ201-01 EA SerNr.: 32 EQPT FIN: V5219ME011 MG | G58: STELIA | H58: 13/03 Pose de etiquette sur les portes | J58: STECO | K58: F | L58: 2018-12-26
A59: CI | B59: A350 | C59: 305 | D59: Gamme | E59: 6016583866-GI-332-85 | F59: installation of 1 missing doors EA Description: SEAT OSW Descr: installation of 1 missing doors Part Descr: FNT_B/C_R/H_FNT_F/R EA PNR: SJSA2-1SQ202-01 EA SerNr.: 35 EQPT FIN: V5219ME019 MG | G59: STELIA | J59: STECO | K59: F | L59: 2018-12-26
A60: CI | B60: A330 | C60: 1861 | D60: Am | E60: 9632614 | F60: Suite au retour de réparation AM 9562643, nous constatons une déchirure du cuir sur le repose pied du siège 5C zone1. voir standard doc demandons intervention | G60: AIRBUS | H60: 07/02 Cuir du repose pied déchiré suite au retour de l'AM 9562643 du siège 5C Demande de commande le 11/02 | I60: ess.FJSL1-2H2022-01 piece/ 24DCMX50200 | J60: TBE | K60: O | L60: 2019-02-06
A61: CI | B61: A350 | C61: 302 | D61: Nc | E61: 206127268 | F61: MID_36 Au cours de l’inspection P20 J1 du WP B/C SEAT. Nous avons remarque que le monument , Seat pan, Covering surface n ’est pas conforme :Comment : la cloison est rayée | G61: AIRBUS | H61: Correspondance avec le qlb xw.0302-0095 19/02 Vérif' divider Rang 1,3,5 manipulation difficile 4/04 Remplacement du Divider 09/04 Etiquette mis en place et pinouille redresse suite a la dépose du siege par AIRBUS 10/04 Connection cable interface + aide pour repositionner le siège + route | I61: Commande demande le 20/02 FJST1-1S2001-01 ODD 01/04 Etiquette : FJST1-1M0053-31 FJST1-1M0054-31 | J61: JBDT/ADS | K61: F | L61: 2019-02-11 | M61: 2019-04-09 | N61: 41 | W61: 2 | AB61: 1.5 | AC61: 1
A62: CI | B62: A350 | C62: 305 | D62: Gamme | E62: 6016583871-GI-332-85 | F62: installation of 4 missing doors EA Description: SEAT OSW Descr: installation of 4 missing doors Part Descr: FNT_B/C_CTR_FNT_F/R EA PNR: SJSA2-1SQ301-01 EA SerNr.: 33 EQPT FIN: V5219ME011 MX | G62: STELIA | H62: 20/03 Pose des étiquettes de portes | J62: STECO/JBST | K62: F | L62: 2018-12-26
A63: CI | B63: A350 | C63: 312 | D63: Nc | E63: 206130717 | F63: During installation of ottoman, area 2, right side, fr.20/21, we notice that the backshell is damaged. | G63: AIRBUS | H63: 24/04 Dépose de l'ottoman pour changement Backshelle 25/04 Repose nackshell, remis en place, nettoyage | I63: COMMANDER LE 14/02 FJST1-2Q3170-004 Reçu 17/04 PN ETIQUETTE FJST1-1M0049-31 - FJST1-1M0057-31 FJST1-1M0059-31 - FJST1-1M0052-31 | J63: DLY/TDT | K63: F | L63: 2019-02-12 | M63: 2019-04-25 | N63: 52 | AL63: 5 | AQ63: 16 | AR63: 5
A64: CI | B64: A330 | C64: 1861 | D64: Am | E64: 9637464 | F64: Lors du final cabine, constatons un impact sur ottoman du siège 1A côté gauche. voir standard doc | G64: AIRBUS | H64: 12/02 Retouche peinture 02/04 Piece changer | I64: Commander le 13/02 FJSL1-1R1317-01 ODD 15/03 | J64: NOE/MGN/ | K64: F | L64: 2019-02-11 | M64: 2019-04-03 | N64: 37
A65: CI | B65: A330 | C65: 1861 | D65: Am | E65: 9637483 | F65: Lors du final constatons un impact sur laccoudoir du siège 2A côté gauche. voir standard doc | G65: AIRBUS | H65: 12/02 Accoudoir démonter et remonté. 03/04 Piece changer | I65: En commande :FJSL1-8F1200-03 ODD 15/03 | K65: F | L65: 2019-02-11 | M65: 2019-04-03 | N65: 37 | V65: 1.5
A66: AC | B66: A320 | C66: 8596 | D66: Am | E66: 9629445 | F66: POINT INCOMING | G66: STELIA | H66: 11/02 Perte de temps recherche colle à ATR + attente chef avion et finalement pièces pas livré au poste. 12/02 Reprise des pièces cockpit (retouche peinture/changement étiquette et nettoyage) + recherche dans l'avion. | J66: JBDT/TBE | K66: O
A67: AC | B67: A320 | C67: 8750 | D67: Am | E67: 9629409 | F67: POINT INCOMING | G67: STELIA | H67: 12/02 Point Incom. + Trajet, + Attentes des pièce -reprise des pièces cockpit (retouche peinture/changement étiquette et nettoyage) + recherche dans l'avion. 13/02 Demande acces air log + recherche pièce + retouche peinture et collage pièce. | J67: TBE/JBDt | K67: O | L67: 2019-02-19
A68: AC | B68: A320 | C68: 8874 | D68: Am | E68: 9629435 | F68: Suite à demande de N.RIPOLL nous mettons en wait pour vérif en commun ds WP pour complétude et endommagement panel. *********************** | H68: 13/02 Recherche pièce introuvable | J68: JBDT/MGN | K68: O | L68: 2019-02-06
A69: CI | B69: A350 | C69: 234 | D69: TLB | E69: MID_51 | F69: During all test on IFE system, we notice that the handset 6D and 6G are in fault. We have no data from 6D (and 6G) message. | G69: IFE Pana | H69: 12/02 Recherche de panne avec Pana et ouverture 3 caissons ottoman 18/02 Power off 05/04 Perte de temps acces avion 08/04 Recherche panne avec Pana 09/04 Recherche panne 10/04 Ouverture zone pour recherche de panne + route 11/04 Recherche de panne 12/04Tout a été remonté pour le cable à fermer | J69: XON/TBE/ADS/JBDT/ARE | K69: F | L69: 2019-02-12 | M69: 2019-04-11 | N69: 42 | X69: 4 | AA69: 12.5 | AB69: 10 | AC69: 6 | AD69: 4 | AE69: 2
A70: CI | B70: A350 | C70: 294 | E70: V25290981000 | F70: FINISHING PART | G70: STELIA | H70: 15/02 Pose des étiquette. 25/02 Fermeture des assises 26/02 IDEM | J70: NOE/MGN/TBE/ADS | K70: f
A71: CI | B71: A330 | C71: 1861 | D71: Am | E71: 9640949 | F71: En cabine, zone B/C, nous constatons que la prise du port USB (nferieur) du siège 7H est manquante. Demandons intervention. | G71: IFE Pana | I71: COMMANDER LE 15/02 / RDFA6014-01 ODD 15/03 | K71: O | L71: 2019-02-13
A72: CI | B72: A330 | C72: 1861 | D72: EQLB | E72: LR.1861-0038 | F72: CABIN BC Between S5C/F on backrest top of divider guide LH side damaged | G72: AIRBUS | K72: O | L72: 2019-02-18
A73: CI | B73: A330 | C73: 1861 | D73: EQLB | E73: LR.1861-0040 | F73: CAB BC area Between seats 4C, 4F and stowage C2F Centre panel is folding | G73: AIRBUS | H73: 02/04 Triangle ajusté | K73: F | L73: 2019-02-18 | M73: 2019-04-03 | N73: 32
A74: CI | B74: A330 | C74: 1861 | D74: EQLB | E74: LR.1861-0041 | F74: CAB BC area Aft to seats 8A, 8H, 7F and 7C Various sharp edges on metallic stripes | G74: STELIA | H74: 02/04 Trim ébavuré | K74: F | L74: 2019-02-18 | M74: 2019-04-03 | N74: 32
A75: CI | B75: A330 | C75: 1861 | D75: EQLB | E75: LR.1861-0042 | F75: CABIN BC in front of S1A metalic plate ratling (FAI item) | G75: AIRBUS | K75: O | L75: 2019-02-19
A76: CI | B76: A330 | C76: 1861 | D76: EQLB | E76: LR.1861-0046 | F76: CABIN BC Seats on top of the compt close to the light S1A S2H S3A S4A S5F S5H S6D S7A rubber seal unstuck | G76: AIRBUS | H76: 02/04 Joint re-collé | K76: F | L76: 2019-02-19 | M76: 2019-04-03 | N76: 31 | V76: 1.5
A77: CI | B77: A330 | C77: 1861 | D77: EQLB | E77: LR.1861-0050 | F77: CABIN BC seats LH side for S6C S7A RH side S2H S4F S5H S7H ottoman top leather feet rest wrinkled | G77: AIRBUS | H77: 02/04 coussin Ajusté | K77: F | L77: 2019-02-19 | M77: 2019-04-03 | N77: 31
A78: CI | B78: A330 | C78: 1890 | D78: EQLB | E78: LR.1890-0131 | F78: Cabin B/C seat 7 A and 7 J seal between stowage and monument are not installed properly hole visible and seal unstuck | G78: AIRBUS | H78: 03/04 AS PER DESIGN 17/04 Joint remis en place correctement; | J78: TBE/ESI | K78: f | L78: 2019-03-26 | M78: 2019-04-17 | N78: 16 | AJ78: 3
A79: CI | B79: A330 | C79: 1861 | D79: EQLB | E79: PREL 238691 LR,1844-0100 | F79: Cannibalisation of screen shroud top cover for MSN 1844 QLB LR.1844-0100 Cabin B/C seat 4F - adjacent video screen shroud top surface has a bubble under the deco | G79: AIRBUS | K79: O | L79: 2019-03-26
A80: CI | B80: A350 | C80: 294 | D80: EQLB | E80: XW.0294-0070 | F80: Cab,BC,S11F,S15A,SEAT BELT,SCRATCHE,PLEASE ASSESS. | G80: AIRBUS | H80: 03/04 FERMER CL | K80: F | L80: 2019-04-01 | M80: 2019-04-03 | N80: 2
A81: CI | B81: A350 | C81: 294 | D81: EQLB | E81: XW.0294-0071 | F81: CAB,BC,S12F,S14D,S16F,S16K, amenity compartment,front cover loose | G81: AIRBUS | H81: 03/04 FERMER CL | K81: F | L81: 2019-04-01 | M81: 2019-04-03 | N81: 2
A82: CI | B82: A350 | C82: 294 | D82: EQLB | E82: XW.0294-0072 | F82: Cab,S11F,S17F,noisy during beginning or end recline,please assess. | G82: STELIA | H82: 03/02 FERMER CL | K82: F | L82: 2019-04-01 | M82: 2019-04-03 | N82: 2
A83: CI | B83: A350 | C83: 309 | D83: I-Nc | E83: 206052528 | F83: Location: Incoming Item : B/c seat Kind of defect : Non conforming assembly PN: FJSA2-1SQ202-01 SN:256 PN: FJSA2-1SQ202-01 SN:252 * Le couvercle du dossier est froissé et a des rides | G83: AIRBUS | H83: 05/02 ATTENTE STATUE STELIA Reopen le 08/02 WAITING CL | I83: AS PER DESIGN / DMT | J83: DMT | K83: F | L83: 2019-01-14 | M83: 2019-04-02 | N83: =IF(OR(L83="",M83=""),"",IF(NETWORKDAYS(L83,M83)-1>=0,NETWORKDAYS(L83,M83)-1,0)) -> 56 | O83: REOPEN | P83: No - x1
A84: CI | B84: A350 | C84: 309 | D84: Nc | E84: 206041559 | F84: Location: Incoming Item : B/c seat PN FJSA2-1SQ101-01 SN 248 PN FJSA2-1SQ101-01 SN 243 PN FJSA2-1SQ102-01 SN 244 PN FJSA2-1SQ401-01 SN 278 PN FJSA2-1SQ401-01 SN 273 PN FJSA2-1SQ402-01 SN 272 PN FJSA2-1SQ405-01 SN 277 PN FJSA2-1SQ305-01 SN 267 Kind of defect : Non conforming assembly Corner of reading light panel padding is creased | G84: AIRBUS | H84: 29/01 NPRF La découpe du tissu est faite du plie 05/02 attente statue STELIA Reopen le 11/02 WAITING CL | I84: AS PER DESIGN / DMT | J84: JBDT | K84: f | L84: 2019-01-09 | M84: 2019-04-02 | N84: 59 | O84: REOPEN | P84: No - x1
A85: CI | B85: A350 | C85: 294 | D85: EQLB | E85: XW.0294-0073 | F85: Cab,BC,row12,15,17,between seats,foam installation deviation,please assess. | G85: AIRBUS | H85: 01/01 Rang 12/15/17 mousse interface ajustée | K85: F | L85: 2019-04-01 | M85: 2019-04-02 | N85: 1 | T85: 1
A86: CI | B86: A350 | C86: 309 | D86: I-Nc | E86: 206052627 | F86: Location: Incoming Item : B/c seat Kind of defect : Non conforming assembly PN: FJSA2-1SQ202-01 SN: 252 Corner of reading light panel padding is creased | G86: STELIA | H86: 29/01 NPRF La découpe du tissu est faite du plie 05/02 attente statue STELIA Reopen le 11/02 WAITING CL | I86: AS PER DESIGN / DMT | J86: DMT | K86: F | L86: 2019-01-14 | M86: 2019-04-02 | N86: 56 | O86: REOPEN | P86: No - x1
A87: CI | B87: A350 | C87: 294 | D87: EQLB | E87: XW.0294-0074 | F87: Cab,all BC, meal table,gap in storage position,please advise and adjust when necessary. | G87: STELIA | H87: 01/01 Toute les meal-tables on été ajusté Reopen 04/04 fermer cl | J87: JMS | K87: f | L87: 2019-04-01 | M87: 2019-04-04 | N87: 3 | T87: 1
A88: CI | B88: A350 | C88: 309 | D88: Nc | E88: 206095084 | F88: Zone 1 B/C siège 18K côté droit, constatons un impact sur la partie haute de la coque provoqué par l’outillage de manutention. voir doc joint | G88: AIRBUS | H88: 02/04 Dépose élèments siège pour remplacement partie haute de la coque 03/04 Remontage pièce sur siège 18K difficile | I88: COMMANDER LE 05/02: FJSA1-1N2398-01 RECU LE 13/02 ++ COMMANDER LE 0/03 FJSA1-1N2062-01 Reçu le 12/03 | J88: ADS/JBDT | K88: F | L88: 2019-01-29 | M88: 2019-04-03 | N88: 46 | U88: 17 | V88: 5
A89: CI | B89: A350 | C89: 309 | D89: I-Nc | E89: 206052447 | F89: Location: Incoming Item : B/c seat Kind of defect : Bad surface aspect PN: FJSA2-1SQ202-01 SN:256 PN: FJSA2-1SQ202-01 SN:252 Scratch on AFT meal table hinges | G89: STELIA | H89: WAITING CL | J89: DMT | K89: F | L89: 2019-01-14 | M89: 2019-04-02 | N89: 56
A90: CI | B90: A350 | C90: 309 | D90: Nc/TLB | E90: 206091856 | F90: MID_31 ottoman Area 1 C21 RHS: A réception au poste, nous constatons 3 enfoncements sur la déco noir de lottoman item 3 réf: SJSA2-1SQ201-01 au niveau des sangles de maintien. | G90: STELIA | H90: WAITING CL | J90: DTM | K90: F | L90: 2019-01-28 | M90: 2019-05-06 | N90: 70
A91: CI | B91: A350 | C91: 309 | D91: I-Nc | E91: 206041308 | F91: Location: Incoming Item : B/c seat ALL SEATS except LAST ROW Kind of defect : Bad surface aspect Scratch on AFT meal table hinges. | G91: STELIA | H91: WAITING CL | J91: DTM | K91: F | L91: 2019-01-09 | M91: 2019-04-02 | N91: 59
A92: CI | B92: A350 | C92: 309 | D92: Nc | E92: 206041527 | F92: Location: Incoming Item : B/c seat ALL SEATS Kind of defect : Finishing and cosmetic aspect Inner moveable armrest leather is baggy and wrinkled | G92: STELIA | H92: FERMER CL | K92: F | L92: 2019-01-09 | M92: 2019-04-02 | N92: 59 | R92: a
A93: CI | B93: A350 | C93: 309 | D93: Nc/TLB | E93: 206159999 | F93: MID_32 Au cours de l’inspection P20 J1 du WP B/C SEAT. Nous avons remarqué un defaut sur le monument , Ottoman, Covering surface.Comment : | G93: STELIA | H93: WAITING CL | J93: DTM | K93: F | L93: 2019-02-21 | M93: 2019-04-02 | N93: 28
A94: CI | B94: A350 | C94: 309 | D94: Nc | E94: 206052622 | F94: Location: Incoming Item : B/c seat Kind of defect : Non conforming assembly PN: FJSA2-1SQ202-01 SN: 256 PN: FJSA2-1SQ202-01 SN: 252 Inner moveable armrest leather is baggy and wrinkle | G94: AIRBUS | H94: FERMER CL Reopen le 12/02 | J94: DMT | K94: F | L94: 2019-01-14 | M94: 2019-04-02 | N94: 56 | O94: REOPEN | P94: No - x1
A95: CI | B95: A350 | C95: 322 | D95: I-Nc | E95: 206145019 | F95: Corner of reading light panel padding is creased 357 337 347 330 344 352 346 349 332 325 | G95: AIRBUS | H95: 05/03 Check des Padding froissé autour des reading ligth NPRF FERMER CL | J95: TBE/ADS | K95: F | L95: 2019-02-15 | M95: 2019-04-15 | N95: 41
A96: CI | B96: A350 | C96: 322 | D96: Nc | E96: 206143971 | F96: Impact on the meal table corner QP-BCS-4409-3565 GCA point 2 page 37 SN 351 338 342 352 343 334 | G96: STELIA | H96: Bumper de tablette changé | I96: COMMANDER LE 01/03 BUMPER | K96: F | L96: 2019-02-19 | M96: 2019-04-10 | N96: 36
A97: CI | B97: A350 | C97: 322 | D97: I-Nc | E97: 206143900 | F97: The leather of the inner movable armrest is wrinkled following 348 338 336 342 337 350 340 330 352 343 349 345 334 359 353 332 333 323 322 | G97: STELIA | H97: FERMER CL | K97: F | L97: 2019-02-15 | M97: 2019-04-15 | N97: 41
A98: CI | B98: A350 | C98: 322 | D98: Nc | E98: 206147099 | F98: Meal table is hard to deploy correctly, When opening the meal table the folding part needs addition pressure to open fully. SN 358 | G98: STELIA | H98: 05/03 La tablette est à commander SN358 Essai de lubrifer mais non ocncluant. 09/04 Tablette ajusté | I98: Demande commande le 05/03 | J98: TBE/ADS | K98: F | L98: 2019-02-18 | M98: 2019-04-09 | N98: 36 | AB98: 0.5
A99: CI | B99: A350 | C99: 322 | D99: I-Nc | E99: 206147098 | F99: Back shell padding is not flush Step >2mm in between inner and center padding SN 358 353 332 333 323 328 335 339 329 | G99: STELIA | H99: 11/04 Padding ajusté | K99: F | L99: 2019-02-18 | M99: 2019-04-11 | N99: 38 | Q99: PADDING | R99: INSTALATION | S99: CONTROL MISSING | AD99: 1.5
A100: CI | B100: A350 | C100: 322 | D100: I-Nc | E100: 206146838 | F100: Leather half moon bed extension has wrinkles SN 334 359 324 335 339 | G100: STELIA | H100: FERMER CL | K100: F | L100: 2019-02-18 | M100: 2019-04-15 | N100: 40
A101: CI | B101: A350 | C101: 322 | D101: Gamme | E101: 6016774455-GI-332-98 | F101: Installation of missing parts EA Description: SEAT OSW Descr: Installation of missing parts Part Descr: FNT_B/C_CTR_FNT_F/R EA PNR: SJSA2-1SQ301-01 EA SerNr.: 51 | G101: STELIA | J101: STECO | K101: O | L101: 2019-02-13
A102: CI | B102: A350 | C102: 322 | D102: Gamme | E102: 6016774540-GI-332-98 | F102: Install of corner profile (qty 1) EA Description: SEAT OSW Descr: Install of corner profile (qty 1) Part Descr: FNT_B/C_L/H_FNT_F/R EA PNR: SJSA2-1SQ102-01 EA SerNr.: 52 | G102: STELIA | J102: STECO | K102: O | L102: 2019-02-13
A103: CI | B103: A350 | C103: 322 | D103: Gamme | E103: 6016774532-GI-332-98 | F103: install door indicator cover (qty 2) EA Description: SEAT OSW Descr: install door indicator cover (qty 2) Part Descr: FNT_B/C_R/H_FNT_F/R EA PNR: SJSA2-1SQ201-01 EA SerNr.: 50 | G103: STELIA | J103: STECO | K103: O | L103: 2019-02-13
A104: CI | B104: A350 | C104: 322 | D104: Gamme | E104: 6016774524-GI-332-98 | F104: install door indicator cover (qty 2) EA Description: SEAT OSW Descr: install door indicator cover (qty 2) Part Descr: FNT_B/C_L/H_FNT_F/R EA PNR: SJSA2-1SQ101-01 EA SerNr.: 49 | G104: STELIA | J104: STECO | K104: O | L104: 2019-02-13
A105: CI | B105: A350 | C105: 309 | D105: Nc | E105: 206180752 | F105: During During Final Cabin preparation of WP B/C SEAT, we notice a defect on monument , Ottoman, Seal. Comment:Rubber seal missing on FRM2AR | G105: AIRBUS | H105: 03/04 Joint installé | I105: EN commande SB1-016-005-09 RECU | K105: f | L105: 2019-02-28 | M105: 2019-04-03 | N105: 24
A106: CI | B106: A350 | C106: 294 | D106: EQLB | E106: XW.0294-0075 | F106: Cab,BC,S19F,meal table trim,stain,please assess. | G106: AIRBUS | H106: 01/01 19F Retouche peinture faite. | J106: ADS/JBDT | K106: F | L106: 2019-04-01 | M106: 2019-04-02 | N106: 1 | T106: 2
A107: CI | B107: A350 | C107: 294 | D107: EQLB | E107: XW.0294-0076 | F107: CAB BC SEAT 12D / 14A, HEADREST NOT FLUSH WITH LEATHER CAUTION ON BED POSITION. | G107: STELIA | H107: 01/04 Appuie tête remis en place | J107: JMS | K107: F | L107: 2019-04-01 | M107: 2019-04-01 | N107: 0 | T107: 1
A108: CI | B108: A350 | C108: 305 | D108: TLB | E108: MID_54 | F108: Zone 2, LHS, BC seat At seat row 16D, we cannot switch offon the screen with the seat controler | G108: AIRBUS | H108: 20/03 Test de la télécommande + swap avec un autre siège. La panne reste sur le siège (recherche de panne à continuer) une fois sur reseau l'écran s'étein | J108: JBDT | K108: f | L108: 2019-03-07 | M108: 2019-03-12 | N108: 3
A109: CI | B109: A350 | C109: 305 | D109: TLB | E109: MID_52 | F109: All BC aera, All seats The armrest dont stay in upper position when we press on | G109: AIRBUS | H109: 03/04 A FERMER SUR PISTE AVEC CL JOINT PAR DAVID | K109: F | L109: 2019-03-07 | M109: 2019-04-15 | N109: 27 | O109: REOPEN
A110: CI | B110: A350 | C110: 305 | D110: TLB | E110: MID_46 | F110: Zone 2, LHS, BC seat, 14A The sign Do not disturb stay normal on seat controler Normaly blue light when the sign is active | G110: STELIA | H110: *PENSSER A REMETRE ECU D ORIGINE* 12/03 Boitier ECU changer siège 14A + bleu de méta + montage + remontage + essai 13/03 REOPEN Essai de changement clavier et ECU mai non concluant 15/03 Verifier le cable 16 et 17/04 Recherche de panne 26/04 27/04 attente ic , Recherche acheminement cable à changer + le remontage du cable | I110: Cable a changer PN ECU: P78700M111 SER ON : 180925-N0480228 SER OFF : 180742-N0486759 CABLE PN : P82162M010 ODD 26/04 | J110: JBDT/JMS | K110: F | L110: 2019-03-07 | M110: 2019-04-29 | N110: 37 | AI110: 2.5 | AJ110: 7 | AS110: 13 | AT110: 10
A111: CI | B111: A350 | C111: 328 | D111: I-Nc | E111: 206214421 | F111: V-Inc-AR-Damage-B/CS-noQP Scratch on meal table hinge(5mm) GCApoint 3 page37 SN 372 - 371 - 374 -376 -386 | G111: STELIA | H111: WAITING CL | K111: F | L111: 2019-03-06 | M111: 2019-04-15 | N111: 28
A112: CI | B112: A350 | C112: 328 | D112: I-Nc | E112: 206214352 | F112: V-Inc-AR-PbAspect-B/CS-noQP Corner of reading light panel padding is creased M2831.D chapter 3.34 page 60 SN 382- 371 - 388 - 375 - 376 | G112: STELIA | H112: WAITING CL | K112: F | L112: 2019-03-06 | M112: 2019-04-15 | N112: 28
A113: CI | B113: A350 | C113: 328 | D113: I-Nc | E113: 206214268 | F113: V-Inc-AR-PbAspect-B/CS-noQP The leather of the inner movable armrest is wrinkled following GCA point 2 page 38 SN 362 - 378 - 382 - 375 - 364 - 386 - 390 - 367 | G113: STELIA | H113: WAITING CL | K113: O | L113: 2019-03-06
A114: CI | B114: A350 | C114: 328 | D114: I-Nc | E114: 206214260 | F114: V-Inc-AR-Damage-B/CS-QP-BCS-4409-3565 Impact on the meal table corner QP-BCS-4409-3565 GCA point 2 page 37 SN 365 - 363 - 385 | G114: STELIA | H114: A COMMANDER | K114: O | L114: 2019-03-06
A115: CI | B115: A350 | C115: 328 | D115: Gamme | E115: 6016856857-GI-332-102 | F115: Install 4 missing doors and placards EA Description: SEAT OSW Descr: Install 4 missing doors and placards Part Descr: FNT_B/C_CTR_FNT_F/R EA PNR: SJSA2-1SQ301-01 EA SerNr.: 57 | G115: STELIA | J115: STECO | K115: O | L115: 2019-03-01
A116: CI | B116: A350 | C116: 328 | D116: Gamme | E116: 6016856837-GI-332-102 | F116: Replace 1 damaged decor panel EA Description: SEAT OSW Descr: Replace 1 damaged decor panel Part Descr: FNT_B/C_CTR_FNT_F/R EA PNR: SJSA2-1SQ302-01 EA SerNr.: 60 EQPT FIN: V5219ME019 MX | G116: STELIA | J116: STECO | K116: O | L116: 2019-03-01
A117: CI | B117: A350 | C117: 328 | D117: Gamme | E117: 6016856836-GI-332-102 | F117: Install 1 missing door and placards EA Description: SEAT OSW Descr: Install 1 missing door and placards Part Descr: FNT_B/C_R/H_FNT_F/R EA PNR: SJSA2-1SQ202-01 EA SerNr.: 59 | G117: STELIA | J117: STECO | K117: O | L117: 2019-03-01
A118: CI | B118: A350 | C118: 328 | D118: Gamme | E118: 6016856835-GI-332-102 | F118: Install 1 missing door and placards EA Description: SEAT OSW Descr: Install 1 missing door and placards Part Descr: FNT_B/C_L/H_FNT_F/R EA PNR: SJSA2-1SQ102-01 EA SerNr.: 58 | G118: STELIA | J118: STECO | K118: O | L118: 2019-03-01
A119: CI | B119: A350 | C119: 328 | D119: Gamme | E119: 6016856834-GI-332-102 | F119: Install 1 missing door and placards EA Description: SEAT OSW Descr: Install 1 missing door and placards Part Descr: FNT_B/C_R/H_FNT_F/R EA PNR: SJSA2-1SQ201-01 EA SerNr.: 56 | G119: STELIA | J119: STECO | K119: O | L119: 2019-03-01
A120: CI | B120: A350 | C120: 328 | D120: Gamme | E120: 6016856833-GI-332-102 | F120: Install 1 missing door and placards EA Description: SEAT OSW Descr: Install 1 missing door and placards Part Descr: FNT_B/C_L/H_FNT_F/R EA PNR: SJSA2-1SQ101-01 EA SerNr.: 55 | G120: STELIA | J120: STECO | K120: O | L120: 2019-03-01
A121: CI | B121: A350 | C121: 305 | D121: TLB | E121: MID_100 | F121: QUALITY SURVEY REPORT TO BE APPLIED BEFORE: HO QSR NBR: TFVCB19-00001 DESCRIPTION OF PROBLEM: A350 - THALES - TPMU2 (TETHERED PASSENGER MEDIA UNIT GET 2) FAULTY REU | G121: IFE Thales | H121: QSR TPMU | J121: JBDT/ATE | K121: f | L121: 2019-03-11 | M121: 2019-03-22 | N121: 9
A122: CI | B122: A350 | C122: 322 | D122: Nc | E122: 206314954 | F122: NC.ITEM-BCS-Z4 FNT central gauche zone B/C area 2, nous constatons que le joint avant est trop court. voir doc. joint. | G122: STELIA | H122: 09/04 Le joint a été remplacé | I122: Demande de commande faite le 12/03 SB1-016-005-09 | J122: ADS | K122: F | L122: 2019-03-11 | M122: 2019-04-09 | N122: 21 | AB122: 1
A123: CI | B123: A350 | C123: 312 | D123: Nc | E123: 206323509 | F123: Seat 3E doesnt work correctly Durant nos essais, nous avons constaté que les mouvements du siège 3E ne fonctionnent pas correctement.. Demandons intervention pour remise en conformité. | G123: STELIA | H123: 23/04 ECU CHANGER | I123: ECU EN COMMANDE PN/ P78700M010 SN IN 190312-N0560087 SN OFF 18130-N0523531 | K123: F | L123: 2019-03-12 | M123: 2019-04-24 | N123: 31 | AP123: 3
A124: CI | B124: A350 | C124: 305 | D124: TLB | E124: MID_109 | F124: Following check list after flight Ottoman zone 1 RH ,seat 11K the deco panel is impacted | G124: AIRBUS | H124: 03/04 A FERMER SUR PISTE AVEC CL JOINT PAR DAVID 15/04 Démontage cloison + attente qualité Airbus | J124: JSE/DLY/JMS | K124: F | L124: 2019-03-12 | M124: 2019-04-15 | N124: 24 | O124: REOPEN | AH124: 9
A125: CI | B125: A350 | C125: 316 | D125: Nc | E125: 206335823 | F125: Seat 21D PIN twisted plug J1 During the test we found on seat 21D the pin 3/4/7/8 is twisted on plug J1 see std doc. Demandons intervention pour remise en conformité. | G125: AIRBUS | H125: Airbus a tordu des pins en banchant le S2S. 03/04 Dépose / repose faisceau 21D 04/04 Recherche panne | I125: PN 186836-101 | J125: ADS/JBDT/TBE | K125: F | L125: 2019-03-15 | M125: 2019-04-04 | N125: 14 | V125: 14 | W125: 2.5
A126: CI | B126: A350 | C126: 328 | D126: I-Nc | E126: 206329503 | F126: V-Inc-AR-Damage-BCS-noQP Scratch on meal table hinge(5mm) GCApoint 3 page37 SN 391 | G126: STELIA | H126: WAITING CL | K126: F | L126: 2019-03-13 | M126: 2019-04-15 | N126: 23
A127: CI | B127: A350 | C127: 301 | D127: Nc | E127: 206329494 | F127: problem on bed position While performing seat actuation test on seat 3F we notice a problem on bed position (the back of the seat goes back).. Demandons intervention pour remise en conformité. | G127: STELIA | H127: 14/03 Recherche panne croisement ecu | I127: Boitier OUT; 190911-N°494732 Boitier IN : 190402 n°591579 | J127: XON | K127: f | L127: 2019-03-13 | M127: 2019-05-07 | N127: 39
A128: CI | B128: A350 | C128: 322 | D128: Nc | E128: 206333765 | F128: Nous constatons quil nous manque 4 vis réf: NAS514P1032-5 et 4 rondelles réf DAN125-5 pour fixer la trappe de visite. Voir standard doc. | G128: AIRBUS | H128: 15/03Voir si stock autrement commande 09/04 Vis fournis au poste | J128: ADS | K128: F | L128: 2019-03-14 | M128: 2019-04-16 | N128: 23 | AB128: 0.5
A129: CI | B129: A350 | C129: 328 | D129: I-Nc | E129: 206342221 | F129: V-Inc-AR-PbFace-B/CS-noQP Corner of reading light panel padding is creased According to M2831.D chapter 3.34 page 60 SN 384 | G129: STELIA | H129: 15/04 fermer par CL | K129: F | L129: 2019-03-18 | M129: 2019-04-15 | N129: 20
A130: CI | B130: A350 | C130: 328 | D130: I-Nc | E130: 206342220 | F130: V-Inc-AR-PbFace-B/CS-noQP The headrest leather is wrinkled According to GCA, point 2 page 38. SN 384 | G130: AIRBUS | H130: 10/04 Vérification du point 11/04 AS PER DESIGN | J130: DMT | K130: F | L130: 2019-03-18 | M130: 2019-04-11 | N130: 18 | AC130: 0.5
A131: CI | B131: A350 | C131: 328 | D131: I-Nc | E131: 206342137 | F131: V-Inc-AR-Damage-B/CS-noQP Scratch on meal table hinge(10mm) According to GCA point 3 page37 SN 384 | G131: STELIA | H131: COVERED BY CL. ATTACHED | K131: F | L131: 2019-03-18 | M131: 2019-04-15 | N131: 20
A132: CI | B132: A350 | C132: 328 | D132: I-Nc | E132: 206342134 | F132: V-Inc-AR-PbFace-B/CS-QP-INC-GEN0013 Sharp edge on the armrest housing QP-INC-GEN0013 According to M2831.D chapter 3.7 page 44 SN 384 | G132: AIRBUS | H132: 10/04 Vérification du point 11/04 AS PER DESIGN | J132: DMT | K132: F | L132: 2019-03-18 | M132: 2019-04-11 | N132: 18 | AC132: 0.5
A133: CI | B133: A350 | C133: 328 | D133: Nc | E133: 206342132 | F133: V-Inc-AR-PbFace-B/CS-noQP The leather of the inner movable armrest is wrinkled According to GCA point 2 page 38 SN 384 | G133: AIRBUS | H133: 10/04 Vérification du point 11/04 AS PER DESIGN | J133: DMT | K133: F | L133: 2019-03-18 | M133: 2019-04-11 | N133: 18 | AC133: 0.5
A134: CI | B134: A350 | C134: 294 | D134: EQLB | E134: XW.0294-0077 | F134: CAB BC SEAT 12A / 14D HAVE TO BE CALIBRATED. | G134: STELIA | H134: 01/01 12A/14D Vis sans fin réglé + test concluant | J134: ABS/JBDT | K134: F | L134: 2019-04-01 | M134: 2019-04-02 | N134: 1 | T134: 3
A135: CI | B135: A350 | C135: 316 | D135: Gamme | E135: AG00-004561 / AG00-004566 | F135: Installation missing STELIA parts EA Description: SEAT OSW Descr: Installation missing STELIA parts Part Descr: FNT_B/C_CTR_FNT_F/R EA PNR: SJSA2-1SQ302-01 EA SerNr.: 48 EQPT FIN: V5219ME019 MX Part Descr: FNT_B/C_R/H_FNT_F/R EA PNR: SJSA2-1SQ202-01 EA SerNr.: 47 EQPT FIN: V5219ME019 MG Part Descr: FNT_B/C_L/H_FNT_F/R EA PNR: SJSA2-1SQ102-01 EA SerNr.: 46 EQPT FIN: V5219ME019 MA Part Descr: FNT_B/C_CTR_FNT_F/R EA PNR: SJSA2-1SQ301-01 EA SerNr.: 45 EQPT FIN: V5219ME011 MX Part Descr: FNT_B/C_R/H_FNT_F/R EA PNR: SJSA2-1SQ201-01 EA SerNr.: 44 EQPT FIN: V5219ME011 MG | G135: STELIA | H135: 20/03 Montage du profilet | J135: STECO | K135: o | L135: 2019-01-17
A136: CI | B136: A350 | C136: 316 | D136: Gamme | E136: GI-332-93 | F136: Installation of 1 missing door EA Description: SEAT OSW Descr: Installation of 1 missing door EA PNR: FJSA2-1SQ405-01 EA SerNr.: 320 EQPT FIN: V5211ME018 ME EA PNR: FJSA2-1SQ405-01 EA SerNr.: 317 EQPT FIN: V5211ME018 ME EA PNR: FJSA2-1SQ305-01 EA SerNr.: 310 EQPT FIN: V5211ME018 MC EA PNR: FJSA2-1SQ305-01 EA SerNr.: 307 EQPT FIN: V5211ME018 MC | G136: STELIA | J136: STECO | K136: O | L136: 2019-01-17
A137: CI | B137: A350 | C137: 316 | D137: Gamme | E137: GI-332-93_GI-332-94 | F137: Installation of missing parts STECO/JV EA Description: SEAT OSW Descr: Installation of missing parts STECO/JV EA PNR: SJSA2-1SQ301-01 EA SerNr.: 45 EQPT FIN: V5219ME011 MX EA PNR: SJSA2-1SQ302-01 EA SerNr.: 48 EQPT FIN: V5219ME019 MX EA PNR: SJSA2-1SQ202-01 EA SerNr.: 47 EQPT FIN: V5219ME019 MG EA PNR: SJSA2-1SQ102-01 EA SerNr.: 46 EQPT FIN: V5219ME019 MA Part Descr: FNT_B/C_R/H_FNT_F/R EA PNR: SJSA2-1SQ201-01 EA SerNr.: 44 EA PNR: SJSA2-1SQ101-01 EA SerNr.: 43 EQPT FIN: V5219ME011 MA | G137: STELIA | H137: 18/03 Recherche visserie pour le bumper dans camban AIRBUS , 19/03 Montage des bumpers 01/01 Montage des profilets Assistance Steco | J137: STECO/ADS/ATE | K137: O | L137: 2019-01-17 | T137: 3
A138: CI | B138: A350 | C138: 322 | D138: Gamme | E138: 6016774455-GI-332-103_3 | F138: Cannibalization door SJSA2-1R4100-02 EA Description: SEAT OSW Descr: Cannibalization door SJSA2-1R4100-02 Part Descr: FNT_B/C_CTR_FNT_F/R EA PNR: SJSA2-1SQ301-01 | G138: STELIA | J138: STECO | K138: O | L138: 2019-03-21
A139: CI | B139: A350 | C139: 322 | D139: Gamme | E139: 6016774455-GI-332-103_2 | F139: Cannibalization door SJSA2-1R4000-01 EA Description: SEAT OSW Descr: Cannibalization door SJSA2-1R4000-01 Part Descr: FNT_B/C_CTR_FNT_F/R EA PNR: SJSA2-1SQ301-01 EA SerNr.: 51 | G139: STELIA | J139: STECO | K139: O | L139: 2019-03-21
A140: CI | B140: A350 | C140: 328 | D140: Gamme | E140: 6016856834-305_MID_195 | F140: Cannibalization panel SJSA2-1Q4117-01 EA Description: SEAT OSW Descr: Cannibalization panel SJSA2-1Q4117-01 Part Descr: FNT_B/C_R/H_FNT_F/R EA PNR: SJSA2-1SQ201-01 EA SerNr.: 56 | G140: STELIA | J140: STECO | K140: O | L140: 2019-03-21
A141: CI | B141: A350 | C141: 328 | D141: Gamme | E141: 6016856833-305_MID_173 | F141: Cannibalization panel SJSA2-1Q4103-01 EA Description: SEAT OSW Descr: Cannibalization panel SJSA2-1Q4103-01 Part Descr: FNT_B/C_L/H_FNT_F/R EA PNR: SJSA2-1SQ101-01 EA SerNr.: 55 | G141: STELIA | J141: STECO | K141: O | L141: 2019-03-21
A142: CI | B142: A350 | C142: 316 | D142: Gamme | E142: V25290981000 | F142: FINISHING PART | G142: STELIA | H142: 05/03 Montage du joint inter-face 07/03 Montage des divider 11/03 Pose agrafes cheminemment 21F 12/03 Fermeture des assises. 13/03 IDEM 14/03 Montage des ski + mousse+ joint fin de zone central couper 04/04 Etiquettes | J142: NOE/MRO/MGN/JBDT/ATE | K142: o | W142: 6
A143: CI | B143: A350 | C143: 328 | D143: Nc | E143: 206349894 | F143: DAM - FRM - Z2 Type of nonconformity: Impact At reception, we notice that the FRM item 1, zone 2, frames 19/20 left side is damaged on the trim. We ask given in conformity. See standrd doc | K143: O | L143: 2019-03-20
A144: CI | B144: A350 | C144: 294 | D144: EQLB | E144: XW.0294-0078 | F144: CAB BC SEAT 11D SEWING OF BACKREST AND SEATREST NOT ALIGNED | G144: AIRBUS | H144: 03/04 FERMER CL | K144: F | L144: 2019-04-01 | M144: 2019-04-03 | N144: 2
A145: CI | B145: A350 | C145: 328 | D145: I-Nc | E145: 206353945 | F145: V-Inc-AR.ZZ-PbAspect-B/CS-noQP PN : FJSA2-1SQ401-01 SN : 393 Kind of defect : Finishing and cosmetic aspect ************************************************************ * Corner of reading light panel padding is * * creased * * According to M2831.D chapter 3.34 page 60 * ************************************************************ Moment of detection : During Incoming Inspection | G145: STELIA | H145: COVERED BY CL. | K145: F | L145: 2019-03-21 | M145: 2019-04-15 | N145: 17
A146: CI | B146: A350 | C146: 328 | D146: I-Nc | E146: 206353944 | F146: V-Inc-AR.ZZ-NCAssem-B/CS-QP-INC-GEN0017 PN : FJSA2-1SQ401-01 SN : 395 Sub-Item : Covering surface Kind of defect : Non conforming assembly Back rest cover is not correctly fixed QP-INC-GEN0017 According to M2831.D chapter 3.36 page 61 | G146: STELIA | H146: 01/04 Padding ajusté correctement | K146: F | L146: 2019-03-21 | M146: 2019-04-01 | N146: 7
A147: CI | B147: A350 | C147: 328 | D147: I-Nc | E147: 206353869 | F147: V-Inc-AR.ZZ-PbAspect-B/CS-QP-INC-GEN0013 Location: Incoming Item : B/c seat PN : FJSA2-1SQ401-01 SN : 395 PN : FJSA2-1SQ401-01 SN : 393 PN : FJSA2-1SQ401-01 SN : 398 Sub-Item : Covering surface Kind of defect : Finishing and cosmetic aspect * Sharp edge on the armrest housing * * QP-INC-GEN0013 * * According to M2831.D chapter 3.7 page 44 * | G147: AIRBUS | H147: 10/04 Vérification du point 11/04 AS PER DESIGN | J147: DMT | K147: F | L147: 2019-03-21 | M147: 2019-04-11 | N147: =IF(OR(L147="",M147=""),"",IF(NETWORKDAYS(L147,M147)-1>=0,NETWORKDAYS(L147,M147)-1,0)) -> 15 | AC147: 0.5
A148: CI | B148: A350 | C148: 294 | D148: EQLB | E148: XW.0294-0079 | F148: CAB BC SEAT 14K / 15K / 17F , LITTERATURE POCKET NOISY IN MOVEMENT | G148: AIRBUS | H148: 01/01 Littérature pocket ajusté | J148: JMS | K148: F | L148: 2019-04-01 | M148: 2019-04-02 | N148: 1 | T148: 1
A149: CI | B149: A350 | C149: 294 | D149: EQLB | E149: XW.0294-0080 | F149: CAB BC SEAT 16A / 16D, HINGES OF MEAL TABLE WITH DEVIATION | G149: STELIA | H149: 03/04 Couvert par la CL | K149: F | L149: 2019-04-01 | M149: 2019-04-03 | N149: 2
A150: CI | B150: A350 | C150: 294 | D150: EQLB | E150: XW.0294-0081 | F150: CAB BC SEAT 21D / 18D / 16D, SEWING OF BACKREST AND SEATREST NOT ALIGNED - | G150: STELIA | H150: 03/04 FERMER CL | K150: F | L150: 2019-04-01 | M150: 2019-04-03 | N150: 2
A151: CI | B151: A350 | C151: 294 | D151: EQLB | E151: XW.0294-0082 | F151: CAB BC SEAT 20D / 21A IS NOISY TO GO IN BED POSITION | G151: STELIA | H151: 01/04 20D/20A Bruit de siège + têtière réglé + parapluie installer mais bruit toujours présent | J151: ADS/JBDT | K151: F | L151: 2019-04-01 | M151: 2019-04-03 | N151: 2 | T151: 2
A152: CI | B152: A350 | C152: 305 | D152: TLB | E152: MID_216 | F152: In cabin on seat 21DF behind the backrest the seal is too white. Please provide a new seal with the good color | G152: STELIA | H152: 24/04 Joint a été vérifié mais la couleur ne correspond pas au autres joints (Impossible de prendre le lateral car si on l'enlève ne peu pas être remis.) 26/04 Joint inversé 21D/F | J152: TDT/ESI/JBDT/ATE | K152: F | L152: 2019-03-21 | M152: 2019-04-26 | N152: 26 | AQ152: 1.5 | AS152: 4
A153: CI | B153: A350 | C153: 305 | D153: TLB | E153: MID_215 | F153: In cabin on BC 19 D we notice a default behind the deco of seat. See picture in attached file. | G153: STELIA | H153: poste avec CL | K153: F | L153: 2019-03-21 | M153: 2019-04-15 | N153: 17 | AE153: 0.5
A154: CI | B154: A350 | C154: 294 | D154: EQLB | E154: XW.0294-0083 | F154: CAB BC SEAT 21D ATTENDANCE CALLING AND READING LIGHT FUNCTION DON T WORK FROM THE PAD | G154: IFE Thales | H154: 02/04 Joint re-installé sur ottoman | J154: ATE/JMS | K154: F | L154: 2019-04-01 | M154: 2019-04-02 | N154: 1 | U154: 2
A155: CI | B155: A350 | C155: 312 | D155: Nc | E155: 206358343 | F155: SCREEN OF THE SEAT 6H INOP - Durant nos essais, nous constatons que lécran du siège 6H ne sallume pas du tout, malgré que les écrans des sièges 5 et 7 sont alimentés. | G155: STELIA | H155: 24/04 Changement Harnais 25/04 IDEM 26/03 changement écrans non concluant, + contrôle branhcment et pinouille + cable sonnet / cablage siège droit connecté mais anomalie sur siège gauche/ recherche de la panne a continuer/ power off donc remontage dans le noir 27/03 Sondage prise Inop 6H | I155: RDFP0507A001 P20 RECU LE 04/04 | J155: JBDT/ATE/TBE | K155: F | L155: 2019-03-25 | M155: 2019-04-25 | N155: 23 | AQ155: 14 | AR155: 8.5
A156: CI | B156: A350 | C156: 312 | D156: Nc | E156: 206358289 | F156: REMOTE CONTROLLERS SEAT 6H - Durant nos essais, nous constatons que la télecommande du siège 6H est inop. | G156: STELIA | H156: Couvert par la NC 206358390 | K156: F | L156: 2019-03-26 | M156: 2019-04-25 | N156: 22
A157: CI | B157: A350 | C157: 312 | D157: Nc | E157: 206358390 | F157: USB Plug 5G Inop During ground test we noticed that the USB plug 5G is inop. | G157: STELIA | H157: 25/04 Le cable a été changer | I157: RDFP0507A001 P20 RECU LE 04/04 Seat PN FJST1-1BR401-01 | K157: F | L157: 2019-03-27 | M157: 2019-04-25 | N157: 21
A158: CI | B158: A350 | C158: 312 | D158: Nc | E158: 206358328 | F158: Remote controler 5G Inop During ground tests, we noticed that the remote controler 5G is inop. Demandons intervention pour remise en conformité. | G158: STELIA | H158: Couvert par la NC 206358390 | K158: F | L158: 2019-03-28 | M158: 2019-04-25 | N158: 20
A159: CI | B159: A330 | C159: 1861 | D159: Am | E159: 9610110 | F159: En cabine zone 1 sur siège B/C rang 7h droite suite à AM 9605354 du msn 1844, apres retour du fournisseur le siège ref: P/N:FJSL1-2AB201-01 SN:102 du msn:1844.serra installer sur msn1861. | G159: AIRBUS | H159: 02/04 Siège changer sur avion contrôle ok | I159: RDFP0689-060 P2 | K159: f | L159: 2019-01-21 | M159: 2019-04-02 | N159: 51 | O159: REOPEN | P159: No - x1
A160: CI | B160: A350 | C160: 328 | D160: Nc | E160: 206371507 | F160: At the time of the reception of the finishing parts B/C seats, zone 2, we notice that the console cover (PN: FJSA1-1N2180-02), frame 27/28, a/c axis (right side), is broken on the seat F, row 15. | I160: EN COMMANDE SJSA1-1N2180-02 | K160: O | L160: 2019-03-28
A161: CI | B161: A350 | C161: 328 | D161: Nc | E161: 206375708 | F161: During connexion of seat to seat on B/C, area 4, frame 41/42, right side, we notice that it is impossible for us to position the four cable of seat 20K in the 3 green supports (support too small). | K161: O | L161: 2019-03-28
A162: CI | B162: A350 | C162: 294 | D162: EQLB | E162: XW.0294-0097 | F162: CAB,BC,ROW 19, seal divider damaged,please assess. Deck/Zone: MD 04 | G162: AIRBUS | H162: 03/04 Installé correctement. | K162: f | L162: 2019-04-02 | M162: 2019-04-03 | N162: 1
A163: CI | B163: A350 | C163: 294 | D163: EQLB | E163: XW.0294-0103 | F163: CAB BC SEAT BTW 12D AND 12F DIVIDER NOISY DURING TAXI - - - - - - - - - - - - - - - - - - - - - - - - - - - YOU CAN HEAR IT WHEN YOU SEAT ON SEAT 12F AND JUMP ON THE FLOOR PANEL OR MOVE ON THE SEAT | G163: STELIA | H163: 02/04 le Divider a été ajusté | K163: F | L163: 2019-04-02 | M163: 2019-04-03 | N163: 1
A164: CI | B164: A350 | C164: 294 | D164: EQLB | E164: XW.0294-0104 | F164: CAB BC SEAT SEWING MISALIGNEMENT BTW BACKREST AND SEATREST ON 12F / 12K / 14F / 17K / 18F / 18K / 19F / 20K / 21F | G164: AIRBUS | H164: 03/04 Couvert par la CL | K164: F | L164: 2019-04-02 | M164: 2019-04-03 | N164: 1
A165: CI | B165: A350 | C165: 294 | D165: EQLB | E165: XW.0294-0105 | F165: CAB BC SEAT WRINKLES ON: BACKREST SEATS 11F / 17K / 18K / 19F / 21K / 21F SEATREST SEATS 14K / 15K / 16F / 17F / 18F / 19K / 20K / | G165: AIRBUS | H165: 03/04 Couvert par la CL | K165: F | L165: 2019-04-02 | M165: 2019-04-03 | N165: 1
A166: CI | B166: A350 | C166: 294 | D166: EQLB | E166: XW.0294-0106 | F166: CAB BC SEAT, FRAME OF THE ELCTRICAL UNIT UNSTUCK (MOVABLE) IN UPPER SIDE ON SEATS 21K / 21D / 19A / 18A / 18D / 16D / 15A / 14D / 12A / 11A / 17F | G166: AIRBUS | H166: 03/04 Couvert par la CL | K166: F | L166: 2019-04-02 | M166: 2019-04-03 | N166: 1
A167: CI | B167: A350 | C167: 294 | D167: EQLB | E167: XW.0294-0109 | F167: CAB BC SEAT, GAP SEEMS TOO BIG BTW BACKSHELL PARTS ON SEATS 15D / 14D / 12D / 17A / 19F / 20D / 19D | G167: STELIA | H167: AS PER DESIGN | K167: F | L167: 2019-04-03 | M167: 2019-04-03 | N167: 0
A168: CI | B168: A350 | C168: 294 | D168: EQLB | E168: XW.0294-0111 | F168: CAB BC S16F MONITOR LINEAR PROFILE GAP AND STEP Please Check adjust or advise when step or gap is found. | G168: STELIA | H168: 03/04 Couvert par la CL | K168: F | L168: 2019-04-02 | M168: 2019-04-03 | N168: 1
A169: CI | B169: A350 | C169: 294 | D169: EQLB | E169: XW.0294-0112 | F169: CAB BC S14A S14D S14K S16F S18F S19F S19K S20F S20k S21F Gap found between top cap and monitor frame. Please Check adjust or advise when step or gap is found. | G169: STELIA | H169: AS PER DESIGN | K169: F | L169: 2019-04-03 | M169: 2019-04-03 | N169: 0
A170: CI | B170: A350 | C170: 301 | D170: EQLB | E170: XW.0301-0120 | F170: CAB, BC, SEATS 5A, 1E, 2G, 2K, 6G, 3E, SEAT BELTS : THREADS VISIBLE | G170: STELIA | H170: 19/03 fils enlevé, 22/03 REOPEN 5A-6G-1E | I170: PN/ 3208-1-011-8105 Reçu le 05/04 | K170: F | L170: 2019-03-18 | M170: 2019-05-07 | N170: 36 | O170: REOPEN | P170: No - x1
A171: CI | B171: A350 | C171: 302 | D171: EQLB | E171: XW.0302-0078 | F171: CAB BC SEATS 2A 8J MEAL TABLE LATCHES STIFF Deck/Zone: MD 0 | G171: STELIA | H171: 19/02 Verif' latch tablette 11/03 Dépose et repose de la tablette 2A REOPEN Releve de valeur 2A 8J | I171: Commander le 20/02FJST1-1T6100-02 Recu 25/02 | J171: JBDT/TBE/ADS | K171: f | L171: 2019-02-15 | M171: 2019-04-05 | N171: 35 | Q171: VERROU | R171: INSTALATION | S171: CONTROL
A172: CI | B172: A350 | C172: 302 | D172: EQLB | E172: XW.0302-0086 | F172: CAB B/C CENTRE ROW 1E / 3E / 5E : when centre dividers are in low position, they are hard to unlock. Please take centre divider seat 7E as the reference. | G172: STELIA | H172: 15/04 Divider changer | I172: Commande le 22/02 MR12MLSS2V1M470 ODD 01/04 | J172: ESI/TBE | K172: f | L172: 2019-02-15 | M172: 2019-04-16 | N172: 42 | Q172: DIVIDER | R172: MECANISME | S172: CONCEPTION | W172: 1 | AH172: 3
A173: CI | B173: A350 | C173: 302 | D173: EQLB | E173: XW.0302-0095 | F173: CAB B/C SEAT 5E / 5G CENTRE DIVIDER : structure deviation on plastic trim | G173: AIRBUS | H173: Correspondance avec la nc 206127268 19/02 Vérif' divider Rang 1,3,5 manipulation difficile 04/04 Joint changer | I173: Commande demande le 20/02 FJST1-1S2001-01 ODD 01/04 | J173: JBDT/ADS | K173: F | L173: 2019-02-15 | M173: 2019-04-05 | N173: 35 | W173: 2 | X173: 1
A174: CI | B174: A350 | C174: 302 | D174: EQLB | E174: XW.0302-0096 | F174: CAB B/C RHS 2J / 3L / 4J / 5L/ 6J / 7L / 8J - LHS 1C / 2A / 3C / 4A / 5C / 6A / 7C / 8A - CENTRE LHS ROW 1E / 2D / 3E / 4D / 5E / 6D / 7E / 8D - CENTRE RHS ROW 1G / 2H / 3G / 4H / 5G / 6H / 7G / 8H : armrest very hard to unlock when seated | G174: AIRBUS | H174: STATUE STELIA / AS PER DESIGN 19/02 test fonctionnement accoudoir. REOPEN 19/03 * Rework incomplet, accoudoir trop dur pour les passagé. Conception RECARO non respecté.* WAITING CL 17/04 FERMER PAR DAVID | J174: TBE/JBDT | K174: F | L174: 2019-02-15 | M174: 2019-04-17 | N174: 43
A175: CI | B175: A350 | C175: 309 | D175: EQLB | E175: XW.0309-0014 | F175: CAB, SEAT 12A 12K 15A 16K 18F 18K 19D, NOISY, PLEASE REWORK | G175: AIRBUS | H175: 04/03 réglage de siège reste le 18A 05/03 18K Réglage assise + parapluie + limage. CL 03/04 Reglage des bruits ( repositionnement des têtières, essise et slim) | J175: JBDT/ATE/ESI, | K175: F | L175: 2019-03-01 | M175: 2019-04-04 | N175: 24 | V175: 4
A176: CI | B176: A350 | C176: 309 | D176: EQLB | E176: XW.0309-0018 | F176: CAB, SEAT 16D 17K 19D 19K 20K 21D, REAR PADDING DECO PANEL, MARK VISIBLE PLEASE ADJUST | G176: AIRBUS | H176: 04/02 Fermer par David Rejete 06/03 16D/19K a revoir 02/04 Contrôle de tout les bruit | J176: ATE/JMS/ESI | K176: F | L176: 2019-03-01 | M176: 2019-04-02 | N176: 22 | O176: REOPEN | P176: No - x1 | U176: 4
A177: CI | B177: A350 | C177: 309 | D177: EQLB | E177: XW.0309-0022 | F177: CAB SEAT 21K 21D MEAL TABLE CORNER DAMAGED. PLEASE REWORK | G177: AIRBUS | H177: 04/03 Après vérif' Les meal table sont à repeindre 02/04 Tablette changer 12/04 Rejeté, "Difficulté à dévérouiller" 18/04 Tablette lubrifié 25/04 21K Ajusté | I177: En commande ST43-3600-01; ST43-3600-02 reçu le 20/03/2019 | J177: TBE/ATE/ESI/TDT | K177: f | L177: 2019-03-01 | M177: 2019-04-25 | N177: 39 | O177: REOPEN | U177: 2 | AK177: 1 | AR177: 1
A178: CI | B178: A350 | C178: 309 | D178: EQLB | E178: XW.0309-0026 | F178: CAB B/C SEAT 17D : meal table deco damaged - | G178: AIRBUS | H178: 02/04 Dépose et repose de la tablette | I178: COMMANDER LE 01/03 ST43-3600-02 reçu le 20/03/2019 | J178: TBE | K178: F | L178: 2019-03-01 | M178: 2019-04-02 | N178: 22 | U178: 2
A179: CI | B179: A350 | C179: 309 | D179: EQLB | E179: XW.0309-0028 | F179: CAB B/C SEAT 12A : paint peeling on meal table angle | G179: STELIA | H179: 02/04 changement de la tablette | I179: COMMANDER LE 01/03 ST43-3600-02 reçu le 20/03 | J179: TBE | K179: F | L179: 2019-03-01 | M179: 2019-04-02 | N179: 22 | U179: 2
A180: CI | B180: A350 | C180: 309 | D180: EQLB | E180: XW.0309-0046 | F180: CAB, BC, Wrinkles at 12D/F in center foam. Please rework. | G180: STELIA | H180: 02/04 Pièce changer 12/04 Rejeté "Mousse toujour fripé" 25/04 Remise en place joint inter-siège 30/04 Rejeté 12DF/ et 15DF | I180: FJSA1-1S1535-01 reçu le 20/03 | J180: ATE/ESI/TDT | K180: f | L180: 2019-03-07 | M180: 2019-05-06 | N180: 42 | O180: REOPEN | U180: 2 | AR180: 1
A181: CI | B181: A350 | C181: 312 | D181: EQLB | E181: XW.0312-0040 MID_190 | F181: CAB BC SEATS 8HJ 7GL 6HJ 5L 4HJ 3GL 2HJ 1G 1EC 4A 5CE 6D 7CE 8AD MEAL TABLE CLOSURE STIFF. (Please to give tolerance measurements taken by seats and specification) | G181: STELIA | H181: 22/03 Prise de mesure des tablettes | I181: Attente peson | J181: JBDT/ESI | K181: O | L181: 2019-03-21
A182: CI | B182: A350 | C182: 316 | D182: EQLB | E182: XW.0316-0058 | F182: CAB, BC, ALL SEATS, ARMREST ACCESS PANEL: PANEL IS LOOSE. PLEASE CHECK ALL BC SEATS. | G182: AIRBUS | H182: waiting cl | J182: DMT | K182: O | L182: 2019-03-29 | O182: REOPEN | P182: No - x2
A183: CI | B183: A350 | C183: 316 | D183: EQLB | E183: XW.0316-0066 | F183: CAB, BC, SEAT 15A, SEAT MOTION: NOISE AUDIBLE AT END OF MOVEMENT TO TTL. | G183: AIRBUS | H183: 01/01 Bruit Tetière ajusté + pression + lubrificcation | J183: JMS/ATE | K183: F | L183: 2019-03-29 | M183: 2019-04-01 | N183: 1 | T183: 1.5
A184: CI | B184: A350 | C184: 316 | D184: EQLB | E184: XW.0316-0071 | F184: CAB, BC, SEAT 18A, SEAT MOTION: NOISE AUDIBLE AT END OF MOVEMENT TO TTL. | G184: AIRBUS | H184: 01/01 Ajusté et lubrifié | J184: ATE/ESI | K184: F | L184: 2019-03-29 | M184: 2019-04-01 | N184: 1 | T184: 1.5
A185: CI | B185: A350 | C185: 316 | D185: EQLB | E185: XW.0316-0088 | F185: CAB, BC, SEAT 12D, SEAT MOTION: NOISE AUDIBLE DURING MOTION. | G185: AIRBUS | H185: seat cover to repair | J185: DMT | K185: O | L185: 2019-03-29
A186: CI | B186: A350 | C186: 301 | D186: Nc | E186: 206335410 | F186: NC.ITEM-SEAT B/C-ZONE 2 Lors de linspection , nous constatons que le joint et le pelmet sont mal installés à larrière du seat B/C 7 EF et en interposition avec la cloison du G2F . Voir standard doc | G186: AIRBUS | H186: 18/03 Reopen * joint et pelmet pas en place.* 29/03 REOPEN 08/04 Rejeté déjà accepter par client | K186: f | L186: 2019-03-15 | M186: 2019-04-08 | N186: 16
A187: CI | B187: A350 | C187: 335 | D187: I-Nc | E187: 206371051 | F187: Scratch >2mm on the leather of the shell assembly FJSL4-1AZ102-01 SN 256 FJSL4-1AZ403-01 SN 276 | G187: STELIA | H187: 16/04 Nettoyer 18/04 Nettyage sn 263 ok | J187: JMS | K187: F | L187: 2019-03-27 | M187: 2019-04-16 | N187: 14 | AI187: 0.5 | AK187: 0.5
A188: CI | B188: A350 | C188: 335 | D188: I-Nc | E188: 206371050 | F188: Mark on the monitor shroud FJSL4-1AZ202-01 SN 263 SJSL4-1AZ401-01 SN 40 | G188: STELIA | H188: 18/04 Nettoyé 24/05 Nettoyer | J188: JMS | K188: F | L188: 2019-03-27 | M188: 2019-04-25 | N188: 21 | AK188: 0.5
A189: CI | B189: A350 | C189: 335 | D189: I-Nc | E189: 206370908 | F189: Mark on the armrest >2mm FJSL4-1AZ102-01 SN 254 | G189: STELIA | H189: 18/04 Nettoyage ok 24/05 Rien trouvé | J189: JMS | K189: F | L189: 2019-03-27 | M189: 2019-04-25 | N189: 21 | AK189: 1
A190: CI | B190: A350 | C190: 335 | D190: I-Nc | E190: 206370902 | F190: The trim on the pax shell assembly is badly installed FJSL4-1AZ203-01 SN 264 | G190: STELIA | H190: 18/04 Joint remis en place 24/05 Joint ajusté | J190: JMS | K190: F | L190: 2019-03-27 | M190: 2019-04-25 | N190: 21 | AK190: 1
A191: CI | B191: A350 | C191: 335 | D191: I-Nc | E191: 206370758 | F191: The pax shell assembly is badly as FJSL4-1AZ103-01 SN 257 FJSL4-1AZ103-01 SN 255 | G191: STELIA | H191: 16/04 Velcro remis en place | J191: JMS | K191: F | L191: 2019-03-27 | M191: 2019-04-16 | N191: 14 | AI191: 0.5
A192: CI | B192: A350 | C192: 335 | D192: I-Nc | E192: 206370664 | F192: Impact on the legrest closeout >2mm FJSL4-1AZ302-01 SN 271 FJSL4-1AZ405-01 SN 277 | G192: STELIA | H192: 18/04 Retouche peinture a prévoir 25/04 Poncé + retouche au stylo | J192: JMS/ATE | K192: f | L192: 2019-03-27 | M192: 2019-04-26 | N192: 22 | AK192: 0.5 | AR192: 0.5
A193: CI | B193: A350 | C193: 335 | D193: I-Nc | E193: 206370597 | F193: The actuation backrest doesn't work FJSL4-1AZ101-01 SN 253 FJSL4-1AZ402-01 SN 278 | G193: AIRBUS | H193: 26/04 AFTER CHECK NO FAULT FOUND | K193: F | L193: 2019-03-27 | M193: 2019-04-26 | N193: 22
A194: CI | B194: A350 | C194: 335 | D194: I-Nc | E194: 206370663 | F194: Impact on the top cap >2mm FJSL4-1AZ302-01 SN 271 | G194: STELIA | H194: 16/04 Nettoyer 18/04 Nettoyage sn271 | J194: JMS | K194: F | L194: 2019-03-27 | M194: 2019-04-16 | N194: 14 | AI194: 0.5 | AK194: 0.5
A195: CI | B195: A350 | C195: 316 | D195: EQLB | E195: XW.0316-0093 | F195: CAB, BC, SEAT 21K, SEAT MOTION: NOISE AUDIBLE DURING MOTION. | G195: AIRBUS | H195: 01/01 siège non aujustable / parapluie non ajustable | J195: ESI/JMS | K195: F | L195: 2019-03-29 | M195: 2019-04-04 | N195: 4 | T195: 1.5
A196: CI | B196: A350 | C196: 316 | D196: EQLB | E196: XW.0316-0095 | F196: CAB, BC, SEAT 21A, SEAT MOTION: NOISE AUDIBLE DURING MOTION. | H196: 01/04 Têtière ajusté 10/05 Bruit toujours présent. | J196: JMS/ATE | K196: o | L196: 2019-03-29 | T196: 1.5
A197: CI | B197: A350 | C197: 316 | D197: EQLB | E197: XW.0316-0097 | F197: CAB, BC, SEAT 21D, SEAT MOTION: NOISE AUDIBLE DURING MOTION. | G197: AIRBUS | H197: 01/04 Assises remis en place bruit ok | J197: ESI/ATE | K197: F | L197: 2019-03-29 | M197: 2019-04-01 | N197: 1 | T197: 1.5
A198: CI | B198: A350 | C198: 316 | D198: EQLB | E198: XW.0316-0098 | F198: CAB, BC, SEAT 20D, SEAT MOTION: NOISE AUDIBLE DURING MOTION. | H198: 01/04 conssole basse repositionné , bruit ok 10/05 Bruit toujours présent | J198: ESI/ATE | K198: o | L198: 2019-03-29 | T198: 1.5
A199: CI | B199: A350 | C199: 316 | D199: EQLB | E199: XW.0316-0104 | F199: CAB, BC, FACING SEAT 19A, STWG S2AL, UPPER INBD AFT CORNER: TRIM IS DAMAGED. | G199: AIRBUS | H199: 26/03 Couver par point TRACE Attente pièce | K199: O | L199: 2019-03-21
A200: CI | B200: A350 | C200: 316 | D200: EQLB | E200: XW.0316-0115 | F200: CAB, BC, SEAT 11K / 14K, BACKSHELL, TOP PART, ABOVE C TRIM: TOO IMPORTANT GAP VISIBLE BTWN BOTH PARTS. | G200: STELIA | H200: 25/03 Ok pour 11K Mais 14k a Voir 27/03 14 Gap casquette repris (Montage-Demontage) 08/04 Casquette ajjusté'( Demontage et remontage de la zone! | J200: ADS/ATE | K200: F | L200: 2019-03-21 | M200: 2019-04-08 | N200: 12 | AA200: 3
A201: CI | B201: A350 | C201: 316 | D201: EQLB | E201: XW.0316-0126 | F201: CAB, BC, SEAT 11DF, IN FRONT: FOAM BTWN OTTOMANS AND BTWN MONITORS ARE WAVY. | G201: STELIA | H201: 26/03 A commander 03/04 Dépose/Repose joint ottoman 11DF | I201: SJSA2-1S0715-01 | J201: ADS/JBDT | K201: F | L201: 2019-03-21 | M201: 2019-04-04 | N201: 10 | V201: 2
A202: CI | B202: A350 | C202: 316 | D202: EQLB | E202: XW.0316-0130 | F202: CAB, BC, SEAT 18F, SEAT MOTION: NOISE AUDIBLE DURING MOTION. | G202: Other | H202: 01/01 Coussin ajusté | K202: F | L202: 2019-03-29 | M202: 2019-04-01 | N202: 1 | T202: 1.5
A203: CI | B203: A350 | C203: 316 | D203: EQLB | E203: XW.0316-0161 | F203: CAB, BC, SEAT 21F, SEAT MOTION: CHAFFING NOISE IS AUDIBLE WHEN GOING TO RECLINE POSITION. | G203: AIRBUS | H203: 27/03 21F ok Console basse et assise reprise 01/01 Siège ajusté et lubrifier | J203: ADS | K203: F | L203: 2019-03-31 | M203: 2019-04-01 | N203: 0 | T203: 1.5
A204: CI | B204: A350 | C204: 316 | D204: EQLB | E204: XW.0316-0166 | F204: CAB, BC, SEAT 17A, SEAT MOTION: NOISE AUDIBLE DURING MOTION. | G204: STELIA | H204: 01/01 Siège non ajustable les bielles on du jeu voirs avec STELIA | J204: JMS/ATE | K204: F | L204: 2019-03-29 | M204: 2019-04-04 | N204: 4 | T204: 0.5
A205: CI | B205: A350 | C205: 328 | D205: Nc | E205: 206380500 | F205: MISS - FIP.BCS - AREA 2 During installation finishing parts of B/C seats,item 30, area 2, fr.41/42, left side, we notice that one washer and one fasten are missing on the fixing of vertical shroud (seat A, row 20). - PN PART: FJSA1-1N2091-01. | K205: O | L205: 2019-04-01
... 336 more rows

Sheet Mars 2019
R5: PROD CI/ST/AC | S5: =SUM(S13:S249) -> 26 | T5: =SUM(T13:T249) -> 0 | U5: =SUM(U13:U249) -> 0 | V5: =SUM(V13:V249) -> 41.5 | W5: =SUM(W13:W645) -> 47.5 | X5: 47.5 | Y5: 49.5 | Z5: 27 | AA5: 0 | AB5: 0 | AC5: 41.5 | AD5: 43 | AE5: 48 | AF5: 48 | AG5: 30.5 | AH5: 0 | AI5: 0 | AJ5: 38 | AK5: 34.5 | AL5: 36 | AM5: 43.5 | AN5: 34.5 | AO5: 0 | AP5: 0 | AQ5: 42.5 | AR5: 58 | AS5: 58 | AT5: 54 | AU5: 36 | AV5: 0 | AW5: 0 | AX5: 180.5
D6: Month: | E6: MARS 2019 | F6: 2019-03-01 | R6: PROD ATR | S6: =[2]Feuil1!M3 -> 0 | T6: =[2]Feuil1!N3 -> 0 | U6: =[2]Feuil1!O3 -> 0 | V6: =[2]Feuil1!P3 -> 0 | W6: =[2]Feuil1!Q3 -> 0 | X6: =[2]Feuil1!R3 -> 0 | Y6: =[2]Feuil1!S3 -> 0 | Z6: =[2]Feuil1!T3 -> 0 | AA6: =[2]Feuil1!U3 -> 0 | AB6: =[2]Feuil1!V3 -> 0 | AC6: =[2]Feuil1!W3 -> 0 | AD6: =[2]Feuil1!X3 -> 0 | AE6: =[2]Feuil1!Y3 -> 0 | AF6: =[2]Feuil1!Z3 -> 0 | AG6: =[2]Feuil1!AA3 -> 0 | AH6: =[2]Feuil1!AB3 -> 0 | AI6: =[2]Feuil1!AC3 -> 0 | AJ6: =[2]Feuil1!AD3 -> 0 | AK6: =[2]Feuil1!AE3 -> 0 | AL6: =[2]Feuil1!AF3 -> 0 | AM6: =[2]Feuil1!AG3 -> 0 | AN6: =[2]Feuil1!AH3 -> 0 | AO6: =[2]Feuil1!AI3 -> 0 | AP6: =[2]Feuil1!AJ3 -> 0 | AQ6: =[2]Feuil1!AK3 -> 0 | AR6: =[2]Feuil1!AL3 -> 0 | AS6: =[2]Feuil1!AM3 -> 0 | AT6: =[2]Feuil1!AN3 -> 0 | AU6: =[2]Feuil1!AO3 -> 0 | AV6: =[2]Feuil1!AP3 -> 0 | AW6: =[2]Feuil1!AQ3 -> 0 | AX6: =[2]Feuil1!AR3 -> 0 | AY6: ='[2]JANVIER 19'!AS3 -> 0 | AZ6: ='[2]JANVIER 19'!AT3 -> 0 | BA6: ='[2]JANVIER 19'!AU3 -> 0 | BB6: ='[2]JANVIER 19'!AV3 -> 0 | BC6: ='[2]JANVIER 19'!AW3 -> 0
G7: New month | R7: TOTAL CI/ST/ATR | S7: =SUM(S5:S6) -> 26 | T7: 0 | U7: 0 | V7: 41.5 | W7: 47.5 | X7: 47.5 | Y7: 49.5 | Z7: 27 | AA7: 0 | AB7: 0 | AC7: 41.5 | AD7: 43 | AE7: 48 | AF7: 48 | AG7: 30.5 | AH7: 0 | AI7: 0 | AJ7: 38 | AK7: 34.5 | AL7: 36 | AM7: 43.5 | AN7: 34.5 | AO7: 0 | AP7: 0 | AQ7: 42.5 | AR7: 58 | AS7: 58 | AT7: 54 | AU7: 36 | AV7: 0 | AW7: 0 | AX7: =SUM(S7:AW7) -> 885
R8: TOTAL JR | S8: =S7+S12 -> 32 | T8: 0 | U8: 0 | V8: 51 | W8: 55.5 | X8: 58 | Y8: 59 | Z8: 32 | AA8: 0 | AB8: 0 | AC8: 45.5 | AD8: 52 | AE8: 58.5 | AF8: 58.5 | AG8: 37 | AH8: 0 | AI8: 0 | AJ8: 47 | AK8: 43 | AL8: 48 | AM8: 52 | AN8: 41.5 | AO8: 0 | AP8: 0 | AQ8: 51 | AR8: 66.5 | AS8: 62 | AT8: 62.5 | AU8: 42 | AV8: 0 | AW8: 0 | AX8: 1054.5
A9: NC DESCRIPTION | G9: NC FOLLOW-UP | K9: KPI and CONTINUOUS IMPROVEMENT | S9: =F6 -> 2019-03-01 | T9: =S9+1 -> 2019-03-02 | U9: 2019-03-03 | V9: 2019-03-04 | W9: 2019-03-05 | X9: 2019-03-06 | Y9: 2019-03-07 | Z9: 2019-03-08 | AA9: 2019-03-09 | AB9: 2019-03-10 | AC9: 2019-03-11 | AD9: 2019-03-12 | AE9: 2019-03-13 | AF9: 2019-03-14 | AG9: 2019-03-15 | AH9: 2019-03-16 | AI9: 2019-03-17 | AJ9: 2019-03-18 | AK9: 2019-03-19 | AL9: 2019-03-20 | AM9: 2019-03-21 | AN9: 2019-03-22 | AO9: 2019-03-23 | AP9: 2019-03-24 | AQ9: 2019-03-25 | AR9: 2019-03-26 | AS9: 2019-03-27 | AT9: =IF(OR(DAY(AS9+1)=1,DAY(AS9+1)=2,DAY(AS9+1)=3,DAY(AS9+1)=4),"",AS9+1) -> 2019-03-28 | AU9: =IF(OR(DAY(AT9+1)=1,DAY(AT9+1)=2,DAY(AT9+1)=3,DAY(AT9+1)=4),"",AT9+1) -> 2019-03-29 | AV9: =IF(ISERR(IF(OR(DAY(AU9+1)=1,DAY(AU9+1)=2,DAY(AU9+1)=3,DAY(AU9+1)=4),"",AU9+1)),"",IF(OR(DAY(AU9+1)=1,DAY(AU9+1)=2,DAY(AU9+1)=3,DAY(AU9+1)=4),"",AU9+1)) -> 2019-03-30 | AW9: =IF(ISERR(IF(OR(DAY(AV9+1)=1,DAY(AV9+1)=2,DAY(AV9+1)=3,DAY(AV9+1)=4),"",AV9+1)),"",IF(OR(DAY(AV9+1)=1,DAY(AV9+1)=2,DAY(AV9+1)=3,DAY(AV9+1)=4),"",AV9+1)) -> 2019-03-31 | AX9: =AX8-AX7 -> 169.5
A11: PERIMETER | B11: A/C program | C11: MSN | D11: Ref AM/NC/TLB/eQLB/WO | E11: Non-Conformity description | F11: NC Liability | G11: Description of the work done | H11: ECME/Material PN/SN | I11: Worker | J11: NC State | K11: Reception date | L11: Closure date | M11: Reactivity | N11: Reactivity NC Main cause | O11: FTR | P11: Defect category | Q11: Root cause comments | R11: Root cause fundamantal | S11: =IF(WEEKDAY(S9)=2,"L",IF(WEEKDAY(S9)=3,"M",IF(WEEKDAY(S9)=4,"M",IF(WEEKDAY(S9)=5,"J",IF(WEEKDAY(S9)=6,"V",IF(WEEKDAY(S9)=7,"S",IF(WEEKDAY(S9)=1,"D"))))))) -> V | T11: S | U11: D | V11: L | W11: M | X11: M | Y11: J | Z11: V | AA11: S | AB11: D | AC11: L | AD11: M | AE11: M | AF11: J | AG11: V | AH11: S | AI11: D | AJ11: L | AK11: M | AL11: M | AM11: J | AN11: V | AO11: S | AP11: D | AQ11: L | AR11: M | AS11: M | AT11: J | AU11: V | AV11: S | AW11: v | AX11: PROD | AY11: Commentaires STELIA S1 | AZ11: Commentaires STELIA S2 | BA11: Commentaires STELIA S3 | BB11: Commentaires STELIA S4 | BC11: Comment AAA
A12: GESTION | E12: Heures Laurence guettar | I12: LGR | S12: 6 | V12: 9.5 | W12: 8 | X12: 10.5 | Y12: 9.5 | Z12: 5 | AC12: 4 | AD12: 9 | AE12: 10.5 | AF12: 10.5 | AG12: 6.5 | AJ12: 9 | AK12: 8.5 | AL12: 12 | AM12: 8.5 | AN12: 7 | AQ12: 8.5 | AR12: 8.5 | AS12: 4 | AT12: 8.5 | AU12: 6 | AX12: =SUM(S12:AW12) -> 169.5
A13: GESTION | E13: attente bureau/ trajet / attente ic / reception colis sur site/ non acces | G13: 14/03 et 15/03 Perte de temps Badge Abdou 18/03 INFIRMERIE Tony Baptiste 28/03 Bloquer poste badge Jordan Mages | I13: NOE/JBDT/TBE/MRO | S13: 1 | V13: 1.5 | X13: 1 | Y13: 0.75 | AE13: 1.5 | AF13: 2 | AG13: 3.5 | AJ13: 1 | AK13: 1.5 | AL13: 1.5 | AM13: 3 | AN13: 5 | AQ13: 2.5 | AR13: 3.5 | AS13: 3.5 | AT13: 3.5 | AU13: 2
A14: GESTION | E14: Heures Xavier OUDIN | I14: XON | S14: 8 | V14: 10 | W14: 9.5 | X14: 9.5 | Y14: 9.5 | Z14: 6 | AC14: 9 | AD14: 9 | AE14: 10.5 | AF14: 4 | AG14: 7 | AJ14: 9 | AK14: 9 | AL14: 12 | AM14: 9.5 | AN14: 7 | AQ14: 8.5 | AR14: 9.5 | AS14: 9 | AT14: 9 | AU14: 6 | AX14: =SUM(S14:AW14) -> 180.5
A15: Other | E15: PERTE TEMPS TRAJETS ( MANQUE VOITURE ) | V15: 1 | W15: 3 | X15: 3 | Y15: 1 | Z15: 1 | AC15: 4 | AD15: 3 | AF15: 0 | AR15: 3.5 | AS15: 6 | AT15: 1
A16: Other | E16: TAXI JV + IC JV | AE16: 1.5 | AF16: 2.25
A17: Other | E17: FORMATION | G17: 25/03 Formation stamp ( + trajet ) TBE 25/03 Formation accueil JMS | AQ17: 10
A18: CI | B18: A350 | C18: 224 | D18: 205998900 | E18: Lors de linstallation, nous avons endommagé le cache finition du siège 1A. | F18: Other | G18: 01/03 Accoudoir 1A pièce reçu non conforme + trajet couvert par le MID_380 | H18: commande FJSL1-7F2032-04 + CL | I18: TBE | J18: F | K18: 2018-12-11 | L18: 2019-03-11 | M18: =IF(OR(K18="",L18=""),"",IF(NETWORKDAYS(K18,L18)-1>=0,NETWORKDAYS(K18,L18)-1,0)) -> 64 | S18: 0.5
A19: CI | B19: A350 | C19: 224 | D19: 205996882 | E19: A réception poste du MSN 224, nous constatons un damaged sur le B/C 3E. | F19: AIRBUS | G19: COUVERT PAR LE MID_381 | H19: FJSL1-7R2608-04 odd 12/03 + CL ODD 04/03 recu 13/03 | J19: F | K19: 2018-12-10 | L19: 2019-03-11 | M19: 65
A20: CI | B20: A350 | C20: 234 | D20: IM-V25290994000 | F20: STELIA | G20: 16/01 Pose étiquettes | I20: NOE
A21: CI | B21: A350 | C21: 294 | D21: AG00-004533 | E21: Pose étiquettes + bumpers + micro-switch sur les portes des FRM de la Z1 et Z2 | F21: Other | G21: 26/02 Etiquette Porte Stowage | I21: TBE/ATE | J21: O | K21: 2018-11-26 | AG21: 2
A22: CI | B22: A350 | C22: 294 | D22: AG00-004518 | E22: Replacement of safety placard-new color EA Description: SEAT-BC OSW Descr: Replacement of safety placard-new color | F22: Other | G22: étiquettes siege et stowage finition littérature pocket 26/02 Etiquette remplacé 01/03 pose Etiquette | I22: LGR/NOE/TBE | J22: O | K22: 2018-11-07 | S22: 3 | V22: 2.5
A23: CI | B23: A350 | C23: 294 | D23: 6016369832-STECO | E23: installation of 2 missing doors EA Description: SEAT OSW Descr: installation of 2 missing doors Part Descr: FNT_B/C_CTR_FNT_F/R EA PNR: SJSA2-1SQ301-01 EA SerNr.: 27 EQPT FIN: V5219ME011 MX | F23: STELIA | I23: STECO | J23: O
A24: CI | B24: A350 | C24: 294 | D24: 6016369832-GI-332-68 | E24: installation of 2 missing doors EA Description: SEAT OSW Descr: installation of 2 missing doors Part Descr: FNT_B/C_CTR_FNT_F/R EA PNR: SJSA2-1SQ301-01 EA SerNr.: 27 EQPT FIN: V5219ME011 MX | F24: STELIA | I24: STECO | J24: O
A25: CI | B25: A350 | C25: 294 | D25: 6016369824-STECO | E25: Installation of 1 door and 1 profile EA Description: SEAT OSW Descr: Installation of 1 door and 1 profile Part Descr: FNT_B/C_R/H_FNT_F/R EA PNR: SJSA2-1SQ201-01 EA SerNr.: 26 EQPT FIN: V5219ME011 MG | F25: STELIA | I25: STECO | J25: O
A26: CI | B26: A350 | C26: 294 | D26: 6016369823-GI-332-68_1 | E26: Replacement of panel SJSA2-1Q4103-01 EA Description: SEAT OSW Descr: Replacement of panel SJSA2-1Q4103-01 Part Descr: FNT_B/C_L/H_FNT_F/R EA PNR: SJSA2-1SQ101-01 EA SerNr.: 25 EQPT FIN: V5219ME011 MA | F26: STELIA | I26: STECO | J26: O
A27: CI | B27: A350 | C27: 294 | D27: 6016369822-STECO | E27: Installation of 1 door and 4 profile EA Description: SEAT OSW Descr: Installation of 1 door and 4 profile Part Descr: FNT_B/C_CTR_FNT_F/R EA PNR: SJSA2-1SQ302-01 EA SerNr.: 30 EQPT FIN: V5219ME019 MX | F27: STELIA | I27: STECO | J27: O
A28: CI | B28: A350 | C28: 294 | D28: 6016369820-STECO | E28: installation of 1 missing doors EA Description: SEAT OSW Descr: installation of 1 missing doors Part Descr: FNT_B/C_R/H_FNT_F/R EA PNR: SJSA2-1SQ202-01 EA SerNr.: 29 EQPT FIN: V5219ME019 MG | F28: STELIA | I28: STECO | J28: O
A29: CI | B29: A350 | C29: 294 | D29: 6016369819-STECO | E29: installation of 1 missing doors EA Description: SEAT OSW Descr: installation of 1 missing doors Part Descr: FNT_B/C_L/H_FNT_F/R EA PNR: SJSA2-1SQ102-01 EA SerNr.: 28 EQPT FIN: V5219ME019 MA | F29: STELIA | I29: STECO | J29: O
A30: CI | B30: A350 | C30: 294 | D30: 6016369819-GI-332-79 | E30: Install panel after canibalisation | F30: STELIA | G30: 15/02 Reprise cheminement élèctrique après changement cloison de STECO | H30: SJSA2-1Q4532-01 | I30: STECO | J30: O | K30: 2018-12-05
A31: CI | B31: A350 | C31: 294 | D31: 205941703 | E31: Scratch on AFT tray table hinge PN: SN: FJSA2-1SQ301-01 183 FJSA2-1SQ101-01 165 FJSA2-1SQ401-01 193 FJSA2-1SQ302-01 184 FJSA2-1SQ301-01 181 FJSA2-1SQ302-01 189 FJSA2-1SQ402-01 192 FJSA2-1SQ102-01 162 | F31: STELIA | G31: COVERED BY CL 06 12 18 ET MID 92 | I31: DMT | J31: F | K31: 2018-11-19 | L31: 2019-03-26 | M31: 91
A32: CI | B32: A350 | C32: 305 | D32: 206019357 | E32: Leather wrinkles on the backrest All seats | F32: STELIA | G32: 16/01 Cuir repositionee sur tétière et coussin 05/02 ATTENTE REP DAVID 11/02 RETOUR SUR POCK - ATTENTE STATUE CL | I32: JBDT / DMT | J32: O | K32: 2018-12-18 | N32: Admin | O32: No - x1 | P32: CUIR | Q32: QUALITE | R32: CONTRÔLE
A33: CI | B33: A350 | C33: 305 | D33: 206021108 | E33: Scratch on hinge of meal table PN: FJSA2-1SQ402-01 / SN:236 PN: FJSA2-1SQ101-01 / SN:203 PN: FJSA2-1SQ202-01 / SN:214 PN: FJSA2-1SQ302-01 / SN:226 PN: FJSA2-1SQ401-01 / SN:238 PN: FJSA2-1SQ301-01 / SN:223 PN: FJSA2-1SQ101-01 / SN:201 PN: FJSA2-1SQ401-01 / SN:235 | F33: STELIA | G33: WAITING CL | I33: DMT | J33: O | K33: 2018-12-19
A34: CI | B34: A350 | C34: 305 | D34: 206059810 | E34: OTTOMAN CENTRAL RH / WAVINESS UNDER DECO FOIL (item 2)pn: SJSA2-1SQ301-01 | F34: STELIA | G34: WAITING CL | I34: DMT | J34: O | K34: 2019-01-16
A35: CI | B35: A350 | C35: 309 | D35: XW.0309-0018 | E35: CAB, SEAT 16D 17K 19D 19K 20K 21D, REAR PADDING DECO PANEL, MARK VISIBLE PLEASE ADJUST | F35: AIRBUS | G35: 04/02 Fermer par David Rejete 06/03 16D/19K a revoir | J35: o | K35: 2019-03-01 | N35: REOPEN | O35: No - x1
